Workbook

Sheet Cover
A1: Standard cap and floor financial model
B2: Regime design model
C3: =MID(CELL("filename"),SEARCH("[",CELL("filename"))+1,SEARCH("]",CELL("filename"))-SEARCH("[",CELL("filename"))-1) -> CFFM NSL FPA 17072017.xlsm
C4: DISCLAIMER: The inputs used in this model are purely illustrative. No inference should be made about the regulatory settlement for any interconnector's costs, e.g. capital expenditure or operating expenditure, and hence the level of the cap and floor. This illustrative nature extends to the cost of capital inputs, since under our proposed methodology these will be only known at financial close.
B6: Model key
E8: Sample | G8: Calculated value
E9: Sample | G9: Import
E10: Sample | G10: Export
E11: Sample | G11: Formula change in cells to the right
E12: Sample | G12: Initial inputs
E13: Sample | G13: Updated inputs
E14: Sample | G14: Notes and instructions
E15: Sample | G15: Cell intentionally blank
B17: Contents
E19: INTERFACE >
E20: Cover | G20: Model key and content directory
E21: Input | G21: Inputs
E22: CALCULATION >
E23: Pre_Op_RAV | G23: Pre-operational RAV balances
E24: Finance | G24: RAV IDC and transaction costs
E25: Op_RAV | G25: Operational RAV balances, return and depreciation
E26: AllowancesCap | G26: Cap allowances and annuitisation
E27: AllowancesFloor | G27: Floor allowances and annuitisation
E28: Deductions | G28: Tax depreciation and interest calculations
E29: TaxCap | G29: Tax allowance calculation with cap returns
E30: TaxFloor | G30: Tax allowance calculation with floor returns
E31: Availability | G31: Availability incentive calculations
E32: Assessment | G32: Assessment of the cap and the floor
E33: OUTPUTS >
E34: Output | G34: Cap and floor values and adjustments
E35: DATA >
E36: Download from BoE
E37: Download from iBoxx
E38: Market data
E39: RPI and currency
B43: End of sheet

Sheet Input
A1: Input | H1: Licence
E2: Parameter | G2: Units | H2: Terminology | I2: Constant | K2: Annual values
B4: Variables set after financial close
C6: Actual value
E8: Project year | K8: =- $I$116 + 1 -> -10 | L8: =K8 + 1 -> -9 | M8: =L8 + 1 -> -8 | N8: =M8 + 1 -> -7 | O8: =N8 + 1 -> -6 | P8: =O8 + 1 -> -5 | Q8: =P8 + 1 -> -4 | R8: =Q8 + 1 -> -3 | S8: =R8 + 1 -> -2 | T8: =S8 + 1 -> -1 | U8: =T8 + 1 -> 0 | V8: =U8 + 1 -> 1 | W8: =V8 + 1 -> 2 | X8: =W8 + 1 -> 3 | Y8: =X8 + 1 -> 4 | Z8: =Y8 + 1 -> 5 | AA8: =Z8 + 1 -> 6 | AB8: =AA8 + 1 -> 7 | AC8: =AB8 + 1 -> 8 | AD8: =AC8 + 1 -> 9 | AE8: =AD8 + 1 -> 10 | AF8: =AE8 + 1 -> 11 | AG8: =AF8 + 1 -> 12 | AH8: =AG8 + 1 -> 13 | AI8: =AH8 + 1 -> 14 | AJ8: =AI8 + 1 -> 15 | AK8: =AJ8 + 1 -> 16 | AL8: =AK8 + 1 -> 17 | AM8: =AL8 + 1 -> 18 | AN8: =AM8 + 1 -> 19 | AO8: =AN8 + 1 -> 20 | AP8: =AO8 + 1 -> 21 | AQ8: =AP8 + 1 -> 22 | AR8: =AQ8 + 1 -> 23 | AS8: =AR8 + 1 -> 24 | AT8: =AS8 + 1 -> 25 | AU8: =AT8 + 1 -> 26 | AV8: =AU8 + 1 -> 27 | AW8: =AV8 + 1 -> 28 | AX8: =AW8 + 1 -> 29
E9: Year commencing | K9: =$I$107 -> 2010-04-01 | L9: =+K10+1 -> 2011-04-01 | M9: =+L10+1 -> 2012-04-01 | N9: =+M10+1 -> 2013-04-01 | O9: =+N10+1 -> 2014-04-01 | P9: =+O10+1 -> 2015-04-01 | Q9: =+P10+1 -> 2016-04-01 | R9: =+Q10+1 -> 2017-04-01 | S9: =+R10+1 -> 2018-04-01 | T9: =+S10+1 -> 2019-04-01 | U9: =+T10+1 -> 2020-04-01 | V9: =+U10+1 -> 2021-04-01 | W9: =+V10+1 -> 2022-04-01 | X9: =+W10+1 -> 2023-04-01 | Y9: =+X10+1 -> 2024-04-01 | Z9: =+Y10+1 -> 2025-04-01 | AA9: =+Z10+1 -> 2026-04-01 | AB9: =+AA10+1 -> 2027-04-01 | AC9: =+AB10+1 -> 2028-04-01 | AD9: =+AC10+1 -> 2029-04-01 | AE9: =+AD10+1 -> 2030-04-01 | AF9: =+AE10+1 -> 2031-04-01 | AG9: =+AF10+1 -> 2032-04-01 | AH9: =+AG10+1 -> 2033-04-01 | AI9: =+AH10+1 -> 2034-04-01 | AJ9: =+AI10+1 -> 2035-04-01 | AK9: =+AJ10+1 -> 2036-04-01 | AL9: =+AK10+1 -> 2037-04-01 | AM9: =+AL10+1 -> 2038-04-01 | AN9: =+AM10+1 -> 2039-04-01 | AO9: =+AN10+1 -> 2040-04-01 | AP9: =+AO10+1 -> 2041-04-01 | AQ9: =+AP10+1 -> 2042-04-01 | AR9: =+AQ10+1 -> 2043-04-01 | AS9: =+AR10+1 -> 2044-04-01 | AT9: =+AS10+1 -> 2045-04-01 | AU9: =+AT10+1 -> 2046-04-01 | AV9: =+AU10+1 -> 2047-04-01 | AW9: =+AV10+1 -> 2048-04-01 | AX9: =+AW10+1 -> 2049-04-01
E10: Year ending | K10: =EOMONTH(K9,11) -> 2011-03-31 | L10: =DATE(YEAR(K10) + 1, MONTH(K10), DAY(K10)) -> 2012-03-31 | M10: =DATE(YEAR(L10) + 1, MONTH(L10), DAY(L10)) -> 2013-03-31 | N10: =DATE(YEAR(M10) + 1, MONTH(M10), DAY(M10)) -> 2014-03-31 | O10: =DATE(YEAR(N10) + 1, MONTH(N10), DAY(N10)) -> 2015-03-31 | P10: =DATE(YEAR(O10) + 1, MONTH(O10), DAY(O10)) -> 2016-03-31 | Q10: =DATE(YEAR(P10) + 1, MONTH(P10), DAY(P10)) -> 2017-03-31 | R10: =DATE(YEAR(Q10) + 1, MONTH(Q10), DAY(Q10)) -> 2018-03-31 | S10: =DATE(YEAR(R10) + 1, MONTH(R10), DAY(R10)) -> 2019-03-31 | T10: =DATE(YEAR(S10) + 1, MONTH(S10), DAY(S10)) -> 2020-03-31 | U10: =DATE(YEAR(T10) + 1, MONTH(T10), DAY(T10)) -> 2021-03-31 | V10: =DATE(YEAR(U10) + 1, MONTH(U10), DAY(U10)) -> 2022-03-31 | W10: =DATE(YEAR(V10) + 1, MONTH(V10), DAY(V10)) -> 2023-03-31 | X10: =DATE(YEAR(W10) + 1, MONTH(W10), DAY(W10)) -> 2024-03-31 | Y10: =DATE(YEAR(X10) + 1, MONTH(X10), DAY(X10)) -> 2025-03-31 | Z10: =DATE(YEAR(Y10) + 1, MONTH(Y10), DAY(Y10)) -> 2026-03-31 | AA10: =DATE(YEAR(Z10) + 1, MONTH(Z10), DAY(Z10)) -> 2027-03-31 | AB10: =DATE(YEAR(AA10) + 1, MONTH(AA10), DAY(AA10)) -> 2028-03-31 | AC10: =DATE(YEAR(AB10) + 1, MONTH(AB10), DAY(AB10)) -> 2029-03-31 | AD10: =DATE(YEAR(AC10) + 1, MONTH(AC10), DAY(AC10)) -> 2030-03-31 | AE10: =DATE(YEAR(AD10) + 1, MONTH(AD10), DAY(AD10)) -> 2031-03-31 | AF10: =DATE(YEAR(AE10) + 1, MONTH(AE10), DAY(AE10)) -> 2032-03-31 | AG10: =DATE(YEAR(AF10) + 1, MONTH(AF10), DAY(AF10)) -> 2033-03-31 | AH10: =DATE(YEAR(AG10) + 1, MONTH(AG10), DAY(AG10)) -> 2034-03-31 | AI10: =DATE(YEAR(AH10) + 1, MONTH(AH10), DAY(AH10)) -> 2035-03-31 | AJ10: =DATE(YEAR(AI10) + 1, MONTH(AI10), DAY(AI10)) -> 2036-03-31 | AK10: =DATE(YEAR(AJ10) + 1, MONTH(AJ10), DAY(AJ10)) -> 2037-03-31 | AL10: =DATE(YEAR(AK10) + 1, MONTH(AK10), DAY(AK10)) -> 2038-03-31 | AM10: =DATE(YEAR(AL10) + 1, MONTH(AL10), DAY(AL10)) -> 2039-03-31 | AN10: =DATE(YEAR(AM10) + 1, MONTH(AM10), DAY(AM10)) -> 2040-03-31 | AO10: =DATE(YEAR(AN10) + 1, MONTH(AN10), DAY(AN10)) -> 2041-03-31 | AP10: =DATE(YEAR(AO10) + 1, MONTH(AO10), DAY(AO10)) -> 2042-03-31 | AQ10: =DATE(YEAR(AP10) + 1, MONTH(AP10), DAY(AP10)) -> 2043-03-31 | AR10: =DATE(YEAR(AQ10) + 1, MONTH(AQ10), DAY(AQ10)) -> 2044-03-31 | AS10: =DATE(YEAR(AR10) + 1, MONTH(AR10), DAY(AR10)) -> 2045-03-31 | AT10: =DATE(YEAR(AS10) + 1, MONTH(AS10), DAY(AS10)) -> 2046-03-31 | AU10: =DATE(YEAR(AT10) + 1, MONTH(AT10), DAY(AT10)) -> 2047-03-31 | AV10: =DATE(YEAR(AU10) + 1, MONTH(AU10), DAY(AU10)) -> 2048-03-31 | AW10: =DATE(YEAR(AV10) + 1, MONTH(AV10), DAY(AV10)) -> 2049-03-31 | AX10: =DATE(YEAR(AW10) + 1, MONTH(AW10), DAY(AW10)) -> 2050-03-31
E13: Development costs | G13: £m 13/14 prices | K13: =0.029+0.303 -> 0.332 | L13: 0.51 | M13: 6.463 | N13: 1.397 | O13: 3.491 | P13: 0 | Q13: 0 | R13: 0 | S13: 0 | T13: 0 | U13: 0 | V13: 0 | W13: 0 | X13: 0 | Y13: 0 | Z13: 0 | AA13: 0 | AB13: 0 | AC13: 0 | AD13: 0 | AE13: 0 | AF13: 0 | AG13: 0 | AH13: 0 | AI13: 0 | AJ13: 0 | AK13: 0 | AL13: 0 | AM13: 0 | AN13: 0 | AO13: 0 | AP13: 0 | AQ13: 0 | AR13: 0 | AS13: 0 | AT13: 0 | AU13: 0 | AV13: 0 | AW13: 0 | AX13: 0
E15: Average exchange rate (XUMAERS) | G15: EUR / GBP | K15: ='RPI and currency'!K148 -> 1.177 | L15: ='RPI and currency'!L148 -> 1.16 | M15: ='RPI and currency'!M148 -> 1.227 | N15: ='RPI and currency'!N148 -> 1.186 | O15: ='RPI and currency'!O148 -> 1.275 | P15: ='RPI and currency'!P148 -> 1.367 | Q15: =P15 -> 1.367 | R15: =Q15 -> 1.367 | S15: 1.367 | T15: 1.367 | U15: 1.367 | V15: 1.367 | W15: 1.367 | X15: 1.367 | Y15: 1.367 | Z15: 1.367 | AA15: 1.367 | AB15: 1.367 | AC15: 1.367 | AD15: 1.367 | AE15: 1.367 | AF15: 1.367 | AG15: 1.367 | AH15: 1.367 | AI15: 1.367 | AJ15: 1.367 | AK15: 1.367 | AL15: 1.367 | AM15: 1.367 | AN15: 1.367 | AO15: 1.367 | AP15: 1.367 | AQ15: 1.367 | AR15: 1.367 | AS15: 1.367 | AT15: 1.367 | AU15: 1.367 | AV15: 1.367 | AW15: 1.367 | AX15: 1.367
E17: Development costs | G17: £m 15/16 prices | K17: =K13*$P98/$N98 -> 0.3421552041 | L17: 0.5255998618 | M17: 6.660690013 | N17: 1.439731386 | O17: 3.597782583 | P17: 0 | Q17: 0 | R17: 0 | S17: 0 | T17: 0 | U17: 0 | V17: 0 | W17: 0 | X17: 0 | Y17: 0 | Z17: 0 | AA17: 0 | AB17: 0 | AC17: 0 | AD17: 0 | AE17: 0 | AF17: 0 | AG17: 0 | AH17: 0 | AI17: 0 | AJ17: 0 | AK17: 0 | AL17: 0 | AM17: 0 | AN17: 0 | AO17: 0 | AP17: 0 | AQ17: 0 | AR17: 0 | AS17: 0 | AT17: 0 | AU17: 0 | AV17: 0 | AW17: 0 | AX17: 0
E18: Capex | G18: £m 15/16 prices | K18: 0 | L18: 0 | M18: 0 | N18: 0 | O18: 0 | P18: 27.12 | Q18: 46.09 | R18: 46.01 | S18: 86.71 | T18: 185.61 | U18: 125.8 | V18: 42.67 | W18: 0 | X18: 0 | Y18: 0 | Z18: 0 | AA18: 0 | AB18: 0 | AC18: 0 | AD18: 0 | AE18: 0 | AF18: 0 | AG18: 0 | AH18: 0 | AI18: 0 | AJ18: 0 | AK18: 0 | AL18: 0 | AM18: 0 | AN18: 0 | AO18: 0 | AP18: 0 | AQ18: 0 | AR18: 0 | AS18: 0 | AT18: 0 | AU18: 0 | AV18: 0 | AW18: 0 | AX18: 0
E19: Spares | G19: £m 15/16 prices | K19: 0 | L19: 0 | M19: 0 | N19: 0 | O19: 0 | P19: 0 | Q19: 0 | R19: 0 | S19: 0 | T19: 0 | U19: 0 | V19: 0 | W19: 0 | X19: 0 | Y19: 0 | Z19: 0 | AA19: 0 | AB19: 0 | AC19: 0 | AD19: 0 | AE19: 0 | AF19: 0 | AG19: 0 | AH19: 0 | AI19: 0 | AJ19: 0 | AK19: 0 | AL19: 0 | AM19: 0 | AN19: 0 | AO19: 0 | AP19: 0 | AQ19: 0 | AR19: 0 | AS19: 0 | AT19: 0 | AU19: 0 | AV19: 0 | AW19: 0 | AX19: 0
E20: Non-controllable opex (actual) | G20: £m 15/16 prices | K20: 0 | L20: 0 | M20: 0 | N20: 0 | O20: 0 | P20: 0 | Q20: 0 | R20: 0 | S20: 0 | T20: 0 | U20: 0 | V20: 0 | W20: 0 | X20: 0 | Y20: 0 | Z20: 0 | AA20: 0 | AB20: 0 | AC20: 0 | AD20: 0 | AE20: 0 | AF20: 0 | AG20: 0 | AH20: 0 | AI20: 0 | AJ20: 0 | AK20: 0 | AL20: 0 | AM20: 0 | AN20: 0 | AO20: 0 | AP20: 0 | AQ20: 0 | AR20: 0 | AS20: 0 | AT20: 0 | AU20: 0 | AV20: 0 | AW20: 0 | AX20: 0
E23: Gross congestion revenues (net of market-related costs) | G23: £m nominal prices | K23: 0 | L23: 0 | M23: 0 | N23: 0 | O23: 0 | P23: 0 | Q23: 0 | R23: 0 | S23: 0 | T23: 0 | U23: 0 | V23: 0 | W23: 0 | X23: 0 | Y23: 0 | Z23: 0 | AA23: 0 | AB23: 0 | AC23: 0 | AD23: 0 | AE23: 0 | AF23: 0 | AG23: 0 | AH23: 0 | AI23: 0 | AJ23: 0 | AK23: 0 | AL23: 0 | AM23: 0 | AN23: 0 | AO23: 0 | AP23: 0 | AQ23: 0 | AR23: 0 | AS23: 0 | AT23: 0 | AU23: 0 | AV23: 0 | AW23: 0 | AX23: 0
E24: Gross congestion revenues (net of market-related costs) | G24: €m nominal prices | K24: 0 | L24: 0 | M24: 0 | N24: 0 | O24: 0 | P24: 0 | Q24: 0 | R24: 0 | S24: 0 | T24: 0 | U24: 0 | V24: 0 | W24: 0 | X24: 0 | Y24: 0 | Z24: 0 | AA24: 0 | AB24: 0 | AC24: 0 | AD24: 0 | AE24: 0 | AF24: 0 | AG24: 0 | AH24: 0 | AI24: 0 | AJ24: 0 | AK24: 0 | AL24: 0 | AM24: 0 | AN24: 0 | AO24: 0 | AP24: 0 | AQ24: 0 | AR24: 0 | AS24: 0 | AT24: 0 | AU24: 0 | AV24: 0 | AW24: 0 | AX24: 0
E26: Gross congestion revenues (net of market-related costs) | G26: £m nominal prices | H26: NARt | K26: 0 | L26: 0 | M26: 0 | N26: 0 | O26: 0 | P26: 0 | Q26: 0 | R26: 0 | S26: 0 | T26: 0 | U26: 0 | V26: =AVERAGE(Availability!V11, Availability!V12)*V98/$I$97 -> 82.61896594 | W26: =AVERAGE(Availability!W11, Availability!W12)*W98/$I$97 -> 84.85793992 | X26: =AVERAGE(Availability!X11, Availability!X12)*X98/$I$97 -> 87.15759009 | Y26: =AVERAGE(Availability!Y11, Availability!Y12)*Y98/$I$97 -> 89.51956078 | Z26: =AVERAGE(Availability!Z11, Availability!Z12)*Z98/$I$97 -> 91.94554088 | AA26: =AVERAGE(Availability!AA11, Availability!AA12)*AA98/$I$97 -> 94.43726504 | AB26: =AVERAGE(Availability!AB11, Availability!AB12)*AB98/$I$97 -> 96.99651492 | AC26: =AVERAGE(Availability!AC11, Availability!AC12)*AC98/$I$97 -> 99.62512048 | AD26: =AVERAGE(Availability!AD11, Availability!AD12)*AD98/$I$97 -> 102.3249612 | AE26: =AVERAGE(Availability!AE11, Availability!AE12)*AE98/$I$97 -> 105.0979677 | AF26: =AVERAGE(Availability!AF11, Availability!AF12)*AF98/$I$97 -> 107.9461226 | AG26: =AVERAGE(Availability!AG11, Availability!AG12)*AG98/$I$97 -> 110.8714625 | AH26: =AVERAGE(Availability!AH11, Availability!AH12)*AH98/$I$97 -> 113.8760792 | AI26: =AVERAGE(Availability!AI11, Availability!AI12)*AI98/$I$97 -> 116.9621209 | AJ26: =AVERAGE(Availability!AJ11, Availability!AJ12)*AJ98/$I$97 -> 120.1317944 | AK26: =AVERAGE(Availability!AK11, Availability!AK12)*AK98/$I$97 -> 123.387366 | AL26: =AVERAGE(Availability!AL11, Availability!AL12)*AL98/$I$97 -> 126.7311636 | AM26: =AVERAGE(Availability!AM11, Availability!AM12)*AM98/$I$97 -> 130.1655782 | AN26: =AVERAGE(Availability!AN11, Availability!AN12)*AN98/$I$97 -> 133.6930653 | AO26: =AVERAGE(Availability!AO11, Availability!AO12)*AO98/$I$97 -> 137.3161474 | AP26: =AVERAGE(Availability!AP11, Availability!AP12)*AP98/$I$97 -> 141.037415 | AQ26: =AVERAGE(Availability!AQ11, Availability!AQ12)*AQ98/$I$97 -> 144.859529 | AR26: =AVERAGE(Availability!AR11, Availability!AR12)*AR98/$I$97 -> 148.7852222 | AS26: =AVERAGE(Availability!AS11, Availability!AS12)*AS98/$I$97 -> 152.8173017 | AT26: =AVERAGE(Availability!AT11, Availability!AT12)*AT98/$I$97 -> 156.9586506 | AU26: =AVERAGE(Availability!AU11, Availability!AU12)*AU98/$I$97 -> 161.21223 | AV26: =AVERAGE(Availability!AV11, Availability!AV12)*AV98/$I$97 -> 165.5810815 | AW26: =AVERAGE(Availability!AW11, Availability!AW12)*AW98/$I$97 -> 170.0683288 | AX26: =AVERAGE(Availability!AX11, Availability!AX12)*AX98/$I$97 -> 174.6771805
E27: Within-period adjustment (assessed) | G27: £m nominal | H27: WPAt | K27: 0 | L27: 0 | M27: 0 | N27: 0 | O27: 0 | P27: 0 | Q27: 0 | R27: 0 | S27: 0 | T27: 0 | U27: 0 | V27: 0 | W27: 0 | X27: 0 | Y27: 0 | Z27: 0 | AA27: 0 | AB27: 0 | AC27: 0 | AD27: 0 | AE27: 0 | AF27: 0 | AG27: 0 | AH27: 0 | AI27: 0 | AJ27: 0 | AK27: 0 | AL27: 0 | AM27: 0 | AN27: 0 | AO27: 0 | AP27: 0 | AQ27: 0 | AR27: 0 | AS27: 0 | AT27: 0 | AU27: 0 | AV27: 0 | AW27: 0 | AX27: 0
C29: Ex ante allowance - Operational Period
E30: Operational Year | K30: Year 1 | L30: Year 2 | M30: Year 3 | N30: Year 4 | O30: Year 5 | P30: Year 6 | Q30: Year 7 | R30: Year 8 | S30: Year 9 | T30: Year 10 | U30: Year 11 | V30: Year 12 | W30: Year 13 | X30: Year 14 | Y30: Year 15 | Z30: Year 16 | AA30: Year 17 | AB30: Year 18 | AC30: Year 19 | AD30: Year 20 | AE30: Year 21 | AF30: Year 22 | AG30: Year 23 | AH30: Year 24 | AI30: Year 25
E32: Replacement capex | G32: £m 15/16 prices | K32: 0 | L32: 0 | M32: 0 | N32: 0 | O32: 0 | P32: 0 | Q32: 0 | R32: 0 | S32: 0 | T32: 0 | U32: 0 | V32: 0 | W32: 0 | X32: 0 | Y32: 15 | Z32: 0 | AA32: 0 | AB32: 0 | AC32: 0 | AD32: 0 | AE32: 0 | AF32: 0 | AG32: 0 | AH32: 0 | AI32: 0
E33: Decommissioning baseline / actual | G33: £m 15/16 prices | K33: 0 | L33: 0 | M33: 0 | N33: 0 | O33: 0 | P33: 0 | Q33: 0 | R33: 0 | S33: 0 | T33: 0 | U33: 0 | V33: 0 | W33: 0 | X33: 0 | Y33: 0 | Z33: 0 | AA33: 0 | AB33: 0 | AC33: 0 | AD33: 0 | AE33: 0 | AF33: 0 | AG33: 0 | AH33: 0 | AI33: 6.5
E34: Controllable opex | G34: £m 15/16 prices | K34: 15.2848 | L34: 15.2848 | M34: 15.2848 | N34: 15.2848 | O34: 15.2848 | P34: 15.2848 | Q34: 15.2848 | R34: 15.2848 | S34: 15.2848 | T34: 15.2848 | U34: 15.2848 | V34: 15.2848 | W34: 15.2848 | X34: 15.2848 | Y34: 15.2848 | Z34: 15.2848 | AA34: 15.2848 | AB34: 15.2848 | AC34: 15.2848 | AD34: 15.2848 | AE34: 15.2848 | AF34: 15.2848 | AG34: 15.2848 | AH34: 15.2848 | AI34: 15.2848
E35: Non-controllable opex (baseline) | G35: £m 15/16 prices | K35: 0 | L35: 0 | M35: 0 | N35: 0 | O35: 0 | P35: 0 | Q35: 0 | R35: 0 | S35: 0 | T35: 0 | U35: 0 | V35: 0 | W35: 0 | X35: 0 | Y35: 0 | Z35: 0 | AA35: 0 | AB35: 0 | AC35: 0 | AD35: 0 | AE35: 0 | AF35: 0 | AG35: 0 | AH35: 0 | AI35: 0
E36: Opex re-assessment adjustment | G36: £m 15/16 prices | K36: 0 | L36: 0 | M36: 0 | N36: 0 | O36: 0 | P36: 0 | Q36: 0 | R36: 0 | S36: 0 | T36: 0 | U36: 0 | V36: 0 | W36: 0 | X36: 0 | Y36: 0 | Z36: 0 | AA36: 0 | AB36: 0 | AC36: 0 | AD36: 0 | AE36: 0 | AF36: 0 | AG36: 0 | AH36: 0 | AI36: 0
B39: Variables set at financial close
C41: Finance
E43: Cap returns | G43: real annual % | I43: ='Market data'!I31 -> 0.07975
E44: Floor returns | G44: real annual % | I44: ='Market data'!I49 -> 0.0088
E45: Operational discount rate | G45: real annual % | I45: =(I43 + I44) / 2 -> 0.044275
E46: Interest during construction | G46: real annual % | I46: ='Market data'!I75 -> 0.0637
E47: Cost of debt (for tax) | G47: real annual % | I47: =I44 -> 0.0088
E48: Pre-operational notional gearing | G48: % | I48: ='Market data'!I77 -> 0.3341
E49: Operational notional gearing | G49: % | I49: ='Market data'!I14 -> 0.5
E51: Equity transaction costs | G51: % | I51: 0.05
E52: Debt transaction costs | G52: % | I52: 0.025
C54: Availability incentive
E55: Project year | K55: =- $I$116 + 1 -> -10 | L55: =K55 + 1 -> -9 | M55: =L55 + 1 -> -8 | N55: =M55 + 1 -> -7 | O55: =N55 + 1 -> -6 | P55: =O55 + 1 -> -5 | Q55: =P55 + 1 -> -4 | R55: =Q55 + 1 -> -3 | S55: =R55 + 1 -> -2 | T55: =S55 + 1 -> -1 | U55: =T55 + 1 -> 0 | V55: =U55 + 1 -> 1 | W55: =V55 + 1 -> 2 | X55: =W55 + 1 -> 3 | Y55: =X55 + 1 -> 4 | Z55: =Y55 + 1 -> 5 | AA55: =Z55 + 1 -> 6 | AB55: =AA55 + 1 -> 7 | AC55: =AB55 + 1 -> 8 | AD55: =AC55 + 1 -> 9 | AE55: =AD55 + 1 -> 10 | AF55: =AE55 + 1 -> 11 | AG55: =AF55 + 1 -> 12 | AH55: =AG55 + 1 -> 13 | AI55: =AH55 + 1 -> 14 | AJ55: =AI55 + 1 -> 15 | AK55: =AJ55 + 1 -> 16 | AL55: =AK55 + 1 -> 17 | AM55: =AL55 + 1 -> 18 | AN55: =AM55 + 1 -> 19 | AO55: =AN55 + 1 -> 20 | AP55: =AO55 + 1 -> 21 | AQ55: =AP55 + 1 -> 22 | AR55: =AQ55 + 1 -> 23 | AS55: =AR55 + 1 -> 24 | AT55: =AS55 + 1 -> 25 | AU55: =AT55 + 1 -> 26 | AV55: =AU55 + 1 -> 27 | AW55: =AV55 + 1 -> 28 | AX55: =AW55 + 1 -> 29
E56: Year commencing | K56: =$I$107 -> 2010-04-01 | L56: =+K57+1 -> 2011-04-01 | M56: =+L57+1 -> 2012-04-01 | N56: =+M57+1 -> 2013-04-01 | O56: =+N57+1 -> 2014-04-01 | P56: =+O57+1 -> 2015-04-01 | Q56: =+P57+1 -> 2016-04-01 | R56: =+Q57+1 -> 2017-04-01 | S56: =+R57+1 -> 2018-04-01 | T56: =+S57+1 -> 2019-04-01 | U56: =+T57+1 -> 2020-04-01 | V56: =+U57+1 -> 2021-04-01 | W56: =+V57+1 -> 2022-04-01 | X56: =+W57+1 -> 2023-04-01 | Y56: =+X57+1 -> 2024-04-01 | Z56: =+Y57+1 -> 2025-04-01 | AA56: =+Z57+1 -> 2026-04-01 | AB56: =+AA57+1 -> 2027-04-01 | AC56: =+AB57+1 -> 2028-04-01 | AD56: =+AC57+1 -> 2029-04-01 | AE56: =+AD57+1 -> 2030-04-01 | AF56: =+AE57+1 -> 2031-04-01 | AG56: =+AF57+1 -> 2032-04-01 | AH56: =+AG57+1 -> 2033-04-01 | AI56: =+AH57+1 -> 2034-04-01 | AJ56: =+AI57+1 -> 2035-04-01 | AK56: =+AJ57+1 -> 2036-04-01 | AL56: =+AK57+1 -> 2037-04-01 | AM56: =+AL57+1 -> 2038-04-01 | AN56: =+AM57+1 -> 2039-04-01 | AO56: =+AN57+1 -> 2040-04-01 | AP56: =+AO57+1 -> 2041-04-01 | AQ56: =+AP57+1 -> 2042-04-01 | AR56: =+AQ57+1 -> 2043-04-01 | AS56: =+AR57+1 -> 2044-04-01 | AT56: =+AS57+1 -> 2045-04-01 | AU56: =+AT57+1 -> 2046-04-01 | AV56: =+AU57+1 -> 2047-04-01 | AW56: =+AV57+1 -> 2048-04-01 | AX56: =+AW57+1 -> 2049-04-01
E57: Year ending | K57: =EOMONTH(K56,11) -> 2011-03-31 | L57: =DATE(YEAR(K57) + 1, MONTH(K57), DAY(K57)) -> 2012-03-31 | M57: =DATE(YEAR(L57) + 1, MONTH(L57), DAY(L57)) -> 2013-03-31 | N57: =DATE(YEAR(M57) + 1, MONTH(M57), DAY(M57)) -> 2014-03-31 | O57: =DATE(YEAR(N57) + 1, MONTH(N57), DAY(N57)) -> 2015-03-31 | P57: =DATE(YEAR(O57) + 1, MONTH(O57), DAY(O57)) -> 2016-03-31 | Q57: =DATE(YEAR(P57) + 1, MONTH(P57), DAY(P57)) -> 2017-03-31 | R57: =DATE(YEAR(Q57) + 1, MONTH(Q57), DAY(Q57)) -> 2018-03-31 | S57: =DATE(YEAR(R57) + 1, MONTH(R57), DAY(R57)) -> 2019-03-31 | T57: =DATE(YEAR(S57) + 1, MONTH(S57), DAY(S57)) -> 2020-03-31 | U57: =DATE(YEAR(T57) + 1, MONTH(T57), DAY(T57)) -> 2021-03-31 | V57: =DATE(YEAR(U57) + 1, MONTH(U57), DAY(U57)) -> 2022-03-31 | W57: =DATE(YEAR(V57) + 1, MONTH(V57), DAY(V57)) -> 2023-03-31 | X57: =DATE(YEAR(W57) + 1, MONTH(W57), DAY(W57)) -> 2024-03-31 | Y57: =DATE(YEAR(X57) + 1, MONTH(X57), DAY(X57)) -> 2025-03-31 | Z57: =DATE(YEAR(Y57) + 1, MONTH(Y57), DAY(Y57)) -> 2026-03-31 | AA57: =DATE(YEAR(Z57) + 1, MONTH(Z57), DAY(Z57)) -> 2027-03-31 | AB57: =DATE(YEAR(AA57) + 1, MONTH(AA57), DAY(AA57)) -> 2028-03-31 | AC57: =DATE(YEAR(AB57) + 1, MONTH(AB57), DAY(AB57)) -> 2029-03-31 | AD57: =DATE(YEAR(AC57) + 1, MONTH(AC57), DAY(AC57)) -> 2030-03-31 | AE57: =DATE(YEAR(AD57) + 1, MONTH(AD57), DAY(AD57)) -> 2031-03-31 | AF57: =DATE(YEAR(AE57) + 1, MONTH(AE57), DAY(AE57)) -> 2032-03-31 | AG57: =DATE(YEAR(AF57) + 1, MONTH(AF57), DAY(AF57)) -> 2033-03-31 | AH57: =DATE(YEAR(AG57) + 1, MONTH(AG57), DAY(AG57)) -> 2034-03-31 | AI57: =DATE(YEAR(AH57) + 1, MONTH(AH57), DAY(AH57)) -> 2035-03-31 | AJ57: =DATE(YEAR(AI57) + 1, MONTH(AI57), DAY(AI57)) -> 2036-03-31 | AK57: =DATE(YEAR(AJ57) + 1, MONTH(AJ57), DAY(AJ57)) -> 2037-03-31 | AL57: =DATE(YEAR(AK57) + 1, MONTH(AK57), DAY(AK57)) -> 2038-03-31 | AM57: =DATE(YEAR(AL57) + 1, MONTH(AL57), DAY(AL57)) -> 2039-03-31 | AN57: =DATE(YEAR(AM57) + 1, MONTH(AM57), DAY(AM57)) -> 2040-03-31 | AO57: =DATE(YEAR(AN57) + 1, MONTH(AN57), DAY(AN57)) -> 2041-03-31 | AP57: =DATE(YEAR(AO57) + 1, MONTH(AO57), DAY(AO57)) -> 2042-03-31 | AQ57: =DATE(YEAR(AP57) + 1, MONTH(AP57), DAY(AP57)) -> 2043-03-31 | AR57: =DATE(YEAR(AQ57) + 1, MONTH(AQ57), DAY(AQ57)) -> 2044-03-31 | AS57: =DATE(YEAR(AR57) + 1, MONTH(AR57), DAY(AR57)) -> 2045-03-31 | AT57: =DATE(YEAR(AS57) + 1, MONTH(AS57), DAY(AS57)) -> 2046-03-31 | AU57: =DATE(YEAR(AT57) + 1, MONTH(AT57), DAY(AT57)) -> 2047-03-31 | AV57: =DATE(YEAR(AU57) + 1, MONTH(AU57), DAY(AU57)) -> 2048-03-31 | AW57: =DATE(YEAR(AV57) + 1, MONTH(AV57), DAY(AV57)) -> 2049-03-31 | AX57: =DATE(YEAR(AW57) + 1, MONTH(AW57), DAY(AW57)) -> 2050-03-31
E59: Interconnector Rated Capacity | G59: MW | H59: RC | I59: 1400
E60: Number of Hours in Relevant Year | G60: hours pa | I60: =365.25*24 -> 8766
E62: Cap availability incentive ratio | G62: ratio | I62: 1
E63: Cap availability incentive target | G63: % | I63: 0.93
E64: Cap availability incentive upper limit | G64: scalar | I64: 1.02
E65: Cap availability incentive lower limit | G65: scalar | I65: 0.98
E67: Total Interconnector Outages during Active Cap period | G67: MWh | K67: 0 | L67: 0 | M67: 0 | N67: 0 | O67: 0 | P67: 0 | Q67: 0 | R67: 0 | S67: 0 | T67: 0 | U67: 0 | V67: 0 | W67: 0 | X67: 0 | Y67: 0 | Z67: 0 | AA67: 0 | AB67: 0 | AC67: 0 | AD67: 0 | AE67: 0 | AF67: 0 | AG67: 0 | AH67: 0 | AI67: 0 | AJ67: 0 | AK67: 0 | AL67: 0 | AM67: 0 | AN67: 0 | AO67: 0 | AP67: 0 | AQ67: 0 | AR67: 0 | AS67: 0 | AT67: 0 | AU67: 0 | AV67: 0 | AW67: 0 | AX67: 0
E68: Allowed Outages during Active Cap period | G68: MWh | K68: 0 | L68: 0 | M68: 0 | N68: 0 | O68: 0 | P68: 0 | Q68: 0 | R68: 0 | S68: 0 | T68: 0 | U68: 0 | V68: 0 | W68: 0 | X68: 0 | Y68: 0 | Z68: 0 | AA68: 0 | AB68: 0 | AC68: 0 | AD68: 0 | AE68: 0 | AF68: 0 | AG68: 0 | AH68: 0 | AI68: 0 | AJ68: 0 | AK68: 0 | AL68: 0 | AM68: 0 | AN68: 0 | AO68: 0 | AP68: 0 | AQ68: 0 | AR68: 0 | AS68: 0 | AT68: 0 | AU68: 0 | AV68: 0 | AW68: 0 | AX68: 0
E69: Total Interconnector Outages less Allowed Outages during Active Cap period | G69: MWh | H69: IOt | K69: =K67-K68 -> 0 | L69: 0 | M69: 0 | N69: 0 | O69: 0 | P69: 0 | Q69: 0 | R69: 0 | S69: 0 | T69: 0 | U69: 0 | V69: 0 | W69: 0 | X69: =X67-X68 -> 0 | Y69: 0 | Z69: 0 | AA69: 0 | AB69: 0 | AC69: 0 | AD69: 0 | AE69: 0 | AF69: 0 | AG69: 0 | AH69: 0 | AI69: 0 | AJ69: 0 | AK69: 0 | AL69: 0 | AM69: 0 | AN69: 0 | AO69: 0 | AP69: 0 | AQ69: 0 | AR69: 0 | AS69: 0 | AT69: 0 | AU69: 0 | AV69: 0 | AW69: 0 | AX69: 0
E70: Total Interconnector Outages during Active Floor period | G70: MWh | K70: =K68-K69 -> 0 | L70: 0 | M70: 0 | N70: 0 | O70: 0 | P70: 0 | Q70: 0 | R70: 0 | S70: 0 | T70: 0 | U70: 0 | V70: 0 | W70: 0 | X70: 0 | Y70: 0 | Z70: 0 | AA70: 0 | AB70: 0 | AC70: 0 | AD70: 0 | AE70: 0 | AF70: 0 | AG70: 0 | AH70: 0 | AI70: 0 | AJ70: 0 | AK70: 0 | AL70: 0 | AM70: 0 | AN70: 0 | AO70: 0 | AP70: 0 | AQ70: 0 | AR70: 0 | AS70: 0 | AT70: 0 | AU70: 0 | AV70: 0 | AW70: 0 | AX70: 0
E71: Allowed Outages during Active Floor period | G71: MWh | K71: =K69-K70 -> 0 | L71: 0 | M71: 0 | N71: 0 | O71: 0 | P71: 0 | Q71: 0 | R71: 0 | S71: 0 | T71: 0 | U71: 0 | V71: 0 | W71: 0 | X71: 0 | Y71: 0 | Z71: 0 | AA71: 0 | AB71: 0 | AC71: 0 | AD71: 0 | AE71: 0 | AF71: 0 | AG71: 0 | AH71: 0 | AI71: 0 | AJ71: 0 | AK71: 0 | AL71: 0 | AM71: 0 | AN71: 0 | AO71: 0 | AP71: 0 | AQ71: 0 | AR71: 0 | AS71: 0 | AT71: 0 | AU71: 0 | AV71: 0 | AW71: 0 | AX71: 0
E72: Total Interconnector Outages less Allowed Outages during Active Floor period | G72: MWh | H72: IOt | K72: =K70-K71 -> 0 | L72: 0 | M72: 0 | N72: 0 | O72: 0 | P72: 0 | Q72: 0 | R72: 0 | S72: 0 | T72: 0 | U72: 0 | V72: 0 | W72: 0 | X72: =X70-X71 -> 0 | Y72: 0 | Z72: 0 | AA72: 0 | AB72: 0 | AC72: 0 | AD72: 0 | AE72: 0 | AF72: 0 | AG72: 0 | AH72: 0 | AI72: 0 | AJ72: 0 | AK72: 0 | AL72: 0 | AM72: 0 | AN72: 0 | AO72: 0 | AP72: 0 | AQ72: 0 | AR72: 0 | AS72: 0 | AT72: 0 | AU72: 0 | AV72: 0 | AW72: 0 | AX72: 0
E73: Outages associated with Exceptional Events | G73: MWh | K73: 0 | L73: 0 | M73: 0 | N73: 0 | O73: 0 | P73: 0 | Q73: 0 | R73: 0 | S73: 0 | T73: 0 | U73: 0 | V73: 0 | W73: 0 | X73: 0 | Y73: 0 | Z73: 0 | AA73: =AA71-AA72 -> 0 | AB73: 0 | AC73: 0 | AD73: 0 | AE73: 0 | AF73: 0 | AG73: 0 | AH73: 0 | AI73: 0 | AJ73: 0 | AK73: 0 | AL73: 0 | AM73: 0 | AN73: 0 | AO73: 0 | AP73: 0 | AQ73: 0 | AR73: 0 | AS73: 0 | AT73: 0 | AU73: 0 | AV73: 0 | AW73: 0 | AX73: 0
E75: Floor availability incentive target | G75: % | I75: 0.8
C77: Tax - Operational Period
E79: Operational Year | K79: Year 1 | L79: Year 2 | M79: Year 3 | N79: Year 4 | O79: Year 5 | P79: Year 6 | Q79: Year 7 | R79: Year 8 | S79: Year 9 | T79: Year 10 | U79: Year 11 | V79: Year 12 | W79: Year 13 | X79: Year 14 | Y79: Year 15 | Z79: Year 16 | AA79: Year 17 | AB79: Year 18 | AC79: Year 19 | AD79: Year 20 | AE79: Year 21 | AF79: Year 22 | AG79: Year 23 | AH79: Year 24 | AI79: Year 25
E81: Corporation tax rate | G81: % | K81: 0.2 | L81: 0.2 | M81: =L81 -> 0.2 | N81: =M81 -> 0.2 | O81: =N81 -> 0.2 | P81: =O81 -> 0.2 | Q81: =P81 -> 0.2 | R81: =Q81 -> 0.2 | S81: =R81 -> 0.2 | T81: =S81 -> 0.2 | U81: =T81 -> 0.2 | V81: =U81 -> 0.2 | W81: =V81 -> 0.2 | X81: =W81 -> 0.2 | Y81: =X81 -> 0.2 | Z81: =Y81 -> 0.2 | AA81: =Z81 -> 0.2 | AB81: =AA81 -> 0.2 | AC81: =AB81 -> 0.2 | AD81: =AC81 -> 0.2 | AE81: =AD81 -> 0.2 | AF81: =AE81 -> 0.2 | AG81: =AF81 -> 0.2 | AH81: =AG81 -> 0.2 | AI81: =AH81 -> 0.2
E82: Capital allowance rate (declining balance) | G82: % | K82: 0.08 | L82: 0.08 | M82: =L82 -> 0.08 | N82: 0.08 | O82: 0.08 | P82: 0.08 | Q82: 0.08 | R82: 0.08 | S82: 0.08 | T82: 0.08 | U82: 0.08 | V82: 0.08 | W82: 0.08 | X82: 0.08 | Y82: 0.08 | Z82: 0.08 | AA82: 0.08 | AB82: 0.08 | AC82: 0.08 | AD82: 0.08 | AE82: 0.08 | AF82: 0.08 | AG82: 0.08 | AH82: 0.08 | AI82: 0.08
E86: Corporation tax rate | G86: % | L86: 0.2 | M86: 0.2 | N86: 0.2 | O86: 0.2 | P86: 0.2 | Q86: 0.2 | R86: 0.2 | S86: 0.2 | T86: 0.2 | U86: 0.2 | V86: 0.2 | W86: 0.2 | X86: =W86 -> 0.2 | Y86: =X86 -> 0.2 | Z86: 0.2 | AA86: 0.2 | AB86: 0.2 | AC86: 0.2 | AD86: 0.2 | AE86: 0.2 | AF86: 0.2 | AG86: 0.2 | AH86: 0.2 | AI86: 0.2 | AJ86: 0.2 | AK86: 0.2 | AL86: 0.2 | AM86: 0.2 | AN86: 0.2 | AO86: 0.2 | AP86: 0.2 | AQ86: 0.2 | AR86: 0.2 | AS86: 0.2 | AT86: 0.2 | AU86: 0.2 | AV86: 0.2 | AW86: 0.2 | AX86: 0.2
E87: Capital allowance rate (declining balance) | G87: % | L87: 0.08 | M87: 0.08 | N87: 0.08 | O87: 0.08 | P87: 0.08 | Q87: 0.08 | R87: 0.08 | S87: 0.08 | T87: 0.08 | U87: 0.08 | V87: 0.08 | W87: 0.08 | X87: =W87 -> 0.08 | Y87: =X87 -> 0.08 | Z87: 0.08 | AA87: 0.08 | AB87: 0.08 | AC87: 0.08 | AD87: 0.08 | AE87: 0.08 | AF87: 0.08 | AG87: 0.08 | AH87: 0.08 | AI87: 0.08 | AJ87: 0.08 | AK87: 0.08 | AL87: 0.08 | AM87: 0.08 | AN87: 0.08 | AO87: 0.08 | AP87: 0.08 | AQ87: 0.08 | AR87: 0.08 | AS87: 0.08 | AT87: 0.08 | AU87: 0.08 | AV87: 0.08 | AW87: 0.08 | AX87: 0.08
C89: Inflation & currency
E90: Project year | K90: =- $I$116 + 1 -> -10 | L90: =K90 + 1 -> -9 | M90: =L90 + 1 -> -8 | N90: =M90 + 1 -> -7 | O90: =N90 + 1 -> -6 | P90: =O90 + 1 -> -5 | Q90: =P90 + 1 -> -4 | R90: =Q90 + 1 -> -3 | S90: =R90 + 1 -> -2 | T90: =S90 + 1 -> -1 | U90: =T90 + 1 -> 0 | V90: =U90 + 1 -> 1 | W90: =V90 + 1 -> 2 | X90: =W90 + 1 -> 3 | Y90: =X90 + 1 -> 4 | Z90: =Y90 + 1 -> 5 | AA90: =Z90 + 1 -> 6 | AB90: =AA90 + 1 -> 7 | AC90: =AB90 + 1 -> 8 | AD90: =AC90 + 1 -> 9 | AE90: =AD90 + 1 -> 10 | AF90: =AE90 + 1 -> 11 | AG90: =AF90 + 1 -> 12 | AH90: =AG90 + 1 -> 13 | AI90: =AH90 + 1 -> 14 | AJ90: =AI90 + 1 -> 15 | AK90: =AJ90 + 1 -> 16 | AL90: =AK90 + 1 -> 17 | AM90: =AL90 + 1 -> 18 | AN90: =AM90 + 1 -> 19 | AO90: =AN90 + 1 -> 20 | AP90: =AO90 + 1 -> 21 | AQ90: =AP90 + 1 -> 22 | AR90: =AQ90 + 1 -> 23 | AS90: =AR90 + 1 -> 24 | AT90: =AS90 + 1 -> 25 | AU90: =AT90 + 1 -> 26 | AV90: =AU90 + 1 -> 27 | AW90: =AV90 + 1 -> 28 | AX90: =AW90 + 1 -> 29
E91: Year commencing | K91: =$I$107 -> 2010-04-01 | L91: =+K92+1 -> 2011-04-01 | M91: =+L92+1 -> 2012-04-01 | N91: =+M92+1 -> 2013-04-01 | O91: =+N92+1 -> 2014-04-01 | P91: =+O92+1 -> 2015-04-01 | Q91: =+P92+1 -> 2016-04-01 | R91: =+Q92+1 -> 2017-04-01 | S91: =+R92+1 -> 2018-04-01 | T91: =+S92+1 -> 2019-04-01 | U91: =+T92+1 -> 2020-04-01 | V91: =+U92+1 -> 2021-04-01 | W91: =+V92+1 -> 2022-04-01 | X91: =+W92+1 -> 2023-04-01 | Y91: =+X92+1 -> 2024-04-01 | Z91: =+Y92+1 -> 2025-04-01 | AA91: =+Z92+1 -> 2026-04-01 | AB91: =+AA92+1 -> 2027-04-01 | AC91: =+AB92+1 -> 2028-04-01 | AD91: =+AC92+1 -> 2029-04-01 | AE91: =+AD92+1 -> 2030-04-01 | AF91: =+AE92+1 -> 2031-04-01 | AG91: =+AF92+1 -> 2032-04-01 | AH91: =+AG92+1 -> 2033-04-01 | AI91: =+AH92+1 -> 2034-04-01 | AJ91: =+AI92+1 -> 2035-04-01 | AK91: =+AJ92+1 -> 2036-04-01 | AL91: =+AK92+1 -> 2037-04-01 | AM91: =+AL92+1 -> 2038-04-01 | AN91: =+AM92+1 -> 2039-04-01 | AO91: =+AN92+1 -> 2040-04-01 | AP91: =+AO92+1 -> 2041-04-01 | AQ91: =+AP92+1 -> 2042-04-01 | AR91: =+AQ92+1 -> 2043-04-01 | AS91: =+AR92+1 -> 2044-04-01 | AT91: =+AS92+1 -> 2045-04-01 | AU91: =+AT92+1 -> 2046-04-01 | AV91: =+AU92+1 -> 2047-04-01 | AW91: =+AV92+1 -> 2048-04-01 | AX91: =+AW92+1 -> 2049-04-01
E92: Year ending | K92: =EOMONTH(K91,11) -> 2011-03-31 | L92: =DATE(YEAR(K92) + 1, MONTH(K92), DAY(K92)) -> 2012-03-31 | M92: =DATE(YEAR(L92) + 1, MONTH(L92), DAY(L92)) -> 2013-03-31 | N92: =DATE(YEAR(M92) + 1, MONTH(M92), DAY(M92)) -> 2014-03-31 | O92: =DATE(YEAR(N92) + 1, MONTH(N92), DAY(N92)) -> 2015-03-31 | P92: =DATE(YEAR(O92) + 1, MONTH(O92), DAY(O92)) -> 2016-03-31 | Q92: =DATE(YEAR(P92) + 1, MONTH(P92), DAY(P92)) -> 2017-03-31 | R92: =DATE(YEAR(Q92) + 1, MONTH(Q92), DAY(Q92)) -> 2018-03-31 | S92: =DATE(YEAR(R92) + 1, MONTH(R92), DAY(R92)) -> 2019-03-31 | T92: =DATE(YEAR(S92) + 1, MONTH(S92), DAY(S92)) -> 2020-03-31 | U92: =DATE(YEAR(T92) + 1, MONTH(T92), DAY(T92)) -> 2021-03-31 | V92: =DATE(YEAR(U92) + 1, MONTH(U92), DAY(U92)) -> 2022-03-31 | W92: =DATE(YEAR(V92) + 1, MONTH(V92), DAY(V92)) -> 2023-03-31 | X92: =DATE(YEAR(W92) + 1, MONTH(W92), DAY(W92)) -> 2024-03-31 | Y92: =DATE(YEAR(X92) + 1, MONTH(X92), DAY(X92)) -> 2025-03-31 | Z92: =DATE(YEAR(Y92) + 1, MONTH(Y92), DAY(Y92)) -> 2026-03-31 | AA92: =DATE(YEAR(Z92) + 1, MONTH(Z92), DAY(Z92)) -> 2027-03-31 | AB92: =DATE(YEAR(AA92) + 1, MONTH(AA92), DAY(AA92)) -> 2028-03-31 | AC92: =DATE(YEAR(AB92) + 1, MONTH(AB92), DAY(AB92)) -> 2029-03-31 | AD92: =DATE(YEAR(AC92) + 1, MONTH(AC92), DAY(AC92)) -> 2030-03-31 | AE92: =DATE(YEAR(AD92) + 1, MONTH(AD92), DAY(AD92)) -> 2031-03-31 | AF92: =DATE(YEAR(AE92) + 1, MONTH(AE92), DAY(AE92)) -> 2032-03-31 | AG92: =DATE(YEAR(AF92) + 1, MONTH(AF92), DAY(AF92)) -> 2033-03-31 | AH92: =DATE(YEAR(AG92) + 1, MONTH(AG92), DAY(AG92)) -> 2034-03-31 | AI92: =DATE(YEAR(AH92) + 1, MONTH(AH92), DAY(AH92)) -> 2035-03-31 | AJ92: =DATE(YEAR(AI92) + 1, MONTH(AI92), DAY(AI92)) -> 2036-03-31 | AK92: =DATE(YEAR(AJ92) + 1, MONTH(AJ92), DAY(AJ92)) -> 2037-03-31 | AL92: =DATE(YEAR(AK92) + 1, MONTH(AK92), DAY(AK92)) -> 2038-03-31 | AM92: =DATE(YEAR(AL92) + 1, MONTH(AL92), DAY(AL92)) -> 2039-03-31 | AN92: =DATE(YEAR(AM92) + 1, MONTH(AM92), DAY(AM92)) -> 2040-03-31 | AO92: =DATE(YEAR(AN92) + 1, MONTH(AN92), DAY(AN92)) -> 2041-03-31 | AP92: =DATE(YEAR(AO92) + 1, MONTH(AO92), DAY(AO92)) -> 2042-03-31 | AQ92: =DATE(YEAR(AP92) + 1, MONTH(AP92), DAY(AP92)) -> 2043-03-31 | AR92: =DATE(YEAR(AQ92) + 1, MONTH(AQ92), DAY(AQ92)) -> 2044-03-31 | AS92: =DATE(YEAR(AR92) + 1, MONTH(AR92), DAY(AR92)) -> 2045-03-31 | AT92: =DATE(YEAR(AS92) + 1, MONTH(AS92), DAY(AS92)) -> 2046-03-31 | AU92: =DATE(YEAR(AT92) + 1, MONTH(AT92), DAY(AT92)) -> 2047-03-31 | AV92: =DATE(YEAR(AU92) + 1, MONTH(AU92), DAY(AU92)) -> 2048-03-31 | AW92: =DATE(YEAR(AV92) + 1, MONTH(AV92), DAY(AV92)) -> 2049-03-31 | AX92: =DATE(YEAR(AW92) + 1, MONTH(AW92), DAY(AW92)) -> 2050-03-31
E94: GB allocation | G94: % | I94: 1
E95: Expected UK RPI inflation | G95: % | I95: ='Market data'!I54 -> 0.0271
E96: End date of price base year | G96: date | I96: 2016-03-31
E97: ='RPI and currency'!E11 -> 2015/16 RPI inflation index value (CHAW) | G97: ='RPI and currency'!G11 -> Jan 1987 = 100 | I97: ='RPI and currency'!I11 -> 259.433
E98: 12 month average UK RPI inflation index value (CHAW) | G98: Jan 1987 = 100 | K98: ='RPI and currency'!K141 -> 226.475 | L98: ='RPI and currency'!L141 -> 237.342 | M98: ='RPI and currency'!M141 -> 244.675 | N98: ='RPI and currency'!N141 -> 251.733 | O98: ='RPI and currency'!O141 -> 256.667 | P98: ='RPI and currency'!P141 -> 259.433 | Q98: =P98 * (1 + $I95) -> 266.4636343 | R98: 273.6847988 | S98: 281.1016568 | T98: 288.7195117 | U98: 296.5438105 | V98: 304.5801478 | W98: 312.8342698 | X98: 321.3120785 | Y98: 330.0196358 | Z98: 338.9631679 | AA98: 348.1490698 | AB98: 357.5839096 | AC98: 367.2744335 | AD98: 377.2275707 | AE98: 387.4504378 | AF98: 397.9503447 | AG98: 408.7347991 | AH98: 419.8115121 | AI98: 431.1884041 | AJ98: 442.8736098 | AK98: 454.8754847 | AL98: 467.2026103 | AM98: 479.863801 | AN98: 492.86811 | AO98: 506.2248358 | AP98: 519.9435289 | AQ98: 534.0339985 | AR98: 548.5063199 | AS98: 563.3708411 | AT98: 578.6381909 | AU98: 594.3192859 | AV98: 610.4253386 | AW98: 626.9678652 | AX98: 643.9586944
C101: Model operation
C102: Note: changes in these variables may require structural changes to the model.
E103: Project year | K103: =- $I$116 + 1 -> -10 | L103: =K103 + 1 -> -9 | M103: =L103 + 1 -> -8 | N103: =M103 + 1 -> -7 | O103: =N103 + 1 -> -6 | P103: =O103 + 1 -> -5 | Q103: =P103 + 1 -> -4 | R103: =Q103 + 1 -> -3 | S103: =R103 + 1 -> -2 | T103: =S103 + 1 -> -1 | U103: =T103 + 1 -> 0 | V103: =U103 + 1 -> 1 | W103: =V103 + 1 -> 2 | X103: =W103 + 1 -> 3 | Y103: =X103 + 1 -> 4 | Z103: =Y103 + 1 -> 5 | AA103: =Z103 + 1 -> 6 | AB103: =AA103 + 1 -> 7 | AC103: =AB103 + 1 -> 8 | AD103: =AC103 + 1 -> 9 | AE103: =AD103 + 1 -> 10 | AF103: =AE103 + 1 -> 11 | AG103: =AF103 + 1 -> 12 | AH103: =AG103 + 1 -> 13 | AI103: =AH103 + 1 -> 14 | AJ103: =AI103 + 1 -> 15 | AK103: =AJ103 + 1 -> 16 | AL103: =AK103 + 1 -> 17 | AM103: =AL103 + 1 -> 18 | AN103: =AM103 + 1 -> 19 | AO103: =AN103 + 1 -> 20 | AP103: =AO103 + 1 -> 21 | AQ103: =AP103 + 1 -> 22 | AR103: =AQ103 + 1 -> 23 | AS103: =AR103 + 1 -> 24 | AT103: =AS103 + 1 -> 25 | AU103: =AT103 + 1 -> 26 | AV103: =AU103 + 1 -> 27 | AW103: =AV103 + 1 -> 28 | AX103: =AW103 + 1 -> 29
E104: Year commencing | K104: =$I$107 -> 2010-04-01 | L104: =+K105+1 -> 2011-04-01 | M104: =+L105+1 -> 2012-04-01 | N104: =+M105+1 -> 2013-04-01 | O104: =+N105+1 -> 2014-04-01 | P104: =+O105+1 -> 2015-04-01 | Q104: =+P105+1 -> 2016-04-01 | R104: =+Q105+1 -> 2017-04-01 | S104: =+R105+1 -> 2018-04-01 | T104: =+S105+1 -> 2019-04-01 | U104: =+T105+1 -> 2020-04-01 | V104: =+U105+1 -> 2021-04-01 | W104: =+V105+1 -> 2022-04-01 | X104: =+W105+1 -> 2023-04-01 | Y104: =+X105+1 -> 2024-04-01 | Z104: =+Y105+1 -> 2025-04-01 | AA104: =+Z105+1 -> 2026-04-01 | AB104: =+AA105+1 -> 2027-04-01 | AC104: =+AB105+1 -> 2028-04-01 | AD104: =+AC105+1 -> 2029-04-01 | AE104: =+AD105+1 -> 2030-04-01 | AF104: =+AE105+1 -> 2031-04-01 | AG104: =+AF105+1 -> 2032-04-01 | AH104: =+AG105+1 -> 2033-04-01 | AI104: =+AH105+1 -> 2034-04-01 | AJ104: =+AI105+1 -> 2035-04-01 | AK104: =+AJ105+1 -> 2036-04-01 | AL104: =+AK105+1 -> 2037-04-01 | AM104: =+AL105+1 -> 2038-04-01 | AN104: =+AM105+1 -> 2039-04-01 | AO104: =+AN105+1 -> 2040-04-01 | AP104: =+AO105+1 -> 2041-04-01 | AQ104: =+AP105+1 -> 2042-04-01 | AR104: =+AQ105+1 -> 2043-04-01 | AS104: =+AR105+1 -> 2044-04-01 | AT104: =+AS105+1 -> 2045-04-01 | AU104: =+AT105+1 -> 2046-04-01 | AV104: =+AU105+1 -> 2047-04-01 | AW104: =+AV105+1 -> 2048-04-01 | AX104: =+AW105+1 -> 2049-04-01
E105: Year ending | K105: =EOMONTH(K104,11) -> 2011-03-31 | L105: =DATE(YEAR(K105) + 1, MONTH(K105), DAY(K105)) -> 2012-03-31 | M105: =DATE(YEAR(L105) + 1, MONTH(L105), DAY(L105)) -> 2013-03-31 | N105: =DATE(YEAR(M105) + 1, MONTH(M105), DAY(M105)) -> 2014-03-31 | O105: =DATE(YEAR(N105) + 1, MONTH(N105), DAY(N105)) -> 2015-03-31 | P105: =DATE(YEAR(O105) + 1, MONTH(O105), DAY(O105)) -> 2016-03-31 | Q105: =DATE(YEAR(P105) + 1, MONTH(P105), DAY(P105)) -> 2017-03-31 | R105: =DATE(YEAR(Q105) + 1, MONTH(Q105), DAY(Q105)) -> 2018-03-31 | S105: =DATE(YEAR(R105) + 1, MONTH(R105), DAY(R105)) -> 2019-03-31 | T105: =DATE(YEAR(S105) + 1, MONTH(S105), DAY(S105)) -> 2020-03-31 | U105: =DATE(YEAR(T105) + 1, MONTH(T105), DAY(T105)) -> 2021-03-31 | V105: =DATE(YEAR(U105) + 1, MONTH(U105), DAY(U105)) -> 2022-03-31 | W105: =DATE(YEAR(V105) + 1, MONTH(V105), DAY(V105)) -> 2023-03-31 | X105: =DATE(YEAR(W105) + 1, MONTH(W105), DAY(W105)) -> 2024-03-31 | Y105: =DATE(YEAR(X105) + 1, MONTH(X105), DAY(X105)) -> 2025-03-31 | Z105: =DATE(YEAR(Y105) + 1, MONTH(Y105), DAY(Y105)) -> 2026-03-31 | AA105: =DATE(YEAR(Z105) + 1, MONTH(Z105), DAY(Z105)) -> 2027-03-31 | AB105: =DATE(YEAR(AA105) + 1, MONTH(AA105), DAY(AA105)) -> 2028-03-31 | AC105: =DATE(YEAR(AB105) + 1, MONTH(AB105), DAY(AB105)) -> 2029-03-31 | AD105: =DATE(YEAR(AC105) + 1, MONTH(AC105), DAY(AC105)) -> 2030-03-31 | AE105: =DATE(YEAR(AD105) + 1, MONTH(AD105), DAY(AD105)) -> 2031-03-31 | AF105: =DATE(YEAR(AE105) + 1, MONTH(AE105), DAY(AE105)) -> 2032-03-31 | AG105: =DATE(YEAR(AF105) + 1, MONTH(AF105), DAY(AF105)) -> 2033-03-31 | AH105: =DATE(YEAR(AG105) + 1, MONTH(AG105), DAY(AG105)) -> 2034-03-31 | AI105: =DATE(YEAR(AH105) + 1, MONTH(AH105), DAY(AH105)) -> 2035-03-31 | AJ105: =DATE(YEAR(AI105) + 1, MONTH(AI105), DAY(AI105)) -> 2036-03-31 | AK105: =DATE(YEAR(AJ105) + 1, MONTH(AJ105), DAY(AJ105)) -> 2037-03-31 | AL105: =DATE(YEAR(AK105) + 1, MONTH(AK105), DAY(AK105)) -> 2038-03-31 | AM105: =DATE(YEAR(AL105) + 1, MONTH(AL105), DAY(AL105)) -> 2039-03-31 | AN105: =DATE(YEAR(AM105) + 1, MONTH(AM105), DAY(AM105)) -> 2040-03-31 | AO105: =DATE(YEAR(AN105) + 1, MONTH(AN105), DAY(AN105)) -> 2041-03-31 | AP105: =DATE(YEAR(AO105) + 1, MONTH(AO105), DAY(AO105)) -> 2042-03-31 | AQ105: =DATE(YEAR(AP105) + 1, MONTH(AP105), DAY(AP105)) -> 2043-03-31 | AR105: =DATE(YEAR(AQ105) + 1, MONTH(AQ105), DAY(AQ105)) -> 2044-03-31 | AS105: =DATE(YEAR(AR105) + 1, MONTH(AR105), DAY(AR105)) -> 2045-03-31 | AT105: =DATE(YEAR(AS105) + 1, MONTH(AS105), DAY(AS105)) -> 2046-03-31 | AU105: =DATE(YEAR(AT105) + 1, MONTH(AT105), DAY(AT105)) -> 2047-03-31 | AV105: =DATE(YEAR(AU105) + 1, MONTH(AU105), DAY(AU105)) -> 2048-03-31 | AW105: =DATE(YEAR(AV105) + 1, MONTH(AV105), DAY(AV105)) -> 2049-03-31 | AX105: =DATE(YEAR(AW105) + 1, MONTH(AW105), DAY(AW105)) -> 2050-03-31
E107: Model start date | G107: date | I107: 2010-04-01
E108: Regime start date | G108: date | I108: 2021-01-01
E109: End Date for IDC | G109: date | I109: 2021-12-31
E110: Start of Operations | G110: date | I110: 2022-01-01
E111: RPI Scalar from 2015/16 terms to start of regime | G111: scalar | I111: =(1+$I$95)^((I108-AVERAGE(P104,P105))/365.25) -> 1.150875723
E112: RPI Scalar from 2015/16 terms to start of operations | G112: scalar | I112: =(1+$I$95)^((I110-AVERAGE(P104,P105))/365.25) -> 1.182042821
E113: Start of Financial Year of Operations Start Date | G113: date | I113: =IF(MONTH(I110)<=3,DATE(YEAR(I110)-1,4,1),DATE(YEAR(I110),4,1)) -> 2021-04-01
E114: End of Financial Year of Operations Start Date | G114: date | I114: =EOMONTH(I113,11) -> 2022-03-31
E115: Regime end date | G115: date | I115: =DATE(YEAR($I$108)+25,MONTH($I$108),DAY($I$108))-1 -> 2045-12-31
E116: Number of pre-operational years | G116: full years | I116: =YEAR(I113)-YEAR(I107) -> 11
E117: Number of operational years | G117: full years | I117: 25
E118: Assessment period length | G118: full years | I118: 5
E119: Days in year | G119: days | K119: =K$105-K$104+1 -> 365 | L119: 366 | M119: =M$105-M$104+1 -> 365 | N119: =N$105-N$104+1 -> 365 | O119: 365 | P119: 366 | Q119: 365 | R119: 365 | S119: 365 | T119: 366 | U119: 365 | V119: 365 | W119: 365 | X119: 366 | Y119: 365 | Z119: 365 | AA119: 365 | AB119: 366 | AC119: 365 | AD119: 365 | AE119: 365 | AF119: 366 | AG119: 365 | AH119: 365 | AI119: 365 | AJ119: 366 | AK119: 365 | AL119: 365 | AM119: 365 | AN119: 366 | AO119: 365 | AP119: 365 | AQ119: 365 | AR119: 366 | AS119: 365 | AT119: 365 | AU119: 365 | AV119: 366 | AW119: 365 | AX119: 365
E120: Interest During Construction Flag | G120: flag | K120: =IF($I$109>=K$105,1,IF($I$109>=K$104,($I$109-K$104+1)/K$119,0)) -> 1 | L120: 1 | M120: 1 | N120: 1 | O120: 1 | P120: 1 | Q120: 1 | R120: 1 | S120: 1 | T120: 1 | U120: 1 | V120: =IF($I$109>=V$105,1,IF($I$109>=V$104,($I$109-V$104+1)/V$119,0)) -> 0.7534246575 | W120: =IF($I$109>=W$105,1,IF($I$109>=W$104,($I$109-W$104+1)/W$119,0)) -> 0 | X120: 0 | Y120: 0 | Z120: 0 | AA120: 0 | AB120: 0 | AC120: 0 | AD120: 0 | AE120: 0 | AF120: 0 | AG120: 0 | AH120: 0 | AI120: 0 | AJ120: 0 | AK120: 0 | AL120: 0 | AM120: 0 | AN120: 0 | AO120: 0 | AP120: 0 | AQ120: 0 | AR120: 0 | AS120: 0 | AT120: 0 | AU120: 0 | AV120: 0 | AW120: 0 | AX120: 0
E121: Post-IDC and Pre-Operations Flag | G121: flag | K121: =IF(OR(K120=1,K122=1),0,IF($I$110<K104,0,IF($I$110<K105,($I$110-(MAX($I$109+1,K104)))/K119,MIN(1,(K105-$I$109)/K119)))) -> 0 | L121: 0 | M121: =IF(OR(M120=1,M122=1),0,IF($I$110<M104,0,IF($I$110<M105,($I$110-(MAX($I$109+1,M104)))/M119,MIN(1,(M105-$I$109)/M119)))) -> 0 | N121: =IF(OR(N120=1,N122=1),0,IF($I$110<N104,0,IF($I$110<N105,($I$110-(MAX($I$109+1,N104)))/N119,MIN(1,(N105-$I$109)/N119)))) -> 0 | O121: 0 | P121: 0 | Q121: 0 | R121: 0 | S121: 0 | T121: 0 | U121: 0 | V121: 0 | W121: 0 | X121: 0 | Y121: 0 | Z121: 0 | AA121: 0 | AB121: 0 | AC121: 0 | AD121: 0 | AE121: 0 | AF121: 0 | AG121: 0 | AH121: 0 | AI121: 0 | AJ121: 0 | AK121: 0 | AL121: 0 | AM121: 0 | AN121: 0 | AO121: 0 | AP121: 0 | AQ121: 0 | AR121: 0 | AS121: 0 | AT121: 0 | AU121: 0 | AV121: 0 | AW121: 0 | AX121: 0
E122: Operations Flag | G122: flag | K122: =IF(OR($I$110>K$105,$I$115<K$104),0,IF($I$110>=K$104,(K$105-$I$110+1)/K$119,IF($I$115<=K$105,($I$115-K$104+1)/K$119,1))) -> 0 | L122: 0 | M122: =IF(OR($I$110>M$105,$I$115<M$104),0,IF($I$110>=M$104,(M$105-$I$110+1)/M$119,IF($I$115<=M$105,($I$115-M$104+1)/M$119,1))) -> 0 | N122: =IF(OR($I$110>N$105,$I$115<N$104),0,IF($I$110>=N$104,(N$105-$I$110+1)/N$119,IF($I$115<=N$105,($I$115-N$104+1)/N$119,1))) -> 0 | O122: 0 | P122: 0 | Q122: 0 | R122: 0 | S122: 0 | T122: 0 | U122: 0 | V122: 0.2465753425 | W122: 1 | X122: 1 | Y122: 1 | Z122: 1 | AA122: 1 | AB122: 1 | AC122: 1 | AD122: 1 | AE122: 1 | AF122: 1 | AG122: 1 | AH122: 1 | AI122: 1 | AJ122: 1 | AK122: 1 | AL122: 1 | AM122: 1 | AN122: 1 | AO122: 1 | AP122: 1 | AQ122: 1 | AR122: 1 | AS122: 1 | AT122: 0.7534246575 | AU122: 0 | AV122: 0 | AW122: 0 | AX122: 0
E123: Transfer Construction to Operations Flag | G123: flag | K123: =IF(AND($I$110<=K$105,$I$110>=K$104),1,0) -> 0 | L123: 0 | M123: =IF(AND($I$110<=M$105,$I$110>=M$104),1,0) -> 0 | N123: =IF(AND($I$110<=N$105,$I$110>=N$104),1,0) -> 0 | O123: 0 | P123: 0 | Q123: 0 | R123: 0 | S123: 0 | T123: 0 | U123: 0 | V123: 1 | W123: 0 | X123: 0 | Y123: 0 | Z123: 0 | AA123: 0 | AB123: 0 | AC123: 0 | AD123: 0 | AE123: 0 | AF123: 0 | AG123: 0 | AH123: 0 | AI123: 0 | AJ123: 0 | AK123: 0 | AL123: 0 | AM123: 0 | AN123: 0 | AO123: 0 | AP123: 0 | AQ123: 0 | AR123: 0 | AS123: 0 | AT123: 0 | AU123: 0 | AV123: 0 | AW123: 0 | AX123: 0
E124: Initial Transaction Costs flag | G124: flag | K124: =IF(AND(SUM($J18:K18)=0,L18>0),1,0) -> 0 | L124: =IF(AND(SUM($J18:L18)=0,M18>0),1,0) -> 0 | M124: =IF(AND(SUM($J18:M18)=0,N18>0),1,0) -> 0 | N124: =IF(AND(SUM($J18:N18)=0,O18>0),1,0) -> 0 | O124: =IF(AND(SUM($J18:O18)=0,P18>0),1,0) -> 1 | P124: =IF(AND(SUM($J18:P18)=0,Q18>0),1,0) -> 0 | Q124: =IF(AND(SUM($J18:Q18)=0,R18>0),1,0) -> 0 | R124: =IF(AND(SUM($J18:R18)=0,S18>0),1,0) -> 0 | S124: =IF(AND(SUM($J18:S18)=0,T18>0),1,0) -> 0 | T124: =IF(AND(SUM($J18:T18)=0,U18>0),1,0) -> 0 | U124: =IF(AND(SUM($J18:U18)=0,V18>0),1,0) -> 0 | V124: =IF(AND(SUM($J18:V18)=0,W18>0),1,0) -> 0 | W124: =IF(AND(SUM($J18:W18)=0,X18>0),1,0) -> 0 | X124: =IF(AND(SUM($J18:X18)=0,Y18>0),1,0) -> 0 | Y124: =IF(AND(SUM($J18:Y18)=0,Z18>0),1,0) -> 0 | Z124: =IF(AND(SUM($J18:Z18)=0,AA18>0),1,0) -> 0 | AA124: =IF(AND(SUM($J18:AA18)=0,AB18>0),1,0) -> 0 | AB124: =IF(AND(SUM($J18:AB18)=0,AC18>0),1,0) -> 0 | AC124: =IF(AND(SUM($J18:AC18)=0,AD18>0),1,0) -> 0 | AD124: =IF(AND(SUM($J18:AD18)=0,AE18>0),1,0) -> 0 | AE124: =IF(AND(SUM($J18:AE18)=0,AF18>0),1,0) -> 0 | AF124: =IF(AND(SUM($J18:AF18)=0,AG18>0),1,0) -> 0 | AG124: =IF(AND(SUM($J18:AG18)=0,AH18>0),1,0) -> 0 | AH124: =IF(AND(SUM($J18:AH18)=0,AI18>0),1,0) -> 0 | AI124: =IF(AND(SUM($J18:AI18)=0,AJ18>0),1,0) -> 0 | AJ124: =IF(AND(SUM($J18:AJ18)=0,AK18>0),1,0) -> 0 | AK124: =IF(AND(SUM($J18:AK18)=0,AL18>0),1,0) -> 0 | AL124: =IF(AND(SUM($J18:AL18)=0,AM18>0),1,0) -> 0 | AM124: =IF(AND(SUM($J18:AM18)=0,AN18>0),1,0) -> 0 | AN124: =IF(AND(SUM($J18:AN18)=0,AO18>0),1,0) -> 0 | AO124: =IF(AND(SUM($J18:AO18)=0,AP18>0),1,0) -> 0 | AP124: =IF(AND(SUM($J18:AP18)=0,AQ18>0),1,0) -> 0 | AQ124: =IF(AND(SUM($J18:AQ18)=0,AR18>0),1,0) -> 0 | AR124: =IF(AND(SUM($J18:AR18)=0,AS18>0),1,0) -> 0 | AS124: =IF(AND(SUM($J18:AS18)=0,AT18>0),1,0) -> 0 | AT124: =IF(AND(SUM($J18:AT18)=0,AU18>0),1,0) -> 0 | AU124: =IF(AND(SUM($J18:AU18)=0,AV18>0),1,0) -> 0 | AV124: =IF(AND(SUM($J18:AV18)=0,AW18>0),1,0) -> 0 | AW124: =IF(AND(SUM($J18:AW18)=0,AX18>0),1,0) -> 0 | AX124: =IF(AND(SUM($J18:AX18)=0,AY18>0),1,0) -> 0
B126: End of sheet

Sheet Pre_Op_RAV
A1: Pre_Op_RAV | H1: Licence
E2: Parameter | G2: Units | H2: Terminology | I2: Constant | K2: Annual values
E3: Project year | K3: =Input!K8 -> -10 | L3: =K3 + 1 -> -9 | M3: -8 | N3: -7 | O3: -6 | P3: -5 | Q3: -4 | R3: -3 | S3: -2 | T3: -1 | U3: 0 | V3: 1 | W3: 2 | X3: 3 | Y3: 4 | Z3: 5 | AA3: 6 | AB3: 7 | AC3: 8 | AD3: 9 | AE3: 10 | AF3: 11 | AG3: 12 | AH3: 13 | AI3: 14 | AJ3: 15 | AK3: 16 | AL3: 17 | AM3: 18 | AN3: 19 | AO3: 20 | AP3: 21 | AQ3: 22 | AR3: 23 | AS3: 24 | AT3: 25 | AU3: 26 | AV3: 27 | AW3: 28 | AX3: 29
E4: Year commencing | K4: =Input!K9 -> 2010-04-01 | L4: =+K5+1 -> 2011-04-01 | M4: =+L5+1 -> 2012-04-01 | N4: =+M5+1 -> 2013-04-01 | O4: 2014-04-01 | P4: 2015-04-01 | Q4: 2016-04-01 | R4: 2017-04-01 | S4: 2018-04-01 | T4: 2019-04-01 | U4: 2020-04-01 | V4: 2021-04-01 | W4: 2022-04-01 | X4: 2023-04-01 | Y4: 2024-04-01 | Z4: 2025-04-01 | AA4: 2026-04-01 | AB4: 2027-04-01 | AC4: 2028-04-01 | AD4: 2029-04-01 | AE4: 2030-04-01 | AF4: 2031-04-01 | AG4: 2032-04-01 | AH4: 2033-04-01 | AI4: 2034-04-01 | AJ4: 2035-04-01 | AK4: 2036-04-01 | AL4: 2037-04-01 | AM4: 2038-04-01 | AN4: 2039-04-01 | AO4: 2040-04-01 | AP4: 2041-04-01 | AQ4: 2042-04-01 | AR4: 2043-04-01 | AS4: 2044-04-01 | AT4: 2045-04-01 | AU4: 2046-04-01 | AV4: 2047-04-01 | AW4: 2048-04-01 | AX4: 2049-04-01
E5: Year ending | K5: =Input!K10 -> 2011-03-31 | L5: =DATE(YEAR(K5) + 1, MONTH(K5), DAY(K5)) -> 2012-03-31 | M5: 2013-03-31 | N5: 2014-03-31 | O5: 2015-03-31 | P5: 2016-03-31 | Q5: 2017-03-31 | R5: 2018-03-31 | S5: 2019-03-31 | T5: 2020-03-31 | U5: 2021-03-31 | V5: 2022-03-31 | W5: 2023-03-31 | X5: 2024-03-31 | Y5: 2025-03-31 | Z5: 2026-03-31 | AA5: 2027-03-31 | AB5: 2028-03-31 | AC5: 2029-03-31 | AD5: 2030-03-31 | AE5: 2031-03-31 | AF5: 2032-03-31 | AG5: 2033-03-31 | AH5: 2034-03-31 | AI5: 2035-03-31 | AJ5: 2036-03-31 | AK5: 2037-03-31 | AL5: 2038-03-31 | AM5: 2039-03-31 | AN5: 2040-03-31 | AO5: 2041-03-31 | AP5: 2042-03-31 | AQ5: 2043-03-31 | AR5: 2044-03-31 | AS5: 2045-03-31 | AT5: 2046-03-31 | AU5: 2047-03-31 | AV5: 2048-03-31 | AW5: 2049-03-31 | AX5: 2050-03-31
B7: Flags
E9: Interest During Construction Flag | G9: flag | K9: =Input!K120 -> 1 | L9: =Input!L120 -> 1 | M9: =Input!M120 -> 1 | N9: =Input!N120 -> 1 | O9: =Input!O120 -> 1 | P9: =Input!P120 -> 1 | Q9: =Input!Q120 -> 1 | R9: =Input!R120 -> 1 | S9: =Input!S120 -> 1 | T9: =Input!T120 -> 1 | U9: =Input!U120 -> 1 | V9: =Input!V120 -> 0.7534246575 | W9: =Input!W120 -> 0 | X9: =Input!X120 -> 0 | Y9: =Input!Y120 -> 0 | Z9: =Input!Z120 -> 0 | AA9: =Input!AA120 -> 0 | AB9: =Input!AB120 -> 0 | AC9: =Input!AC120 -> 0 | AD9: =Input!AD120 -> 0 | AE9: =Input!AE120 -> 0 | AF9: =Input!AF120 -> 0 | AG9: =Input!AG120 -> 0 | AH9: =Input!AH120 -> 0 | AI9: =Input!AI120 -> 0 | AJ9: =Input!AJ120 -> 0 | AK9: =Input!AK120 -> 0 | AL9: =Input!AL120 -> 0 | AM9: =Input!AM120 -> 0 | AN9: =Input!AN120 -> 0 | AO9: =Input!AO120 -> 0 | AP9: =Input!AP120 -> 0 | AQ9: =Input!AQ120 -> 0 | AR9: =Input!AR120 -> 0 | AS9: =Input!AS120 -> 0 | AT9: =Input!AT120 -> 0 | AU9: =Input!AU120 -> 0 | AV9: =Input!AV120 -> 0 | AW9: =Input!AW120 -> 0 | AX9: =Input!AX120 -> 0
E10: Post-IDC and Pre-Operations Flag | G10: flag | K10: =Input!K121 -> 0 | L10: =Input!L121 -> 0 | M10: =Input!M121 -> 0 | N10: =Input!N121 -> 0 | O10: =Input!O121 -> 0 | P10: =Input!P121 -> 0 | Q10: =Input!Q121 -> 0 | R10: =Input!R121 -> 0 | S10: =Input!S121 -> 0 | T10: =Input!T121 -> 0 | U10: =Input!U121 -> 0 | V10: =Input!V121 -> 0 | W10: =Input!W121 -> 0 | X10: =Input!X121 -> 0 | Y10: =Input!Y121 -> 0 | Z10: =Input!Z121 -> 0 | AA10: =Input!AA121 -> 0 | AB10: =Input!AB121 -> 0 | AC10: =Input!AC121 -> 0 | AD10: =Input!AD121 -> 0 | AE10: =Input!AE121 -> 0 | AF10: =Input!AF121 -> 0 | AG10: =Input!AG121 -> 0 | AH10: =Input!AH121 -> 0 | AI10: =Input!AI121 -> 0 | AJ10: =Input!AJ121 -> 0 | AK10: =Input!AK121 -> 0 | AL10: =Input!AL121 -> 0 | AM10: =Input!AM121 -> 0 | AN10: =Input!AN121 -> 0 | AO10: =Input!AO121 -> 0 | AP10: =Input!AP121 -> 0 | AQ10: =Input!AQ121 -> 0 | AR10: =Input!AR121 -> 0 | AS10: =Input!AS121 -> 0 | AT10: =Input!AT121 -> 0 | AU10: =Input!AU121 -> 0 | AV10: =Input!AV121 -> 0 | AW10: =Input!AW121 -> 0 | AX10: =Input!AX121 -> 0
E11: Operations Flag | G11: flag | K11: =Input!K122 -> 0 | L11: =Input!L122 -> 0 | M11: =Input!M122 -> 0 | N11: =Input!N122 -> 0 | O11: =Input!O122 -> 0 | P11: =Input!P122 -> 0 | Q11: =Input!Q122 -> 0 | R11: =Input!R122 -> 0 | S11: =Input!S122 -> 0 | T11: =Input!T122 -> 0 | U11: =Input!U122 -> 0 | V11: =Input!V122 -> 0.2465753425 | W11: =Input!W122 -> 1 | X11: =Input!X122 -> 1 | Y11: =Input!Y122 -> 1 | Z11: =Input!Z122 -> 1 | AA11: =Input!AA122 -> 1 | AB11: =Input!AB122 -> 1 | AC11: =Input!AC122 -> 1 | AD11: =Input!AD122 -> 1 | AE11: =Input!AE122 -> 1 | AF11: =Input!AF122 -> 1 | AG11: =Input!AG122 -> 1 | AH11: =Input!AH122 -> 1 | AI11: =Input!AI122 -> 1 | AJ11: =Input!AJ122 -> 1 | AK11: =Input!AK122 -> 1 | AL11: =Input!AL122 -> 1 | AM11: =Input!AM122 -> 1 | AN11: =Input!AN122 -> 1 | AO11: =Input!AO122 -> 1 | AP11: =Input!AP122 -> 1 | AQ11: =Input!AQ122 -> 1 | AR11: =Input!AR122 -> 1 | AS11: =Input!AS122 -> 1 | AT11: =Input!AT122 -> 0.7534246575 | AU11: =Input!AU122 -> 0 | AV11: =Input!AV122 -> 0 | AW11: =Input!AW122 -> 0 | AX11: =Input!AX122 -> 0
E12: Transfer Construction to Operations Flag | G12: flag | K12: =Input!K123 -> 0 | L12: =Input!L123 -> 0 | M12: =Input!M123 -> 0 | N12: =Input!N123 -> 0 | O12: =Input!O123 -> 0 | P12: =Input!P123 -> 0 | Q12: =Input!Q123 -> 0 | R12: =Input!R123 -> 0 | S12: =Input!S123 -> 0 | T12: =Input!T123 -> 0 | U12: =Input!U123 -> 0 | V12: =Input!V123 -> 1 | W12: =Input!W123 -> 0 | X12: =Input!X123 -> 0 | Y12: =Input!Y123 -> 0 | Z12: =Input!Z123 -> 0 | AA12: =Input!AA123 -> 0 | AB12: =Input!AB123 -> 0 | AC12: =Input!AC123 -> 0 | AD12: =Input!AD123 -> 0 | AE12: =Input!AE123 -> 0 | AF12: =Input!AF123 -> 0 | AG12: =Input!AG123 -> 0 | AH12: =Input!AH123 -> 0 | AI12: =Input!AI123 -> 0 | AJ12: =Input!AJ123 -> 0 | AK12: =Input!AK123 -> 0 | AL12: =Input!AL123 -> 0 | AM12: =Input!AM123 -> 0 | AN12: =Input!AN123 -> 0 | AO12: =Input!AO123 -> 0 | AP12: =Input!AP123 -> 0 | AQ12: =Input!AQ123 -> 0 | AR12: =Input!AR123 -> 0 | AS12: =Input!AS123 -> 0 | AT12: =Input!AT123 -> 0 | AU12: =Input!AU123 -> 0 | AV12: =Input!AV123 -> 0 | AW12: =Input!AW123 -> 0 | AX12: =Input!AX123 -> 0
B14: Running total RAV
C16: Pre-operational
E18: Opening pre-operational RAV (before transfers) | G18: £m 15/16 prices | L18: =K25 -> 0.352716471 | M18: =L25 -> 0.9170080049 | N18: 7.841706211 | O18: 9.825394312 | P18: 14.16010687 | Q18: 43.01921572 | R18: 93.2721947 | S18: 146.6438191 | T18: 245.3714984 | U18: 452.3408662 | V18: =U25 -> 610.8380341 | W18: 0 | X18: 0 | Y18: 0 | Z18: 0 | AA18: 0 | AB18: 0 | AC18: 0 | AD18: 0 | AE18: 0 | AF18: 0 | AG18: 0 | AH18: 0 | AI18: 0 | AJ18: 0 | AK18: 0 | AL18: 0 | AM18: 0 | AN18: 0 | AO18: 0 | AP18: 0 | AQ18: 0 | AR18: 0 | AS18: 0 | AT18: 0 | AU18: 0 | AV18: 0 | AW18: 0 | AX18: 0
E19: =Input!E17 -> Development costs | G19: £m 15/16 prices | K19: =Input!K17 -> 0.3421552041 | L19: =Input!L17 -> 0.5255998618 | M19: =Input!M17 -> 6.660690013 | N19: =Input!N17 -> 1.439731386 | O19: =Input!O17 -> 3.597782583 | P19: =Input!P17 -> 0 | Q19: =Input!Q17 -> 0 | R19: =Input!R17 -> 0 | S19: =Input!S17 -> 0 | T19: =Input!T17 -> 0 | U19: =Input!U17 -> 0 | V19: =Input!V17 -> 0 | W19: =Input!W17 -> 0 | X19: =Input!X17 -> 0 | Y19: =Input!Y17 -> 0 | Z19: =Input!Z17 -> 0 | AA19: =Input!AA17 -> 0 | AB19: =Input!AB17 -> 0 | AC19: =Input!AC17 -> 0 | AD19: =Input!AD17 -> 0 | AE19: =Input!AE17 -> 0 | AF19: =Input!AF17 -> 0 | AG19: =Input!AG17 -> 0 | AH19: =Input!AH17 -> 0 | AI19: =Input!AI17 -> 0 | AJ19: =Input!AJ17 -> 0 | AK19: =Input!AK17 -> 0 | AL19: =Input!AL17 -> 0 | AM19: =Input!AM17 -> 0 | AN19: =Input!AN17 -> 0 | AO19: =Input!AO17 -> 0 | AP19: =Input!AP17 -> 0 | AQ19: =Input!AQ17 -> 0 | AR19: =Input!AR17 -> 0 | AS19: =Input!AS17 -> 0 | AT19: =Input!AT17 -> 0 | AU19: =Input!AU17 -> 0 | AV19: =Input!AV17 -> 0 | AW19: =Input!AW17 -> 0 | AX19: =Input!AX17 -> 0
E20: =Input!E18 -> Capex | G20: £m 15/16 prices | K20: =Input!K18 -> 0 | L20: =Input!L18 -> 0 | M20: =Input!M18 -> 0 | N20: =Input!N18 -> 0 | O20: =Input!O18 -> 0 | P20: =Input!P18 -> 27.12 | Q20: =Input!Q18 -> 46.09 | R20: =Input!R18 -> 46.01 | S20: =Input!S18 -> 86.71 | T20: =Input!T18 -> 185.61 | U20: =Input!U18 -> 125.8 | V20: =Input!V18 -> 42.67 | W20: =Input!W18 -> 0 | X20: =Input!X18 -> 0 | Y20: =Input!Y18 -> 0 | Z20: =Input!Z18 -> 0 | AA20: =Input!AA18 -> 0 | AB20: =Input!AB18 -> 0 | AC20: =Input!AC18 -> 0 | AD20: =Input!AD18 -> 0 | AE20: =Input!AE18 -> 0 | AF20: =Input!AF18 -> 0 | AG20: =Input!AG18 -> 0 | AH20: =Input!AH18 -> 0 | AI20: =Input!AI18 -> 0 | AJ20: =Input!AJ18 -> 0 | AK20: =Input!AK18 -> 0 | AL20: =Input!AL18 -> 0 | AM20: =Input!AM18 -> 0 | AN20: =Input!AN18 -> 0 | AO20: =Input!AO18 -> 0 | AP20: =Input!AP18 -> 0 | AQ20: =Input!AQ18 -> 0 | AR20: =Input!AR18 -> 0 | AS20: =Input!AS18 -> 0 | AT20: =Input!AT18 -> 0 | AU20: =Input!AU18 -> 0 | AV20: =Input!AV18 -> 0 | AW20: =Input!AW18 -> 0 | AX20: =Input!AX18 -> 0
E21: =Input!E19 -> Spares | G21: £m 15/16 prices | K21: =Input!K19 -> 0 | L21: =Input!L19 -> 0 | M21: =Input!M19 -> 0 | N21: =Input!N19 -> 0 | O21: =Input!O19 -> 0 | P21: =Input!P19 -> 0 | Q21: =Input!Q19 -> 0 | R21: =Input!R19 -> 0 | S21: =Input!S19 -> 0 | T21: =Input!T19 -> 0 | U21: =Input!U19 -> 0 | V21: =Input!V19 -> 0 | W21: =Input!W19 -> 0 | X21: =Input!X19 -> 0 | Y21: =Input!Y19 -> 0 | Z21: =Input!Z19 -> 0 | AA21: =Input!AA19 -> 0 | AB21: =Input!AB19 -> 0 | AC21: =Input!AC19 -> 0 | AD21: =Input!AD19 -> 0 | AE21: =Input!AE19 -> 0 | AF21: =Input!AF19 -> 0 | AG21: =Input!AG19 -> 0 | AH21: =Input!AH19 -> 0 | AI21: =Input!AI19 -> 0 | AJ21: =Input!AJ19 -> 0 | AK21: =Input!AK19 -> 0 | AL21: =Input!AL19 -> 0 | AM21: =Input!AM19 -> 0 | AN21: =Input!AN19 -> 0 | AO21: =Input!AO19 -> 0 | AP21: =Input!AP19 -> 0 | AQ21: =Input!AQ19 -> 0 | AR21: =Input!AR19 -> 0 | AS21: =Input!AS19 -> 0 | AT21: =Input!AT19 -> 0 | AU21: =Input!AU19 -> 0 | AV21: =Input!AV19 -> 0 | AW21: =Input!AW19 -> 0 | AX21: =Input!AX19 -> 0
E22: =Finance!E26 -> Capitalised IDC | G22: £m 15/16 prices | K22: =Finance!K26 -> 0.0105612669 | L22: =Finance!L26 -> 0.03869167209 | M22: =Finance!M26 -> 0.264008193 | N22: =Finance!N26 -> 0.5439567153 | O22: =Finance!O26 -> 0.7369299754 | P22: =Finance!P26 -> 1.739108853 | Q22: =Finance!Q26 -> 4.162978982 | R22: =Finance!R26 -> 7.361624392 | S22: =Finance!S26 -> 12.01767927 | T22: =Finance!T26 -> 21.35936782 | U22: =Finance!U26 -> 32.69716788 | V22: =Finance!V26 -> 30.07642931 | W22: =Finance!W26 -> 0 | X22: =Finance!X26 -> 0 | Y22: =Finance!Y26 -> 0 | Z22: =Finance!Z26 -> 0 | AA22: =Finance!AA26 -> 0 | AB22: =Finance!AB26 -> 0 | AC22: =Finance!AC26 -> 0 | AD22: =Finance!AD26 -> 0 | AE22: =Finance!AE26 -> 0 | AF22: =Finance!AF26 -> 0 | AG22: =Finance!AG26 -> 0 | AH22: =Finance!AH26 -> 0 | AI22: =Finance!AI26 -> 0 | AJ22: =Finance!AJ26 -> 0 | AK22: =Finance!AK26 -> 0 | AL22: =Finance!AL26 -> 0 | AM22: =Finance!AM26 -> 0 | AN22: =Finance!AN26 -> 0 | AO22: =Finance!AO26 -> 0 | AP22: =Finance!AP26 -> 0 | AQ22: =Finance!AQ26 -> 0 | AR22: =Finance!AR26 -> 0 | AS22: =Finance!AS26 -> 0 | AT22: =Finance!AT26 -> 0 | AU22: =Finance!AU26 -> 0 | AV22: =Finance!AV26 -> 0 | AW22: =Finance!AW26 -> 0 | AX22: =Finance!AX26 -> 0
E23: Closing pre-operational RAV (after IDC) | G23: £m 15/16 prices | K23: =SUM(K18:K22) -> 0.352716471 | L23: 0.9170080049 | M23: 7.841706211 | N23: 9.825394312 | O23: 14.16010687 | P23: 43.01921572 | Q23: 93.2721947 | R23: 146.6438191 | S23: 245.3714984 | T23: 452.3408662 | U23: 610.8380341 | V23: =SUM(V18:V22) -> 683.5844634 | W23: 0 | X23: 0 | Y23: 0 | Z23: 0 | AA23: 0 | AB23: 0 | AC23: 0 | AD23: 0 | AE23: 0 | AF23: 0 | AG23: 0 | AH23: 0 | AI23: 0 | AJ23: 0 | AK23: 0 | AL23: 0 | AM23: 0 | AN23: 0 | AO23: 0 | AP23: 0 | AQ23: 0 | AR23: 0 | AS23: 0 | AT23: 0 | AU23: 0 | AV23: 0 | AW23: 0 | AX23: 0
E24: Pre-operational RAV transfers | G24: £m 15/16 prices | K24: =-K23*K12 -> 0 | L24: 0 | M24: 0 | N24: 0 | O24: 0 | P24: 0 | Q24: 0 | R24: 0 | S24: 0 | T24: 0 | U24: 0 | V24: =-V23*V12 -> -683.5844634 | W24: 0 | X24: 0 | Y24: 0 | Z24: 0 | AA24: 0 | AB24: 0 | AC24: 0 | AD24: 0 | AE24: 0 | AF24: 0 | AG24: 0 | AH24: 0 | AI24: 0 | AJ24: 0 | AK24: 0 | AL24: 0 | AM24: 0 | AN24: 0 | AO24: 0 | AP24: 0 | AQ24: 0 | AR24: 0 | AS24: 0 | AT24: 0 | AU24: 0 | AV24: 0 | AW24: 0 | AX24: 0
E25: Closing pre-operational RAV (after IDC) - adjusted for RAV transfers | G25: £m 15/16 prices | K25: =SUM(K23:K24) -> 0.352716471 | L25: 0.9170080049 | M25: 7.841706211 | N25: 9.825394312 | O25: 14.16010687 | P25: 43.01921572 | Q25: 93.2721947 | R25: 146.6438191 | S25: 245.3714984 | T25: 452.3408662 | U25: =SUM(U23:U24) -> 610.8380341 | V25: =SUM(V23:V24) -> 0 | W25: 0 | X25: 0 | Y25: 0 | Z25: 0 | AA25: 0 | AB25: 0 | AC25: 0 | AD25: 0 | AE25: 0 | AF25: 0 | AG25: 0 | AH25: 0 | AI25: 0 | AJ25: 0 | AK25: 0 | AL25: 0 | AM25: 0 | AN25: 0 | AO25: 0 | AP25: 0 | AQ25: 0 | AR25: 0 | AS25: 0 | AT25: 0 | AU25: 0 | AV25: 0 | AW25: 0 | AX25: 0
B27: End of sheet

Sheet Finance
A1: Finance | H1: Licence
E2: Parameter | G2: Units | H2: Terminology | I2: Constant | K2: Annual values
E3: Project year | K3: =Input!K8 -> -10 | L3: =K3 + 1 -> -9 | M3: -8 | N3: -7 | O3: -6 | P3: -5 | Q3: -4 | R3: -3 | S3: -2 | T3: -1 | U3: 0 | V3: 1 | W3: 2 | X3: 3 | Y3: 4 | Z3: 5 | AA3: 6 | AB3: 7 | AC3: 8 | AD3: 9 | AE3: 10 | AF3: 11 | AG3: 12 | AH3: 13 | AI3: 14 | AJ3: 15 | AK3: 16 | AL3: 17 | AM3: 18 | AN3: 19 | AO3: 20 | AP3: 21 | AQ3: 22 | AR3: 23 | AS3: 24 | AT3: 25 | AU3: 26 | AV3: 27 | AW3: 28 | AX3: 29
E4: Year commencing | K4: =Input!K9 -> 2010-04-01 | L4: =+K5+1 -> 2011-04-01 | M4: 2012-04-01 | N4: 2013-04-01 | O4: 2014-04-01 | P4: 2015-04-01 | Q4: 2016-04-01 | R4: 2017-04-01 | S4: 2018-04-01 | T4: 2019-04-01 | U4: 2020-04-01 | V4: 2021-04-01 | W4: 2022-04-01 | X4: 2023-04-01 | Y4: 2024-04-01 | Z4: 2025-04-01 | AA4: 2026-04-01 | AB4: 2027-04-01 | AC4: 2028-04-01 | AD4: 2029-04-01 | AE4: 2030-04-01 | AF4: 2031-04-01 | AG4: 2032-04-01 | AH4: 2033-04-01 | AI4: 2034-04-01 | AJ4: 2035-04-01 | AK4: 2036-04-01 | AL4: 2037-04-01 | AM4: 2038-04-01 | AN4: 2039-04-01 | AO4: 2040-04-01 | AP4: 2041-04-01 | AQ4: 2042-04-01 | AR4: 2043-04-01 | AS4: 2044-04-01 | AT4: 2045-04-01 | AU4: 2046-04-01 | AV4: 2047-04-01 | AW4: 2048-04-01 | AX4: 2049-04-01
E5: Year ending | K5: =Input!K10 -> 2011-03-31 | L5: =DATE(YEAR(K5) + 1, MONTH(K5), DAY(K5)) -> 2012-03-31 | M5: 2013-03-31 | N5: 2014-03-31 | O5: 2015-03-31 | P5: 2016-03-31 | Q5: 2017-03-31 | R5: 2018-03-31 | S5: 2019-03-31 | T5: 2020-03-31 | U5: 2021-03-31 | V5: 2022-03-31 | W5: 2023-03-31 | X5: 2024-03-31 | Y5: 2025-03-31 | Z5: 2026-03-31 | AA5: 2027-03-31 | AB5: 2028-03-31 | AC5: 2029-03-31 | AD5: 2030-03-31 | AE5: 2031-03-31 | AF5: 2032-03-31 | AG5: 2033-03-31 | AH5: 2034-03-31 | AI5: 2035-03-31 | AJ5: 2036-03-31 | AK5: 2037-03-31 | AL5: 2038-03-31 | AM5: 2039-03-31 | AN5: 2040-03-31 | AO5: 2041-03-31 | AP5: 2042-03-31 | AQ5: 2043-03-31 | AR5: 2044-03-31 | AS5: 2045-03-31 | AT5: 2046-03-31 | AU5: 2047-03-31 | AV5: 2048-03-31 | AW5: 2049-03-31 | AX5: 2050-03-31
B7: Flags
E9: Interest During Construction Flag | G9: flag | K9: =Input!K120 -> 1 | L9: =Input!L120 -> 1 | M9: =Input!M120 -> 1 | N9: =Input!N120 -> 1 | O9: =Input!O120 -> 1 | P9: =Input!P120 -> 1 | Q9: =Input!Q120 -> 1 | R9: =Input!R120 -> 1 | S9: =Input!S120 -> 1 | T9: =Input!T120 -> 1 | U9: =Input!U120 -> 1 | V9: =Input!V120 -> 0.7534246575 | W9: =Input!W120 -> 0 | X9: =Input!X120 -> 0 | Y9: =Input!Y120 -> 0 | Z9: =Input!Z120 -> 0 | AA9: =Input!AA120 -> 0 | AB9: =Input!AB120 -> 0 | AC9: =Input!AC120 -> 0 | AD9: =Input!AD120 -> 0 | AE9: =Input!AE120 -> 0 | AF9: =Input!AF120 -> 0 | AG9: =Input!AG120 -> 0 | AH9: =Input!AH120 -> 0 | AI9: =Input!AI120 -> 0 | AJ9: =Input!AJ120 -> 0 | AK9: =Input!AK120 -> 0 | AL9: =Input!AL120 -> 0 | AM9: =Input!AM120 -> 0 | AN9: =Input!AN120 -> 0 | AO9: =Input!AO120 -> 0 | AP9: =Input!AP120 -> 0 | AQ9: =Input!AQ120 -> 0 | AR9: =Input!AR120 -> 0 | AS9: =Input!AS120 -> 0 | AT9: =Input!AT120 -> 0 | AU9: =Input!AU120 -> 0 | AV9: =Input!AV120 -> 0 | AW9: =Input!AW120 -> 0 | AX9: =Input!AX120 -> 0
E10: Post-IDC and Pre-Operations Flag | G10: flag | K10: =Input!K121 -> 0 | L10: =Input!L121 -> 0 | M10: =Input!M121 -> 0 | N10: =Input!N121 -> 0 | O10: =Input!O121 -> 0 | P10: =Input!P121 -> 0 | Q10: =Input!Q121 -> 0 | R10: =Input!R121 -> 0 | S10: =Input!S121 -> 0 | T10: =Input!T121 -> 0 | U10: =Input!U121 -> 0 | V10: =Input!V121 -> 0 | W10: =Input!W121 -> 0 | X10: =Input!X121 -> 0 | Y10: =Input!Y121 -> 0 | Z10: =Input!Z121 -> 0 | AA10: =Input!AA121 -> 0 | AB10: =Input!AB121 -> 0 | AC10: =Input!AC121 -> 0 | AD10: =Input!AD121 -> 0 | AE10: =Input!AE121 -> 0 | AF10: =Input!AF121 -> 0 | AG10: =Input!AG121 -> 0 | AH10: =Input!AH121 -> 0 | AI10: =Input!AI121 -> 0 | AJ10: =Input!AJ121 -> 0 | AK10: =Input!AK121 -> 0 | AL10: =Input!AL121 -> 0 | AM10: =Input!AM121 -> 0 | AN10: =Input!AN121 -> 0 | AO10: =Input!AO121 -> 0 | AP10: =Input!AP121 -> 0 | AQ10: =Input!AQ121 -> 0 | AR10: =Input!AR121 -> 0 | AS10: =Input!AS121 -> 0 | AT10: =Input!AT121 -> 0 | AU10: =Input!AU121 -> 0 | AV10: =Input!AV121 -> 0 | AW10: =Input!AW121 -> 0 | AX10: =Input!AX121 -> 0
E11: Operations Flag | G11: flag | K11: =Input!K122 -> 0 | L11: =Input!L122 -> 0 | M11: =Input!M122 -> 0 | N11: =Input!N122 -> 0 | O11: =Input!O122 -> 0 | P11: =Input!P122 -> 0 | Q11: =Input!Q122 -> 0 | R11: =Input!R122 -> 0 | S11: =Input!S122 -> 0 | T11: =Input!T122 -> 0 | U11: =Input!U122 -> 0 | V11: =Input!V122 -> 0.2465753425 | W11: =Input!W122 -> 1 | X11: =Input!X122 -> 1 | Y11: =Input!Y122 -> 1 | Z11: =Input!Z122 -> 1 | AA11: =Input!AA122 -> 1 | AB11: =Input!AB122 -> 1 | AC11: =Input!AC122 -> 1 | AD11: =Input!AD122 -> 1 | AE11: =Input!AE122 -> 1 | AF11: =Input!AF122 -> 1 | AG11: =Input!AG122 -> 1 | AH11: =Input!AH122 -> 1 | AI11: =Input!AI122 -> 1 | AJ11: =Input!AJ122 -> 1 | AK11: =Input!AK122 -> 1 | AL11: =Input!AL122 -> 1 | AM11: =Input!AM122 -> 1 | AN11: =Input!AN122 -> 1 | AO11: =Input!AO122 -> 1 | AP11: =Input!AP122 -> 1 | AQ11: =Input!AQ122 -> 1 | AR11: =Input!AR122 -> 1 | AS11: =Input!AS122 -> 1 | AT11: =Input!AT122 -> 0.7534246575 | AU11: =Input!AU122 -> 0 | AV11: =Input!AV122 -> 0 | AW11: =Input!AW122 -> 0 | AX11: =Input!AX122 -> 0
E12: Transfer Construction to Operations Flag | G12: flag | K12: =Input!K123 -> 0 | L12: =Input!L123 -> 0 | M12: =Input!M123 -> 0 | N12: =Input!N123 -> 0 | O12: =Input!O123 -> 0 | P12: =Input!P123 -> 0 | Q12: =Input!Q123 -> 0 | R12: =Input!R123 -> 0 | S12: =Input!S123 -> 0 | T12: =Input!T123 -> 0 | U12: =Input!U123 -> 0 | V12: =Input!V123 -> 1 | W12: =Input!W123 -> 0 | X12: =Input!X123 -> 0 | Y12: =Input!Y123 -> 0 | Z12: =Input!Z123 -> 0 | AA12: =Input!AA123 -> 0 | AB12: =Input!AB123 -> 0 | AC12: =Input!AC123 -> 0 | AD12: =Input!AD123 -> 0 | AE12: =Input!AE123 -> 0 | AF12: =Input!AF123 -> 0 | AG12: =Input!AG123 -> 0 | AH12: =Input!AH123 -> 0 | AI12: =Input!AI123 -> 0 | AJ12: =Input!AJ123 -> 0 | AK12: =Input!AK123 -> 0 | AL12: =Input!AL123 -> 0 | AM12: =Input!AM123 -> 0 | AN12: =Input!AN123 -> 0 | AO12: =Input!AO123 -> 0 | AP12: =Input!AP123 -> 0 | AQ12: =Input!AQ123 -> 0 | AR12: =Input!AR123 -> 0 | AS12: =Input!AS123 -> 0 | AT12: =Input!AT123 -> 0 | AU12: =Input!AU123 -> 0 | AV12: =Input!AV123 -> 0 | AW12: =Input!AW123 -> 0 | AX12: =Input!AX123 -> 0
E13: Initial Transaction Costs Flag | G13: flag | K13: =Input!K124 -> 0 | L13: =Input!L124 -> 0 | M13: =Input!M124 -> 0 | N13: =Input!N124 -> 0 | O13: =Input!O124 -> 1 | P13: =Input!P124 -> 0 | Q13: =Input!Q124 -> 0 | R13: =Input!R124 -> 0 | S13: =Input!S124 -> 0 | T13: =Input!T124 -> 0 | U13: =Input!U124 -> 0 | V13: =Input!V124 -> 0 | W13: =Input!W124 -> 0 | X13: =Input!X124 -> 0 | Y13: =Input!Y124 -> 0 | Z13: =Input!Z124 -> 0 | AA13: =Input!AA124 -> 0 | AB13: =Input!AB124 -> 0 | AC13: =Input!AC124 -> 0 | AD13: =Input!AD124 -> 0 | AE13: =Input!AE124 -> 0 | AF13: =Input!AF124 -> 0 | AG13: =Input!AG124 -> 0 | AH13: =Input!AH124 -> 0 | AI13: =Input!AI124 -> 0 | AJ13: =Input!AJ124 -> 0 | AK13: =Input!AK124 -> 0 | AL13: =Input!AL124 -> 0 | AM13: =Input!AM124 -> 0 | AN13: =Input!AN124 -> 0 | AO13: =Input!AO124 -> 0 | AP13: =Input!AP124 -> 0 | AQ13: =Input!AQ124 -> 0 | AR13: =Input!AR124 -> 0 | AS13: =Input!AS124 -> 0 | AT13: =Input!AT124 -> 0 | AU13: =Input!AU124 -> 0 | AV13: =Input!AV124 -> 0 | AW13: =Input!AW124 -> 0 | AX13: =Input!AX124 -> 0
B15: Pre-operational IDC
C17: Pre-operational IDC
E19: Interest during construction | G19: =Input!G46 -> real annual % | I19: =Input!I46 -> 0.0637
E21: Opening pre-operational RAV (before transfers) | G21: £m 15/16 prices | K21: =Pre_Op_RAV!K18 -> 0 | L21: =Pre_Op_RAV!L18 -> 0.352716471 | M21: =Pre_Op_RAV!M18 -> 0.9170080049 | N21: =Pre_Op_RAV!N18 -> 7.841706211 | O21: =Pre_Op_RAV!O18 -> 9.825394312 | P21: =Pre_Op_RAV!P18 -> 14.16010687 | Q21: =Pre_Op_RAV!Q18 -> 43.01921572 | R21: =Pre_Op_RAV!R18 -> 93.2721947 | S21: =Pre_Op_RAV!S18 -> 146.6438191 | T21: =Pre_Op_RAV!T18 -> 245.3714984 | U21: =Pre_Op_RAV!U18 -> 452.3408662 | V21: =Pre_Op_RAV!V18 -> 610.8380341 | W21: =Pre_Op_RAV!W18 -> 0 | X21: =Pre_Op_RAV!X18 -> 0 | Y21: =Pre_Op_RAV!Y18 -> 0 | Z21: =Pre_Op_RAV!Z18 -> 0 | AA21: =Pre_Op_RAV!AA18 -> 0 | AB21: =Pre_Op_RAV!AB18 -> 0 | AC21: =Pre_Op_RAV!AC18 -> 0 | AD21: =Pre_Op_RAV!AD18 -> 0 | AE21: =Pre_Op_RAV!AE18 -> 0 | AF21: =Pre_Op_RAV!AF18 -> 0 | AG21: =Pre_Op_RAV!AG18 -> 0 | AH21: =Pre_Op_RAV!AH18 -> 0 | AI21: =Pre_Op_RAV!AI18 -> 0 | AJ21: =Pre_Op_RAV!AJ18 -> 0 | AK21: =Pre_Op_RAV!AK18 -> 0 | AL21: =Pre_Op_RAV!AL18 -> 0 | AM21: =Pre_Op_RAV!AM18 -> 0 | AN21: =Pre_Op_RAV!AN18 -> 0 | AO21: =Pre_Op_RAV!AO18 -> 0 | AP21: =Pre_Op_RAV!AP18 -> 0 | AQ21: =Pre_Op_RAV!AQ18 -> 0 | AR21: =Pre_Op_RAV!AR18 -> 0 | AS21: =Pre_Op_RAV!AS18 -> 0 | AT21: =Pre_Op_RAV!AT18 -> 0 | AU21: =Pre_Op_RAV!AU18 -> 0 | AV21: =Pre_Op_RAV!AV18 -> 0 | AW21: =Pre_Op_RAV!AW18 -> 0 | AX21: =Pre_Op_RAV!AX18 -> 0
E22: Development costs | G22: £m 15/16 prices | K22: =Input!K17 -> 0.3421552041 | L22: =Input!L17 -> 0.5255998618 | M22: =Input!M17 -> 6.660690013 | N22: =Input!N17 -> 1.439731386 | O22: =Input!O17 -> 3.597782583 | P22: =Input!P17 -> 0 | Q22: =Input!Q17 -> 0 | R22: =Input!R17 -> 0 | S22: =Input!S17 -> 0 | T22: =Input!T17 -> 0 | U22: =Input!U17 -> 0 | V22: =Input!V17 -> 0 | W22: =Input!W17 -> 0 | X22: =Input!X17 -> 0 | Y22: =Input!Y17 -> 0 | Z22: =Input!Z17 -> 0 | AA22: =Input!AA17 -> 0 | AB22: =Input!AB17 -> 0 | AC22: =Input!AC17 -> 0 | AD22: =Input!AD17 -> 0 | AE22: =Input!AE17 -> 0 | AF22: =Input!AF17 -> 0 | AG22: =Input!AG17 -> 0 | AH22: =Input!AH17 -> 0 | AI22: =Input!AI17 -> 0 | AJ22: =Input!AJ17 -> 0 | AK22: =Input!AK17 -> 0 | AL22: =Input!AL17 -> 0 | AM22: =Input!AM17 -> 0 | AN22: =Input!AN17 -> 0 | AO22: =Input!AO17 -> 0 | AP22: =Input!AP17 -> 0 | AQ22: =Input!AQ17 -> 0 | AR22: =Input!AR17 -> 0 | AS22: =Input!AS17 -> 0 | AT22: =Input!AT17 -> 0 | AU22: =Input!AU17 -> 0 | AV22: =Input!AV17 -> 0 | AW22: =Input!AW17 -> 0 | AX22: =Input!AX17 -> 0
E23: Capex | G23: £m 15/16 prices | K23: =Input!K18 -> 0 | L23: =Input!L18 -> 0 | M23: =Input!M18 -> 0 | N23: =Input!N18 -> 0 | O23: =Input!O18 -> 0 | P23: =Input!P18 -> 27.12 | Q23: =Input!Q18 -> 46.09 | R23: =Input!R18 -> 46.01 | S23: =Input!S18 -> 86.71 | T23: =Input!T18 -> 185.61 | U23: =Input!U18 -> 125.8 | V23: =Input!V18 -> 42.67 | W23: =Input!W18 -> 0 | X23: =Input!X18 -> 0 | Y23: =Input!Y18 -> 0 | Z23: =Input!Z18 -> 0 | AA23: =Input!AA18 -> 0 | AB23: =Input!AB18 -> 0 | AC23: =Input!AC18 -> 0 | AD23: =Input!AD18 -> 0 | AE23: =Input!AE18 -> 0 | AF23: =Input!AF18 -> 0 | AG23: =Input!AG18 -> 0 | AH23: =Input!AH18 -> 0 | AI23: =Input!AI18 -> 0 | AJ23: =Input!AJ18 -> 0 | AK23: =Input!AK18 -> 0 | AL23: =Input!AL18 -> 0 | AM23: =Input!AM18 -> 0 | AN23: =Input!AN18 -> 0 | AO23: =Input!AO18 -> 0 | AP23: =Input!AP18 -> 0 | AQ23: =Input!AQ18 -> 0 | AR23: =Input!AR18 -> 0 | AS23: =Input!AS18 -> 0 | AT23: =Input!AT18 -> 0 | AU23: =Input!AU18 -> 0 | AV23: =Input!AV18 -> 0 | AW23: =Input!AW18 -> 0 | AX23: =Input!AX18 -> 0
E24: Spares | G24: £m 15/16 prices | K24: =Input!K19 -> 0 | L24: =Input!L19 -> 0 | M24: =Input!M19 -> 0 | N24: =Input!N19 -> 0 | O24: =Input!O19 -> 0 | P24: =Input!P19 -> 0 | Q24: =Input!Q19 -> 0 | R24: =Input!R19 -> 0 | S24: =Input!S19 -> 0 | T24: =Input!T19 -> 0 | U24: =Input!U19 -> 0 | V24: =Input!V19 -> 0 | W24: =Input!W19 -> 0 | X24: =Input!X19 -> 0 | Y24: =Input!Y19 -> 0 | Z24: =Input!Z19 -> 0 | AA24: =Input!AA19 -> 0 | AB24: =Input!AB19 -> 0 | AC24: =Input!AC19 -> 0 | AD24: =Input!AD19 -> 0 | AE24: =Input!AE19 -> 0 | AF24: =Input!AF19 -> 0 | AG24: =Input!AG19 -> 0 | AH24: =Input!AH19 -> 0 | AI24: =Input!AI19 -> 0 | AJ24: =Input!AJ19 -> 0 | AK24: =Input!AK19 -> 0 | AL24: =Input!AL19 -> 0 | AM24: =Input!AM19 -> 0 | AN24: =Input!AN19 -> 0 | AO24: =Input!AO19 -> 0 | AP24: =Input!AP19 -> 0 | AQ24: =Input!AQ19 -> 0 | AR24: =Input!AR19 -> 0 | AS24: =Input!AS19 -> 0 | AT24: =Input!AT19 -> 0 | AU24: =Input!AU19 -> 0 | AV24: =Input!AV19 -> 0 | AW24: =Input!AW19 -> 0 | AX24: =Input!AX19 -> 0
E26: Capitalised IDC | G26: £m 15/16 prices | K26: =((1+$I19)^(1-K11-K10)-1)*(K21+(K22+K23+K24)/(2+$I19)) -> 0.0105612669 | L26: 0.03869167209 | M26: 0.264008193 | N26: 0.5439567153 | O26: 0.7369299754 | P26: 1.739108853 | Q26: 4.162978982 | R26: 7.361624392 | S26: 12.01767927 | T26: 21.35936782 | U26: 32.69716788 | V26: 30.07642931 | W26: 0 | X26: 0 | Y26: 0 | Z26: 0 | AA26: 0 | AB26: 0 | AC26: 0 | AD26: 0 | AE26: 0 | AF26: 0 | AG26: 0 | AH26: 0 | AI26: 0 | AJ26: 0 | AK26: 0 | AL26: 0 | AM26: 0 | AN26: 0 | AO26: 0 | AP26: 0 | AQ26: 0 | AR26: 0 | AS26: 0 | AT26: 0 | AU26: 0 | AV26: 0 | AW26: 0 | AX26: 0
B30: Transaction costs
C32: Transaction costs
E34: Pre-operational notional gearing | G34: =Input!G48 -> % | I34: =Input!I48 -> 0.3341
E35: Operational notional gearing | G35: =Input!G49 -> % | I35: =Input!I49 -> 0.5
E37: Share of RAV for debt transaction costs | G37: % | I37: =MAX(I34, I35) -> 0.5
E38: Share of RAV for equity transaction costs | G38: % | I38: =MAX(1 - I34,1 - I35) -> 0.6659
E40: Debt transaction costs | G40: =Input!G52 -> % | I40: =Input!I52 -> 0.025
E41: Equity transaction costs | G41: =Input!G51 -> % | I41: =Input!I51 -> 0.05
E43: Blended transaction costs | G43: % | I43: =I37 * I40 + I38 * I41 -> 0.045795
C45: Allowance
E46: Transaction costs - opening | G46: £m 15/16 prices | K46: =J54 -> 0 | L46: 0 | M46: 0 | N46: 0 | O46: 0 | P46: 29.34835144 | Q46: 31.21784143 | R46: 33.20641793 | S46: 35.32166675 | T46: 37.57165692 | U46: 39.96497147 | V46: 42.51074015 | W46: 0 | X46: 0 | Y46: 0 | Z46: 0 | AA46: 0 | AB46: 0 | AC46: 0 | AD46: 0 | AE46: 0 | AF46: 0 | AG46: 0 | AH46: 0 | AI46: 0 | AJ46: 0 | AK46: 0 | AL46: 0 | AM46: 0 | AN46: 0 | AO46: 0 | AP46: 0 | AQ46: 0 | AR46: 0 | AS46: 0 | AT46: 0 | AU46: 0 | AV46: 0 | AW46: 0 | AX46: 0
E47: Initial Debt transaction costs | G47: £m 15/16 prices | K47: =$I34*K$13*$I40*Op_RAV!$K$13 -> 0 | L47: =$I34*L$13*$I40*Op_RAV!$K$13 -> 0 | M47: =$I34*M$13*$I40*Op_RAV!$K$13 -> 0 | N47: =$I34*N$13*$I40*Op_RAV!$K$13 -> 0 | O47: =$I34*O$13*$I40*Op_RAV!$K$13 -> 5.70963923 | P47: =$I34*P$13*$I40*Op_RAV!$K$13 -> 0 | Q47: =$I34*Q$13*$I40*Op_RAV!$K$13 -> 0 | R47: =$I34*R$13*$I40*Op_RAV!$K$13 -> 0 | S47: =$I34*S$13*$I40*Op_RAV!$K$13 -> 0 | T47: =$I34*T$13*$I40*Op_RAV!$K$13 -> 0 | U47: =$I34*U$13*$I40*Op_RAV!$K$13 -> 0 | V47: =$I34*V$13*$I40*Op_RAV!$K$13 -> 0 | W47: =$I34*W$13*$I40*Op_RAV!$K$13 -> 0 | X47: =$I34*X$13*$I40*Op_RAV!$K$13 -> 0 | Y47: =$I34*Y$13*$I40*Op_RAV!$K$13 -> 0 | Z47: =$I34*Z$13*$I40*Op_RAV!$K$13 -> 0 | AA47: =$I34*AA$13*$I40*Op_RAV!$K$13 -> 0 | AB47: =$I34*AB$13*$I40*Op_RAV!$K$13 -> 0 | AC47: =$I34*AC$13*$I40*Op_RAV!$K$13 -> 0 | AD47: =$I34*AD$13*$I40*Op_RAV!$K$13 -> 0 | AE47: =$I34*AE$13*$I40*Op_RAV!$K$13 -> 0 | AF47: =$I34*AF$13*$I40*Op_RAV!$K$13 -> 0 | AG47: =$I34*AG$13*$I40*Op_RAV!$K$13 -> 0 | AH47: =$I34*AH$13*$I40*Op_RAV!$K$13 -> 0 | AI47: =$I34*AI$13*$I40*Op_RAV!$K$13 -> 0 | AJ47: =$I34*AJ$13*$I40*Op_RAV!$K$13 -> 0 | AK47: =$I34*AK$13*$I40*Op_RAV!$K$13 -> 0 | AL47: =$I34*AL$13*$I40*Op_RAV!$K$13 -> 0 | AM47: =$I34*AM$13*$I40*Op_RAV!$K$13 -> 0 | AN47: =$I34*AN$13*$I40*Op_RAV!$K$13 -> 0 | AO47: =$I34*AO$13*$I40*Op_RAV!$K$13 -> 0 | AP47: =$I34*AP$13*$I40*Op_RAV!$K$13 -> 0 | AQ47: =$I34*AQ$13*$I40*Op_RAV!$K$13 -> 0 | AR47: =$I34*AR$13*$I40*Op_RAV!$K$13 -> 0 | AS47: =$I34*AS$13*$I40*Op_RAV!$K$13 -> 0 | AT47: =$I34*AT$13*$I40*Op_RAV!$K$13 -> 0 | AU47: =$I34*AU$13*$I40*Op_RAV!$K$13 -> 0 | AV47: =$I34*AV$13*$I40*Op_RAV!$K$13 -> 0 | AW47: =$I34*AW$13*$I40*Op_RAV!$K$13 -> 0 | AX47: =$I34*AX$13*$I40*Op_RAV!$K$13 -> 0
E48: Initial Equity transaction costs | G48: £m 15/16 prices | K48: =(1-$I34)*K$13*$I41*Op_RAV!$K$13 -> 0 | L48: =(1-$I34)*L$13*$I41*Op_RAV!$K$13 -> 0 | M48: =(1-$I34)*M$13*$I41*Op_RAV!$K$13 -> 0 | N48: =(1-$I34)*N$13*$I41*Op_RAV!$K$13 -> 0 | O48: =(1-$I34)*O$13*$I41*Op_RAV!$K$13 -> 22.75994471 | P48: =(1-$I34)*P$13*$I41*Op_RAV!$K$13 -> 0 | Q48: =(1-$I34)*Q$13*$I41*Op_RAV!$K$13 -> 0 | R48: =(1-$I34)*R$13*$I41*Op_RAV!$K$13 -> 0 | S48: =(1-$I34)*S$13*$I41*Op_RAV!$K$13 -> 0 | T48: =(1-$I34)*T$13*$I41*Op_RAV!$K$13 -> 0 | U48: =(1-$I34)*U$13*$I41*Op_RAV!$K$13 -> 0 | V48: =(1-$I34)*V$13*$I41*Op_RAV!$K$13 -> 0 | W48: =(1-$I34)*W$13*$I41*Op_RAV!$K$13 -> 0 | X48: =(1-$I34)*X$13*$I41*Op_RAV!$K$13 -> 0 | Y48: =(1-$I34)*Y$13*$I41*Op_RAV!$K$13 -> 0 | Z48: =(1-$I34)*Z$13*$I41*Op_RAV!$K$13 -> 0 | AA48: =(1-$I34)*AA$13*$I41*Op_RAV!$K$13 -> 0 | AB48: =(1-$I34)*AB$13*$I41*Op_RAV!$K$13 -> 0 | AC48: =(1-$I34)*AC$13*$I41*Op_RAV!$K$13 -> 0 | AD48: =(1-$I34)*AD$13*$I41*Op_RAV!$K$13 -> 0 | AE48: =(1-$I34)*AE$13*$I41*Op_RAV!$K$13 -> 0 | AF48: =(1-$I34)*AF$13*$I41*Op_RAV!$K$13 -> 0 | AG48: =(1-$I34)*AG$13*$I41*Op_RAV!$K$13 -> 0 | AH48: =(1-$I34)*AH$13*$I41*Op_RAV!$K$13 -> 0 | AI48: =(1-$I34)*AI$13*$I41*Op_RAV!$K$13 -> 0 | AJ48: =(1-$I34)*AJ$13*$I41*Op_RAV!$K$13 -> 0 | AK48: =(1-$I34)*AK$13*$I41*Op_RAV!$K$13 -> 0 | AL48: =(1-$I34)*AL$13*$I41*Op_RAV!$K$13 -> 0 | AM48: =(1-$I34)*AM$13*$I41*Op_RAV!$K$13 -> 0 | AN48: =(1-$I34)*AN$13*$I41*Op_RAV!$K$13 -> 0 | AO48: =(1-$I34)*AO$13*$I41*Op_RAV!$K$13 -> 0 | AP48: =(1-$I34)*AP$13*$I41*Op_RAV!$K$13 -> 0 | AQ48: =(1-$I34)*AQ$13*$I41*Op_RAV!$K$13 -> 0 | AR48: =(1-$I34)*AR$13*$I41*Op_RAV!$K$13 -> 0 | AS48: =(1-$I34)*AS$13*$I41*Op_RAV!$K$13 -> 0 | AT48: =(1-$I34)*AT$13*$I41*Op_RAV!$K$13 -> 0 | AU48: =(1-$I34)*AU$13*$I41*Op_RAV!$K$13 -> 0 | AV48: =(1-$I34)*AV$13*$I41*Op_RAV!$K$13 -> 0 | AW48: =(1-$I34)*AW$13*$I41*Op_RAV!$K$13 -> 0 | AX48: =(1-$I34)*AX$13*$I41*Op_RAV!$K$13 -> 0
E49: Final Debt transaction costs | G49: £m 15/16 prices | K49: =($I35-$I34)*Op_RAV!$K$13*$I40*K$12 -> 0 | L49: =($I35-$I34)*Op_RAV!$K$13*$I40*L$12 -> 0 | M49: =($I35-$I34)*Op_RAV!$K$13*$I40*M$12 -> 0 | N49: =($I35-$I34)*Op_RAV!$K$13*$I40*N$12 -> 0 | O49: =($I35-$I34)*Op_RAV!$K$13*$I40*O$12 -> 0 | P49: =($I35-$I34)*Op_RAV!$K$13*$I40*P$12 -> 0 | Q49: =($I35-$I34)*Op_RAV!$K$13*$I40*Q$12 -> 0 | R49: =($I35-$I34)*Op_RAV!$K$13*$I40*R$12 -> 0 | S49: =($I35-$I34)*Op_RAV!$K$13*$I40*S$12 -> 0 | T49: =($I35-$I34)*Op_RAV!$K$13*$I40*T$12 -> 0 | U49: =($I35-$I34)*Op_RAV!$K$13*$I40*U$12 -> 0 | V49: =($I35-$I34)*Op_RAV!$K$13*$I40*V$12 -> 2.835166562 | W49: =($I35-$I34)*Op_RAV!$K$13*$I40*W$12 -> 0 | X49: =($I35-$I34)*Op_RAV!$K$13*$I40*X$12 -> 0 | Y49: =($I35-$I34)*Op_RAV!$K$13*$I40*Y$12 -> 0 | Z49: =($I35-$I34)*Op_RAV!$K$13*$I40*Z$12 -> 0 | AA49: =($I35-$I34)*Op_RAV!$K$13*$I40*AA$12 -> 0 | AB49: =($I35-$I34)*Op_RAV!$K$13*$I40*AB$12 -> 0 | AC49: =($I35-$I34)*Op_RAV!$K$13*$I40*AC$12 -> 0 | AD49: =($I35-$I34)*Op_RAV!$K$13*$I40*AD$12 -> 0 | AE49: =($I35-$I34)*Op_RAV!$K$13*$I40*AE$12 -> 0 | AF49: =($I35-$I34)*Op_RAV!$K$13*$I40*AF$12 -> 0 | AG49: =($I35-$I34)*Op_RAV!$K$13*$I40*AG$12 -> 0 | AH49: =($I35-$I34)*Op_RAV!$K$13*$I40*AH$12 -> 0 | AI49: =($I35-$I34)*Op_RAV!$K$13*$I40*AI$12 -> 0 | AJ49: =($I35-$I34)*Op_RAV!$K$13*$I40*AJ$12 -> 0 | AK49: =($I35-$I34)*Op_RAV!$K$13*$I40*AK$12 -> 0 | AL49: =($I35-$I34)*Op_RAV!$K$13*$I40*AL$12 -> 0 | AM49: =($I35-$I34)*Op_RAV!$K$13*$I40*AM$12 -> 0 | AN49: =($I35-$I34)*Op_RAV!$K$13*$I40*AN$12 -> 0 | AO49: =($I35-$I34)*Op_RAV!$K$13*$I40*AO$12 -> 0 | AP49: =($I35-$I34)*Op_RAV!$K$13*$I40*AP$12 -> 0 | AQ49: =($I35-$I34)*Op_RAV!$K$13*$I40*AQ$12 -> 0 | AR49: =($I35-$I34)*Op_RAV!$K$13*$I40*AR$12 -> 0 | AS49: =($I35-$I34)*Op_RAV!$K$13*$I40*AS$12 -> 0 | AT49: =($I35-$I34)*Op_RAV!$K$13*$I40*AT$12 -> 0 | AU49: =($I35-$I34)*Op_RAV!$K$13*$I40*AU$12 -> 0 | AV49: =($I35-$I34)*Op_RAV!$K$13*$I40*AV$12 -> 0 | AW49: =($I35-$I34)*Op_RAV!$K$13*$I40*AW$12 -> 0 | AX49: =($I35-$I34)*Op_RAV!$K$13*$I40*AX$12 -> 0
E50: Final Equity transaction costs | G50: £m 15/16 prices | K50: =($I34-$I35)*Op_RAV!$K$13*$I41*K$12 -> 0 | L50: =($I34-$I35)*Op_RAV!$K$13*$I41*L$12 -> 0 | M50: =($I34-$I35)*Op_RAV!$K$13*$I41*M$12 -> 0 | N50: =($I34-$I35)*Op_RAV!$K$13*$I41*N$12 -> 0 | O50: =($I34-$I35)*Op_RAV!$K$13*$I41*O$12 -> 0 | P50: =($I34-$I35)*Op_RAV!$K$13*$I41*P$12 -> 0 | Q50: =($I34-$I35)*Op_RAV!$K$13*$I41*Q$12 -> 0 | R50: =($I34-$I35)*Op_RAV!$K$13*$I41*R$12 -> 0 | S50: =($I34-$I35)*Op_RAV!$K$13*$I41*S$12 -> 0 | T50: =($I34-$I35)*Op_RAV!$K$13*$I41*T$12 -> 0 | U50: =($I34-$I35)*Op_RAV!$K$13*$I41*U$12 -> 0 | V50: =($I34-$I35)*Op_RAV!$K$13*$I41*V$12 -> -5.670333124 | W50: =($I34-$I35)*Op_RAV!$K$13*$I41*W$12 -> 0 | X50: =($I34-$I35)*Op_RAV!$K$13*$I41*X$12 -> 0 | Y50: =($I34-$I35)*Op_RAV!$K$13*$I41*Y$12 -> 0 | Z50: =($I34-$I35)*Op_RAV!$K$13*$I41*Z$12 -> 0 | AA50: =($I34-$I35)*Op_RAV!$K$13*$I41*AA$12 -> 0 | AB50: =($I34-$I35)*Op_RAV!$K$13*$I41*AB$12 -> 0 | AC50: =($I34-$I35)*Op_RAV!$K$13*$I41*AC$12 -> 0 | AD50: =($I34-$I35)*Op_RAV!$K$13*$I41*AD$12 -> 0 | AE50: =($I34-$I35)*Op_RAV!$K$13*$I41*AE$12 -> 0 | AF50: =($I34-$I35)*Op_RAV!$K$13*$I41*AF$12 -> 0 | AG50: =($I34-$I35)*Op_RAV!$K$13*$I41*AG$12 -> 0 | AH50: =($I34-$I35)*Op_RAV!$K$13*$I41*AH$12 -> 0 | AI50: =($I34-$I35)*Op_RAV!$K$13*$I41*AI$12 -> 0 | AJ50: =($I34-$I35)*Op_RAV!$K$13*$I41*AJ$12 -> 0 | AK50: =($I34-$I35)*Op_RAV!$K$13*$I41*AK$12 -> 0 | AL50: =($I34-$I35)*Op_RAV!$K$13*$I41*AL$12 -> 0 | AM50: =($I34-$I35)*Op_RAV!$K$13*$I41*AM$12 -> 0 | AN50: =($I34-$I35)*Op_RAV!$K$13*$I41*AN$12 -> 0 | AO50: =($I34-$I35)*Op_RAV!$K$13*$I41*AO$12 -> 0 | AP50: =($I34-$I35)*Op_RAV!$K$13*$I41*AP$12 -> 0 | AQ50: =($I34-$I35)*Op_RAV!$K$13*$I41*AQ$12 -> 0 | AR50: =($I34-$I35)*Op_RAV!$K$13*$I41*AR$12 -> 0 | AS50: =($I34-$I35)*Op_RAV!$K$13*$I41*AS$12 -> 0 | AT50: =($I34-$I35)*Op_RAV!$K$13*$I41*AT$12 -> 0 | AU50: =($I34-$I35)*Op_RAV!$K$13*$I41*AU$12 -> 0 | AV50: =($I34-$I35)*Op_RAV!$K$13*$I41*AV$12 -> 0 | AW50: =($I34-$I35)*Op_RAV!$K$13*$I41*AW$12 -> 0 | AX50: =($I34-$I35)*Op_RAV!$K$13*$I41*AX$12 -> 0
E51: Transaction costs - annual movement | G51: £m 15/16 prices | K51: =SUM(K47:K50) -> 0 | L51: 0 | M51: 0 | N51: 0 | O51: 28.46958394 | P51: 0 | Q51: 0 | R51: 0 | S51: 0 | T51: 0 | U51: 0 | V51: -2.835166562 | W51: 0 | X51: 0 | Y51: 0 | Z51: 0 | AA51: 0 | AB51: 0 | AC51: 0 | AD51: 0 | AE51: 0 | AF51: 0 | AG51: 0 | AH51: 0 | AI51: 0 | AJ51: 0 | AK51: 0 | AL51: 0 | AM51: 0 | AN51: 0 | AO51: 0 | AP51: 0 | AQ51: 0 | AR51: 0 | AS51: 0 | AT51: 0 | AU51: 0 | AV51: 0 | AW51: 0 | AX51: 0
E52: Capitalised IDC on transaction costs | G52: £m 15/16 prices | K52: =((1+$I19)^(1-K$11-K$10)-1)*(K46+(K47+K48+K49+K50)/(2+$I19)) -> 0 | L52: 0 | M52: 0 | N52: 0 | O52: 0.8787675035 | P52: 1.869489987 | Q52: 1.988576499 | R52: 2.115248822 | S52: 2.249990172 | T52: 2.393314546 | U52: 2.545768682 | V52: 1.959181436 | W52: 0 | X52: 0 | Y52: 0 | Z52: 0 | AA52: 0 | AB52: 0 | AC52: 0 | AD52: 0 | AE52: 0 | AF52: 0 | AG52: 0 | AH52: 0 | AI52: 0 | AJ52: 0 | AK52: 0 | AL52: 0 | AM52: 0 | AN52: 0 | AO52: 0 | AP52: 0 | AQ52: 0 | AR52: 0 | AS52: 0 | AT52: 0 | AU52: 0 | AV52: 0 | AW52: 0 | AX52: 0
E53: Transfer to Operational RAV | G53: £m 15/16 prices | K53: =-SUM(K46,K51,K52)*K$12 -> 0 | L53: 0 | M53: 0 | N53: 0 | O53: 0 | P53: 0 | Q53: 0 | R53: 0 | S53: 0 | T53: 0 | U53: 0 | V53: -41.63475502 | W53: 0 | X53: 0 | Y53: 0 | Z53: 0 | AA53: 0 | AB53: 0 | AC53: 0 | AD53: 0 | AE53: 0 | AF53: 0 | AG53: 0 | AH53: 0 | AI53: 0 | AJ53: 0 | AK53: 0 | AL53: 0 | AM53: 0 | AN53: 0 | AO53: 0 | AP53: 0 | AQ53: 0 | AR53: 0 | AS53: 0 | AT53: 0 | AU53: 0 | AV53: 0 | AW53: 0 | AX53: 0
E54: Transaction costs - closing | G54: £m 15/16 prices | K54: =SUM(K53,K52,K51,K46) -> 0 | L54: 0 | M54: 0 | N54: 0 | O54: 29.34835144 | P54: 31.21784143 | Q54: 33.20641793 | R54: 35.32166675 | S54: 37.57165692 | T54: 39.96497147 | U54: 42.51074015 | V54: 0 | W54: 0 | X54: 0 | Y54: 0 | Z54: 0 | AA54: 0 | AB54: 0 | AC54: 0 | AD54: 0 | AE54: 0 | AF54: 0 | AG54: 0 | AH54: 0 | AI54: 0 | AJ54: 0 | AK54: 0 | AL54: 0 | AM54: 0 | AN54: 0 | AO54: 0 | AP54: 0 | AQ54: 0 | AR54: 0 | AS54: 0 | AT54: 0 | AU54: 0 | AV54: 0 | AW54: 0 | AX54: 0
B57: Inflation
C59: Ex ante forecast
E61: Expected UK RPI inflation | G61: =Input!G95 -> % | I61: =Input!I95 -> 0.0271
E63: 2015/16 RPI inflation index value (CHAW) | G63: =Input!G97 -> Jan 1987 = 100 | I63: =Input!I97 -> 259.433
E64: Forecast GB inflation index | G64: Jan 1987 = 100 | K64: =Input!K98 -> 226.475 | L64: =Input!L98 -> 237.342 | M64: =Input!M98 -> 244.675 | N64: =Input!N98 -> 251.733 | O64: =Input!O98 -> 256.667 | P64: =Input!P98 -> 259.433 | Q64: =Input!Q98 -> 266.4636343 | R64: =Q64 * (1 + $I61) -> 273.6847988 | S64: 281.1016568 | T64: 288.7195117 | U64: 296.5438105 | V64: 304.5801478 | W64: 312.8342698 | X64: 321.3120785 | Y64: 330.0196358 | Z64: 338.9631679 | AA64: 348.1490698 | AB64: 357.5839096 | AC64: 367.2744335 | AD64: 377.2275707 | AE64: 387.4504378 | AF64: 397.9503447 | AG64: 408.7347991 | AH64: 419.8115121 | AI64: 431.1884041 | AJ64: 442.8736098 | AK64: 454.8754847 | AL64: 467.2026103 | AM64: 479.863801 | AN64: 492.86811 | AO64: 506.2248358 | AP64: 519.9435289 | AQ64: 534.0339985 | AR64: 548.5063199 | AS64: 563.3708411 | AT64: 578.6381909 | AU64: 594.3192859 | AV64: 610.4253386 | AW64: 626.9678652 | AX64: 643.9586944
E65: GB inflation uplift (forecast) | G65: scalar | K65: =K64 / $I$69 -> 0.8729614197 | L65: 0.9148489205 | M65: 0.9431144072 | N65: 0.9703198899 | O65: 0.9893382877 | P65: 1 | Q65: 1.0271 | R65: 1.05493441 | S65: 1.083523133 | T65: 1.112886609 | U65: 1.143045837 | V65: 1.174022379 | W65: 1.205838385 | X65: 1.238516605 | Y65: 1.272080405 | Z65: 1.306553784 | AA65: 1.341961392 | AB65: 1.378328546 | AC65: 1.415681249 | AD65: 1.454046211 | AE65: 1.493450863 | AF65: 1.533923382 | AG65: 1.575492705 | AH65: 1.618188558 | AI65: 1.662041468 | AJ65: 1.707082791 | AK65: 1.753344735 | AL65: 1.800860377 | AM65: 1.849663694 | AN65: 1.89978958 | AO65: 1.951273877 | AP65: 2.004153399 | AQ65: 2.058465957 | AR65: 2.114250384 | AS65: 2.171546569 | AT65: 2.230395481 | AU65: 2.290839199 | AV65: 2.352920941 | AW65: 2.416685099 | AX65: 2.482177265
C67: Ex post actuals
E69: 2015/16 RPI inflation index value (CHAW) | G69: =G63 -> Jan 1987 = 100 | I69: =I63 -> 259.433
E70: 12 month average UK RPI inflation index value (CHAW) | G70: =G64 -> Jan 1987 = 100 | K70: =Input!K98 -> 226.475 | L70: =Input!L98 -> 237.342 | M70: =Input!M98 -> 244.675 | N70: =Input!N98 -> 251.733 | O70: =Input!O98 -> 256.667 | P70: =Input!P98 -> 259.433 | Q70: =Input!Q98 -> 266.4636343 | R70: =Input!R98 -> 273.6847988 | S70: =Input!S98 -> 281.1016568 | T70: =Input!T98 -> 288.7195117 | U70: =Input!U98 -> 296.5438105 | V70: =Input!V98 -> 304.5801478 | W70: =Input!W98 -> 312.8342698 | X70: =Input!X98 -> 321.3120785 | Y70: =Input!Y98 -> 330.0196358 | Z70: =Input!Z98 -> 338.9631679 | AA70: =Input!AA98 -> 348.1490698 | AB70: =Input!AB98 -> 357.5839096 | AC70: =Input!AC98 -> 367.2744335 | AD70: =Input!AD98 -> 377.2275707 | AE70: =Input!AE98 -> 387.4504378 | AF70: =Input!AF98 -> 397.9503447 | AG70: =Input!AG98 -> 408.7347991 | AH70: =Input!AH98 -> 419.8115121 | AI70: =Input!AI98 -> 431.1884041 | AJ70: =Input!AJ98 -> 442.8736098 | AK70: =Input!AK98 -> 454.8754847 | AL70: =Input!AL98 -> 467.2026103 | AM70: =Input!AM98 -> 479.863801 | AN70: =Input!AN98 -> 492.86811 | AO70: =Input!AO98 -> 506.2248358 | AP70: =Input!AP98 -> 519.9435289 | AQ70: =Input!AQ98 -> 534.0339985 | AR70: =Input!AR98 -> 548.5063199 | AS70: =Input!AS98 -> 563.3708411 | AT70: =Input!AT98 -> 578.6381909 | AU70: =Input!AU98 -> 594.3192859 | AV70: =Input!AV98 -> 610.4253386 | AW70: =Input!AW98 -> 626.9678652 | AX70: =Input!AX98 -> 643.9586944
E71: GB inflation uplift (actual) | G71: scalar | K71: =K70 / $I69 -> 0.8729614197 | L71: 0.9148489205 | M71: 0.9431144072 | N71: 0.9703198899 | O71: 0.9893382877 | P71: 1 | Q71: 1.0271 | R71: 1.05493441 | S71: 1.083523133 | T71: 1.112886609 | U71: 1.143045837 | V71: 1.174022379 | W71: 1.205838385 | X71: 1.238516605 | Y71: 1.272080405 | Z71: 1.306553784 | AA71: 1.341961392 | AB71: 1.378328546 | AC71: 1.415681249 | AD71: 1.454046211 | AE71: 1.493450863 | AF71: 1.533923382 | AG71: 1.575492705 | AH71: 1.618188558 | AI71: 1.662041468 | AJ71: 1.707082791 | AK71: 1.753344735 | AL71: 1.800860377 | AM71: 1.849663694 | AN71: 1.89978958 | AO71: 1.951273877 | AP71: 2.004153399 | AQ71: 2.058465957 | AR71: 2.114250384 | AS71: 2.171546569 | AT71: 2.230395481 | AU71: 2.290839199 | AV71: 2.352920941 | AW71: 2.416685099 | AX71: 2.482177265
B74: End of sheet

Sheet Op_RAV
A1: Op_RAV | H1: Licence
E2: Parameter | G2: Units | H2: Terminology | I2: Constant | K2: Annual values
E3: Project year | K3: Year 1 | L3: Year 2 | M3: Year 3 | N3: Year 4 | O3: Year 5 | P3: Year 6 | Q3: Year 7 | R3: Year 8 | S3: Year 9 | T3: Year 10 | U3: Year 11 | V3: Year 12 | W3: Year 13 | X3: Year 14 | Y3: Year 15 | Z3: Year 16 | AA3: Year 17 | AB3: Year 18 | AC3: Year 19 | AD3: Year 20 | AE3: Year 21 | AF3: Year 22 | AG3: Year 23 | AH3: Year 24 | AI3: Year 25
E4: Year | K4: 1 | L4: =+K4+1 -> 2 | M4: =+L4+1 -> 3 | N4: 4 | O4: 5 | P4: 6 | Q4: 7 | R4: 8 | S4: 9 | T4: 10 | U4: 11 | V4: 12 | W4: 13 | X4: 14 | Y4: 15 | Z4: 16 | AA4: 17 | AB4: 18 | AC4: 19 | AD4: 20 | AE4: 21 | AF4: 22 | AG4: 23 | AH4: 24 | AI4: 25
B7: Running total RAV
C9: Operational
E11: Opening operational RAV (before transfers) | G11: £m 15/16 prices | K11: =J17 -> 0 | L11: 696.2104497 | M11: 667.2016809 | N11: 638.1929122 | O11: 609.1841435 | P11: 580.1753747 | Q11: 551.166606 | R11: 522.1578372 | S11: 493.1490685 | T11: 464.1402998 | U11: 435.131531 | V11: 406.1227623 | W11: 377.1139936 | X11: 348.1052248 | Y11: 319.0964561 | Z11: 305.0876874 | AA11: 274.5789186 | AB11: 244.0701499 | AC11: 213.5613812 | AD11: 183.0526124 | AE11: 152.5438437 | AF11: 122.0350749 | AG11: 91.52630621 | AH11: 61.01753747 | AI11: 30.50876874
E12: Transfers of Transaction Costs | G12: £m 15/16 prices | K12: =-SUM(Finance!K53:AX53) -> 41.63475502
E13: Transfers from pre-operational RAV | G13: £m 15/16 prices | K13: =-SUM(Pre_Op_RAV!K24:AX24) -> 683.5844634
E14: Opening operational RAV (after transfers) | G14: £m 15/16 prices | K14: =SUM(K11:K13) -> 725.2192184 | L14: 696.2104497 | M14: =SUM(M11:M13) -> 667.2016809 | N14: 638.1929122 | O14: 609.1841435 | P14: 580.1753747 | Q14: 551.166606 | R14: 522.1578372 | S14: 493.1490685 | T14: 464.1402998 | U14: 435.131531 | V14: 406.1227623 | W14: 377.1139936 | X14: 348.1052248 | Y14: 319.0964561 | Z14: 305.0876874 | AA14: 274.5789186 | AB14: 244.0701499 | AC14: 213.5613812 | AD14: 183.0526124 | AE14: 152.5438437 | AF14: 122.0350749 | AG14: 91.52630621 | AH14: 61.01753747 | AI14: 30.50876874
E15: Replacement capex | G15: £m 15/16 prices | K15: =Input!K32 -> 0 | L15: =Input!L32 -> 0 | M15: =Input!M32 -> 0 | N15: =Input!N32 -> 0 | O15: =Input!O32 -> 0 | P15: =Input!P32 -> 0 | Q15: =Input!Q32 -> 0 | R15: =Input!R32 -> 0 | S15: =Input!S32 -> 0 | T15: =Input!T32 -> 0 | U15: =Input!U32 -> 0 | V15: =Input!V32 -> 0 | W15: =Input!W32 -> 0 | X15: =Input!X32 -> 0 | Y15: =Input!Y32 -> 15 | Z15: =Input!Z32 -> 0 | AA15: =Input!AA32 -> 0 | AB15: =Input!AB32 -> 0 | AC15: =Input!AC32 -> 0 | AD15: =Input!AD32 -> 0 | AE15: =Input!AE32 -> 0 | AF15: =Input!AF32 -> 0 | AG15: =Input!AG32 -> 0 | AH15: =Input!AH32 -> 0 | AI15: =Input!AI32 -> 0
E16: Depreciation (negative) | G16: £m 15/16 prices | K16: =- K29 -> -29.00876874 | L16: =- L29 -> -29.00876874 | M16: =- M29 -> -29.00876874 | N16: -29.00876874 | O16: -29.00876874 | P16: -29.00876874 | Q16: -29.00876874 | R16: -29.00876874 | S16: -29.00876874 | T16: -29.00876874 | U16: -29.00876874 | V16: -29.00876874 | W16: -29.00876874 | X16: -29.00876874 | Y16: -29.00876874 | Z16: -30.50876874 | AA16: -30.50876874 | AB16: -30.50876874 | AC16: -30.50876874 | AD16: -30.50876874 | AE16: -30.50876874 | AF16: -30.50876874 | AG16: -30.50876874 | AH16: -30.50876874 | AI16: -30.50876874
E17: Closing operational RAV | G17: £m 15/16 prices | K17: =SUM(K14:K16) -> 696.2104497 | L17: 667.2016809 | M17: 638.1929122 | N17: 609.1841435 | O17: 580.1753747 | P17: 551.166606 | Q17: 522.1578372 | R17: 493.1490685 | S17: 464.1402998 | T17: 435.131531 | U17: 406.1227623 | V17: 377.1139936 | W17: 348.1052248 | X17: 319.0964561 | Y17: 305.0876874 | Z17: 274.5789186 | AA17: 244.0701499 | AB17: 213.5613812 | AC17: 183.0526124 | AD17: 152.5438437 | AE17: 122.0350749 | AF17: 91.52630621 | AG17: 61.01753747 | AH17: 30.50876874 | AI17: 0
E19: Average operational RAV | G19: £m 15/16 prices | K19: =AVERAGE(K14, K17) -> 710.714834 | L19: 681.7060653 | M19: 652.6972966 | N19: 623.6885278 | O19: 594.6797591 | P19: 565.6709904 | Q19: 536.6622216 | R19: 507.6534529 | S19: 478.6446841 | T19: 449.6359154 | U19: 420.6271467 | V19: 391.6183779 | W19: 362.6096092 | X19: 333.6008405 | Y19: 312.0920717 | Z19: 289.833303 | AA19: 259.3245343 | AB19: 228.8157655 | AC19: 198.3069968 | AD19: 167.798228 | AE19: 137.2894593 | AF19: 106.7806906 | AG19: 76.27192184 | AH19: 45.7631531 | AI19: 15.25438437
B23: RAV depreciation
E25: Number of operational years | G25: full years | I25: =Input!I117 -> 25
E26: Years remaining until end of operational period | G26: full years | K26: =I25 -> 25 | L26: =+K26-1 -> 24 | M26: =+L26-1 -> 23 | N26: 22 | O26: 21 | P26: 20 | Q26: 19 | R26: 18 | S26: 17 | T26: 16 | U26: 15 | V26: 14 | W26: 13 | X26: 12 | Y26: 11 | Z26: 10 | AA26: 9 | AB26: 8 | AC26: 7 | AD26: 6 | AE26: 5 | AF26: 4 | AG26: 3 | AH26: 2 | AI26: 1
E27: Year is before end of operational period | G27: flag | K27: =K26 > 0 -> TRUE | L27: TRUE | M27: TRUE | N27: TRUE | O27: TRUE | P27: TRUE | Q27: TRUE | R27: TRUE | S27: TRUE | T27: TRUE | U27: TRUE | V27: TRUE | W27: TRUE | X27: TRUE | Y27: TRUE | Z27: TRUE | AA27: TRUE | AB27: TRUE | AC27: TRUE | AD27: TRUE | AE27: TRUE | AF27: TRUE | AG27: TRUE | AH27: TRUE | AI27: TRUE
E29: RAV depreciation | G29: £m 15/16 prices | K29: =IF(K27, K14 / K26, 0) -> 29.00876874 | L29: 29.00876874 | M29: 29.00876874 | N29: 29.00876874 | O29: 29.00876874 | P29: 29.00876874 | Q29: 29.00876874 | R29: 29.00876874 | S29: 29.00876874 | T29: 29.00876874 | U29: 29.00876874 | V29: 29.00876874 | W29: 29.00876874 | X29: 29.00876874 | Y29: 29.00876874 | Z29: 30.50876874 | AA29: 30.50876874 | AB29: 30.50876874 | AC29: 30.50876874 | AD29: 30.50876874 | AE29: 30.50876874 | AF29: 30.50876874 | AG29: 30.50876874 | AH29: 30.50876874 | AI29: 30.50876874
E31: Depreciation equal to additions | G31: test | I31: =SUM(Pre_Op_RAV!K19:AX22,Finance!K47:AX50,Finance!K52:AX52,K15:AI15) = SUM(K29:AX29) -> TRUE
B33: Operational RAV return
K35: Year 1 | L35: Year 2 | M35: Year 3 | N35: Year 4 | O35: Year 5 | P35: Year 6 | Q35: Year 7 | R35: Year 8 | S35: Year 9 | T35: Year 10 | U35: Year 11 | V35: Year 12 | W35: Year 13 | X35: Year 14 | Y35: Year 15 | Z35: Year 16 | AA35: Year 17 | AB35: Year 18 | AC35: Year 19 | AD35: Year 20 | AE35: Year 21 | AF35: Year 22 | AG35: Year 23 | AH35: Year 24 | AI35: Year 25
E37: Cap returns | G37: =Input!G43 -> real annual % | I37: =Input!I43 -> 0.07975
E38: Floor returns | G38: =Input!G44 -> real annual % | I38: =Input!I44 -> 0.0088
E40: Opening operational RAV (after transfers) | G40: £m 15/16 prices | K40: =K14 -> 725.2192184 | L40: =L14 -> 696.2104497 | M40: 667.2016809 | N40: 638.1929122 | O40: 609.1841435 | P40: 580.1753747 | Q40: 551.166606 | R40: 522.1578372 | S40: 493.1490685 | T40: 464.1402998 | U40: 435.131531 | V40: 406.1227623 | W40: 377.1139936 | X40: 348.1052248 | Y40: 319.0964561 | Z40: 305.0876874 | AA40: 274.5789186 | AB40: 244.0701499 | AC40: 213.5613812 | AD40: 183.0526124 | AE40: 152.5438437 | AF40: 122.0350749 | AG40: 91.52630621 | AH40: 61.01753747 | AI40: 30.50876874
E41: Closing operational RAV | G41: £m 15/16 prices | K41: =K17 -> 696.2104497 | L41: =L17 -> 667.2016809 | M41: 638.1929122 | N41: 609.1841435 | O41: 580.1753747 | P41: 551.166606 | Q41: 522.1578372 | R41: 493.1490685 | S41: 464.1402998 | T41: 435.131531 | U41: 406.1227623 | V41: 377.1139936 | W41: 348.1052248 | X41: 319.0964561 | Y41: 305.0876874 | Z41: 274.5789186 | AA41: 244.0701499 | AB41: 213.5613812 | AC41: 183.0526124 | AD41: 152.5438437 | AE41: 122.0350749 | AF41: 91.52630621 | AG41: 61.01753747 | AH41: 30.50876874 | AI41: 0
E43: NPV neutral return base (cap) | G43: £m 15/16 prices | K43: =0.5 * K$40 + 0.5 * K$41 / (1 + $I37) -> 685.0038901 | L43: 657.0664107 | M43: 629.1289313 | N43: 601.1914519 | O43: 573.2539725 | P43: 545.3164931 | Q43: 517.3790137 | R43: 489.4415343 | S43: 461.5040549 | T43: 433.5665755 | U43: 405.6290961 | V43: 377.6916167 | W43: 349.7541372 | X43: 321.8166578 | Y43: 300.8252308 | Z43: 279.6931461 | AA43: 250.3110615 | AB43: 220.9289768 | AC43: 191.5468922 | AD43: 162.1648076 | AE43: 132.7827229 | AF43: 103.4006383 | AG43: 74.01855365 | AH43: 44.63646901 | AI43: 15.25438437
E44: NPV neutral return base (floor) | G44: £m 15/16 prices | K44: =0.5 * K$40 + 0.5 * K$41 / (1 + $I38) -> 707.6782302 | L44: 678.7959866 | M44: 649.913743 | N44: 621.0314994 | O44: 592.1492559 | P44: 563.2670123 | Q44: 534.3847687 | R44: 505.5025251 | S44: 476.6202816 | T44: 447.738038 | U44: 418.8557944 | V44: 389.9735508 | W44: 361.0913073 | X44: 332.2090637 | Y44: 310.7613959 | Z44: 288.6356947 | AA44: 258.2599936 | AB44: 227.8842924 | AC44: 197.5085913 | AD44: 167.1328901 | AE44: 136.757189 | AF44: 106.3814878 | AG44: 76.00578666 | AH44: 45.63008552 | AI44: 15.25438437
E46: Return (cap) | G46: £m 15/16 prices | K46: =K43 * $I37 -> 54.62906024 | L46: 52.40104626 | M46: 50.17303227 | N46: 47.94501829 | O46: 45.71700431 | P46: 43.48899032 | Q46: 41.26097634 | R46: 39.03296236 | S46: 36.80494838 | T46: 34.57693439 | U46: 32.34892041 | V46: 30.12090643 | W46: 27.89289245 | X46: 25.66487846 | Y46: 23.99081215 | Z46: 22.3055284 | AA46: 19.96230715 | AB46: 17.6190859 | AC46: 15.27586465 | AD46: 12.9326434 | AE46: 10.58942215 | AF46: 8.246200903 | AG46: 5.902979653 | AH46: 3.559758403 | AI46: 1.216537153
E47: Return (floor) | G47: £m 15/16 prices | K47: =K44 * $I38 -> 6.227568425 | L47: 5.973404682 | M47: 5.719240939 | N47: 5.465077195 | O47: 5.210913452 | P47: 4.956749708 | Q47: 4.702585965 | R47: 4.448422221 | S47: 4.194258478 | T47: 3.940094734 | U47: 3.685930991 | V47: 3.431767247 | W47: 3.177603504 | X47: 2.92343976 | Y47: 2.734700283 | Z47: 2.539994113 | AA47: 2.272687943 | AB47: 2.005381773 | AC47: 1.738075603 | AD47: 1.470769433 | AE47: 1.203463263 | AF47: 0.9361570928 | AG47: 0.6688509226 | AH47: 0.4015447525 | AI47: 0.1342385824
B52: End of sheet

Sheet AllowancesCap
A1: AllowancesCap | H1: Licence
E2: Parameter | G2: Units | H2: Terminology | I2: Constant | K2: Annual values
E3: Project year | K3: Year 1 | L3: Year 2 | M3: Year 3 | N3: Year 4 | O3: Year 5 | P3: Year 6 | Q3: Year 7 | R3: Year 8 | S3: Year 9 | T3: Year 10 | U3: Year 11 | V3: Year 12 | W3: Year 13 | X3: Year 14 | Y3: Year 15 | Z3: Year 16 | AA3: Year 17 | AB3: Year 18 | AC3: Year 19 | AD3: Year 20 | AE3: Year 21 | AF3: Year 22 | AG3: Year 23 | AH3: Year 24 | AI3: Year 25
E4: Year | K4: 1 | L4: =+K4+1 -> 2 | M4: =+L4+1 -> 3 | N4: 4 | O4: 5 | P4: 6 | Q4: 7 | R4: 8 | S4: 9 | T4: 10 | U4: 11 | V4: 12 | W4: 13 | X4: 14 | Y4: 15 | Z4: 16 | AA4: 17 | AB4: 18 | AC4: 19 | AD4: 20 | AE4: 21 | AF4: 22 | AG4: 23 | AH4: 24 | AI4: 25
B7: Unprofiled allowances except tax (cap)
E9: Controllable opex | G9: £m 15/16 prices | K9: =Input!K34 -> 15.2848 | L9: =Input!L34 -> 15.2848 | M9: =Input!M34 -> 15.2848 | N9: =Input!N34 -> 15.2848 | O9: =Input!O34 -> 15.2848 | P9: =Input!P34 -> 15.2848 | Q9: =Input!Q34 -> 15.2848 | R9: =Input!R34 -> 15.2848 | S9: =Input!S34 -> 15.2848 | T9: =Input!T34 -> 15.2848 | U9: =Input!U34 -> 15.2848 | V9: =Input!V34 -> 15.2848 | W9: =Input!W34 -> 15.2848 | X9: =Input!X34 -> 15.2848 | Y9: =Input!Y34 -> 15.2848 | Z9: =Input!Z34 -> 15.2848 | AA9: =Input!AA34 -> 15.2848 | AB9: =Input!AB34 -> 15.2848 | AC9: =Input!AC34 -> 15.2848 | AD9: =Input!AD34 -> 15.2848 | AE9: =Input!AE34 -> 15.2848 | AF9: =Input!AF34 -> 15.2848 | AG9: =Input!AG34 -> 15.2848 | AH9: =Input!AH34 -> 15.2848 | AI9: =Input!AI34 -> 15.2848
E10: Non-controllable opex (baseline) | G10: £m 15/16 prices | K10: =Input!K35 -> 0 | L10: =Input!L35 -> 0 | M10: =Input!M35 -> 0 | N10: =Input!N35 -> 0 | O10: =Input!O35 -> 0 | P10: =Input!P35 -> 0 | Q10: =Input!Q35 -> 0 | R10: =Input!R35 -> 0 | S10: =Input!S35 -> 0 | T10: =Input!T35 -> 0 | U10: =Input!U35 -> 0 | V10: =Input!V35 -> 0 | W10: =Input!W35 -> 0 | X10: =Input!X35 -> 0 | Y10: =Input!Y35 -> 0 | Z10: =Input!Z35 -> 0 | AA10: =Input!AA35 -> 0 | AB10: =Input!AB35 -> 0 | AC10: =Input!AC35 -> 0 | AD10: =Input!AD35 -> 0 | AE10: =Input!AE35 -> 0 | AF10: =Input!AF35 -> 0 | AG10: =Input!AG35 -> 0 | AH10: =Input!AH35 -> 0 | AI10: =Input!AI35 -> 0
E11: Opex re-assessment adjustment | G11: £m 15/16 prices | K11: =Input!K36 -> 0 | L11: =Input!L36 -> 0 | M11: =Input!M36 -> 0 | N11: =Input!N36 -> 0 | O11: =Input!O36 -> 0 | P11: =Input!P36 -> 0 | Q11: =Input!Q36 -> 0 | R11: =Input!R36 -> 0 | S11: =Input!S36 -> 0 | T11: =Input!T36 -> 0 | U11: =Input!U36 -> 0 | V11: =Input!V36 -> 0 | W11: =Input!W36 -> 0 | X11: =Input!X36 -> 0 | Y11: =Input!Y36 -> 0 | Z11: =Input!Z36 -> 0 | AA11: =Input!AA36 -> 0 | AB11: =Input!AB36 -> 0 | AC11: =Input!AC36 -> 0 | AD11: =Input!AD36 -> 0 | AE11: =Input!AE36 -> 0 | AF11: =Input!AF36 -> 0 | AG11: =Input!AG36 -> 0 | AH11: =Input!AH36 -> 0 | AI11: =Input!AI36 -> 0
E12: Decommissioning baseline / actual | G12: £m 15/16 prices | K12: =Input!K33 -> 0 | L12: =Input!L33 -> 0 | M12: =Input!M33 -> 0 | N12: =Input!N33 -> 0 | O12: =Input!O33 -> 0 | P12: =Input!P33 -> 0 | Q12: =Input!Q33 -> 0 | R12: =Input!R33 -> 0 | S12: =Input!S33 -> 0 | T12: =Input!T33 -> 0 | U12: =Input!U33 -> 0 | V12: =Input!V33 -> 0 | W12: =Input!W33 -> 0 | X12: =Input!X33 -> 0 | Y12: =Input!Y33 -> 0 | Z12: =Input!Z33 -> 0 | AA12: =Input!AA33 -> 0 | AB12: =Input!AB33 -> 0 | AC12: =Input!AC33 -> 0 | AD12: =Input!AD33 -> 0 | AE12: =Input!AE33 -> 0 | AF12: =Input!AF33 -> 0 | AG12: =Input!AG33 -> 0 | AH12: =Input!AH33 -> 0 | AI12: =Input!AI33 -> 6.5
E13: RAV depreciation | G13: £m 15/16 prices | K13: =Op_RAV!K29 -> 29.00876874 | L13: =Op_RAV!L29 -> 29.00876874 | M13: =Op_RAV!M29 -> 29.00876874 | N13: =Op_RAV!N29 -> 29.00876874 | O13: =Op_RAV!O29 -> 29.00876874 | P13: =Op_RAV!P29 -> 29.00876874 | Q13: =Op_RAV!Q29 -> 29.00876874 | R13: =Op_RAV!R29 -> 29.00876874 | S13: =Op_RAV!S29 -> 29.00876874 | T13: =Op_RAV!T29 -> 29.00876874 | U13: =Op_RAV!U29 -> 29.00876874 | V13: =Op_RAV!V29 -> 29.00876874 | W13: =Op_RAV!W29 -> 29.00876874 | X13: =Op_RAV!X29 -> 29.00876874 | Y13: =Op_RAV!Y29 -> 29.00876874 | Z13: =Op_RAV!Z29 -> 30.50876874 | AA13: =Op_RAV!AA29 -> 30.50876874 | AB13: =Op_RAV!AB29 -> 30.50876874 | AC13: =Op_RAV!AC29 -> 30.50876874 | AD13: =Op_RAV!AD29 -> 30.50876874 | AE13: =Op_RAV!AE29 -> 30.50876874 | AF13: =Op_RAV!AF29 -> 30.50876874 | AG13: =Op_RAV!AG29 -> 30.50876874 | AH13: =Op_RAV!AH29 -> 30.50876874 | AI13: =Op_RAV!AI29 -> 30.50876874
E14: Return (cap) | G14: £m 15/16 prices | K14: =Op_RAV!K46 -> 54.62906024 | L14: =Op_RAV!L46 -> 52.40104626 | M14: =Op_RAV!M46 -> 50.17303227 | N14: =Op_RAV!N46 -> 47.94501829 | O14: =Op_RAV!O46 -> 45.71700431 | P14: =Op_RAV!P46 -> 43.48899032 | Q14: =Op_RAV!Q46 -> 41.26097634 | R14: =Op_RAV!R46 -> 39.03296236 | S14: =Op_RAV!S46 -> 36.80494838 | T14: =Op_RAV!T46 -> 34.57693439 | U14: =Op_RAV!U46 -> 32.34892041 | V14: =Op_RAV!V46 -> 30.12090643 | W14: =Op_RAV!W46 -> 27.89289245 | X14: =Op_RAV!X46 -> 25.66487846 | Y14: =Op_RAV!Y46 -> 23.99081215 | Z14: =Op_RAV!Z46 -> 22.3055284 | AA14: =Op_RAV!AA46 -> 19.96230715 | AB14: =Op_RAV!AB46 -> 17.6190859 | AC14: =Op_RAV!AC46 -> 15.27586465 | AD14: =Op_RAV!AD46 -> 12.9326434 | AE14: =Op_RAV!AE46 -> 10.58942215 | AF14: =Op_RAV!AF46 -> 8.246200903 | AG14: =Op_RAV!AG46 -> 5.902979653 | AH14: =Op_RAV!AH46 -> 3.559758403 | AI14: =Op_RAV!AI46 -> 1.216537153
E15: Unprofiled allowances except tax (cap) | G15: £m 15/16 prices | K15: =SUM(K9:K14) -> 98.92262897 | L15: 96.69461499 | M15: 94.46660101 | N15: 92.23858703 | O15: 90.01057304 | P15: 87.78255906 | Q15: 85.55454508 | R15: 83.3265311 | S15: 81.09851711 | T15: 78.87050313 | U15: 76.64248915 | V15: 74.41447516 | W15: 72.18646118 | X15: =SUM(X9:X14) -> 69.9584472 | Y15: 68.28438089 | Z15: 68.09909714 | AA15: 65.75587589 | AB15: 63.41265464 | AC15: 61.06943339 | AD15: 58.72621214 | AE15: 56.38299089 | AF15: 54.03976964 | AG15: 51.69654839 | AH15: 49.35332714 | AI15: 53.51010589
B17: Profiled allowances except tax (cap)
C19: Annuity parameters
E21: Cap returns | G21: =Input!G43 -> real annual % | I21: =Input!I43 -> 0.07975
E22: Number of operational years | G22: =Input!G117 -> full years | I22: =Input!I117 -> 25
E23: Annuity factor (cap) | G23: scalar | I23: =I21 / (1 - (1 + I21)^(-I22)) -> 0.09347880861
E25: Year is within operational period | G25: flag | K25: =AND(K4 > 0, K4<= $I22) -> TRUE | L25: TRUE | M25: TRUE | N25: TRUE | O25: TRUE | P25: TRUE | Q25: TRUE | R25: TRUE | S25: TRUE | T25: TRUE | U25: TRUE | V25: TRUE | W25: TRUE | X25: TRUE | Y25: TRUE | Z25: TRUE | AA25: TRUE | AB25: TRUE | AC25: TRUE | AD25: TRUE | AE25: TRUE | AF25: TRUE | AG25: TRUE | AH25: TRUE | AI25: TRUE
E26: Discount factor to start of operational period (cap) | G26: scalar | K26: =(1 + $I21) ^ - K4 -> 0.9261403103 | L26: 0.8577358743 | M26: 0.7943837687 | N26: 0.73571083 | O26: 0.6813714564 | P26: 0.631045572 | Q26: 0.5844367419 | R26: 0.5412704254 | S26: 0.5012923597 | T26: 0.4642670616 | U26: 0.4299764405 | V26: 0.398218514 | W26: 0.3688062181 | X26: 0.3415663052 | Y26: 0.3163383239 | Z26: 0.2929736734 | AA26: 0.2713347288 | AB26: 0.2512940299 | AC26: 0.2327335308 | AD26: 0.2155439045 | AE26: 0.1996238986 | AF26: 0.1848797393 | AG26: 0.1712245792 | AH26: 0.1585779849 | AI26: 0.1468654641
C28: Allowances except tax
E30: Discounted unprofiled allowances except tax (cap) | G30: £m 15/16 prices | K30: =K15 * K$26 -> 91.61623429 | L30: =L15 * L$26 -> 82.93844013 | M30: 75.04273453 | N30: 67.86092742 | O30: 61.33063524 | P30: 55.3947952 | Q30: 50.00121958 | R30: 45.10218694 | S30: 40.65406701 | T30: 36.61697673 | U30: 32.95446467 | V30: 29.63322172 | W30: 26.62281574 | X30: 23.89544833 | Y30: =Y15 * Y$26 -> 21.6009666 | Z30: =Z15 * Z$26 -> 19.95124265 | AA30: 17.84185275 | AB30: 15.93522153 | AC30: 14.21290486 | AD30: 12.65807706 | AE30: 11.25539245 | AF30: 9.990858525 | AG30: 8.851719742 | AH30: 7.826351164 | AI30: 7.858786535
E31: NPV of allowances except tax (cap) | G31: £m 15/16 prices | I31: =SUM(K30:AI30) -> 867.6475414
E33: Annuity factor (cap) | G33: =G$23 -> scalar | I33: =I$23 -> 0.09347880861
E35: Annuity of allowances except tax (cap) | G35: £m 15/16 prices | I35: =I31 * I33 -> 81.10665846
E36: Annuitised allowances except tax (cap) | G36: £m 15/16 prices | K36: =K$25 * $I35 -> 81.10665846 | L36: 81.10665846 | M36: 81.10665846 | N36: 81.10665846 | O36: 81.10665846 | P36: 81.10665846 | Q36: 81.10665846 | R36: 81.10665846 | S36: 81.10665846 | T36: 81.10665846 | U36: 81.10665846 | V36: 81.10665846 | W36: 81.10665846 | X36: =X$25 * $I35 -> 81.10665846 | Y36: =Y$25 * $I35 -> 81.10665846 | Z36: 81.10665846 | AA36: 81.10665846 | AB36: 81.10665846 | AC36: 81.10665846 | AD36: 81.10665846 | AE36: 81.10665846 | AF36: 81.10665846 | AG36: 81.10665846 | AH36: 81.10665846 | AI36: 81.10665846
B38: End of sheet

Sheet AllowancesFloor
A1: AllowancesFloor | H1: Licence
E2: Parameter | G2: Units | H2: Terminology | I2: Constant | K2: Annual values
E3: Project year | K3: Year 1 | L3: Year 2 | M3: Year 3 | N3: Year 4 | O3: Year 5 | P3: Year 6 | Q3: Year 7 | R3: Year 8 | S3: Year 9 | T3: Year 10 | U3: Year 11 | V3: Year 12 | W3: Year 13 | X3: Year 14 | Y3: Year 15 | Z3: Year 16 | AA3: Year 17 | AB3: Year 18 | AC3: Year 19 | AD3: Year 20 | AE3: Year 21 | AF3: Year 22 | AG3: Year 23 | AH3: Year 24 | AI3: Year 25
E4: Year | K4: 1 | L4: =+K4+1 -> 2 | M4: =+L4+1 -> 3 | N4: 4 | O4: 5 | P4: 6 | Q4: 7 | R4: 8 | S4: 9 | T4: 10 | U4: 11 | V4: 12 | W4: 13 | X4: 14 | Y4: 15 | Z4: 16 | AA4: 17 | AB4: 18 | AC4: 19 | AD4: 20 | AE4: 21 | AF4: 22 | AG4: 23 | AH4: 24 | AI4: 25
B7: Unprofiled allowances except tax (floor)
E9: Controllable opex | G9: £m 15/16 prices | K9: =Input!K34 -> 15.2848 | L9: =Input!L34 -> 15.2848 | M9: =Input!M34 -> 15.2848 | N9: =Input!N34 -> 15.2848 | O9: =Input!O34 -> 15.2848 | P9: =Input!P34 -> 15.2848 | Q9: =Input!Q34 -> 15.2848 | R9: =Input!R34 -> 15.2848 | S9: =Input!S34 -> 15.2848 | T9: =Input!T34 -> 15.2848 | U9: =Input!U34 -> 15.2848 | V9: =Input!V34 -> 15.2848 | W9: =Input!W34 -> 15.2848 | X9: =Input!X34 -> 15.2848 | Y9: =Input!Y34 -> 15.2848 | Z9: =Input!Z34 -> 15.2848 | AA9: =Input!AA34 -> 15.2848 | AB9: =Input!AB34 -> 15.2848 | AC9: =Input!AC34 -> 15.2848 | AD9: =Input!AD34 -> 15.2848 | AE9: =Input!AE34 -> 15.2848 | AF9: =Input!AF34 -> 15.2848 | AG9: =Input!AG34 -> 15.2848 | AH9: =Input!AH34 -> 15.2848 | AI9: =Input!AI34 -> 15.2848
E10: Non-controllable opex (baseline) | G10: £m 15/16 prices | K10: =Input!K35 -> 0 | L10: =Input!L35 -> 0 | M10: =Input!M35 -> 0 | N10: =Input!N35 -> 0 | O10: =Input!O35 -> 0 | P10: =Input!P35 -> 0 | Q10: =Input!Q35 -> 0 | R10: =Input!R35 -> 0 | S10: =Input!S35 -> 0 | T10: =Input!T35 -> 0 | U10: =Input!U35 -> 0 | V10: =Input!V35 -> 0 | W10: =Input!W35 -> 0 | X10: =Input!X35 -> 0 | Y10: =Input!Y35 -> 0 | Z10: =Input!Z35 -> 0 | AA10: =Input!AA35 -> 0 | AB10: =Input!AB35 -> 0 | AC10: =Input!AC35 -> 0 | AD10: =Input!AD35 -> 0 | AE10: =Input!AE35 -> 0 | AF10: =Input!AF35 -> 0 | AG10: =Input!AG35 -> 0 | AH10: =Input!AH35 -> 0 | AI10: =Input!AI35 -> 0
E11: Opex re-assessment adjustment | G11: £m 15/16 prices | K11: =Input!K36 -> 0 | L11: =Input!L36 -> 0 | M11: =Input!M36 -> 0 | N11: =Input!N36 -> 0 | O11: =Input!O36 -> 0 | P11: =Input!P36 -> 0 | Q11: =Input!Q36 -> 0 | R11: =Input!R36 -> 0 | S11: =Input!S36 -> 0 | T11: =Input!T36 -> 0 | U11: =Input!U36 -> 0 | V11: =Input!V36 -> 0 | W11: =Input!W36 -> 0 | X11: =Input!X36 -> 0 | Y11: =Input!Y36 -> 0 | Z11: =Input!Z36 -> 0 | AA11: =Input!AA36 -> 0 | AB11: =Input!AB36 -> 0 | AC11: =Input!AC36 -> 0 | AD11: =Input!AD36 -> 0 | AE11: =Input!AE36 -> 0 | AF11: =Input!AF36 -> 0 | AG11: =Input!AG36 -> 0 | AH11: =Input!AH36 -> 0 | AI11: =Input!AI36 -> 0
E12: Decommissioning baseline / actual | G12: £m 15/16 prices | K12: =Input!K33 -> 0 | L12: =Input!L33 -> 0 | M12: =Input!M33 -> 0 | N12: =Input!N33 -> 0 | O12: =Input!O33 -> 0 | P12: =Input!P33 -> 0 | Q12: =Input!Q33 -> 0 | R12: =Input!R33 -> 0 | S12: =Input!S33 -> 0 | T12: =Input!T33 -> 0 | U12: =Input!U33 -> 0 | V12: =Input!V33 -> 0 | W12: =Input!W33 -> 0 | X12: =Input!X33 -> 0 | Y12: =Input!Y33 -> 0 | Z12: =Input!Z33 -> 0 | AA12: =Input!AA33 -> 0 | AB12: =Input!AB33 -> 0 | AC12: =Input!AC33 -> 0 | AD12: =Input!AD33 -> 0 | AE12: =Input!AE33 -> 0 | AF12: =Input!AF33 -> 0 | AG12: =Input!AG33 -> 0 | AH12: =Input!AH33 -> 0 | AI12: =Input!AI33 -> 6.5
E13: RAV depreciation | G13: £m 15/16 prices | K13: =Op_RAV!K29 -> 29.00876874 | L13: =Op_RAV!L29 -> 29.00876874 | M13: =Op_RAV!M29 -> 29.00876874 | N13: =Op_RAV!N29 -> 29.00876874 | O13: =Op_RAV!O29 -> 29.00876874 | P13: =Op_RAV!P29 -> 29.00876874 | Q13: =Op_RAV!Q29 -> 29.00876874 | R13: =Op_RAV!R29 -> 29.00876874 | S13: =Op_RAV!S29 -> 29.00876874 | T13: =Op_RAV!T29 -> 29.00876874 | U13: =Op_RAV!U29 -> 29.00876874 | V13: =Op_RAV!V29 -> 29.00876874 | W13: =Op_RAV!W29 -> 29.00876874 | X13: =Op_RAV!X29 -> 29.00876874 | Y13: =Op_RAV!Y29 -> 29.00876874 | Z13: =Op_RAV!Z29 -> 30.50876874 | AA13: =Op_RAV!AA29 -> 30.50876874 | AB13: =Op_RAV!AB29 -> 30.50876874 | AC13: =Op_RAV!AC29 -> 30.50876874 | AD13: =Op_RAV!AD29 -> 30.50876874 | AE13: =Op_RAV!AE29 -> 30.50876874 | AF13: =Op_RAV!AF29 -> 30.50876874 | AG13: =Op_RAV!AG29 -> 30.50876874 | AH13: =Op_RAV!AH29 -> 30.50876874 | AI13: =Op_RAV!AI29 -> 30.50876874
E14: Return (floor) | G14: £m 15/16 prices | K14: =Op_RAV!K47 -> 6.227568425 | L14: =Op_RAV!L47 -> 5.973404682 | M14: =Op_RAV!M47 -> 5.719240939 | N14: =Op_RAV!N47 -> 5.465077195 | O14: =Op_RAV!O47 -> 5.210913452 | P14: =Op_RAV!P47 -> 4.956749708 | Q14: =Op_RAV!Q47 -> 4.702585965 | R14: =Op_RAV!R47 -> 4.448422221 | S14: =Op_RAV!S47 -> 4.194258478 | T14: =Op_RAV!T47 -> 3.940094734 | U14: =Op_RAV!U47 -> 3.685930991 | V14: =Op_RAV!V47 -> 3.431767247 | W14: =Op_RAV!W47 -> 3.177603504 | X14: =Op_RAV!X47 -> 2.92343976 | Y14: =Op_RAV!Y47 -> 2.734700283 | Z14: =Op_RAV!Z47 -> 2.539994113 | AA14: =Op_RAV!AA47 -> 2.272687943 | AB14: =Op_RAV!AB47 -> 2.005381773 | AC14: =Op_RAV!AC47 -> 1.738075603 | AD14: =Op_RAV!AD47 -> 1.470769433 | AE14: =Op_RAV!AE47 -> 1.203463263 | AF14: =Op_RAV!AF47 -> 0.9361570928 | AG14: =Op_RAV!AG47 -> 0.6688509226 | AH14: =Op_RAV!AH47 -> 0.4015447525 | AI14: =Op_RAV!AI47 -> 0.1342385824 | AK14: =Op_RAV!AK47 -> 0 | AL14: =Op_RAV!AL47 -> 0 | AM14: =Op_RAV!AM47 -> 0 | AN14: =Op_RAV!AN47 -> 0 | AO14: =Op_RAV!AO47 -> 0 | AP14: =Op_RAV!AP47 -> 0 | AQ14: =Op_RAV!AQ47 -> 0 | AR14: =Op_RAV!AR47 -> 0 | AS14: =Op_RAV!AS47 -> 0 | AT14: =Op_RAV!AT47 -> 0 | AU14: =Op_RAV!AU47 -> 0 | AV14: =Op_RAV!AV47 -> 0 | AW14: =Op_RAV!AW47 -> 0 | AX14: =Op_RAV!AX47 -> 0
E15: Unprofiled allowances except tax (floor) | G15: £m 15/16 prices | K15: =SUM(K9:K14) -> 50.52113716 | L15: 50.26697342 | M15: 50.01280967 | N15: 49.75864593 | O15: 49.50448219 | P15: 49.25031844 | Q15: 48.9961547 | R15: 48.74199096 | S15: 48.48782721 | T15: 48.23366347 | U15: 47.97949973 | V15: 47.72533598 | W15: 47.47117224 | X15: =SUM(X9:X14) -> 47.2170085 | Y15: 47.02826902 | Z15: 48.33356285 | AA15: 48.06625668 | AB15: 47.79895051 | AC15: 47.53164434 | AD15: 47.26433817 | AE15: 46.997032 | AF15: 46.72972583 | AG15: 46.46241966 | AH15: 46.19511349 | AI15: 52.42780732 | AK15: 0 | AL15: 0 | AM15: 0 | AN15: 0 | AO15: 0 | AP15: 0 | AQ15: 0 | AR15: 0 | AS15: 0 | AT15: 0 | AU15: 0 | AV15: 0 | AW15: 0 | AX15: 0
B17: Unprofiled allowances except tax (floor)
C19: Annuity parameters
E21: Floor returns | G21: =Input!G44 -> real annual % | I21: =Input!I44 -> 0.0088
E22: Number of operational years | G22: =Input!G117 -> full years | I22: =Input!I117 -> 25
E23: Annuity factor (floor) | G23: scalar | I23: =I21 / (1 - (1 + I21)^(-I22)) -> 0.0447362423
E25: Year is within operational period | G25: flag | K25: =AND(K4 > 0, K4<= $I22) -> TRUE | L25: TRUE | M25: TRUE | N25: TRUE | O25: TRUE | P25: TRUE | Q25: TRUE | R25: TRUE | S25: TRUE | T25: TRUE | U25: TRUE | V25: TRUE | W25: TRUE | X25: TRUE | Y25: TRUE | Z25: TRUE | AA25: TRUE | AB25: TRUE | AC25: TRUE | AD25: TRUE | AE25: TRUE | AF25: TRUE | AG25: TRUE | AH25: TRUE | AI25: TRUE
E26: Discount factor to start of operational period (floor) | G26: scalar | K26: =(1 + $I21) ^ - K4 -> 0.9912767645 | L26: 0.9826296238 | M26: 0.9740579141 | N26: 0.9655609775 | O26: 0.9571381617 | P26: 0.9487888201 | Q26: 0.9405123118 | R26: 0.9323080013 | S26: 0.9241752591 | T26: 0.9161134606 | U26: 0.9081219871 | V26: 0.9002002251 | W26: 0.8923475666 | X26: 0.8845634086 | Y26: 0.8768471536 | Z26: 0.8691982094 | AA26: 0.8616159887 | AB26: 0.8540999095 | AC26: 0.8466493948 | AD26: 0.8392638727 | AE26: 0.8319427763 | AF26: 0.8246855435 | AG26: 0.8174916173 | AH26: 0.8103604453 | AI26: 0.8032914803
C28: Allowances except tax
E30: Discounted unprofiled allowances except tax (floor) | G30: £m 15/16 prices | K30: =K15 * K$26 -> 50.08042938 | L30: =L15 * L$26 -> 49.39381718 | M30: 48.71537307 | N30: 48.04500681 | O30: 47.38262908 | P30: 46.72815153 | Q30: 46.08148672 | R30: 45.44254817 | S30: 44.81125028 | T30: 44.18750836 | U30: 43.57123863 | V30: 42.9623582 | W30: 42.36078503 | X30: =X15 * X$26 -> 41.76643798 | Y30: 41.23660383 | Z30: 42.01144628 | AA30: 41.41465527 | AB30: 40.8250793 | AC30: 40.24263791 | AD30: 39.66725149 | AE30: 39.09884128 | AF30: 38.53732934 | AG30: 37.98263859 | AH30: 37.43469274 | AI30: 42.11481095
E31: NPV of allowances except tax (floor) | G31: £m 15/16 prices | I31: =SUM(K30:AI30) -> 1082.095007
E33: Annuity factor (floor) | G33: =G$23 -> scalar | I33: =I$23 -> 0.0447362423
E35: Annuity of allowances except tax (floor) | G35: £m 15/16 prices | I35: =I31 * I33 -> 48.40886445
E36: Annuitised allowances except tax (floor) | G36: £m 15/16 prices | K36: =K$25 * $I35 -> 48.40886445 | L36: 48.40886445 | M36: 48.40886445 | N36: 48.40886445 | O36: 48.40886445 | P36: 48.40886445 | Q36: 48.40886445 | R36: 48.40886445 | S36: 48.40886445 | T36: 48.40886445 | U36: 48.40886445 | V36: 48.40886445 | W36: 48.40886445 | X36: =X$25 * $I35 -> 48.40886445 | Y36: 48.40886445 | Z36: 48.40886445 | AA36: 48.40886445 | AB36: 48.40886445 | AC36: 48.40886445 | AD36: 48.40886445 | AE36: 48.40886445 | AF36: 48.40886445 | AG36: 48.40886445 | AH36: 48.40886445 | AI36: 48.40886445
B38: End of sheet

Sheet Deductions
A1: Deductions | H1: Licence
E2: Parameter | G2: Units | H2: Terminology | I2: Constant | K2: Annual values
E3: Project year | K3: Year 1 | L3: Year 2 | M3: Year 3 | N3: Year 4 | O3: Year 5 | P3: Year 6 | Q3: Year 7 | R3: Year 8 | S3: Year 9 | T3: Year 10 | U3: Year 11 | V3: Year 12 | W3: Year 13 | X3: Year 14 | Y3: Year 15 | Z3: Year 16 | AA3: Year 17 | AB3: Year 18 | AC3: Year 19 | AD3: Year 20 | AE3: Year 21 | AF3: Year 22 | AG3: Year 23 | AH3: Year 24 | AI3: Year 25
B7: Tax deductions
K9: Year 1 | L9: Year 2 | M9: Year 3 | N9: Year 4 | O9: Year 5 | P9: Year 6 | Q9: Year 7 | R9: Year 8 | S9: Year 9 | T9: Year 10 | U9: Year 11 | V9: Year 12 | W9: Year 13 | X9: Year 14 | Y9: Year 15 | Z9: Year 16 | AA9: Year 17 | AB9: Year 18 | AC9: Year 19 | AD9: Year 20 | AE9: Year 21 | AF9: Year 22 | AG9: Year 23 | AH9: Year 24 | AI9: Year 25
E10: RPI Scalar from 2015/16 terms to start of regime | G10: scalar | I10: =Input!I111 -> 1.150875723
E11: Expected UK RPI inflation | G11: % | I11: =Input!I95 -> 0.0271
E12: Forecast GB Inflation Uplift | G12: scalar | K12: =I10*(1+$I$11)^0.5 -> 1.166365845 | L12: =K12*(1+$I$11) -> 1.19797436 | M12: =L12*(1+$I$11) -> 1.230439465 | N12: 1.263784374 | O12: 1.298032931 | P12: 1.333209623 | Q12: 1.369339604 | R12: 1.406448707 | S12: 1.444563467 | T12: 1.483711137 | U12: 1.523919709 | V12: 1.565217933 | W12: 1.607635339 | X12: 1.651202257 | Y12: 1.695949838 | Z12: 1.741910079 | AA12: 1.789115842 | AB12: 1.837600881 | AC12: 1.887399865 | AD12: 1.938548401 | AE12: 1.991083063 | AF12: 2.045041414 | AG12: 2.100462037 | AH12: 2.157384558 | AI12: 2.215849679
C15: Total
E17: Revenue pool additions | G17: £m nominal | K17: =K30 -> 17.82766867 | L17: 18.31079849 | M17: 18.80702113 | N17: 19.31669141 | O17: 19.84017374 | P17: 20.37784245 | Q17: 20.93008198 | R17: 21.4972872 | S17: =S30 -> 22.07986369 | T17: 22.67822799 | U17: 23.29280797 | V17: 23.92404307 | W17: 24.57238463 | X17: =X30 -> 25.23829626 | Y17: 25.92225409 | Z17: 26.62474717 | AA17: 27.34627782 | AB17: 28.08736195 | AC17: 28.84852946 | AD17: 29.63032461 | AE17: 30.4333064 | AF17: 31.25804901 | AG17: 32.10514214 | AH17: 32.97519149 | AI17: 33.86881918
E18: Capital allowances | G18: £m nominal | K18: =K45 -> 49.39219574 | L18: 45.44082008 | M18: 41.80555447 | N18: 38.46111011 | O18: 35.38422131 | P18: 32.5534836 | Q18: 29.94920491 | R18: 27.55326852 | S18: =S45 -> 25.34900704 | T18: 23.32108648 | U18: 21.45539956 | V18: 19.73896759 | W18: 18.15985019 | X18: =X45 -> 16.70706217 | Y18: 17.405637 | Z18: 16.01318604 | AA18: 14.73213116 | AB18: 13.55356067 | AC18: 12.46927581 | AD18: 11.47173375 | AE18: 10.55399505 | AF18: 9.709675444 | AG18: 8.932901409 | AH18: 8.218269296 | AI18: 94.51009691
E19: Interest Payable | G19: £m nominal | K19: =K61 -> 15.08125975 | L19: 14.6998907 | M19: 14.30473957 | N19: 13.89530827 | O19: 13.47108074 | P19: 13.03152228 | Q19: 12.57607884 | R19: 12.10417637 | S19: =S61 -> 11.61522007 | T19: 11.10859362 | U19: 10.58365846 | V19: 10.03975295 | W19: 9.476191518 | X19: =X61 -> 8.892263831 | Y19: 8.287233886 | Z19: 7.660339078 | AA19: 7.010789244 | AB19: 6.337765667 | AC19: 5.640420041 | AD19: 4.917873403 | AE19: 4.169215029 | AF19: 3.393501279 | AG19: 2.589754413 | AH19: 1.756961357 | AI19: 0.8940724256
E20: Debt transaction costs | G20: £m nominal | K20: =SUMPRODUCT(Finance!K47:AX47,Finance!K65:AX65)+SUMPRODUCT(Finance!K49:AX49,Finance!K65:AX65) -> 8.977313691
E21: Total tax deductions | G21: £m nominal | K21: =SUM(K17:K20) -> 91.27843785 | L21: 78.45150928 | M21: 74.91731517 | N21: 71.67310979 | O21: 68.69547579 | P21: 65.96284833 | Q21: 63.45536574 | R21: 61.1547321 | S21: =SUM(S17:S20) -> 59.04409079 | T21: 57.10790809 | U21: 55.33186599 | V21: 53.70276361 | W21: 52.20842634 | X21: =SUM(X17:X20) -> 50.83762226 | Y21: 51.61512498 | Z21: 50.29827229 | AA21: 49.08919822 | AB21: 47.97868828 | AC21: 46.95822531 | AD21: 46.01993176 | AE21: 45.15651648 | AF21: 44.36122573 | AG21: 43.62779796 | AH21: 42.95042214 | AI21: 129.2729885
C23: Tax pools
D25: Revenue pool
E27: Controllable opex | G27: £m nominal | K27: =Input!K34 * K$12 -> 17.82766867 | L27: =Input!L34 * L$12 -> 18.31079849 | M27: =Input!M34 * M$12 -> 18.80702113 | N27: =Input!N34 * N$12 -> 19.31669141 | O27: =Input!O34 * O$12 -> 19.84017374 | P27: =Input!P34 * P$12 -> 20.37784245 | Q27: =Input!Q34 * Q$12 -> 20.93008198 | R27: =Input!R34 * R$12 -> 21.4972872 | S27: =Input!S34 * S$12 -> 22.07986369 | T27: =Input!T34 * T$12 -> 22.67822799 | U27: =Input!U34 * U$12 -> 23.29280797 | V27: =Input!V34 * V$12 -> 23.92404307 | W27: =Input!W34 * W$12 -> 24.57238463 | X27: =Input!X34 * X$12 -> 25.23829626 | Y27: =Input!Y34 * Y$12 -> 25.92225409 | Z27: =Input!Z34 * Z$12 -> 26.62474717 | AA27: =Input!AA34 * AA$12 -> 27.34627782 | AB27: =Input!AB34 * AB$12 -> 28.08736195 | AC27: =Input!AC34 * AC$12 -> 28.84852946 | AD27: =Input!AD34 * AD$12 -> 29.63032461 | AE27: =Input!AE34 * AE$12 -> 30.4333064 | AF27: =Input!AF34 * AF$12 -> 31.25804901 | AG27: =Input!AG34 * AG$12 -> 32.10514214 | AH27: =Input!AH34 * AH$12 -> 32.97519149 | AI27: =Input!AI34 * AI$12 -> 33.86881918
E28: Opex re-assessment adjustment | G28: £m nominal | K28: =Input!K36*K$12 -> 0 | L28: =Input!L36*L$12 -> 0 | M28: =Input!M36*M$12 -> 0 | N28: =Input!N36*N$12 -> 0 | O28: =Input!O36*O$12 -> 0 | P28: =Input!P36*P$12 -> 0 | Q28: =Input!Q36*Q$12 -> 0 | R28: =Input!R36*R$12 -> 0 | S28: =Input!S36*S$12 -> 0 | T28: =Input!T36*T$12 -> 0 | U28: =Input!U36*U$12 -> 0 | V28: =Input!V36*V$12 -> 0 | W28: =Input!W36*W$12 -> 0 | X28: =Input!X36*X$12 -> 0 | Y28: =Input!Y36*Y$12 -> 0 | Z28: =Input!Z36*Z$12 -> 0 | AA28: =Input!AA36*AA$12 -> 0 | AB28: =Input!AB36*AB$12 -> 0 | AC28: =Input!AC36*AC$12 -> 0 | AD28: =Input!AD36*AD$12 -> 0 | AE28: =Input!AE36*AE$12 -> 0 | AF28: =Input!AF36*AF$12 -> 0 | AG28: =Input!AG36*AG$12 -> 0 | AH28: =Input!AH36*AH$12 -> 0 | AI28: =Input!AI36*AI$12 -> 0
E29: Non-controllable opex (baseline) | G29: £m nominal | K29: =Input!K35 * K$12 -> 0 | L29: =Input!L35 * L$12 -> 0 | M29: =Input!M35 * M$12 -> 0 | N29: =Input!N35 * N$12 -> 0 | O29: =Input!O35 * O$12 -> 0 | P29: =Input!P35 * P$12 -> 0 | Q29: =Input!Q35 * Q$12 -> 0 | R29: =Input!R35 * R$12 -> 0 | S29: =Input!S35 * S$12 -> 0 | T29: =Input!T35 * T$12 -> 0 | U29: =Input!U35 * U$12 -> 0 | V29: =Input!V35 * V$12 -> 0 | W29: =Input!W35 * W$12 -> 0 | X29: =Input!X35 * X$12 -> 0 | Y29: =Input!Y35 * Y$12 -> 0 | Z29: =Input!Z35 * Z$12 -> 0 | AA29: =Input!AA35 * AA$12 -> 0 | AB29: =Input!AB35 * AB$12 -> 0 | AC29: =Input!AC35 * AC$12 -> 0 | AD29: =Input!AD35 * AD$12 -> 0 | AE29: =Input!AE35 * AE$12 -> 0 | AF29: =Input!AF35 * AF$12 -> 0 | AG29: =Input!AG35 * AG$12 -> 0 | AH29: =Input!AH35 * AH$12 -> 0 | AI29: =Input!AI35 * AI$12 -> 0
E30: Revenue pool additions | G30: £m nominal | K30: =SUM(K27:K29) -> 17.82766867 | L30: 18.31079849 | M30: 18.80702113 | N30: 19.31669141 | O30: 19.84017374 | P30: 20.37784245 | Q30: 20.93008198 | R30: 21.4972872 | S30: 22.07986369 | T30: 22.67822799 | U30: 23.29280797 | V30: 23.92404307 | W30: 24.57238463 | X30: 25.23829626 | Y30: 25.92225409 | Z30: 26.62474717 | AA30: 27.34627782 | AB30: 28.08736195 | AC30: 28.84852946 | AD30: 29.63032461 | AE30: 30.4333064 | AF30: 31.25804901 | AG30: 32.10514214 | AH30: 32.97519149 | AI30: 33.86881918
D32: Capital allowance pool
E34: Capital allowance rate (declining balance) | G34: =Input!G87 -> % | K34: =Input!K82 -> 0.08 | L34: =Input!L82 -> 0.08 | M34: =Input!M82 -> 0.08 | N34: =Input!N82 -> 0.08 | O34: =Input!O82 -> 0.08 | P34: =Input!P82 -> 0.08 | Q34: =Input!Q82 -> 0.08 | R34: =Input!R82 -> 0.08 | S34: =Input!S82 -> 0.08 | T34: =Input!T82 -> 0.08 | U34: =Input!U82 -> 0.08 | V34: =Input!V82 -> 0.08 | W34: =Input!W82 -> 0.08 | X34: =Input!X82 -> 0.08 | Y34: =Input!Y82 -> 0.08 | Z34: =Input!Z82 -> 0.08 | AA34: =Input!AA82 -> 0.08 | AB34: =Input!AB82 -> 0.08 | AC34: =Input!AC82 -> 0.08 | AD34: =Input!AD82 -> 0.08 | AE34: =Input!AE82 -> 0.08 | AF34: =Input!AF82 -> 0.08 | AG34: =Input!AG82 -> 0.08 | AH34: =Input!AH82 -> 0.08 | AI34: =Input!AI82 -> 0.08
E35: Number of operational years | G35: =Input!G117 -> full years | I35: =Input!I117 -> 25
E37: Opening balance brought forward | G37: £m nominal | K37: =J43 -> 0 | L37: 568.010251 | M37: =L43 -> 522.5694309 | N37: =M43 -> 480.7638764 | O37: =N43 -> 442.3027663 | P37: =O43 -> 406.918545 | Q37: =P43 -> 374.3650614 | R37: =Q43 -> 344.4158565 | S37: =R43 -> 316.862588 | T37: =S43 -> 291.5135809 | U37: =T43 -> 268.1924945 | V37: =U43 -> 246.7370949 | W37: =V43 -> 226.9981273 | X37: =W43 -> 208.8382771 | Y37: 192.131215 | Z37: 200.1648255 | AA37: 184.1516395 | AB37: 169.4195083 | AC37: 155.8659477 | AD37: 143.3966719 | AE37: 131.9249381 | AF37: 121.3709431 | AG37: 111.6612676 | AH37: 102.7283662 | AI37: 94.51009691
E38: Capex | G38: £m nominal | K38: =SUMPRODUCT(Pre_Op_RAV!K20:AX20,Finance!K71:AX71) -> 617.4024467
E39: Replacement capex | G39: £m nominal | K39: =Input!K32 * K$12 -> 0 | L39: =Input!L32 * L$12 -> 0 | M39: =Input!M32 * M$12 -> 0 | N39: =Input!N32 * N$12 -> 0 | O39: =Input!O32 * O$12 -> 0 | P39: =Input!P32 * P$12 -> 0 | Q39: =Input!Q32 * Q$12 -> 0 | R39: =Input!R32 * R$12 -> 0 | S39: =Input!S32 * S$12 -> 0 | T39: =Input!T32 * T$12 -> 0 | U39: =Input!U32 * U$12 -> 0 | V39: =Input!V32 * V$12 -> 0 | W39: =Input!W32 * W$12 -> 0 | X39: =Input!X32 * X$12 -> 0 | Y39: =Input!Y32 * Y$12 -> 25.43924757 | Z39: =Input!Z32 * Z$12 -> 0 | AA39: =Input!AA32 * AA$12 -> 0 | AB39: =Input!AB32 * AB$12 -> 0 | AC39: =Input!AC32 * AC$12 -> 0 | AD39: =Input!AD32 * AD$12 -> 0 | AE39: =Input!AE32 * AE$12 -> 0 | AF39: =Input!AF32 * AF$12 -> 0 | AG39: =Input!AG32 * AG$12 -> 0 | AH39: =Input!AH32 * AH$12 -> 0 | AI39: =Input!AI32 * AI$12 -> 0
E40: Tax book value pre-depreciation | G40: £m nominal | K40: =SUM(K37:K39) -> 617.4024467 | L40: =SUM(L37:L39) -> 568.010251 | M40: 522.5694309 | N40: 480.7638764 | O40: 442.3027663 | P40: 406.918545 | Q40: 374.3650614 | R40: 344.4158565 | S40: 316.862588 | T40: 291.5135809 | U40: 268.1924945 | V40: 246.7370949 | W40: 226.9981273 | X40: 208.8382771 | Y40: 217.5704625 | Z40: 200.1648255 | AA40: 184.1516395 | AB40: 169.4195083 | AC40: 155.8659477 | AD40: 143.3966719 | AE40: 131.9249381 | AF40: 121.3709431 | AG40: 111.6612676 | AH40: 102.7283662 | AI40: 94.51009691
E41: Capital allowance (reducing balance) | G41: £m nominal | K41: =-K40 * K34 -> -49.39219574 | L41: =-L40 * L34 -> -45.44082008 | M41: =-M40 * M34 -> -41.80555447 | N41: -38.46111011 | O41: -35.38422131 | P41: -32.5534836 | Q41: -29.94920491 | R41: -27.55326852 | S41: -25.34900704 | T41: -23.32108648 | U41: -21.45539956 | V41: -19.73896759 | W41: -18.15985019 | X41: -16.70706217 | Y41: -17.405637 | Z41: -16.01318604 | AA41: -14.73213116 | AB41: -13.55356067 | AC41: -12.46927581 | AD41: -11.47173375 | AE41: -10.55399505 | AF41: -9.709675444 | AG41: -8.932901409 | AH41: -8.218269296 | AI41: -7.560807752
E42: Write-back allowance | G42: £m nominal | AI42: =-SUM(AI40:AI41) -> -86.94928915
E43: Closing balance carried forward | G43: £m nominal | K43: =SUM(K40:K42) -> 568.010251 | L43: =SUM(L40:L42) -> 522.5694309 | M43: 480.7638764 | N43: 442.3027663 | O43: 406.918545 | P43: 374.3650614 | Q43: 344.4158565 | R43: 316.862588 | S43: 291.5135809 | T43: 268.1924945 | U43: 246.7370949 | V43: 226.9981273 | W43: 208.8382771 | X43: =SUM(X40:X42) -> 192.131215 | Y43: 200.1648255 | Z43: 184.1516395 | AA43: 169.4195083 | AB43: 155.8659477 | AC43: 143.3966719 | AD43: 131.9249381 | AE43: 121.3709431 | AF43: 111.6612676 | AG43: 102.7283662 | AH43: 94.51009691 | AI43: 0
E45: Capital allowances | G45: £m nominal | K45: =-(K41 + K42) -> 49.39219574 | L45: 45.44082008 | M45: 41.80555447 | N45: 38.46111011 | O45: 35.38422131 | P45: 32.5534836 | Q45: 29.94920491 | R45: 27.55326852 | S45: 25.34900704 | T45: 23.32108648 | U45: 21.45539956 | V45: 19.73896759 | W45: 18.15985019 | X45: =-(X41 + X42) -> 16.70706217 | Y45: 17.405637 | Z45: 16.01318604 | AA45: 14.73213116 | AB45: 13.55356067 | AC45: 12.46927581 | AD45: 11.47173375 | AE45: 10.55399505 | AF45: 9.709675444 | AG45: 8.932901409 | AH45: 8.218269296 | AI45: 94.51009691
C47: Interest
D49: Cost of debt
E51: Cost of debt (for tax) | G51: =Input!G47 -> real annual % | I51: =Input!I47 -> 0.0088
E52: Expected UK RPI inflation | G52: =Input!G95 -> % | I52: =Input!I95 -> 0.0271
E53: Cost of debt (for tax) | G53: nominal annual % | I53: =(1 + I51) * (1 + I$52) - 1 -> 0.03613848
D55: Net debt
E57: Number of operational years | G57: =Input!G117 -> full years | I57: =Input!I117 -> 25
E58: Operational notional gearing | G58: =Input!G49 -> % | I58: =Input!I49 -> 0.5
E60: Principal repayments | G60: £m nominal | K60: =K62 - K61 -> 10.55299062 | L60: =L62 - L61 -> 10.93435966 | M60: 11.3295108 | N60: 11.7389421 | O60: 12.16316962 | P60: 12.60272808 | Q60: 13.05817152 | R60: 13.53007399 | S60: 14.0190303 | T60: 14.52565674 | U60: 15.0505919 | V60: 15.59449741 | W60: 16.15805885 | X60: =X62 - X61 -> 16.74198653 | Y60: 17.34701648 | Z60: 17.97391129 | AA60: 18.62346112 | AB60: 19.2964847 | AC60: 19.99383032 | AD60: 20.71637696 | AE60: 21.46503533 | AF60: 22.24074908 | AG60: 23.04449595 | AH60: 23.87728901 | AI60: 24.74017794
E61: Net interest paid | G61: £m nominal | K61: =$I53 * K64 -> 15.08125975 | L61: 14.6998907 | M61: 14.30473957 | N61: 13.89530827 | O61: 13.47108074 | P61: 13.03152228 | Q61: 12.57607884 | R61: 12.10417637 | S61: 11.61522007 | T61: 11.10859362 | U61: 10.58365846 | V61: 10.03975295 | W61: 9.476191518 | X61: 8.892263831 | Y61: 8.287233886 | Z61: 7.660339078 | AA61: 7.010789244 | AB61: 6.337765667 | AC61: 5.640420041 | AD61: 4.917873403 | AE61: 4.169215029 | AF61: 3.393501279 | AG61: 2.589754413 | AH61: 1.756961357 | AI61: 0.8940724256
E62: Total | G62: £m nominal | K62: =$I$66*$I53/(1-(1+$I53)^(-$I57)) -> 25.63425036 | L62: 25.63425036 | M62: 25.63425036 | N62: 25.63425036 | O62: 25.63425036 | P62: 25.63425036 | Q62: 25.63425036 | R62: 25.63425036 | S62: 25.63425036 | T62: 25.63425036 | U62: 25.63425036 | V62: 25.63425036 | W62: 25.63425036 | X62: 25.63425036 | Y62: 25.63425036 | Z62: 25.63425036 | AA62: 25.63425036 | AB62: 25.63425036 | AC62: 25.63425036 | AD62: 25.63425036 | AE62: 25.63425036 | AF62: 25.63425036 | AG62: 25.63425036 | AH62: 25.63425036 | AI62: 25.63425036
E64: Opening net debt | G64: £m nominal | K64: =I66 -> 417.3185963 | L64: =K66 -> 406.7656057 | M64: =L66 -> 395.831246 | N64: 384.5017352 | O64: 372.7627931 | P64: 360.5996235 | Q64: 347.9968954 | R64: 334.9387239 | S64: 321.4086499 | T64: 307.3896196 | U64: 292.8639629 | V64: 277.813371 | W64: 262.2188736 | X64: 246.0608147 | Y64: 229.3188282 | Z64: 211.9718117 | AA64: 193.9979004 | AB64: 175.3744393 | AC64: 156.0779546 | AD64: 136.0841243 | AE64: 115.3677473 | AF64: 93.90271198 | AG64: 71.66196289 | AH64: 48.61746694 | AI64: 24.74017794
E65: Less principal repayment | G65: £m nominal | K65: =IF(TaxFloor!K$3 = $I57, -K64, -K60) -> -10.55299062 | L65: =IF(TaxFloor!L$3 = $I57, -L64, -L60) -> -10.93435966 | M65: =IF(TaxFloor!M$3 = $I57, -M64, -M60) -> -11.3295108 | N65: =IF(TaxFloor!N$3 = $I57, -N64, -N60) -> -11.7389421 | O65: =IF(TaxFloor!O$3 = $I57, -O64, -O60) -> -12.16316962 | P65: =IF(TaxFloor!P$3 = $I57, -P64, -P60) -> -12.60272808 | Q65: =IF(TaxFloor!Q$3 = $I57, -Q64, -Q60) -> -13.05817152 | R65: =IF(TaxFloor!R$3 = $I57, -R64, -R60) -> -13.53007399 | S65: =IF(TaxFloor!S$3 = $I57, -S64, -S60) -> -14.0190303 | T65: =IF(TaxFloor!T$3 = $I57, -T64, -T60) -> -14.52565674 | U65: =IF(TaxFloor!U$3 = $I57, -U64, -U60) -> -15.0505919 | V65: =IF(TaxFloor!V$3 = $I57, -V64, -V60) -> -15.59449741 | W65: =IF(TaxFloor!W$3 = $I57, -W64, -W60) -> -16.15805885 | X65: =IF(TaxFloor!X$3 = $I57, -X64, -X60) -> -16.74198653 | Y65: =IF(TaxFloor!Y$3 = $I57, -Y64, -Y60) -> -17.34701648 | Z65: =IF(TaxFloor!Z$3 = $I57, -Z64, -Z60) -> -17.97391129 | AA65: =IF(TaxFloor!AA$3 = $I57, -AA64, -AA60) -> -18.62346112 | AB65: =IF(TaxFloor!AB$3 = $I57, -AB64, -AB60) -> -19.2964847 | AC65: =IF(TaxFloor!AC$3 = $I57, -AC64, -AC60) -> -19.99383032 | AD65: =IF(TaxFloor!AD$3 = $I57, -AD64, -AD60) -> -20.71637696 | AE65: =IF(TaxFloor!AE$3 = $I57, -AE64, -AE60) -> -21.46503533 | AF65: =IF(TaxFloor!AF$3 = $I57, -AF64, -AF60) -> -22.24074908 | AG65: =IF(TaxFloor!AG$3 = $I57, -AG64, -AG60) -> -23.04449595 | AH65: =IF(TaxFloor!AH$3 = $I57, -AH64, -AH60) -> -23.87728901 | AI65: =IF(TaxFloor!AI$3 = $I57, -AI64, -AI60) -> -24.74017794
E66: Closing net debt | G66: £m nominal | I66: =Op_RAV!K14*I10*I58 -> 417.3185963 | K66: =SUM(K64:K65) -> 406.7656057 | L66: =SUM(L64:L65) -> 395.831246 | M66: 384.5017352 | N66: 372.7627931 | O66: 360.5996235 | P66: 347.9968954 | Q66: 334.9387239 | R66: 321.4086499 | S66: 307.3896196 | T66: 292.8639629 | U66: 277.813371 | V66: 262.2188736 | W66: 246.0608147 | X66: =SUM(X64:X65) -> 229.3188282 | Y66: =SUM(Y64:Y65) -> 211.9718117 | Z66: 193.9979004 | AA66: 175.3744393 | AB66: 156.0779546 | AC66: 136.0841243 | AD66: 115.3677473 | AE66: 93.90271198 | AF66: 71.66196289 | AG66: 48.61746694 | AH66: 24.74017794 | AI66: 3.375077995e-13
B68: End of sheet

Sheet TaxCap
A1: TaxCap | H1: Licence
E2: Parameter | G2: Units | H2: Terminology | I2: Constant | K2: Annual values
E3: Project year | K3: Year 1 | L3: Year 2 | M3: Year 3 | N3: Year 4 | O3: Year 5 | P3: Year 6 | Q3: Year 7 | R3: Year 8 | S3: Year 9 | T3: Year 10 | U3: Year 11 | V3: Year 12 | W3: Year 13 | X3: Year 14 | Y3: Year 15 | Z3: Year 16 | AA3: Year 17 | AB3: Year 18 | AC3: Year 19 | AD3: Year 20 | AE3: Year 21 | AF3: Year 22 | AG3: Year 23 | AH3: Year 24 | AI3: Year 25
B7: Tax (cap)
C9: Unprofiled tax allowance (cap)
D11: Profits attributable to corporation tax
E13: Annuitised allowances except tax (cap) | G13: £m nominal prices | K13: =AllowancesCap!K36 * Deductions!K$12 -> 94.60003626 | L13: =AllowancesCap!L36 * Deductions!L$12 -> 97.16369724 | M13: =AllowancesCap!M36 * Deductions!M$12 -> 99.79683344 | N13: =AllowancesCap!N36 * Deductions!N$12 -> 102.5013276 | O13: =AllowancesCap!O36 * Deductions!O$12 -> 105.2791136 | P13: =AllowancesCap!P36 * Deductions!P$12 -> 108.1321776 | Q13: =AllowancesCap!Q36 * Deductions!Q$12 -> 111.0625596 | R13: =AllowancesCap!R36 * Deductions!R$12 -> 114.072355 | S13: =AllowancesCap!S36 * Deductions!S$12 -> 117.1637158 | T13: =AllowancesCap!T36 * Deductions!T$12 -> 120.3388525 | U13: =AllowancesCap!U36 * Deductions!U$12 -> 123.6000354 | V13: =AllowancesCap!V36 * Deductions!V$12 -> 126.9495963 | W13: =AllowancesCap!W36 * Deductions!W$12 -> 130.3899304 | X13: =AllowancesCap!X36 * Deductions!X$12 -> 133.9234975 | Y13: =AllowancesCap!Y36 * Deductions!Y$12 -> 137.5528243 | Z13: =AllowancesCap!Z36 * Deductions!Z$12 -> 141.2805058 | AA13: =AllowancesCap!AA36 * Deductions!AA$12 -> 145.1092075 | AB13: =AllowancesCap!AB36 * Deductions!AB$12 -> 149.0416671 | AC13: =AllowancesCap!AC36 * Deductions!AC$12 -> 153.0806962 | AD13: =AllowancesCap!AD36 * Deductions!AD$12 -> 157.2291831 | AE13: =AllowancesCap!AE36 * Deductions!AE$12 -> 161.490094 | AF13: =AllowancesCap!AF36 * Deductions!AF$12 -> 165.8664755 | AG13: =AllowancesCap!AG36 * Deductions!AG$12 -> 170.361457 | AH13: =AllowancesCap!AH36 * Deductions!AH$12 -> 174.9782525 | AI13: =AllowancesCap!AI36 * Deductions!AI$12 -> 179.7201631
E14: Less tax deductions | G14: £m nominal prices | K14: =-Deductions!K21 -> -91.27843785 | L14: =-Deductions!L21 -> -78.45150928 | M14: =-Deductions!M21 -> -74.91731517 | N14: =-Deductions!N21 -> -71.67310979 | O14: =-Deductions!O21 -> -68.69547579 | P14: =-Deductions!P21 -> -65.96284833 | Q14: =-Deductions!Q21 -> -63.45536574 | R14: =-Deductions!R21 -> -61.1547321 | S14: =-Deductions!S21 -> -59.04409079 | T14: =-Deductions!T21 -> -57.10790809 | U14: =-Deductions!U21 -> -55.33186599 | V14: =-Deductions!V21 -> -53.70276361 | W14: =-Deductions!W21 -> -52.20842634 | X14: =-Deductions!X21 -> -50.83762226 | Y14: =-Deductions!Y21 -> -51.61512498 | Z14: =-Deductions!Z21 -> -50.29827229 | AA14: =-Deductions!AA21 -> -49.08919822 | AB14: =-Deductions!AB21 -> -47.97868828 | AC14: =-Deductions!AC21 -> -46.95822531 | AD14: =-Deductions!AD21 -> -46.01993176 | AE14: =-Deductions!AE21 -> -45.15651648 | AF14: =-Deductions!AF21 -> -44.36122573 | AG14: =-Deductions!AG21 -> -43.62779796 | AH14: =-Deductions!AH21 -> -42.95042214 | AI14: =-Deductions!AI21 -> -129.2729885
E15: Profits attributable to corporation tax | G15: £m nominal prices | K15: =SUM(K13:K14) -> 3.321598415 | L15: =SUM(L13:L14) -> 18.71218797 | M15: 24.87951827 | N15: 30.82821784 | O15: 36.58363781 | P15: 42.16932925 | Q15: 47.60719386 | R15: 52.91762286 | S15: 58.11962499 | T15: 63.23094439 | U15: 68.26816939 | V15: 73.24683273 | W15: 78.18150406 | X15: =SUM(X13:X14) -> 83.08587525 | Y15: 85.93769932 | Z15: 90.98223354 | AA15: 96.02000932 | AB15: 101.0629788 | AC15: 106.1224709 | AD15: 111.2092514 | AE15: 116.3335775 | AF15: 121.5052498 | AG15: 126.7336591 | AH15: 132.0278304 | AI15: 50.44717463
D17: Tax losses
E19: Taxable losses brought forward | G19: £m nominal prices | K19: =J22 -> 0 | L19: 0 | M19: =L22 -> 0 | N19: =M22 -> 0 | O19: =N22 -> 0 | P19: =O22 -> 0 | Q19: =P22 -> 0 | R19: =Q22 -> 0 | S19: =R22 -> 0 | T19: =S22 -> 0 | U19: =T22 -> 0 | V19: =U22 -> 0 | W19: =V22 -> 0 | X19: =W22 -> 0 | Y19: 0 | Z19: 0 | AA19: 0 | AB19: 0 | AC19: 0 | AD19: 0 | AE19: 0 | AF19: 0 | AG19: 0 | AH19: 0 | AI19: 0
E20: In-year taxable loss | G20: £m nominal prices | K20: =MIN(K15, 0) -> 0 | L20: =MIN(L15, 0) -> 0 | M20: 0 | N20: 0 | O20: 0 | P20: 0 | Q20: 0 | R20: 0 | S20: 0 | T20: 0 | U20: 0 | V20: 0 | W20: 0 | X20: =MIN(X15, 0) -> 0 | Y20: 0 | Z20: 0 | AA20: 0 | AB20: 0 | AC20: 0 | AD20: 0 | AE20: 0 | AF20: 0 | AG20: 0 | AH20: 0 | AI20: 0
E21: Profits attributable to corporation tax | G21: £m nominal prices | K21: =IF(K15 >= 0, MIN(K15, -K19), 0) -> 0 | L21: =IF(L15 >= 0, MIN(L15, -L19), 0) -> 0 | M21: 0 | N21: 0 | O21: 0 | P21: 0 | Q21: 0 | R21: 0 | S21: 0 | T21: 0 | U21: 0 | V21: 0 | W21: 0 | X21: =IF(X15 >= 0, MIN(X15, -X19), 0) -> 0 | Y21: 0 | Z21: 0 | AA21: 0 | AB21: 0 | AC21: 0 | AD21: 0 | AE21: 0 | AF21: 0 | AG21: 0 | AH21: 0 | AI21: 0
E22: Balance carried forward | G22: £m nominal prices | K22: =SUM(K19:K21) -> 0 | L22: =SUM(L19:L21) -> 0 | M22: 0 | N22: 0 | O22: 0 | P22: 0 | Q22: 0 | R22: 0 | S22: 0 | T22: 0 | U22: 0 | V22: 0 | W22: 0 | X22: =SUM(X19:X21) -> 0 | Y22: 0 | Z22: 0 | AA22: 0 | AB22: 0 | AC22: 0 | AD22: 0 | AE22: 0 | AF22: 0 | AG22: 0 | AH22: 0 | AI22: 0
D24: Tax allowance
E26: Profits attributable to corporation tax (after taxable losses) | G26: £m nominal prices | K26: =MAX(K15 - K21,0) -> 3.321598415 | L26: =MAX(L15 - L21,0) -> 18.71218797 | M26: 24.87951827 | N26: 30.82821784 | O26: 36.58363781 | P26: 42.16932925 | Q26: 47.60719386 | R26: 52.91762286 | S26: 58.11962499 | T26: 63.23094439 | U26: 68.26816939 | V26: 73.24683273 | W26: 78.18150406 | X26: =MAX(X15 - X21,0) -> 83.08587525 | Y26: =MAX(Y15 - Y21,0) -> 85.93769932 | Z26: 90.98223354 | AA26: 96.02000932 | AB26: 101.0629788 | AC26: 106.1224709 | AD26: 111.2092514 | AE26: 116.3335775 | AF26: 121.5052498 | AG26: 126.7336591 | AH26: 132.0278304 | AI26: 50.44717463
E27: Corporation tax rate | G27: =Input!G86 -> % | K27: =Input!K81 -> 0.2 | L27: =Input!L81 -> 0.2 | M27: =Input!M81 -> 0.2 | N27: =Input!N81 -> 0.2 | O27: =Input!O81 -> 0.2 | P27: =Input!P81 -> 0.2 | Q27: =Input!Q81 -> 0.2 | R27: =Input!R81 -> 0.2 | S27: =Input!S81 -> 0.2 | T27: =Input!T81 -> 0.2 | U27: =Input!U81 -> 0.2 | V27: =Input!V81 -> 0.2 | W27: =Input!W81 -> 0.2 | X27: =Input!X81 -> 0.2 | Y27: =Input!Y81 -> 0.2 | Z27: =Input!Z81 -> 0.2 | AA27: =Input!AA81 -> 0.2 | AB27: =Input!AB81 -> 0.2 | AC27: =Input!AC81 -> 0.2 | AD27: =Input!AD81 -> 0.2 | AE27: =Input!AE81 -> 0.2 | AF27: =Input!AF81 -> 0.2 | AG27: =Input!AG81 -> 0.2 | AH27: =Input!AH81 -> 0.2 | AI27: =Input!AI81 -> 0.2
E28: Corporation tax charge after losses | G28: £m nominal prices | K28: =K26 * K27 -> 0.664319683 | L28: =L26 * L27 -> 3.742437593 | M28: 4.975903653 | N28: 6.165643568 | O28: 7.316727563 | P28: 8.43386585 | Q28: 9.521438771 | R28: 10.58352457 | S28: 11.623925 | T28: 12.64618888 | U28: 13.65363388 | V28: 14.64936655 | W28: 15.63630081 | X28: =X26 * X27 -> 16.61717505 | Y28: =Y26 * Y27 -> 17.18753986 | Z28: 18.19644671 | AA28: 19.20400186 | AB28: 20.21259576 | AC28: 21.22449419 | AD28: 22.24185027 | AE28: 23.2667155 | AF28: 24.30104996 | AG28: 25.34673181 | AH28: 26.40556607 | AI28: 10.08943493
E30: "Grossing-up" factor for tax on tax charge after losses | G30: scalar | K30: =1 / (1 - K27) -> 1.25 | L30: =1 / (1 - L27) -> 1.25 | M30: 1.25 | N30: 1.25 | O30: 1.25 | P30: 1.25 | Q30: 1.25 | R30: 1.25 | S30: 1.25 | T30: 1.25 | U30: 1.25 | V30: 1.25 | W30: 1.25 | X30: =1 / (1 - X27) -> 1.25 | Y30: =1 / (1 - Y27) -> 1.25 | Z30: 1.25 | AA30: 1.25 | AB30: 1.25 | AC30: 1.25 | AD30: 1.25 | AE30: 1.25 | AF30: 1.25 | AG30: 1.25 | AH30: 1.25 | AI30: 1.25
E32: Unprofiled tax allowance (cap) | G32: £m nominal prices | K32: =K28 * K30 -> 0.8303996037 | L32: =L28 * L30 -> 4.678046992 | M32: 6.219879567 | N32: 7.707054459 | O32: 9.145909453 | P32: 10.54233231 | Q32: 11.90179846 | R32: 13.22940572 | S32: 14.52990625 | T32: 15.8077361 | U32: 17.06704235 | V32: 18.31170818 | W32: 19.54537602 | X32: =X28 * X30 -> 20.77146881 | Y32: =Y28 * Y30 -> 21.48442483 | Z32: =Z28 * Z30 -> 22.74555839 | AA32: 24.00500233 | AB32: 25.2657447 | AC32: 26.53061773 | AD32: 27.80231284 | AE32: 29.08339437 | AF32: 30.37631245 | AG32: 31.68341476 | AH32: 33.00695759 | AI32: 12.61179366
C34: Profiled tax allowance (cap)
E36: Unprofiled tax allowance (cap) | G36: £m 15/16 prices | K36: =TaxCap!K32 / Deductions!K12 -> 0.7119546642 | L36: =TaxCap!L32 / Deductions!L12 -> 3.904964204 | M36: =TaxCap!M32 / Deductions!M12 -> 5.05500656 | N36: =TaxCap!N32 / Deductions!N12 -> 6.098393536 | O36: =TaxCap!O32 / Deductions!O12 -> 7.045976443 | P36: =TaxCap!P32 / Deductions!P12 -> 7.90748291 | Q36: =TaxCap!Q32 / Deductions!Q12 -> 8.691633856 | R36: =TaxCap!R32 / Deductions!R12 -> 9.406248266 | S36: =TaxCap!S32 / Deductions!S12 -> 10.05833705 | T36: =TaxCap!T32 / Deductions!T12 -> 10.65418713 | U36: =TaxCap!U32 / Deductions!U12 -> 11.19943672 | V36: =TaxCap!V32 / Deductions!V12 -> 11.69914284 | W36: =TaxCap!W32 / Deductions!W12 -> 12.15784173 | X36: =TaxCap!X32 / Deductions!X12 -> 12.57960297 | Y36: =TaxCap!Y32 / Deductions!Y12 -> 12.668078 | Z36: =TaxCap!Z32 / Deductions!Z12 -> 13.05782581 | AA36: =TaxCap!AA32 / Deductions!AA12 -> 13.41724318 | AB36: =TaxCap!AB32 / Deductions!AB12 -> 13.74931028 | AC36: =TaxCap!AC32 / Deductions!AC12 -> 14.05670215 | AD36: =TaxCap!AD32 / Deductions!AD12 -> 14.34182031 | AE36: =TaxCap!AE32 / Deductions!AE12 -> 14.60682124 | AF36: =TaxCap!AF32 / Deductions!AF12 -> 14.85364171 | AG36: =TaxCap!AG32 / Deductions!AG12 -> 15.08402162 | AH36: =TaxCap!AH32 / Deductions!AH12 -> 15.29952436 | AI36: =TaxCap!AI32 / Deductions!AI12 -> 5.691628713
E37: Discount factor to start of operational period (cap) | G37: =AllowancesCap!G$26 -> scalar | K37: =AllowancesCap!K$26 -> 0.9261403103 | L37: =AllowancesCap!L$26 -> 0.8577358743 | M37: =AllowancesCap!M$26 -> 0.7943837687 | N37: =AllowancesCap!N$26 -> 0.73571083 | O37: =AllowancesCap!O$26 -> 0.6813714564 | P37: =AllowancesCap!P$26 -> 0.631045572 | Q37: =AllowancesCap!Q$26 -> 0.5844367419 | R37: =AllowancesCap!R$26 -> 0.5412704254 | S37: =AllowancesCap!S$26 -> 0.5012923597 | T37: =AllowancesCap!T$26 -> 0.4642670616 | U37: =AllowancesCap!U$26 -> 0.4299764405 | V37: =AllowancesCap!V$26 -> 0.398218514 | W37: =AllowancesCap!W$26 -> 0.3688062181 | X37: =AllowancesCap!X$26 -> 0.3415663052 | Y37: =AllowancesCap!Y$26 -> 0.3163383239 | Z37: =AllowancesCap!Z$26 -> 0.2929736734 | AA37: =AllowancesCap!AA$26 -> 0.2713347288 | AB37: =AllowancesCap!AB$26 -> 0.2512940299 | AC37: =AllowancesCap!AC$26 -> 0.2327335308 | AD37: =AllowancesCap!AD$26 -> 0.2155439045 | AE37: =AllowancesCap!AE$26 -> 0.1996238986 | AF37: =AllowancesCap!AF$26 -> 0.1848797393 | AG37: =AllowancesCap!AG$26 -> 0.1712245792 | AH37: =AllowancesCap!AH$26 -> 0.1585779849 | AI37: =AllowancesCap!AI$26 -> 0.1468654641
E39: Discounted unprofiled tax allowance (cap) | G39: £m 15/16 prices | K39: =K36 * K37 -> 0.6593699136 | L39: =L36 * L37 -> 3.349427885 | M39: 4.015615162 | N39: 4.48665417 | O39: 4.80092723 | P39: 4.989982076 | Q39: 5.079710172 | R39: 5.091324001 | S39: 5.042167515 | T39: 4.94638815 | U39: 4.815493935 | V39: 4.658815277 | W39: 4.483887628 | X39: =X36 * X37 -> 4.296768507 | Y39: =Y36 * Y37 -> 4.007398561 | Z39: 3.825599195 | AA39: 3.64056404 | AB39: 3.45511959 | AC39: 3.271465922 | AD39: 3.091291947 | AE39: 2.915870601 | AF39: 2.746137408 | AG39: 2.582755253 | AH39: 2.426167742 | AI39: 0.8359036924
E40: NPV of tax allowance (cap) | G40: £m 15/16 prices | I40: =SUM(K39:AI39) -> 93.51480557
E42: Annuity factor (cap) | G42: =AllowancesCap!G$23 -> scalar | I42: =AllowancesCap!I$23 -> 0.09347880861
E44: Annuity of tax allowance (cap) | G44: £m 15/16 prices | I44: =I40 * I42 -> 8.741652613 | L44: 7.903839374 | M44: hard coded value to prevent accidental updates as input values change
B46: End of sheet

Sheet TaxFloor
A1: TaxFloor | H1: Licence
E2: Parameter | G2: Units | H2: Terminology | I2: Constant | K2: Annual values
E3: Project year | K3: Year 1 | L3: Year 2 | M3: Year 3 | N3: Year 4 | O3: Year 5 | P3: Year 6 | Q3: Year 7 | R3: Year 8 | S3: Year 9 | T3: Year 10 | U3: Year 11 | V3: Year 12 | W3: Year 13 | X3: Year 14 | Y3: Year 15 | Z3: Year 16 | AA3: Year 17 | AB3: Year 18 | AC3: Year 19 | AD3: Year 20 | AE3: Year 21 | AF3: Year 22 | AG3: Year 23 | AH3: Year 24 | AI3: Year 25
B7: Tax (floor)
C9: Unprofiled tax allowance (floor)
D11: Profits attributable to corporation tax
E13: Annuitised allowances except tax (floor) | G13: £m nominal prices | K13: =AllowancesFloor!K36 * Deductions!K$12 -> 56.4624461 | L13: =AllowancesFloor!L36 * Deductions!L$12 -> 57.99257839 | M13: =AllowancesFloor!M36 * Deductions!M$12 -> 59.56417727 | N13: =AllowancesFloor!N36 * Deductions!N$12 -> 61.17836647 | O13: =AllowancesFloor!O36 * Deductions!O$12 -> 62.8363002 | P13: =AllowancesFloor!P36 * Deductions!P$12 -> 64.53916394 | Q13: =AllowancesFloor!Q36 * Deductions!Q$12 -> 66.28817528 | R13: =AllowancesFloor!R36 * Deductions!R$12 -> 68.08458483 | S13: =AllowancesFloor!S36 * Deductions!S$12 -> 69.92967708 | T13: =AllowancesFloor!T36 * Deductions!T$12 -> 71.82477133 | U13: =AllowancesFloor!U36 * Deductions!U$12 -> 73.77122263 | V13: =AllowancesFloor!V36 * Deductions!V$12 -> 75.77042277 | W13: =AllowancesFloor!W36 * Deductions!W$12 -> 77.82380122 | X13: =AllowancesFloor!X36 * Deductions!X$12 -> 79.93282624 | Y13: =AllowancesFloor!Y36 * Deductions!Y$12 -> 82.09900583 | Z13: =AllowancesFloor!Z36 * Deductions!Z$12 -> 84.32388889 | AA13: =AllowancesFloor!AA36 * Deductions!AA$12 -> 86.60906627 | AB13: =AllowancesFloor!AB36 * Deductions!AB$12 -> 88.95617197 | AC13: =AllowancesFloor!AC36 * Deductions!AC$12 -> 91.36688423 | AD13: =AllowancesFloor!AD36 * Deductions!AD$12 -> 93.84292679 | AE13: =AllowancesFloor!AE36 * Deductions!AE$12 -> 96.38607011 | AF13: =AllowancesFloor!AF36 * Deductions!AF$12 -> 98.99813261 | AG13: =AllowancesFloor!AG36 * Deductions!AG$12 -> 101.680982 | AH13: =AllowancesFloor!AH36 * Deductions!AH$12 -> 104.4365366 | AI13: =AllowancesFloor!AI36 * Deductions!AI$12 -> 107.2667668
E14: Less tax deductions | G14: £m nominal prices | K14: =-Deductions!K21 -> -91.27843785 | L14: =-Deductions!L21 -> -78.45150928 | M14: =-Deductions!M21 -> -74.91731517 | N14: =-Deductions!N21 -> -71.67310979 | O14: =-Deductions!O21 -> -68.69547579 | P14: =-Deductions!P21 -> -65.96284833 | Q14: =-Deductions!Q21 -> -63.45536574 | R14: =-Deductions!R21 -> -61.1547321 | S14: =-Deductions!S21 -> -59.04409079 | T14: =-Deductions!T21 -> -57.10790809 | U14: =-Deductions!U21 -> -55.33186599 | V14: =-Deductions!V21 -> -53.70276361 | W14: =-Deductions!W21 -> -52.20842634 | X14: =-Deductions!X21 -> -50.83762226 | Y14: =-Deductions!Y21 -> -51.61512498 | Z14: =-Deductions!Z21 -> -50.29827229 | AA14: =-Deductions!AA21 -> -49.08919822 | AB14: =-Deductions!AB21 -> -47.97868828 | AC14: =-Deductions!AC21 -> -46.95822531 | AD14: =-Deductions!AD21 -> -46.01993176 | AE14: =-Deductions!AE21 -> -45.15651648 | AF14: =-Deductions!AF21 -> -44.36122573 | AG14: =-Deductions!AG21 -> -43.62779796 | AH14: =-Deductions!AH21 -> -42.95042214 | AI14: =-Deductions!AI21 -> -129.2729885
E15: Profits attributable to corporation tax | G15: £m nominal prices | K15: =SUM(K13:K14) -> -34.81599174 | L15: =SUM(L13:L14) -> -20.45893088 | M15: -15.3531379 | N15: -10.49474332 | O15: -5.859175589 | P15: -1.423684395 | Q15: 2.832809542 | R15: 6.929852734 | S15: 10.88558629 | T15: 14.71686324 | U15: 18.43935664 | V15: 22.06765916 | W15: 25.61537489 | X15: =SUM(X13:X14) -> 29.09520398 | Y15: 30.48388085 | Z15: 34.02561659 | AA15: 37.51986805 | AB15: 40.97748369 | AC15: 44.40865892 | AD15: 47.82299503 | AE15: 51.22955363 | AF15: 54.63690688 | AG15: 58.05318405 | AH15: 61.48611447 | AI15: -22.00622175
D17: Tax losses
E19: Taxable losses brought forward | G19: £m nominal prices | K19: =J22 -> 0 | L19: -34.81599174 | M19: =L22 -> -55.27492263 | N19: =M22 -> -70.62806053 | O19: =N22 -> -81.12280385 | P19: =O22 -> -86.98197944 | Q19: =P22 -> -88.40566383 | R19: =Q22 -> -85.57285429 | S19: =R22 -> -78.64300156 | T19: =S22 -> -67.75741527 | U19: =T22 -> -53.04055203 | V19: =U22 -> -34.60119539 | W19: =V22 -> -12.53353623 | X19: =W22 -> 0 | Y19: 0 | Z19: 0 | AA19: 0 | AB19: 0 | AC19: 0 | AD19: 0 | AE19: 0 | AF19: 0 | AG19: 0 | AH19: 0 | AI19: 0
E20: In-year taxable loss | G20: £m nominal prices | K20: =MIN(K15, 0) -> -34.81599174 | L20: =MIN(L15, 0) -> -20.45893088 | M20: -15.3531379 | N20: -10.49474332 | O20: -5.859175589 | P20: -1.423684395 | Q20: 0 | R20: 0 | S20: 0 | T20: 0 | U20: 0 | V20: 0 | W20: 0 | X20: =MIN(X15, 0) -> 0 | Y20: 0 | Z20: 0 | AA20: 0 | AB20: 0 | AC20: 0 | AD20: 0 | AE20: 0 | AF20: 0 | AG20: 0 | AH20: 0 | AI20: -22.00622175
E21: Profits attributable to corporation tax | G21: £m nominal prices | K21: =IF(K15 >= 0, MIN(K15, -K19), 0) -> 0 | L21: =IF(L15 >= 0, MIN(L15, -L19), 0) -> 0 | M21: 0 | N21: 0 | O21: 0 | P21: 0 | Q21: 2.832809542 | R21: 6.929852734 | S21: 10.88558629 | T21: 14.71686324 | U21: 18.43935664 | V21: 22.06765916 | W21: 12.53353623 | X21: =IF(X15 >= 0, MIN(X15, -X19), 0) -> 0 | Y21: 0 | Z21: 0 | AA21: 0 | AB21: 0 | AC21: 0 | AD21: 0 | AE21: 0 | AF21: 0 | AG21: 0 | AH21: 0 | AI21: 0
E22: Balance carried forward | G22: £m nominal prices | K22: =SUM(K19:K21) -> -34.81599174 | L22: =SUM(L19:L21) -> -55.27492263 | M22: -70.62806053 | N22: -81.12280385 | O22: -86.98197944 | P22: -88.40566383 | Q22: -85.57285429 | R22: -78.64300156 | S22: -67.75741527 | T22: -53.04055203 | U22: -34.60119539 | V22: -12.53353623 | W22: 0 | X22: =SUM(X19:X21) -> 0 | Y22: 0 | Z22: 0 | AA22: 0 | AB22: 0 | AC22: 0 | AD22: 0 | AE22: 0 | AF22: 0 | AG22: 0 | AH22: 0 | AI22: -22.00622175
D24: Tax allowance
E26: Profits attributable to corporation tax (after taxable losses) | G26: £m nominal prices | K26: =MAX(K15 - K21,0) -> 0 | L26: =MAX(L15 - L21,0) -> 0 | M26: 0 | N26: 0 | O26: 0 | P26: 0 | Q26: 0 | R26: 0 | S26: 0 | T26: 0 | U26: 0 | V26: 0 | W26: 13.08183865 | X26: =MAX(X15 - X21,0) -> 29.09520398 | Y26: 30.48388085 | Z26: 34.02561659 | AA26: 37.51986805 | AB26: 40.97748369 | AC26: 44.40865892 | AD26: 47.82299503 | AE26: 51.22955363 | AF26: 54.63690688 | AG26: 58.05318405 | AH26: 61.48611447 | AI26: 0
E27: Corporation tax rate | G27: =Input!G86 -> % | K27: =Input!K81 -> 0.2 | L27: =Input!L81 -> 0.2 | M27: =Input!M81 -> 0.2 | N27: =Input!N81 -> 0.2 | O27: =Input!O81 -> 0.2 | P27: =Input!P81 -> 0.2 | Q27: =Input!Q81 -> 0.2 | R27: =Input!R81 -> 0.2 | S27: =Input!S81 -> 0.2 | T27: =Input!T81 -> 0.2 | U27: =Input!U81 -> 0.2 | V27: =Input!V81 -> 0.2 | W27: =Input!W81 -> 0.2 | X27: =Input!X81 -> 0.2 | Y27: =Input!Y81 -> 0.2 | Z27: =Input!Z81 -> 0.2 | AA27: =Input!AA81 -> 0.2 | AB27: =Input!AB81 -> 0.2 | AC27: =Input!AC81 -> 0.2 | AD27: =Input!AD81 -> 0.2 | AE27: =Input!AE81 -> 0.2 | AF27: =Input!AF81 -> 0.2 | AG27: =Input!AG81 -> 0.2 | AH27: =Input!AH81 -> 0.2 | AI27: =Input!AI81 -> 0.2
E28: Corporation tax charge after losses | G28: £m nominal prices | K28: =K26 * $W27 -> 0 | L28: =L26 * $W27 -> 0 | M28: 0 | N28: 0 | O28: 0 | P28: 0 | Q28: 0 | R28: 0 | S28: 0 | T28: 0 | U28: 0 | V28: 0 | W28: 2.616367731 | X28: =X26 * $W27 -> 5.819040795 | Y28: 6.09677617 | Z28: 6.805123319 | AA28: 7.50397361 | AB28: 8.195496737 | AC28: 8.881731784 | AD28: 9.564599007 | AE28: 10.24591073 | AF28: 10.92738138 | AG28: 11.61063681 | AH28: 12.29722289 | AI28: 0
E30: "Grossing-up" factor for tax on tax charge after losses | G30: scalar | K30: =1 / (1 - K27) -> 1.25 | L30: =1 / (1 - L27) -> 1.25 | M30: 1.25 | N30: 1.25 | O30: 1.25 | P30: 1.25 | Q30: 1.25 | R30: 1.25 | S30: 1.25 | T30: 1.25 | U30: 1.25 | V30: 1.25 | W30: 1.25 | X30: =1 / (1 - X27) -> 1.25 | Y30: 1.25 | Z30: 1.25 | AA30: 1.25 | AB30: 1.25 | AC30: 1.25 | AD30: 1.25 | AE30: 1.25 | AF30: 1.25 | AG30: 1.25 | AH30: 1.25 | AI30: 1.25
E32: Unprofiled tax allowance (floor) | G32: £m nominal prices | K32: =K28 * K30 -> 0 | L32: =L28 * L30 -> 0 | M32: 0 | N32: 0 | O32: 0 | P32: 0 | Q32: 0 | R32: 0 | S32: 0 | T32: 0 | U32: 0 | V32: 0 | W32: 3.270459663 | X32: =X28 * X30 -> 7.273800994 | Y32: 7.620970213 | Z32: 8.506404148 | AA32: 9.379967012 | AB32: 10.24437092 | AC32: 11.10216473 | AD32: 11.95574876 | AE32: 12.80738841 | AF32: 13.65922672 | AG32: 14.51329601 | AH32: 15.37152862 | AI32: 0
C34: Profiled tax allowance (floor)
E36: Unprofiled tax allowance (floor) | G36: £m 15/16 prices | K36: =TaxFloor!K32 / Deductions!K$12 -> 0 | L36: =TaxFloor!L32 / Deductions!L$12 -> 0 | M36: =TaxFloor!M32 / Deductions!M$12 -> 0 | N36: =TaxFloor!N32 / Deductions!N$12 -> 0 | O36: =TaxFloor!O32 / Deductions!O$12 -> 0 | P36: =TaxFloor!P32 / Deductions!P$12 -> 0 | Q36: =TaxFloor!Q32 / Deductions!Q$12 -> 0 | R36: =TaxFloor!R32 / Deductions!R$12 -> 0 | S36: =TaxFloor!S32 / Deductions!S$12 -> 0 | T36: =TaxFloor!T32 / Deductions!T$12 -> 0 | U36: =TaxFloor!U32 / Deductions!U$12 -> 0 | V36: =TaxFloor!V32 / Deductions!V$12 -> 0 | W36: =TaxFloor!W32 / Deductions!W$12 -> 2.034329293 | X36: =TaxFloor!X32 / Deductions!X$12 -> 4.405154464 | Y36: =TaxFloor!Y32 / Deductions!Y$12 -> 4.493629494 | Z36: =TaxFloor!Z32 / Deductions!Z$12 -> 4.883377306 | AA36: =TaxFloor!AA32 / Deductions!AA$12 -> 5.242794677 | AB36: =TaxFloor!AB32 / Deductions!AB$12 -> 5.574861781 | AC36: =TaxFloor!AC32 / Deductions!AC$12 -> 5.882253641 | AD36: =TaxFloor!AD32 / Deductions!AD$12 -> 6.167371807 | AE36: =TaxFloor!AE32 / Deductions!AE$12 -> 6.432372734 | AF36: =TaxFloor!AF32 / Deductions!AF$12 -> 6.679193206 | AG36: =TaxFloor!AG32 / Deductions!AG$12 -> 6.909573113 | AH36: =TaxFloor!AH32 / Deductions!AH$12 -> 7.125075853 | AI36: =TaxFloor!AI32 / Deductions!AI$12 -> 0
E37: Discount factor to start of operational period (floor) | G37: =AllowancesFloor!G$26 -> scalar | K37: =AllowancesFloor!K$26 -> 0.9912767645 | L37: =AllowancesFloor!L$26 -> 0.9826296238 | M37: =AllowancesFloor!M$26 -> 0.9740579141 | N37: =AllowancesFloor!N$26 -> 0.9655609775 | O37: =AllowancesFloor!O$26 -> 0.9571381617 | P37: =AllowancesFloor!P$26 -> 0.9487888201 | Q37: =AllowancesFloor!Q$26 -> 0.9405123118 | R37: =AllowancesFloor!R$26 -> 0.9323080013 | S37: =AllowancesFloor!S$26 -> 0.9241752591 | T37: =AllowancesFloor!T$26 -> 0.9161134606 | U37: =AllowancesFloor!U$26 -> 0.9081219871 | V37: =AllowancesFloor!V$26 -> 0.9002002251 | W37: =AllowancesFloor!W$26 -> 0.8923475666 | X37: =AllowancesFloor!X$26 -> 0.8845634086 | Y37: =AllowancesFloor!Y$26 -> 0.8768471536 | Z37: =AllowancesFloor!Z$26 -> 0.8691982094 | AA37: =AllowancesFloor!AA$26 -> 0.8616159887 | AB37: =AllowancesFloor!AB$26 -> 0.8540999095 | AC37: =AllowancesFloor!AC$26 -> 0.8466493948 | AD37: =AllowancesFloor!AD$26 -> 0.8392638727 | AE37: =AllowancesFloor!AE$26 -> 0.8319427763 | AF37: =AllowancesFloor!AF$26 -> 0.8246855435 | AG37: =AllowancesFloor!AG$26 -> 0.8174916173 | AH37: =AllowancesFloor!AH$26 -> 0.8103604453 | AI37: =AllowancesFloor!AI$26 -> 0.8032914803
E39: Discounted unprofiled tax allowance (floor) | G39: £m 15/16 prices | K39: =K36 * AllowancesFloor!K$26 -> 0 | L39: =L36 * AllowancesFloor!L$26 -> 0 | M39: =M36 * AllowancesFloor!M$26 -> 0 | N39: =N36 * AllowancesFloor!N$26 -> 0 | O39: =O36 * AllowancesFloor!O$26 -> 0 | P39: =P36 * AllowancesFloor!P$26 -> 0 | Q39: =Q36 * AllowancesFloor!Q$26 -> 0 | R39: =R36 * AllowancesFloor!R$26 -> 0 | S39: =S36 * AllowancesFloor!S$26 -> 0 | T39: =T36 * AllowancesFloor!T$26 -> 0 | U39: =U36 * AllowancesFloor!U$26 -> 0 | V39: =V36 * AllowancesFloor!V$26 -> 0 | W39: =W36 * AllowancesFloor!W$26 -> 1.815328794 | X39: =X36 * AllowancesFloor!X$26 -> 3.896638448 | Y39: =Y36 * AllowancesFloor!Y$26 -> 3.940226231 | Z39: =Z36 * AllowancesFloor!Z$26 -> 4.24462281 | AA39: =AA36 * AllowancesFloor!AA$26 -> 4.517275719 | AB39: =AB36 * AllowancesFloor!AB$26 -> 4.761488942 | AC39: =AC36 * AllowancesFloor!AC$26 -> 4.980206485 | AD39: =AD36 * AllowancesFloor!AD$26 -> 5.176052348 | AE39: =AE36 * AllowancesFloor!AE$26 -> 5.351366031 | AF39: =AF36 * AllowancesFloor!AF$26 -> 5.508234079 | AG39: =AG36 * AllowancesFloor!AG$26 -> 5.648518098 | AH39: =AH36 * AllowancesFloor!AH$26 -> 5.773879642 | AI39: =AI36 * AllowancesFloor!AI$26 -> 0
E40: NPV of tax allowance (floor) | G40: £m 15/16 prices | I40: =SUM(K39:AI39) -> 55.61383763
E42: Annuity factor (floor) | G42: =AllowancesFloor!G$23 -> scalar | I42: =AllowancesFloor!I$23 -> 0.0447362423
E44: Annuity of tax allowance (floor) | G44: £m 15/16 prices | I44: =I40 * I42 -> 2.487954116 | L44: 2.159684363 | M44: hard coded value to prevent accidental updates as input values change
B46: End of sheet

Sheet Availability
A1: Availability | H1: Licence
E2: Parameter | G2: Units | H2: Terminology | I2: Constant | K2: Annual values
E3: Project year | K3: =Input!K8 -> -10 | L3: =K3 + 1 -> -9 | M3: -8 | N3: -7 | O3: -6 | P3: -5 | Q3: -4 | R3: -3 | S3: -2 | T3: -1 | U3: 0 | V3: 1 | W3: 2 | X3: 3 | Y3: 4 | Z3: 5 | AA3: 6 | AB3: 7 | AC3: 8 | AD3: 9 | AE3: 10 | AF3: 11 | AG3: 12 | AH3: 13 | AI3: 14 | AJ3: 15 | AK3: 16 | AL3: 17 | AM3: 18 | AN3: 19 | AO3: 20 | AP3: 21 | AQ3: 22 | AR3: 23 | AS3: 24 | AT3: 25 | AU3: 26 | AV3: 27 | AW3: 28 | AX3: 29
E4: Year commencing | K4: =Input!K9 -> 2010-04-01 | L4: =+K5+1 -> 2011-04-01 | M4: =+L5+1 -> 2012-04-01 | N4: =+M5+1 -> 2013-04-01 | O4: 2014-04-01 | P4: 2015-04-01 | Q4: 2016-04-01 | R4: 2017-04-01 | S4: 2018-04-01 | T4: 2019-04-01 | U4: 2020-04-01 | V4: 2021-04-01 | W4: 2022-04-01 | X4: 2023-04-01 | Y4: 2024-04-01 | Z4: 2025-04-01 | AA4: 2026-04-01 | AB4: 2027-04-01 | AC4: 2028-04-01 | AD4: 2029-04-01 | AE4: 2030-04-01 | AF4: 2031-04-01 | AG4: 2032-04-01 | AH4: 2033-04-01 | AI4: 2034-04-01 | AJ4: 2035-04-01 | AK4: 2036-04-01 | AL4: 2037-04-01 | AM4: 2038-04-01 | AN4: 2039-04-01 | AO4: 2040-04-01 | AP4: 2041-04-01 | AQ4: 2042-04-01 | AR4: 2043-04-01 | AS4: 2044-04-01 | AT4: 2045-04-01 | AU4: 2046-04-01 | AV4: 2047-04-01 | AW4: 2048-04-01 | AX4: 2049-04-01
E5: Year ending | K5: =Input!K10 -> 2011-03-31 | L5: =DATE(YEAR(K5) + 1, MONTH(K5), DAY(K5)) -> 2012-03-31 | M5: 2013-03-31 | N5: 2014-03-31 | O5: 2015-03-31 | P5: 2016-03-31 | Q5: 2017-03-31 | R5: 2018-03-31 | S5: 2019-03-31 | T5: 2020-03-31 | U5: 2021-03-31 | V5: 2022-03-31 | W5: 2023-03-31 | X5: 2024-03-31 | Y5: 2025-03-31 | Z5: 2026-03-31 | AA5: 2027-03-31 | AB5: 2028-03-31 | AC5: 2029-03-31 | AD5: 2030-03-31 | AE5: 2031-03-31 | AF5: 2032-03-31 | AG5: 2033-03-31 | AH5: 2034-03-31 | AI5: 2035-03-31 | AJ5: 2036-03-31 | AK5: 2037-03-31 | AL5: 2038-03-31 | AM5: 2039-03-31 | AN5: 2040-03-31 | AO5: 2041-03-31 | AP5: 2042-03-31 | AQ5: 2043-03-31 | AR5: 2044-03-31 | AS5: 2045-03-31 | AT5: 2046-03-31 | AU5: 2047-03-31 | AV5: 2048-03-31 | AW5: 2049-03-31 | AX5: 2050-03-31
B7: Availability incentives
C9: Avaliability incentive
E11: Cap (pre-availability incentive) | G11: £m 15/16 prices | V11: =AllowancesCap!$I35+TaxCap!$I44 -> 89.84831108 | W11: =AllowancesCap!$I35+TaxCap!$I44 -> 89.84831108 | X11: =AllowancesCap!$I35+TaxCap!$I44 -> 89.84831108 | Y11: =AllowancesCap!$I35+TaxCap!$I44 -> 89.84831108 | Z11: =AllowancesCap!$I35+TaxCap!$I44 -> 89.84831108 | AA11: =AllowancesCap!$I35+TaxCap!$I44 -> 89.84831108 | AB11: =AllowancesCap!$I35+TaxCap!$I44 -> 89.84831108 | AC11: =AllowancesCap!$I35+TaxCap!$I44 -> 89.84831108 | AD11: =AllowancesCap!$I35+TaxCap!$I44 -> 89.84831108 | AE11: =AllowancesCap!$I35+TaxCap!$I44 -> 89.84831108 | AF11: =AllowancesCap!$I35+TaxCap!$I44 -> 89.84831108 | AG11: =AllowancesCap!$I35+TaxCap!$I44 -> 89.84831108 | AH11: =AllowancesCap!$I35+TaxCap!$I44 -> 89.84831108 | AI11: =AllowancesCap!$I35+TaxCap!$I44 -> 89.84831108 | AJ11: =AllowancesCap!$I35+TaxCap!$I44 -> 89.84831108 | AK11: =AllowancesCap!$I35+TaxCap!$I44 -> 89.84831108 | AL11: =AllowancesCap!$I35+TaxCap!$I44 -> 89.84831108 | AM11: =AllowancesCap!$I35+TaxCap!$I44 -> 89.84831108 | AN11: =AllowancesCap!$I35+TaxCap!$I44 -> 89.84831108 | AO11: =AllowancesCap!$I35+TaxCap!$I44 -> 89.84831108 | AP11: =AllowancesCap!$I35+TaxCap!$I44 -> 89.84831108 | AQ11: =AllowancesCap!$I35+TaxCap!$I44 -> 89.84831108 | AR11: =AllowancesCap!$I35+TaxCap!$I44 -> 89.84831108 | AS11: =AllowancesCap!$I35+TaxCap!$I44 -> 89.84831108 | AT11: =AllowancesCap!$I35+TaxCap!$I44 -> 89.84831108 | AU11: =AllowancesCap!$I35+TaxCap!$I44 -> 89.84831108 | AV11: =AllowancesCap!$I35+TaxCap!$I44 -> 89.84831108 | AW11: =AllowancesCap!$I35+TaxCap!$I44 -> 89.84831108 | AX11: =AllowancesCap!$I35+TaxCap!$I44 -> 89.84831108
E12: Floor (pre-availability incentive) | G12: £m 15/16 prices | V12: =AllowancesFloor!$I35+TaxFloor!$I44 -> 50.89681856 | W12: =AllowancesFloor!$I35+TaxFloor!$I44 -> 50.89681856 | X12: =AllowancesFloor!$I35+TaxFloor!$I44 -> 50.89681856 | Y12: =AllowancesFloor!$I35+TaxFloor!$I44 -> 50.89681856 | Z12: =AllowancesFloor!$I35+TaxFloor!$I44 -> 50.89681856 | AA12: =AllowancesFloor!$I35+TaxFloor!$I44 -> 50.89681856 | AB12: =AllowancesFloor!$I35+TaxFloor!$I44 -> 50.89681856 | AC12: =AllowancesFloor!$I35+TaxFloor!$I44 -> 50.89681856 | AD12: =AllowancesFloor!$I35+TaxFloor!$I44 -> 50.89681856 | AE12: =AllowancesFloor!$I35+TaxFloor!$I44 -> 50.89681856 | AF12: =AllowancesFloor!$I35+TaxFloor!$I44 -> 50.89681856 | AG12: =AllowancesFloor!$I35+TaxFloor!$I44 -> 50.89681856 | AH12: =AllowancesFloor!$I35+TaxFloor!$I44 -> 50.89681856 | AI12: =AllowancesFloor!$I35+TaxFloor!$I44 -> 50.89681856 | AJ12: =AllowancesFloor!$I35+TaxFloor!$I44 -> 50.89681856 | AK12: =AllowancesFloor!$I35+TaxFloor!$I44 -> 50.89681856 | AL12: =AllowancesFloor!$I35+TaxFloor!$I44 -> 50.89681856 | AM12: =AllowancesFloor!$I35+TaxFloor!$I44 -> 50.89681856 | AN12: =AllowancesFloor!$I35+TaxFloor!$I44 -> 50.89681856 | AO12: =AllowancesFloor!$I35+TaxFloor!$I44 -> 50.89681856 | AP12: =AllowancesFloor!$I35+TaxFloor!$I44 -> 50.89681856 | AQ12: =AllowancesFloor!$I35+TaxFloor!$I44 -> 50.89681856 | AR12: =AllowancesFloor!$I35+TaxFloor!$I44 -> 50.89681856 | AS12: =AllowancesFloor!$I35+TaxFloor!$I44 -> 50.89681856 | AT12: =AllowancesFloor!$I35+TaxFloor!$I44 -> 50.89681856 | AU12: =AllowancesFloor!$I35+TaxFloor!$I44 -> 50.89681856 | AV12: =AllowancesFloor!$I35+TaxFloor!$I44 -> 50.89681856 | AW12: =AllowancesFloor!$I35+TaxFloor!$I44 -> 50.89681856 | AX12: =AllowancesFloor!$I35+TaxFloor!$I44 -> 50.89681856
E14: Cap availability incentive rate | G14: scalar | H14: AICt | K14: =K44 -> 0 | L14: 0 | M14: 0 | N14: 0 | O14: 0 | P14: 0 | Q14: 0 | R14: 0 | S14: 0 | T14: 0 | U14: 0 | V14: 1.02 | W14: 1.02 | X14: =X44 -> 1.02 | Y14: 1.02 | Z14: 1.02 | AA14: 1.02 | AB14: 1.02 | AC14: 1.02 | AD14: 1.02 | AE14: 1.02 | AF14: 1.02 | AG14: 1.02 | AH14: 1.02 | AI14: 1.02 | AJ14: 1.02 | AK14: 1.02 | AL14: 1.02 | AM14: 1.02 | AN14: 1.02 | AO14: 1.02 | AP14: 1.02 | AQ14: 1.02 | AR14: 1.02 | AS14: 1.02 | AT14: 1.02 | AU14: 0 | AV14: 0 | AW14: 0 | AX14: 0
E15: Floor availability incentive rate | G15: scalar | H15: AIFt | K15: =K58 -> 0 | L15: 0 | M15: 0 | N15: 0 | O15: 0 | P15: 0 | Q15: 0 | R15: 0 | S15: 0 | T15: 0 | U15: 0 | V15: 1 | W15: 1 | X15: =X58 -> 1 | Y15: 1 | Z15: 1 | AA15: 1 | AB15: 1 | AC15: 1 | AD15: 1 | AE15: 1 | AF15: 1 | AG15: 1 | AH15: 1 | AI15: 1 | AJ15: 1 | AK15: 1 | AL15: 1 | AM15: 1 | AN15: 1 | AO15: 1 | AP15: 1 | AQ15: 1 | AR15: 1 | AS15: 1 | AT15: 1 | AU15: =AU58 -> 0 | AV15: =AV58 -> 0 | AW15: 0 | AX15: 0
E17: Cap (post-availability incentive) | G17: £m 15/16 prices | K17: =K11 *K14 -> 0 | L17: 0 | M17: 0 | N17: 0 | O17: 0 | P17: 0 | Q17: 0 | R17: 0 | S17: 0 | T17: 0 | U17: 0 | V17: 91.6452773 | W17: 91.6452773 | X17: =X11 *X14 -> 91.6452773 | Y17: 91.6452773 | Z17: 91.6452773 | AA17: 91.6452773 | AB17: 91.6452773 | AC17: 91.6452773 | AD17: 91.6452773 | AE17: 91.6452773 | AF17: 91.6452773 | AG17: 91.6452773 | AH17: 91.6452773 | AI17: 91.6452773 | AJ17: 91.6452773 | AK17: 91.6452773 | AL17: 91.6452773 | AM17: 91.6452773 | AN17: 91.6452773 | AO17: 91.6452773 | AP17: 91.6452773 | AQ17: 91.6452773 | AR17: 91.6452773 | AS17: 91.6452773 | AT17: 91.6452773 | AU17: 0 | AV17: 0 | AW17: 0 | AX17: 0
E18: Floor (post-availability incentive) | G18: £m 15/16 prices | K18: =K12 *K15 -> 0 | L18: 0 | M18: 0 | N18: 0 | O18: 0 | P18: 0 | Q18: 0 | R18: 0 | S18: 0 | T18: 0 | U18: 0 | V18: 50.89681856 | W18: 50.89681856 | X18: =X12 *X15 -> 50.89681856 | Y18: 50.89681856 | Z18: 50.89681856 | AA18: 50.89681856 | AB18: 50.89681856 | AC18: 50.89681856 | AD18: 50.89681856 | AE18: 50.89681856 | AF18: 50.89681856 | AG18: 50.89681856 | AH18: 50.89681856 | AI18: 50.89681856 | AJ18: 50.89681856 | AK18: 50.89681856 | AL18: 50.89681856 | AM18: 50.89681856 | AN18: 50.89681856 | AO18: 50.89681856 | AP18: 50.89681856 | AQ18: 50.89681856 | AR18: 50.89681856 | AS18: 50.89681856 | AT18: 50.89681856 | AU18: 0 | AV18: 0 | AW18: 0 | AX18: 0
D22: Upper and lower availability limits
E24: Number of operational years | G24: =Input!G117 -> full years | I24: =Input!I117 -> 25
E25: Year is within operational period | G25: flag | K25: =AND(K3 > 0, K3<= $I24) -> FALSE | L25: FALSE | M25: FALSE | N25: FALSE | O25: FALSE | P25: FALSE | Q25: FALSE | R25: FALSE | S25: FALSE | T25: FALSE | U25: FALSE | V25: TRUE | W25: TRUE | X25: =AND(X3 > 0, X3<= $I24) -> TRUE | Y25: TRUE | Z25: TRUE | AA25: TRUE | AB25: TRUE | AC25: TRUE | AD25: TRUE | AE25: TRUE | AF25: TRUE | AG25: TRUE | AH25: TRUE | AI25: TRUE | AJ25: TRUE | AK25: TRUE | AL25: TRUE | AM25: TRUE | AN25: TRUE | AO25: TRUE | AP25: TRUE | AQ25: TRUE | AR25: TRUE | AS25: TRUE | AT25: TRUE | AU25: FALSE | AV25: FALSE | AW25: FALSE | AX25: FALSE
E27: Interconnector Rated Capacity | G27: MW | H27: RC | I27: =Input!I59 -> 1400
E28: Number of Hours in Relevant Year | G28: hours pa | I28: =Input!I60 -> 8766
D30: Cap incentive rate
E32: Cap availability incentive target | G32: =Input!G63 -> % | I32: =Input!I63 -> 0.93
E34: Maximum Possible Availability | G34: MWh | H34: MPA | K34: =$I$27*$I$28*K25 -> 0 | L34: 0 | M34: 0 | N34: 0 | O34: 0 | P34: 0 | Q34: 0 | R34: 0 | S34: 0 | T34: 0 | U34: 0 | V34: =$I$27*$I$28*V25 -> 12272400 | W34: 12272400 | X34: 12272400 | Y34: =$I$27*$I$28*Y25 -> 12272400 | Z34: 12272400 | AA34: 12272400 | AB34: 12272400 | AC34: 12272400 | AD34: 12272400 | AE34: 12272400 | AF34: 12272400 | AG34: 12272400 | AH34: 12272400 | AI34: 12272400 | AJ34: 12272400 | AK34: 12272400 | AL34: 12272400 | AM34: 12272400 | AN34: 12272400 | AO34: 12272400 | AP34: 12272400 | AQ34: 12272400 | AR34: 12272400 | AS34: 12272400 | AT34: 12272400 | AU34: 0 | AV34: 0 | AW34: 0 | AX34: 0
E35: Total Interconnector Outages less Allowed Outages during Active Cap Period | G35: MWh | H35: IOt | K35: =Input!K69 -> 0 | L35: =Input!L69 -> 0 | M35: =Input!M69 -> 0 | N35: =Input!N69 -> 0 | O35: =Input!O69 -> 0 | P35: =Input!P69 -> 0 | Q35: =Input!Q69 -> 0 | R35: =Input!R69 -> 0 | S35: =Input!S69 -> 0 | T35: =Input!T69 -> 0 | U35: =Input!U69 -> 0 | V35: =Input!V69 -> 0 | W35: =Input!W69 -> 0 | X35: =Input!X69 -> 0 | Y35: =Input!Y69 -> 0 | Z35: =Input!Z69 -> 0 | AA35: =Input!AA69 -> 0 | AB35: =Input!AB69 -> 0 | AC35: =Input!AC69 -> 0 | AD35: =Input!AD69 -> 0 | AE35: =Input!AE69 -> 0 | AF35: =Input!AF69 -> 0 | AG35: =Input!AG69 -> 0 | AH35: =Input!AH69 -> 0 | AI35: =Input!AI69 -> 0 | AJ35: =Input!AJ69 -> 0 | AK35: =Input!AK69 -> 0 | AL35: =Input!AL69 -> 0 | AM35: =Input!AM69 -> 0 | AN35: =Input!AN69 -> 0 | AO35: =Input!AO69 -> 0 | AP35: =Input!AP69 -> 0 | AQ35: =Input!AQ69 -> 0 | AR35: =Input!AR69 -> 0 | AS35: =Input!AS69 -> 0 | AT35: =Input!AT69 -> 0 | AU35: =Input!AU69 -> 0 | AV35: =Input!AV69 -> 0 | AW35: =Input!AW69 -> 0 | AX35: =Input!AX69 -> 0
E36: Actual Availability for Cap | G36: MWh | H36: AACt (AAt) | K36: =K34-K35 -> 0 | L36: 0 | M36: 0 | N36: 0 | O36: 0 | P36: 0 | Q36: 0 | R36: 0 | S36: 0 | T36: 0 | U36: 0 | V36: 12272400 | W36: 12272400 | X36: 12272400 | Y36: =Y34-Y35 -> 12272400 | Z36: 12272400 | AA36: 12272400 | AB36: 12272400 | AC36: 12272400 | AD36: 12272400 | AE36: 12272400 | AF36: 12272400 | AG36: 12272400 | AH36: 12272400 | AI36: 12272400 | AJ36: 12272400 | AK36: 12272400 | AL36: 12272400 | AM36: 12272400 | AN36: 12272400 | AO36: 12272400 | AP36: 12272400 | AQ36: 12272400 | AR36: 12272400 | AS36: 12272400 | AT36: 12272400 | AU36: 0 | AV36: 0 | AW36: 0 | AX36: 0
E37: Availability Target | G37: MWh | H37: AT | K37: =$I28*$I27*$I32*K25 -> 0 | L37: 0 | M37: 0 | N37: 0 | O37: 0 | P37: 0 | Q37: 0 | R37: 0 | S37: 0 | T37: 0 | U37: 0 | V37: 11413332 | W37: 11413332 | X37: 11413332 | Y37: =$I28*$I27*$I32*Y25 -> 11413332 | Z37: 11413332 | AA37: 11413332 | AB37: 11413332 | AC37: 11413332 | AD37: 11413332 | AE37: 11413332 | AF37: 11413332 | AG37: 11413332 | AH37: 11413332 | AI37: 11413332 | AJ37: 11413332 | AK37: 11413332 | AL37: 11413332 | AM37: 11413332 | AN37: 11413332 | AO37: 11413332 | AP37: 11413332 | AQ37: 11413332 | AR37: 11413332 | AS37: 11413332 | AT37: 11413332 | AU37: 0 | AV37: 0 | AW37: 0 | AX37: 0
E38: Availability Performance at Cap | G38: scalar | H38: APCt | K38: =IF(K37=0,0,K36/K37) -> 0 | L38: 0 | M38: 0 | N38: 0 | O38: 0 | P38: 0 | Q38: 0 | R38: 0 | S38: 0 | T38: 0 | U38: 0 | V38: 1.075268817 | W38: 1.075268817 | X38: 1.075268817 | Y38: =IF(Y37=0,0,Y36/Y37) -> 1.075268817 | Z38: 1.075268817 | AA38: 1.075268817 | AB38: 1.075268817 | AC38: 1.075268817 | AD38: 1.075268817 | AE38: 1.075268817 | AF38: 1.075268817 | AG38: 1.075268817 | AH38: 1.075268817 | AI38: 1.075268817 | AJ38: 1.075268817 | AK38: 1.075268817 | AL38: 1.075268817 | AM38: 1.075268817 | AN38: 1.075268817 | AO38: 1.075268817 | AP38: 1.075268817 | AQ38: 1.075268817 | AR38: 1.075268817 | AS38: 1.075268817 | AT38: 1.075268817 | AU38: 0 | AV38: 0 | AW38: 0 | AX38: 0
E40: Cap availability incentive upper limit | G40: =Input!G64 -> scalar | I40: =Input!I64 -> 1.02
E41: Cap availability incentive lower limit | G41: =Input!G65 -> scalar | I41: =Input!I65 -> 0.98
E44: Cap availability incentive rate | G44: scalar | H44: AICt | K44: =IF(K38>$I40,$I40,IF(K38<$I41,$I41,K38))*K25 -> 0 | L44: 0 | M44: 0 | N44: 0 | O44: 0 | P44: 0 | Q44: 0 | R44: 0 | S44: 0 | T44: 0 | U44: 0 | V44: 1.02 | W44: 1.02 | X44: 1.02 | Y44: =IF(Y38>$I40,$I40,IF(Y38<$I41,$I41,Y38))*Y25 -> 1.02 | Z44: 1.02 | AA44: 1.02 | AB44: 1.02 | AC44: 1.02 | AD44: 1.02 | AE44: 1.02 | AF44: 1.02 | AG44: 1.02 | AH44: 1.02 | AI44: 1.02 | AJ44: 1.02 | AK44: 1.02 | AL44: 1.02 | AM44: 1.02 | AN44: 1.02 | AO44: 1.02 | AP44: 1.02 | AQ44: 1.02 | AR44: 1.02 | AS44: 1.02 | AT44: 1.02 | AU44: 0 | AV44: 0 | AW44: 0 | AX44: 0
C46: Floor incentive rate
E49: Floor availability incentive target | G49: % | I49: =Input!I75 -> 0.8
E50: Maximum Possible Availability | G50: MWh | H50: MPA | K50: =$I$27*$I$28*K25 -> 0 | L50: 0 | M50: 0 | N50: 0 | O50: 0 | P50: 0 | Q50: 0 | R50: 0 | S50: 0 | T50: 0 | U50: 0 | V50: 12272400 | W50: 12272400 | X50: =$I$27*$I$28*X25 -> 12272400 | Y50: 12272400 | Z50: 12272400 | AA50: 12272400 | AB50: 12272400 | AC50: 12272400 | AD50: 12272400 | AE50: 12272400 | AF50: 12272400 | AG50: 12272400 | AH50: 12272400 | AI50: 12272400 | AJ50: 12272400 | AK50: 12272400 | AL50: 12272400 | AM50: 12272400 | AN50: 12272400 | AO50: 12272400 | AP50: 12272400 | AQ50: 12272400 | AR50: 12272400 | AS50: 12272400 | AT50: 12272400 | AU50: =$I$27*$I$28*AU25 -> 0 | AV50: =$I$27*$I$28*AV25 -> 0 | AW50: 0 | AX50: 0
E51: Total Interconnector Outages less Allowed Outages during Active Floor Period | G51: MWh | H51: IOt | K51: =Input!K72 -> 0 | L51: =Input!L72 -> 0 | M51: =Input!M72 -> 0 | N51: =Input!N72 -> 0 | O51: =Input!O72 -> 0 | P51: =Input!P72 -> 0 | Q51: =Input!Q72 -> 0 | R51: =Input!R72 -> 0 | S51: =Input!S72 -> 0 | T51: =Input!T72 -> 0 | U51: =Input!U72 -> 0 | V51: =Input!V72 -> 0 | W51: =Input!W72 -> 0 | X51: =Input!X72 -> 0 | Y51: =Input!Y72 -> 0 | Z51: =Input!Z72 -> 0 | AA51: =Input!AA72 -> 0 | AB51: =Input!AB72 -> 0 | AC51: =Input!AC72 -> 0 | AD51: =Input!AD72 -> 0 | AE51: =Input!AE72 -> 0 | AF51: =Input!AF72 -> 0 | AG51: =Input!AG72 -> 0 | AH51: =Input!AH72 -> 0 | AI51: =Input!AI72 -> 0 | AJ51: =Input!AJ72 -> 0 | AK51: =Input!AK72 -> 0 | AL51: =Input!AL72 -> 0 | AM51: =Input!AM72 -> 0 | AN51: =Input!AN72 -> 0 | AO51: =Input!AO72 -> 0 | AP51: =Input!AP72 -> 0 | AQ51: =Input!AQ72 -> 0 | AR51: =Input!AR72 -> 0 | AS51: =Input!AS72 -> 0 | AT51: =Input!AT72 -> 0 | AU51: =Input!AU72 -> 0 | AV51: =Input!AV72 -> 0 | AW51: =Input!AW72 -> 0 | AX51: =Input!AX72 -> 0
E52: Outages associated with Exceptional Events | G52: MWh | K52: =Input!K73 -> 0 | L52: =Input!L73 -> 0 | M52: =Input!M73 -> 0 | N52: =Input!N73 -> 0 | O52: =Input!O73 -> 0 | P52: =Input!P73 -> 0 | Q52: =Input!Q73 -> 0 | R52: =Input!R73 -> 0 | S52: =Input!S73 -> 0 | T52: =Input!T73 -> 0 | U52: =Input!U73 -> 0 | V52: =Input!V73 -> 0 | W52: =Input!W73 -> 0 | X52: =Input!X73 -> 0 | Y52: =Input!Y73 -> 0 | Z52: =Input!Z73 -> 0 | AA52: =Input!AA73 -> 0 | AB52: =Input!AB73 -> 0 | AC52: =Input!AC73 -> 0 | AD52: =Input!AD73 -> 0 | AE52: =Input!AE73 -> 0 | AF52: =Input!AF73 -> 0 | AG52: =Input!AG73 -> 0 | AH52: =Input!AH73 -> 0 | AI52: =Input!AI73 -> 0 | AJ52: =Input!AJ73 -> 0 | AK52: =Input!AK73 -> 0 | AL52: =Input!AL73 -> 0 | AM52: =Input!AM73 -> 0 | AN52: =Input!AN73 -> 0 | AO52: =Input!AO73 -> 0 | AP52: =Input!AP73 -> 0 | AQ52: =Input!AQ73 -> 0 | AR52: =Input!AR73 -> 0 | AS52: =Input!AS73 -> 0 | AT52: =Input!AT73 -> 0 | AU52: =Input!AU73 -> 0 | AV52: =Input!AV73 -> 0 | AW52: =Input!AW73 -> 0 | AX52: =Input!AX73 -> 0
E53: Actual Availability for Floor | G53: MWh | H53: AAFt (AAt) | K53: =K50-K51+K52 -> 0 | L53: 0 | M53: 0 | N53: 0 | O53: 0 | P53: 0 | Q53: 0 | R53: 0 | S53: 0 | T53: 0 | U53: 0 | V53: 12272400 | W53: 12272400 | X53: =X50-X51+X52 -> 12272400 | Y53: 12272400 | Z53: 12272400 | AA53: 12272400 | AB53: 12272400 | AC53: 12272400 | AD53: 12272400 | AE53: 12272400 | AF53: 12272400 | AG53: 12272400 | AH53: 12272400 | AI53: 12272400 | AJ53: 12272400 | AK53: 12272400 | AL53: 12272400 | AM53: 12272400 | AN53: 12272400 | AO53: 12272400 | AP53: 12272400 | AQ53: 12272400 | AR53: 12272400 | AS53: 12272400 | AT53: 12272400 | AU53: 0 | AV53: 0 | AW53: 0 | AX53: 0
E54: Minimum Availability Target | G54: MWh | H54: MAT | K54: =$I28*$I27*$I49*K$25 -> 0 | L54: 0 | M54: 0 | N54: 0 | O54: 0 | P54: 0 | Q54: 0 | R54: 0 | S54: 0 | T54: 0 | U54: 0 | V54: 9817920 | W54: 9817920 | X54: =$I28*$I27*$I49*X$25 -> 9817920 | Y54: 9817920 | Z54: 9817920 | AA54: 9817920 | AB54: 9817920 | AC54: 9817920 | AD54: 9817920 | AE54: 9817920 | AF54: 9817920 | AG54: 9817920 | AH54: 9817920 | AI54: 9817920 | AJ54: 9817920 | AK54: 9817920 | AL54: 9817920 | AM54: 9817920 | AN54: 9817920 | AO54: 9817920 | AP54: 9817920 | AQ54: 9817920 | AR54: 9817920 | AS54: 9817920 | AT54: 9817920 | AU54: 0 | AV54: 0 | AW54: 0 | AX54: 0
E55: Availability Performance at Floor | G55: scalar | H55: APFt | K55: =IF(K54=0,0,K53/K54) -> 0 | L55: 0 | M55: 0 | N55: 0 | O55: 0 | P55: 0 | Q55: 0 | R55: 0 | S55: 0 | T55: 0 | U55: 0 | V55: 1.25 | W55: 1.25 | X55: =IF(X54=0,0,X53/X54) -> 1.25 | Y55: 1.25 | Z55: 1.25 | AA55: 1.25 | AB55: 1.25 | AC55: 1.25 | AD55: 1.25 | AE55: 1.25 | AF55: 1.25 | AG55: 1.25 | AH55: 1.25 | AI55: 1.25 | AJ55: 1.25 | AK55: 1.25 | AL55: 1.25 | AM55: 1.25 | AN55: 1.25 | AO55: 1.25 | AP55: 1.25 | AQ55: 1.25 | AR55: 1.25 | AS55: 1.25 | AT55: 1.25 | AU55: 0 | AV55: 0 | AW55: 0 | AX55: 0
E58: Floor availability incentive rate | G58: =G55 -> scalar | H58: AIFt | K58: =IF(K55<1,0,1) -> 0 | L58: 0 | M58: 0 | N58: 0 | O58: 0 | P58: 0 | Q58: 0 | R58: 0 | S58: 0 | T58: 0 | U58: 0 | V58: 1 | W58: 1 | X58: =IF(X55<1,0,1) -> 1 | Y58: 1 | Z58: 1 | AA58: 1 | AB58: 1 | AC58: 1 | AD58: 1 | AE58: 1 | AF58: 1 | AG58: 1 | AH58: 1 | AI58: 1 | AJ58: 1 | AK58: 1 | AL58: 1 | AM58: 1 | AN58: 1 | AO58: 1 | AP58: 1 | AQ58: 1 | AR58: 1 | AS58: 1 | AT58: 1 | AU58: 0 | AV58: 0 | AW58: 0 | AX58: 0
B60: End of sheet

Sheet Assessment
A1: Assessment | H1: Licence
E2: Parameter | G2: Units | H2: Terminology | I2: Constant | K2: Annual values
E3: Project year | K3: =Input!K8 -> -10 | L3: =K3 + 1 -> -9 | M3: -8 | N3: -7 | O3: -6 | P3: -5 | Q3: -4 | R3: -3 | S3: -2 | T3: -1 | U3: 0 | V3: 1 | W3: 2 | X3: 3 | Y3: 4 | Z3: 5 | AA3: 6 | AB3: 7 | AC3: 8 | AD3: 9 | AE3: 10 | AF3: 11 | AG3: 12 | AH3: 13 | AI3: 14 | AJ3: 15 | AK3: 16 | AL3: 17 | AM3: 18 | AN3: 19 | AO3: 20 | AP3: 21 | AQ3: 22 | AR3: 23 | AS3: 24 | AT3: 25 | AU3: 26 | AV3: 27 | AW3: 28 | AX3: 29
E4: Year commencing | K4: =Input!K9 -> 2010-04-01 | L4: =+K5+1 -> 2011-04-01 | M4: =+L5+1 -> 2012-04-01 | N4: =+M5+1 -> 2013-04-01 | O4: 2014-04-01 | P4: 2015-04-01 | Q4: 2016-04-01 | R4: 2017-04-01 | S4: 2018-04-01 | T4: 2019-04-01 | U4: 2020-04-01 | V4: 2021-04-01 | W4: 2022-04-01 | X4: 2023-04-01 | Y4: 2024-04-01 | Z4: 2025-04-01 | AA4: 2026-04-01 | AB4: 2027-04-01 | AC4: 2028-04-01 | AD4: 2029-04-01 | AE4: 2030-04-01 | AF4: 2031-04-01 | AG4: 2032-04-01 | AH4: 2033-04-01 | AI4: 2034-04-01 | AJ4: 2035-04-01 | AK4: 2036-04-01 | AL4: 2037-04-01 | AM4: 2038-04-01 | AN4: 2039-04-01 | AO4: 2040-04-01 | AP4: 2041-04-01 | AQ4: 2042-04-01 | AR4: 2043-04-01 | AS4: 2044-04-01 | AT4: 2045-04-01 | AU4: 2046-04-01 | AV4: 2047-04-01 | AW4: 2048-04-01 | AX4: 2049-04-01
E5: Year ending | K5: =Input!K10 -> 2011-03-31 | L5: =DATE(YEAR(K5) + 1, MONTH(K5), DAY(K5)) -> 2012-03-31 | M5: 2013-03-31 | N5: 2014-03-31 | O5: 2015-03-31 | P5: 2016-03-31 | Q5: 2017-03-31 | R5: 2018-03-31 | S5: 2019-03-31 | T5: 2020-03-31 | U5: 2021-03-31 | V5: 2022-03-31 | W5: 2023-03-31 | X5: 2024-03-31 | Y5: 2025-03-31 | Z5: 2026-03-31 | AA5: 2027-03-31 | AB5: 2028-03-31 | AC5: 2029-03-31 | AD5: 2030-03-31 | AE5: 2031-03-31 | AF5: 2032-03-31 | AG5: 2033-03-31 | AH5: 2034-03-31 | AI5: 2035-03-31 | AJ5: 2036-03-31 | AK5: 2037-03-31 | AL5: 2038-03-31 | AM5: 2039-03-31 | AN5: 2040-03-31 | AO5: 2041-03-31 | AP5: 2042-03-31 | AQ5: 2043-03-31 | AR5: 2044-03-31 | AS5: 2045-03-31 | AT5: 2046-03-31 | AU5: 2047-03-31 | AV5: 2048-03-31 | AW5: 2049-03-31 | AX5: 2050-03-31
B7: Assessment
C9: NPVs
D11: NPV factors
H12: ='RPI and currency'!E11 -> 2015/16 RPI inflation index value (CHAW)
E13: RPI index | G13: scalar | H13: Jan 1987 = 100 | I13: ='RPI and currency'!I11 -> 259.433 | V13: =Input!V98 -> 304.5801478 | W13: =Input!W98 -> 312.8342698 | X13: =Input!X98 -> 321.3120785 | Y13: =Input!Y98 -> 330.0196358 | Z13: =Input!Z98 -> 338.9631679 | AA13: =Input!AA98 -> 348.1490698 | AB13: =Input!AB98 -> 357.5839096 | AC13: =Input!AC98 -> 367.2744335 | AD13: =Input!AD98 -> 377.2275707 | AE13: =Input!AE98 -> 387.4504378 | AF13: =Input!AF98 -> 397.9503447 | AG13: =Input!AG98 -> 408.7347991 | AH13: =Input!AH98 -> 419.8115121 | AI13: =Input!AI98 -> 431.1884041 | AJ13: =Input!AJ98 -> 442.8736098 | AK13: =Input!AK98 -> 454.8754847 | AL13: =Input!AL98 -> 467.2026103 | AM13: =Input!AM98 -> 479.863801 | AN13: =Input!AN98 -> 492.86811 | AO13: =Input!AO98 -> 506.2248358 | AP13: =Input!AP98 -> 519.9435289 | AQ13: =Input!AQ98 -> 534.0339985 | AR13: =Input!AR98 -> 548.5063199 | AS13: =Input!AS98 -> 563.3708411 | AT13: =Input!AT98 -> 578.6381909 | AU13: =Input!AU98 -> 594.3192859 | AV13: =Input!AV98 -> 610.4253386 | AW13: =Input!AW98 -> 626.9678652 | AX13: =Input!AX98 -> 643.9586944
E14: RPI index increase | G14: annual % | W14: =W13/V13-1 -> 0.0271 | X14: =X13/W13-1 -> 0.0271 | Y14: =Y13/X13-1 -> 0.0271 | Z14: 0.0271 | AA14: =AA13/Z13-1 -> 0.0271 | AB14: 0.0271 | AC14: 0.0271 | AD14: 0.0271 | AE14: 0.0271 | AF14: 0.0271 | AG14: 0.0271 | AH14: 0.0271 | AI14: 0.0271 | AJ14: 0.0271 | AK14: 0.0271 | AL14: 0.0271 | AM14: 0.0271 | AN14: 0.0271 | AO14: 0.0271 | AP14: 0.0271 | AQ14: 0.0271 | AR14: 0.0271 | AS14: 0.0271 | AT14: 0.0271 | AU14: 0.0271 | AV14: 0.0271 | AW14: 0.0271 | AX14: 0.0271
E15: Operational discount rate | G15: =Input!G45 -> real annual % | H15: ODRt | I15: =Input!I45 -> 0.044275
E16: Operational discount rate | G16: nominal % | H16: NODRt | W16: =(1+$I15)*(1+W14)-1 -> 0.0725748525 | X16: =(1+$I15)*(1+X14)-1 -> 0.0725748525 | Y16: 0.0725748525 | Z16: 0.0725748525 | AA16: 0.0725748525 | AB16: 0.0725748525 | AC16: 0.0725748525 | AD16: 0.0725748525 | AE16: 0.0725748525 | AF16: 0.0725748525 | AG16: 0.0725748525 | AH16: 0.0725748525 | AI16: 0.0725748525 | AJ16: 0.0725748525 | AK16: 0.0725748525 | AL16: 0.0725748525 | AM16: 0.0725748525 | AN16: 0.0725748525 | AO16: 0.0725748525 | AP16: 0.0725748525 | AQ16: 0.0725748525 | AR16: 0.0725748525 | AS16: 0.0725748525 | AT16: 0.0725748525 | AU16: 0.0725748525 | AV16: 0.0725748525 | AW16: 0.0725748525 | AX16: 0.0725748525
E18: Five year uplift factor | G18: scalar | H18: UFt1 | I18: =(1 + $I$15) * I19 -> 1.189212661 | V18: 0 | W18: 0 | X18: 0 | Y18: 0 | Z18: =(1+W16)*(1+X16)*(1+Y16)*(1+Z16) -> 1.323458846 | AA18: 0 | AB18: 0 | AC18: 0 | AD18: 0 | AE18: =(1+AB16)*(1+AC16)*(1+AD16)*(1+AE16) -> 1.323458846 | AF18: 0 | AG18: 0 | AH18: 0 | AI18: 0 | AJ18: =(1+AG16)*(1+AH16)*(1+AI16)*(1+AJ16) -> 1.323458846 | AK18: 0 | AL18: 0 | AM18: 0 | AN18: 0 | AO18: =(1+AL16)*(1+AM16)*(1+AN16)*(1+AO16) -> 1.323458846 | AP18: 0 | AQ18: 0 | AR18: 0 | AS18: 0 | AT18: =(1+AQ16)*(1+AR16)*(1+AS16)*(1+AT16) -> 1.323458846 | AU18: 0 | AV18: 0 | AW18: 0 | AX18: 0 | AZ18: =(1+AW16)*(1+AX16)*(1+AY16)*(1+AZ16) -> 1.150416814
E19: Four year uplift factor | G19: scalar | H19: UFt2 | I19: 1.138792618 | V19: 0 | W19: 0 | X19: 0 | Y19: =(1+W16)*(1+X16)*(1+Y16) -> 1.233908145 | Z19: =(1+X16)*(1+Y16)*(1+Z16) -> 1.233908145 | AA19: 0 | AB19: 0 | AC19: 0 | AD19: =(1+AB16)*(1+AC16)*(1+AD16) -> 1.233908145 | AE19: =(1+AC16)*(1+AD16)*(1+AE16) -> 1.233908145 | AF19: 0 | AG19: 0 | AH19: 0 | AI19: =(1+AG16)*(1+AH16)*(1+AI16) -> 1.233908145 | AJ19: =(1+AH16)*(1+AI16)*(1+AJ16) -> 1.233908145 | AK19: 0 | AL19: 0 | AM19: 0 | AN19: =(1+AL16)*(1+AM16)*(1+AN16) -> 1.233908145 | AO19: =(1+AM16)*(1+AN16)*(1+AO16) -> 1.233908145 | AP19: 0 | AQ19: 0 | AR19: 0 | AS19: =(1+AQ16)*(1+AR16)*(1+AS16) -> 1.233908145 | AT19: =(1+AR16)*(1+AS16)*(1+AT16) -> 1.233908145 | AU19: 0 | AV19: 0 | AW19: 0 | AX19: =(1+AV16)*(1+AW16)*(1+AX16) -> 1.233908145 | AZ19: =(1+AX16)*(1+AY16)*(1+AZ16) -> 1.072574853
E20: Three year uplift factor | G20: scalar | H20: UFt3 | I20: 1.090510276 | V20: 0 | W20: 0 | X20: =(1+W16)*(1+X16) -> 1.150416814 | Y20: =(1+X16)*(1+Y16) -> 1.150416814 | Z20: =(1+Y16)*(1+Z16) -> 1.150416814 | AA20: 0 | AB20: 0 | AC20: =(1+AB16)*(1+AC16) -> 1.150416814 | AD20: =(1+AC16)*(1+AD16) -> 1.150416814 | AE20: =(1+AD16)*(1+AE16) -> 1.150416814 | AF20: 0 | AG20: 0 | AH20: =(1+AG16)*(1+AH16) -> 1.150416814 | AI20: =(1+AH16)*(1+AI16) -> 1.150416814 | AJ20: =(1+AI16)*(1+AJ16) -> 1.150416814 | AK20: 0 | AL20: 0 | AM20: =(1+AL16)*(1+AM16) -> 1.150416814 | AN20: =(1+AM16)*(1+AN16) -> 1.150416814 | AO20: =(1+AN16)*(1+AO16) -> 1.150416814 | AP20: 0 | AQ20: 0 | AR20: =(1+AQ16)*(1+AR16) -> 1.150416814 | AS20: =(1+AR16)*(1+AS16) -> 1.150416814 | AT20: =(1+AS16)*(1+AT16) -> 1.150416814 | AU20: 0 | AV20: 0 | AW20: =(1+AV16)*(1+AW16) -> 1.150416814 | AX20: =(1+AW16)*(1+AX16) -> 1.150416814 | AZ20: =(1+AY16)*(1+AZ16) -> 1
E21: Two year uplift factor | G21: scalar | H21: UFt4 | I21: =(1 + $I$15) * I22 -> 1.044275 | V21: 0 | W21: =(1+W16) -> 1.072574853 | X21: =(1+X16) -> 1.072574853 | Y21: =(1+Y16) -> 1.072574853 | Z21: =(1+Z16) -> 1.072574853 | AA21: 0 | AB21: =(1+AB16) -> 1.072574853 | AC21: =(1+AC16) -> 1.072574853 | AD21: =(1+AD16) -> 1.072574853 | AE21: =(1+AE16) -> 1.072574853 | AF21: 0 | AG21: =(1+AG16) -> 1.072574853 | AH21: =(1+AH16) -> 1.072574853 | AI21: =(1+AI16) -> 1.072574853 | AJ21: =(1+AJ16) -> 1.072574853 | AK21: 0 | AL21: =(1+AL16) -> 1.072574853 | AM21: =(1+AM16) -> 1.072574853 | AN21: =(1+AN16) -> 1.072574853 | AO21: =(1+AO16) -> 1.072574853 | AP21: 0 | AQ21: =(1+AQ16) -> 1.072574853 | AR21: =(1+AR16) -> 1.072574853 | AS21: =(1+AS16) -> 1.072574853 | AT21: =(1+AT16) -> 1.072574853 | AU21: 0 | AV21: =(1+AV16) -> 1.072574853 | AW21: =(1+AW16) -> 1.072574853 | AX21: =(1+AX16) -> 1.072574853 | AZ21: =(1+AZ16) -> 1
E22: One year uplift factor | G22: scalar | H22: UFt5 | I22: 1 | V22: =$I22 -> 1 | W22: =$I22 -> 1 | X22: =$I22 -> 1 | Y22: 1 | Z22: 1 | AA22: =$I22 -> 1 | AB22: =$I22 -> 1 | AC22: =$I22 -> 1 | AD22: 1 | AE22: 1 | AF22: =$I22 -> 1 | AG22: =$I22 -> 1 | AH22: =$I22 -> 1 | AI22: 1 | AJ22: 1 | AK22: =$I22 -> 1 | AL22: =$I22 -> 1 | AM22: =$I22 -> 1 | AN22: 1 | AO22: 1 | AP22: =$I22 -> 1 | AQ22: =$I22 -> 1 | AR22: =$I22 -> 1 | AS22: 1 | AT22: 1 | AU22: =$I22 -> 1 | AV22: =$I22 -> 1 | AW22: =$I22 -> 1 | AX22: 1 | AZ22: 1
D24: Revenues and WPA's
E26: Gross congestion revenues (net of market-related costs) | G26: £m nominal | H26: NARt | V26: =Input!V26 -> 82.61896594 | W26: =Input!W26 -> 84.85793992 | X26: =Input!X26 -> 87.15759009 | Y26: =Input!Y26 -> 89.51956078 | Z26: =Input!Z26 -> 91.94554088 | AA26: =Input!AA26 -> 94.43726504 | AB26: =Input!AB26 -> 96.99651492 | AC26: =Input!AC26 -> 99.62512048 | AD26: =Input!AD26 -> 102.3249612 | AE26: =Input!AE26 -> 105.0979677 | AF26: =Input!AF26 -> 107.9461226 | AG26: =Input!AG26 -> 110.8714625 | AH26: =Input!AH26 -> 113.8760792 | AI26: =Input!AI26 -> 116.9621209 | AJ26: =Input!AJ26 -> 120.1317944 | AK26: =Input!AK26 -> 123.387366 | AL26: =Input!AL26 -> 126.7311636 | AM26: =Input!AM26 -> 130.1655782 | AN26: =Input!AN26 -> 133.6930653 | AO26: =Input!AO26 -> 137.3161474 | AP26: =Input!AP26 -> 141.037415 | AQ26: =Input!AQ26 -> 144.859529 | AR26: =Input!AR26 -> 148.7852222 | AS26: =Input!AS26 -> 152.8173017 | AT26: =Input!AT26 -> 156.9586506
E27: Notional Floor (pre-availability incentive) | G27: £m nominal | H27: NFLt | V27: =Availability!V12*V13/$I$13 -> 59.754004 | W27: =Availability!W12*W13/$I$13 -> 61.37333751 | X27: =Availability!X12*X13/$I$13 -> 63.03655495 | Y27: =Availability!Y12*Y13/$I$13 -> 64.74484559 | Z27: =Availability!Z12*Z13/$I$13 -> 66.49943091 | AA27: =Availability!AA12*AA13/$I$13 -> 68.30156548 | AB27: =Availability!AB12*AB13/$I$13 -> 70.15253791 | AC27: =Availability!AC12*AC13/$I$13 -> 72.05367169 | AD27: =Availability!AD12*AD13/$I$13 -> 74.00632619 | AE27: =Availability!AE12*AE13/$I$13 -> 76.01189763 | AF27: =Availability!AF12*AF13/$I$13 -> 78.07182005 | AG27: =Availability!AG12*AG13/$I$13 -> 80.18756638 | AH27: =Availability!AH12*AH13/$I$13 -> 82.36064943 | AI27: =Availability!AI12*AI13/$I$13 -> 84.59262303 | AJ27: =Availability!AJ12*AJ13/$I$13 -> 86.88508311 | AK27: =Availability!AK12*AK13/$I$13 -> 89.23966886 | AL27: =Availability!AL12*AL13/$I$13 -> 91.65806389 | AM27: =Availability!AM12*AM13/$I$13 -> 94.14199742 | AN27: =Availability!AN12*AN13/$I$13 -> 96.69324555 | AO27: =Availability!AO12*AO13/$I$13 -> 99.3136325 | AP27: =Availability!AP12*AP13/$I$13 -> 102.0050319 | AQ27: =Availability!AQ12*AQ13/$I$13 -> 104.7693683 | AR27: =Availability!AR12*AR13/$I$13 -> 107.6086182 | AS27: =Availability!AS12*AS13/$I$13 -> 110.5248117 | AT27: =Availability!AT12*AT13/$I$13 -> 113.5200341
E28: Floor (post availability incentive) | G28: £m nominal | H28: FLt | V28: =Availability!V18*V13/$I$13 -> 59.754004 | W28: =Availability!W18*W13/$I$13 -> 61.37333751 | X28: =Availability!X18*X13/$I$13 -> 63.03655495 | Y28: =Availability!Y18*Y13/$I$13 -> 64.74484559 | Z28: =Availability!Z18*Z13/$I$13 -> 66.49943091 | AA28: =Availability!AA18*AA13/$I$13 -> 68.30156548 | AB28: =Availability!AB18*AB13/$I$13 -> 70.15253791 | AC28: =Availability!AC18*AC13/$I$13 -> 72.05367169 | AD28: =Availability!AD18*AD13/$I$13 -> 74.00632619 | AE28: =Availability!AE18*AE13/$I$13 -> 76.01189763 | AF28: =Availability!AF18*AF13/$I$13 -> 78.07182005 | AG28: =Availability!AG18*AG13/$I$13 -> 80.18756638 | AH28: =Availability!AH18*AH13/$I$13 -> 82.36064943 | AI28: =Availability!AI18*AI13/$I$13 -> 84.59262303 | AJ28: =Availability!AJ18*AJ13/$I$13 -> 86.88508311 | AK28: =Availability!AK18*AK13/$I$13 -> 89.23966886 | AL28: =Availability!AL18*AL13/$I$13 -> 91.65806389 | AM28: =Availability!AM18*AM13/$I$13 -> 94.14199742 | AN28: =Availability!AN18*AN13/$I$13 -> 96.69324555 | AO28: =Availability!AO18*AO13/$I$13 -> 99.3136325 | AP28: =Availability!AP18*AP13/$I$13 -> 102.0050319 | AQ28: =Availability!AQ18*AQ13/$I$13 -> 104.7693683 | AR28: =Availability!AR18*AR13/$I$13 -> 107.6086182 | AS28: =Availability!AS18*AS13/$I$13 -> 110.5248117 | AT28: =Availability!AT18*AT13/$I$13 -> 113.5200341 | AU28: =Availability!AU18*AU13/$I$13 -> 0 | AV28: =Availability!AV18*AV13/$I$13 -> 0 | AW28: =Availability!AW18*AW13/$I$13 -> 0 | AX28: =Availability!AX18*AX13/$I$13 -> 0
E30: Notional Surplus Assessed Revenue | G30: £m nominal | H30: NSARt | V30: =IF(V28=0,V26-V27,0) -> 0 | W30: 0 | X30: 0 | Y30: 0 | Z30: 0 | AA30: 0 | AB30: 0 | AC30: 0 | AD30: 0 | AE30: 0 | AF30: 0 | AG30: 0 | AH30: 0 | AI30: 0 | AJ30: 0 | AK30: 0 | AL30: 0 | AM30: 0 | AN30: 0 | AO30: 0 | AP30: 0 | AQ30: 0 | AR30: 0 | AS30: 0 | AT30: 0 | AU30: 0 | AV30: 0 | AW30: 0 | AX30: =IF(AX28=0,AX26-AX27,0) -> 0
E31: Surplus Assessed Revenue | G31: £m nominal | H31: SARt | V31: =IF(V30>0,V30,0) -> 0 | W31: =IF(W30>0,W30,0) -> 0 | X31: 0 | Y31: 0 | Z31: 0 | AA31: 0 | AB31: 0 | AC31: 0 | AD31: 0 | AE31: 0 | AF31: 0 | AG31: 0 | AH31: 0 | AI31: 0 | AJ31: 0 | AK31: 0 | AL31: 0 | AM31: 0 | AN31: 0 | AO31: 0 | AP31: 0 | AQ31: 0 | AR31: 0 | AS31: 0 | AT31: 0 | AU31: 0 | AV31: 0 | AW31: 0 | AX31: =IF(AX30>0,AX30,0) -> 0
E33: Cap (post-availability incentive) | G33: £m nominal | H33: CLt | R33: 0 | S33: 0 | T33: 0 | U33: 0 | V33: =Availability!V17*V13/$I$13 -> 107.5936064 | W33: =Availability!W17*W13/$I$13 -> 110.5093932 | X33: =Availability!X17*X13/$I$13 -> 113.5041977 | Y33: =Availability!Y17*Y13/$I$13 -> 116.5801615 | Z33: =Availability!Z17*Z13/$I$13 -> 119.7394839 | AA33: =Availability!AA17*AA13/$I$13 -> 122.9844239 | AB33: =Availability!AB17*AB13/$I$13 -> 126.3173018 | AC33: =Availability!AC17*AC13/$I$13 -> 129.7405007 | AD33: =Availability!AD17*AD13/$I$13 -> 133.2564682 | AE33: =Availability!AE17*AE13/$I$13 -> 136.8677185 | AF33: =Availability!AF17*AF13/$I$13 -> 140.5768337 | AG33: =Availability!AG17*AG13/$I$13 -> 144.3864659 | AH33: =Availability!AH17*AH13/$I$13 -> 148.2993391 | AI33: =Availability!AI17*AI13/$I$13 -> 152.3182512 | AJ33: =Availability!AJ17*AJ13/$I$13 -> 156.4460758 | AK33: =Availability!AK17*AK13/$I$13 -> 160.6857644 | AL33: =Availability!AL17*AL13/$I$13 -> 165.0403487 | AM33: =Availability!AM17*AM13/$I$13 -> 169.5129421 | AN33: =Availability!AN17*AN13/$I$13 -> 174.1067428 | AO33: =Availability!AO17*AO13/$I$13 -> 178.8250356 | AP33: =Availability!AP17*AP13/$I$13 -> 183.671194 | AQ33: =Availability!AQ17*AQ13/$I$13 -> 188.6486834 | AR33: =Availability!AR17*AR13/$I$13 -> 193.7610627 | AS33: =Availability!AS17*AS13/$I$13 -> 199.0119875 | AT33: =Availability!AT17*AT13/$I$13 -> 204.4052124
E34: Revenue assessed for cap | G34: £m nominal | H34: =H26 -> NARt | R34: 0 | S34: 0 | T34: 0 | U34: 0 | V34: =V26 -> 82.61896594 | W34: 84.85793992 | X34: 87.15759009 | Y34: 89.51956078 | Z34: 91.94554088 | AA34: 94.43726504 | AB34: 96.99651492 | AC34: 99.62512048 | AD34: 102.3249612 | AE34: 105.0979677 | AF34: 107.9461226 | AG34: 110.8714625 | AH34: 113.8760792 | AI34: 116.9621209 | AJ34: 120.1317944 | AK34: 123.387366 | AL34: 126.7311636 | AM34: 130.1655782 | AN34: 133.6930653 | AO34: 137.3161474 | AP34: 141.037415 | AQ34: 144.859529 | AR34: 148.7852222 | AS34: 152.8173017 | AT34: 156.9586506
E35: Floor (post-availability incentive) | G35: £m nominal | H35: FLt | R35: 0 | S35: 0 | T35: 0 | U35: 0 | V35: =V28 -> 59.754004 | W35: =W28 -> 61.37333751 | X35: 63.03655495 | Y35: 64.74484559 | Z35: 66.49943091 | AA35: 68.30156548 | AB35: 70.15253791 | AC35: 72.05367169 | AD35: 74.00632619 | AE35: 76.01189763 | AF35: 78.07182005 | AG35: 80.18756638 | AH35: 82.36064943 | AI35: 84.59262303 | AJ35: 86.88508311 | AK35: 89.23966886 | AL35: 91.65806389 | AM35: 94.14199742 | AN35: 96.69324555 | AO35: 99.3136325 | AP35: 102.0050319 | AQ35: 104.7693683 | AR35: 107.6086182 | AS35: 110.5248117 | AT35: 113.5200341 | AU35: 0 | AV35: 0 | AW35: 0 | AX35: =AX28 -> 0
E36: Revenue assessed for floor | G36: £m nominal | H36: Choice of SARt or NARt | R36: 0 | S36: 0 | T36: 0 | U36: 0 | V36: =IF(V28=0,V31,V26) -> 82.61896594 | W36: 84.85793992 | X36: 87.15759009 | Y36: 89.51956078 | Z36: 91.94554088 | AA36: 94.43726504 | AB36: 96.99651492 | AC36: 99.62512048 | AD36: 102.3249612 | AE36: 105.0979677 | AF36: 107.9461226 | AG36: 110.8714625 | AH36: 113.8760792 | AI36: 116.9621209 | AJ36: 120.1317944 | AK36: 123.387366 | AL36: 126.7311636 | AM36: 130.1655782 | AN36: 133.6930653 | AO36: 137.3161474 | AP36: 141.037415 | AQ36: 144.859529 | AR36: 148.7852222 | AS36: 152.8173017 | AT36: 156.9586506 | AU36: 0 | AV36: 0 | AW36: 0 | AX36: =IF(AX28=0,AX31,AX26) -> 0
E37: Within-period adjustment (assessed) | G37: £m nominal | H37: WPAt | R37: 0 | S37: 0 | T37: 0 | U37: 0 | V37: =Input!V27 -> 0 | W37: =Input!W27 -> 0 | X37: =Input!X27 -> 0 | Y37: =Input!Y27 -> 0 | Z37: =Input!Z27 -> 0 | AA37: =Input!AA27 -> 0 | AB37: =Input!AB27 -> 0 | AC37: =Input!AC27 -> 0 | AD37: =Input!AD27 -> 0 | AE37: =Input!AE27 -> 0 | AF37: =Input!AF27 -> 0 | AG37: =Input!AG27 -> 0 | AH37: =Input!AH27 -> 0 | AI37: =Input!AI27 -> 0 | AJ37: =Input!AJ27 -> 0 | AK37: =Input!AK27 -> 0 | AL37: =Input!AL27 -> 0 | AM37: =Input!AM27 -> 0 | AN37: =Input!AN27 -> 0 | AO37: =Input!AO27 -> 0 | AP37: =Input!AP27 -> 0 | AQ37: =Input!AQ27 -> 0 | AR37: =Input!AR27 -> 0 | AS37: =Input!AS27 -> 0 | AT37: =Input!AT27 -> 0
D39: NPV
E41: Cap (post-availability incentive) NPV | G41: £m nominal | H41: CLNap | V41: =MMULT(R33:V33,V$18:V$22) -> 107.5936064 | W41: =MMULT(S33:W33,W$18:W$22) -> 225.9115897 | X41: =MMULT(T33:X33,X$18:X$22) -> 355.8112878 | Y41: =MMULT(U33:Y33,Y$18:Y$22) -> 498.214401 | Z41: =MMULT(V33:Z33,Z$18:Z$22) -> 654.1117216 | AA41: =MMULT(W33:AA33,AA$18:AA$22) -> 122.9844239 | AB41: =MMULT(X33:AB33,AB$18:AB$22) -> 258.2273021 | AC41: =MMULT(Y33:AC33,AC$18:AC$22) -> 406.7086111 | AD41: =MMULT(Z33:AD33,AD$18:AD$22) -> 569.4818968 | AE41: =MMULT(AA33:AE33,AE$18:AE$22) -> 747.6796799 | AF41: =MMULT(AB33:AF33,AF$18:AF$22) -> 140.5768337 | AG41: =MMULT(AC33:AG33,AG$18:AG$22) -> 295.1656425 | AH41: =MMULT(AD33:AH33,AH$18:AH$22) -> 464.8865846 | AI41: =MMULT(AE33:AI33,AI$18:AI$22) -> 650.9439111 | AJ41: =MMULT(AF33:AJ33,AJ$18:AJ$22) -> 854.6321452 | AK41: =MMULT(AG33:AK33,AK$18:AK$22) -> 160.6857644 | AL41: =MMULT(AH33:AL33,AL$18:AL$22) -> 337.3878588 | AM41: =MMULT(AI33:AM33,AM$18:AM$22) -> 531.386675 | AN41: =MMULT(AJ33:AN33,AN$18:AN$22) -> 744.0587274 | AO41: =MMULT(AK33:AO33,AO$18:AO$22) -> 976.8837153 | AP41: =MMULT(AL33:AP33,AP$18:AP$22) -> 183.671194 | AQ41: =MMULT(AM33:AQ33,AQ$18:AQ$22) -> 385.6497873 | AR41: =MMULT(AN33:AR33,AR$18:AR$22) -> 607.3993264 | AS41: =MMULT(AO33:AS33,AS$18:AS$22) -> 850.4932304 | AT41: =MMULT(AP33:AT33,AT$18:AT$22) -> 1116.622864
E42: Revenue assessed for cap NPV | G42: £m nominal | H42: ARNap | V42: =MMULT(R34:V34,V$18:V$22) -> 82.61896594 | W42: 173.4729651 | X42: 273.2203301 | Y42: 382.568816 | Z42: 502.2792323 | AA42: 94.43726504 | AB42: 198.2875505 | AC42: 312.3033608 | AD42: 437.2936923 | AE42: =MMULT(AA34:AE34,AE$18:AE$22) -> 574.1281852 | AF42: 107.9461226 | AG42: 226.6517591 | AH42: 356.9770562 | AI42: 499.8467344 | AJ42: 656.2548318 | AK42: 123.387366 | AL42: 259.0733496 | AM42: 408.0411379 | AN42: 571.3477286 | AO42: 750.1293532 | AP42: 141.037415 | AQ42: 296.1327136 | AR42: 466.4097238 | AS42: 653.0766424 | AT42: 857.432234
E43: Floor (post-availability incentive) NPV | G43: £m nominal | H43: FLNap | V43: =MMULT(R35:V35,V$18:V$22) -> 59.754004 | W43: 125.4639795 | X43: 197.6060643 | Y43: 276.6921409 | Z43: 363.2724631 | AA43: 68.30156548 | AB43: 143.4110794 | AC43: 225.8727891 | AD43: 316.2717996 | AE43: =MMULT(AA35:AE35,AE$18:AE$22) -> 415.2370764 | AF43: 78.07182005 | AG43: 163.9254373 | AH43: 258.1829511 | AI43: 361.5131637 | AJ43: 474.6350114 | AK43: 89.23966886 | AL43: 187.3742886 | AM43: 295.1149473 | AN43: 413.2261167 | AO43: 542.5295736 | AP43: 102.0050319 | AQ43: 214.1774004 | AR43: 337.3299118 | AS43: 472.3363922 | AT43: 620.1361703
E44: Revenue assessed for floor NPV | G44: £m nominal | H44: ARNap | V44: =MMULT(R36:V36,V$18:V$22) -> 82.61896594 | W44: 173.4729651 | X44: 273.2203301 | Y44: 382.568816 | Z44: 502.2792323 | AA44: 94.43726504 | AB44: 198.2875505 | AC44: 312.3033608 | AD44: 437.2936923 | AE44: =MMULT(AA36:AE36,AE$18:AE$22) -> 574.1281852 | AF44: 107.9461226 | AG44: 226.6517591 | AH44: 356.9770562 | AI44: 499.8467344 | AJ44: 656.2548318 | AK44: 123.387366 | AL44: 259.0733496 | AM44: 408.0411379 | AN44: 571.3477286 | AO44: 750.1293532 | AP44: 141.037415 | AQ44: 296.1327136 | AR44: 466.4097238 | AS44: 653.0766424 | AT44: 857.432234
E45: NPV within-period adjustments (assessed) | G45: £m nominal | H45: WPANap | V45: =MMULT(R37:V37,V$18:V$22) -> 0 | W45: 0 | X45: 0 | Y45: 0 | Z45: 0 | AA45: 0 | AB45: 0 | AC45: 0 | AD45: 0 | AE45: =MMULT(AA37:AE37,AE$18:AE$22) -> 0 | AF45: 0 | AG45: 0 | AH45: 0 | AI45: 0 | AJ45: 0 | AK45: 0 | AL45: 0 | AM45: 0 | AN45: 0 | AO45: 0 | AP45: 0 | AQ45: 0 | AR45: 0 | AS45: 0 | AT45: 0
A46: `
C47: Assessment
D49: Assessed adjustment
E51: Assessment period length | G51: =Input!G118 -> full years | I51: =Input!I118 -> 5
E52: Assessment year flag | G52: flag | V52: =AND(MOD(V3,$I51)=0,V3>=$I51) -> FALSE | W52: FALSE | X52: FALSE | Y52: FALSE | Z52: TRUE | AA52: FALSE | AB52: FALSE | AC52: FALSE | AD52: FALSE | AE52: TRUE | AF52: FALSE | AG52: FALSE | AH52: FALSE | AI52: FALSE | AJ52: TRUE | AK52: FALSE | AL52: FALSE | AM52: FALSE | AN52: FALSE | AO52: TRUE | AP52: FALSE | AQ52: FALSE | AR52: FALSE | AS52: FALSE | AT52: TRUE | AU52: FALSE | AV52: FALSE | AW52: FALSE | AX52: =AND(MOD(AX3,$I51)=0,AX3>=$I51) -> FALSE
E54: Relevant Revenue at Cap | G54: £m nominal | H54: RRACap | V54: =V42-V41 -> -24.9746405 | W54: =W42-W41 -> -52.43862462 | X54: -82.59095771 | Y54: -115.645585 | Z54: -151.8324893 | AA54: -28.54715885 | AB54: -59.93975154 | AC54: -94.40525034 | AD54: -132.1882044 | AE54: =AE42-AE41 -> -173.5514947 | AF54: =AF42-AF41 -> -32.63071106 | AG54: -68.51388344 | AH54: -107.9095283 | AI54: -151.0971767 | AJ54: -198.3773134 | AK54: -37.29839842 | AL54: -78.31450921 | AM54: -123.3455371 | AN54: -172.7109988 | AO54: -226.7543622 | AP54: -42.63377903 | AQ54: -89.51707369 | AR54: -140.9896026 | AS54: -197.4165881 | AT54: -259.1906296 | AU54: 0 | AV54: 0 | AW54: 0 | AX54: =AX42-AX41 -> 0
E55: Revenue Excess at Cap | G55: £m nominal | H55: RECap | V55: =IF(V54>0,V54,0) -> 0 | W55: =IF(W54>0,W54,0) -> 0 | X55: 0 | Y55: 0 | Z55: 0 | AA55: 0 | AB55: 0 | AC55: 0 | AD55: 0 | AE55: 0 | AF55: 0 | AG55: 0 | AH55: 0 | AI55: 0 | AJ55: 0 | AK55: 0 | AL55: 0 | AM55: 0 | AN55: 0 | AO55: 0 | AP55: 0 | AQ55: 0 | AR55: 0 | AS55: 0 | AT55: 0 | AU55: 0 | AV55: 0 | AW55: 0 | AX55: =IF(AX54>0,AX54,0) -> 0
E57: Relevant Revenue at Floor | G57: £m nominal | H57: RRAFap | V57: =V43-V44 -> -22.86496195 | W57: =W43-W44 -> -48.0089856 | X57: -75.61426579 | Y57: -105.8766752 | Z57: -139.0067692 | AA57: -26.13569955 | AB57: -54.87647111 | AC57: -86.43057169 | AD57: -121.0218927 | AE57: -158.8911088 | AF57: -29.87430256 | AG57: -62.72632182 | AH57: -98.79410512 | AI57: -138.3335706 | AJ57: -181.6198204 | AK57: -34.14769716 | AL57: -71.699061 | AM57: -112.9261905 | AN57: -158.1216119 | AO57: -207.5997795 | AP57: -39.03238307 | AQ57: -81.95531316 | AR57: -129.0798119 | AS57: -180.7402502 | AT57: -237.2960636 | AU57: 0 | AV57: 0 | AW57: 0 | AX57: =AX43-AX44 -> 0
E58: Revenue Shortfall at Floor | G58: £m nominal | H58: RSFap | V58: =IF(V57>0,V57,0) -> 0 | W58: =IF(W57>0,W57,0) -> 0 | X58: 0 | Y58: 0 | Z58: 0 | AA58: 0 | AB58: =IF(AB57>0,AB57,0) -> 0 | AC58: =IF(AC57>0,AC57,0) -> 0 | AD58: 0 | AE58: 0 | AF58: 0 | AG58: 0 | AH58: 0 | AI58: 0 | AJ58: 0 | AK58: 0 | AL58: 0 | AM58: 0 | AN58: 0 | AO58: 0 | AP58: 0 | AQ58: 0 | AR58: 0 | AS58: 0 | AT58: 0 | AU58: 0 | AV58: 0 | AW58: 0 | AX58: =IF(AX57>0,AX57,0) -> 0
E60: NPV within-period adjustments (assessed) | G60: £m nominal | H60: =H45 -> WPANap | V60: =V45 -> 0 | W60: =W45 -> 0 | X60: 0 | Y60: 0 | Z60: 0 | AA60: 0 | AB60: 0 | AC60: 0 | AD60: 0 | AE60: 0 | AF60: 0 | AG60: 0 | AH60: 0 | AI60: 0 | AJ60: 0 | AK60: 0 | AL60: 0 | AM60: 0 | AN60: 0 | AO60: 0 | AP60: 0 | AQ60: 0 | AR60: 0 | AS60: 0 | AT60: 0 | AU60: 0 | AV60: 0 | AW60: 0 | AX60: =AX45 -> 0
E62: End of Period Cap and Floor Revenue Adjustment - Unadjusted for End of Period | G62: £m nominal | V62: =IF(ABS(V55)>0,-V55-V60,IF(ABS(V58)>0,V58-V60,IF(AND(V55=0,V58=0,ABS(V60)>0),-V60,0))) -> 0 | W62: =IF(ABS(W55)>0,-W55-W60,IF(ABS(W58)>0,W58-W60,IF(AND(W55=0,W58=0,ABS(W60)>0),-W60,0))) -> 0 | X62: 0 | Y62: 0 | Z62: =IF(ABS(Z55)>0,-Z55-Z60,IF(ABS(Z58)>0,Z58-Z60,IF(AND(Z55=0,Z58=0,ABS(Z60)>0),-Z60,0))) -> 0 | AA62: =IF(ABS(AA55)>0,-AA55-AA60,IF(ABS(AA58)>0,AA58-AA60,IF(AND(AA55=0,AA58=0,ABS(AA60)>0),-AA60,0))) -> 0 | AB62: 0 | AC62: 0 | AD62: 0 | AE62: =IF(ABS(AE55)>0,-AE55-AE60,IF(ABS(AE58)>0,AE58-AE60,IF(AND(AE55=0,AE58=0,ABS(AE60)>0),-AE60,0))) -> 0 | AF62: =IF(ABS(AF55)>0,-AF55-AF60,IF(ABS(AF58)>0,AF58-AF60,IF(AND(AF55=0,AF58=0,ABS(AF60)>0),-AF60,0))) -> 0 | AG62: 0 | AH62: 0 | AI62: 0 | AJ62: 0 | AK62: 0 | AL62: 0 | AM62: 0 | AN62: 0 | AO62: 0 | AP62: 0 | AQ62: 0 | AR62: 0 | AS62: 0 | AT62: =IF(ABS(AT55)>0,-AT55-AT60,IF(ABS(AT58)>0,AT58-AT60,IF(AND(AT55=0,AT58=0,ABS(AT60)>0),-AT60,0))) -> 0 | AU62: =IF(ABS(AU55)>0,-AU55-AU60,IF(ABS(AU58)>0,AU58-AU60,IF(AND(AU55=0,AU58=0,ABS(AU60)>0),-AU60,0))) -> 0 | AV62: =IF(ABS(AV55)>0,-AV55-AV60,IF(ABS(AV58)>0,AV58-AV60,IF(AND(AV55=0,AV58=0,ABS(AV60)>0),-AV60,0))) -> 0 | AW62: 0 | AX62: =IF(ABS(AX55)>0,-AX55-AX60,IF(ABS(AX58)>0,AX58-AX60,IF(AND(AX55=0,AX58=0,ABS(AX60)>0),-AX60,0))) -> 0
E64: End of Period Cap and Floor Revenue Adjustment | G64: £m nominal | H64: CFAap | V64: =V62*V52 -> 0 | W64: =W62*W52 -> 0 | X64: 0 | Y64: 0 | Z64: 0 | AA64: 0 | AB64: 0 | AC64: 0 | AD64: 0 | AE64: 0 | AF64: 0 | AG64: 0 | AH64: 0 | AI64: 0 | AJ64: 0 | AK64: 0 | AL64: 0 | AM64: 0 | AN64: 0 | AO64: 0 | AP64: 0 | AQ64: 0 | AR64: 0 | AS64: 0 | AT64: 0 | AU64: 0 | AV64: 0 | AW64: 0 | AX64: =AX62*AX52 -> 0
B67: Revenue adjustment for changes from cost base case
E69: RPI index | G69: scalar | V69: =V13/$I13 -> 1.174022379 | W69: =W13/$I13 -> 1.205838385 | X69: =X13/$I13 -> 1.238516605 | Y69: 1.272080405 | Z69: 1.306553784 | AA69: 1.341961392 | AB69: 1.378328546 | AC69: 1.415681249 | AD69: 1.454046211 | AE69: 1.493450863 | AF69: 1.533923382 | AG69: 1.575492705 | AH69: 1.618188558 | AI69: 1.662041468 | AJ69: 1.707082791 | AK69: 1.753344735 | AL69: 1.800860377 | AM69: 1.849663694 | AN69: 1.89978958 | AO69: 1.951273877 | AP69: 2.004153399 | AQ69: 2.058465957 | AR69: 2.114250384 | AS69: 2.171546569 | AT69: 2.230395481 | AU69: 2.290839199 | AV69: 2.352920941 | AW69: 2.416685099 | AX69: 2.482177265
E71: Non-controllable opex (actual) | G71: £m nominal | H71: ONCOCt | V71: =Input!V20*V69 -> 0 | W71: =Input!W20*W69 -> 0 | X71: =Input!X20*X69 -> 0 | Y71: =Input!Y20*Y69 -> 0 | Z71: =Input!Z20*Z69 -> 0 | AA71: =Input!AA20*AA69 -> 0 | AB71: =Input!AB20*AB69 -> 0 | AC71: =Input!AC20*AC69 -> 0 | AD71: =Input!AD20*AD69 -> 0 | AE71: =Input!AE20*AE69 -> 0 | AF71: =Input!AF20*AF69 -> 0 | AG71: =Input!AG20*AG69 -> 0 | AH71: =Input!AH20*AH69 -> 0 | AI71: =Input!AI20*AI69 -> 0 | AJ71: =Input!AJ20*AJ69 -> 0 | AK71: =Input!AK20*AK69 -> 0 | AL71: =Input!AL20*AL69 -> 0 | AM71: =Input!AM20*AM69 -> 0 | AN71: =Input!AN20*AN69 -> 0 | AO71: =Input!AO20*AO69 -> 0 | AP71: =Input!AP20*AP69 -> 0 | AQ71: =Input!AQ20*AQ69 -> 0 | AR71: =Input!AR20*AR69 -> 0 | AS71: =Input!AS20*AS69 -> 0 | AT71: =Input!AT20*AT69 -> 0 | AU71: =Input!AU20*AU69 -> 0 | AV71: =Input!AV20*AV69 -> 0 | AW71: =Input!AW20*AW69 -> 0 | AX71: =Input!AX20*AX69 -> 0
E72: Less non-controllable opex (baseline) | G72: £m nominal | H72: BNCOCt | V72: =-Input!K35*V69 -> 0 | W72: =-Input!L35*W69 -> 0 | X72: =-Input!M35*X69 -> 0 | Y72: =-Input!N35*Y69 -> 0 | Z72: =-Input!O35*Z69 -> 0 | AA72: =-Input!P35*AA69 -> 0 | AB72: =-Input!Q35*AB69 -> 0 | AC72: =-Input!R35*AC69 -> 0 | AD72: =-Input!S35*AD69 -> 0 | AE72: =-Input!T35*AE69 -> 0 | AF72: =-Input!U35*AF69 -> 0 | AG72: =-Input!V35*AG69 -> 0 | AH72: =-Input!W35*AH69 -> 0 | AI72: =-Input!X35*AI69 -> 0 | AJ72: =-Input!Y35*AJ69 -> 0 | AK72: =-Input!Z35*AK69 -> 0 | AL72: =-Input!AA35*AL69 -> 0 | AM72: =-Input!AB35*AM69 -> 0 | AN72: =-Input!AC35*AN69 -> 0 | AO72: =-Input!AD35*AO69 -> 0 | AP72: =-Input!AE35*AP69 -> 0 | AQ72: =-Input!AF35*AQ69 -> 0 | AR72: =-Input!AG35*AR69 -> 0 | AS72: =-Input!AH35*AS69 -> 0 | AT72: =-Input!AI35*AT69 -> 0 | AU72: =-Input!AJ35*AU69 -> 0 | AV72: =-Input!AK35*AV69 -> 0 | AW72: =-Input!AL35*AW69 -> 0 | AX72: =-Input!AM35*AX69 -> 0
E73: Non-controllable costs (changes from baseline estimate) | G73: £m nominal | H73: DNCOCt | V73: =SUM(V71:V72) -> 0 | W73: =SUM(W71:W72) -> 0 | X73: 0 | Y73: 0 | Z73: 0 | AA73: 0 | AB73: 0 | AC73: 0 | AD73: 0 | AE73: 0 | AF73: 0 | AG73: 0 | AH73: 0 | AI73: 0 | AJ73: 0 | AK73: 0 | AL73: 0 | AM73: 0 | AN73: 0 | AO73: 0 | AP73: 0 | AQ73: 0 | AR73: 0 | AS73: 0 | AT73: 0 | AU73: 0 | AV73: 0 | AW73: 0 | AX73: =SUM(AX71:AX72) -> 0
E77: Total changes from baseline estimates | G77: £m nominal | H77: NCOCt | R77: 0 | S77: 0 | T77: 0 | U77: 0 | V77: =+ V73 -> 0 | W77: 0 | X77: 0 | Y77: 0 | Z77: 0 | AA77: 0 | AB77: 0 | AC77: 0 | AD77: 0 | AE77: 0 | AF77: 0 | AG77: 0 | AH77: 0 | AI77: 0 | AJ77: 0 | AK77: 0 | AL77: 0 | AM77: 0 | AN77: 0 | AO77: 0 | AP77: 0 | AQ77: 0 | AR77: 0 | AS77: 0 | AT77: 0 | AU77: 0 | AV77: 0 | AW77: 0 | AX77: =+ AX73 -> 0
E78: Pass through revenue adjustment (assessed) - Unadjusted for End of Period | G78: £m nominal | V78: =MMULT(R77:V77,V$18:V$22) -> 0 | W78: =MMULT(S77:W77,W$18:W$22) -> 0 | X78: =MMULT(T77:X77,X$18:X$22) -> 0 | Y78: =MMULT(U77:Y77,Y$18:Y$22) -> 0 | Z78: =MMULT(V77:Z77,Z$18:Z$22) -> 0 | AA78: =MMULT(W77:AA77,AA$18:AA$22) -> 0 | AB78: =MMULT(X77:AB77,AB$18:AB$22) -> 0 | AC78: =MMULT(Y77:AC77,AC$18:AC$22) -> 0 | AD78: =MMULT(Z77:AD77,AD$18:AD$22) -> 0 | AE78: =MMULT(AA77:AE77,AE$18:AE$22) -> 0 | AF78: =MMULT(AB77:AF77,AF$18:AF$22) -> 0 | AG78: =MMULT(AC77:AG77,AG$18:AG$22) -> 0 | AH78: =MMULT(AD77:AH77,AH$18:AH$22) -> 0 | AI78: =MMULT(AE77:AI77,AI$18:AI$22) -> 0 | AJ78: =MMULT(AF77:AJ77,AJ$18:AJ$22) -> 0 | AK78: =MMULT(AG77:AK77,AK$18:AK$22) -> 0 | AL78: =MMULT(AH77:AL77,AL$18:AL$22) -> 0 | AM78: =MMULT(AI77:AM77,AM$18:AM$22) -> 0 | AN78: =MMULT(AJ77:AN77,AN$18:AN$22) -> 0 | AO78: =MMULT(AK77:AO77,AO$18:AO$22) -> 0 | AP78: =MMULT(AL77:AP77,AP$18:AP$22) -> 0 | AQ78: =MMULT(AM77:AQ77,AQ$18:AQ$22) -> 0 | AR78: =MMULT(AN77:AR77,AR$18:AR$22) -> 0 | AS78: =MMULT(AO77:AS77,AS$18:AS$22) -> 0 | AT78: =MMULT(AP77:AT77,AT$18:AT$22) -> 0 | AU78: =MMULT(AQ77:AU77,AU$18:AU$22) -> 0 | AV78: =MMULT(AR77:AV77,AV$18:AV$22) -> 0 | AW78: =MMULT(AS77:AW77,AW$18:AW$22) -> 0 | AX78: =MMULT(AT77:AX77,AX$18:AX$22) -> 0
E80: End of Period Pass through revenue adjustment (assessed) | G80: £m nominal | H80: PTAap | V80: =V78*V52 -> 0 | W80: 0 | X80: 0 | Y80: 0 | Z80: 0 | AA80: 0 | AB80: 0 | AC80: 0 | AD80: 0 | AE80: 0 | AF80: 0 | AG80: 0 | AH80: 0 | AI80: 0 | AJ80: 0 | AK80: 0 | AL80: 0 | AM80: 0 | AN80: 0 | AO80: 0 | AP80: 0 | AQ80: 0 | AR80: 0 | AS80: 0 | AT80: 0 | AU80: 0 | AV80: 0 | AW80: 0 | AX80: 0
B82: End of sheet

Sheet Output
A1: Output | H1: Licence
E2: Parameter | G2: Units | H2: Terminology | I2: Constant | K2: Annual values
E3: Project year | K3: =Input!K8 -> -10 | L3: =K3 + 1 -> -9 | M3: =L3 + 1 -> -8 | N3: =M3 + 1 -> -7 | O3: =N3 + 1 -> -6 | P3: =O3 + 1 -> -5 | Q3: =P3 + 1 -> -4 | R3: =Q3 + 1 -> -3 | S3: =R3 + 1 -> -2 | T3: =S3 + 1 -> -1 | U3: =T3 + 1 -> 0 | V3: =U3 + 1 -> 1 | W3: =V3 + 1 -> 2 | X3: =W3 + 1 -> 3 | Y3: =X3 + 1 -> 4 | Z3: =Y3 + 1 -> 5 | AA3: =Z3 + 1 -> 6 | AB3: =AA3 + 1 -> 7 | AC3: =AB3 + 1 -> 8 | AD3: =AC3 + 1 -> 9 | AE3: =AD3 + 1 -> 10 | AF3: =AE3 + 1 -> 11 | AG3: =AF3 + 1 -> 12 | AH3: =AG3 + 1 -> 13 | AI3: =AH3 + 1 -> 14 | AJ3: =AI3 + 1 -> 15 | AK3: =AJ3 + 1 -> 16 | AL3: =AK3 + 1 -> 17 | AM3: =AL3 + 1 -> 18 | AN3: =AM3 + 1 -> 19 | AO3: =AN3 + 1 -> 20 | AP3: =AO3 + 1 -> 21 | AQ3: =AP3 + 1 -> 22 | AR3: =AQ3 + 1 -> 23 | AS3: =AR3 + 1 -> 24 | AT3: =AS3 + 1 -> 25 | AU3: =AT3 + 1 -> 26 | AV3: =AU3 + 1 -> 27 | AW3: =AV3 + 1 -> 28 | AX3: =AW3 + 1 -> 29
E4: Year commencing | K4: =Input!K9 -> 2010-04-01 | L4: =+K5+1 -> 2011-04-01 | M4: =+L5+1 -> 2012-04-01 | N4: =+M5+1 -> 2013-04-01 | O4: 2014-04-01 | P4: 2015-04-01 | Q4: 2016-04-01 | R4: 2017-04-01 | S4: 2018-04-01 | T4: 2019-04-01 | U4: 2020-04-01 | V4: 2021-04-01 | W4: 2022-04-01 | X4: 2023-04-01 | Y4: 2024-04-01 | Z4: 2025-04-01 | AA4: 2026-04-01 | AB4: 2027-04-01 | AC4: 2028-04-01 | AD4: 2029-04-01 | AE4: 2030-04-01 | AF4: 2031-04-01 | AG4: 2032-04-01 | AH4: 2033-04-01 | AI4: 2034-04-01 | AJ4: 2035-04-01 | AK4: 2036-04-01 | AL4: 2037-04-01 | AM4: 2038-04-01 | AN4: 2039-04-01 | AO4: 2040-04-01 | AP4: 2041-04-01 | AQ4: 2042-04-01 | AR4: 2043-04-01 | AS4: 2044-04-01 | AT4: 2045-04-01 | AU4: 2046-04-01 | AV4: 2047-04-01 | AW4: 2048-04-01 | AX4: 2049-04-01
E5: Year ending | K5: =Input!K10 -> 2011-03-31 | L5: =DATE(YEAR(K5) + 1, MONTH(K5), DAY(K5)) -> 2012-03-31 | M5: =DATE(YEAR(L5) + 1, MONTH(L5), DAY(L5)) -> 2013-03-31 | N5: =DATE(YEAR(M5) + 1, MONTH(M5), DAY(M5)) -> 2014-03-31 | O5: =DATE(YEAR(N5) + 1, MONTH(N5), DAY(N5)) -> 2015-03-31 | P5: =DATE(YEAR(O5) + 1, MONTH(O5), DAY(O5)) -> 2016-03-31 | Q5: =DATE(YEAR(P5) + 1, MONTH(P5), DAY(P5)) -> 2017-03-31 | R5: =DATE(YEAR(Q5) + 1, MONTH(Q5), DAY(Q5)) -> 2018-03-31 | S5: =DATE(YEAR(R5) + 1, MONTH(R5), DAY(R5)) -> 2019-03-31 | T5: =DATE(YEAR(S5) + 1, MONTH(S5), DAY(S5)) -> 2020-03-31 | U5: =DATE(YEAR(T5) + 1, MONTH(T5), DAY(T5)) -> 2021-03-31 | V5: =DATE(YEAR(U5) + 1, MONTH(U5), DAY(U5)) -> 2022-03-31 | W5: =DATE(YEAR(V5) + 1, MONTH(V5), DAY(V5)) -> 2023-03-31 | X5: =DATE(YEAR(W5) + 1, MONTH(W5), DAY(W5)) -> 2024-03-31 | Y5: =DATE(YEAR(X5) + 1, MONTH(X5), DAY(X5)) -> 2025-03-31 | Z5: =DATE(YEAR(Y5) + 1, MONTH(Y5), DAY(Y5)) -> 2026-03-31 | AA5: =DATE(YEAR(Z5) + 1, MONTH(Z5), DAY(Z5)) -> 2027-03-31 | AB5: =DATE(YEAR(AA5) + 1, MONTH(AA5), DAY(AA5)) -> 2028-03-31 | AC5: =DATE(YEAR(AB5) + 1, MONTH(AB5), DAY(AB5)) -> 2029-03-31 | AD5: =DATE(YEAR(AC5) + 1, MONTH(AC5), DAY(AC5)) -> 2030-03-31 | AE5: =DATE(YEAR(AD5) + 1, MONTH(AD5), DAY(AD5)) -> 2031-03-31 | AF5: =DATE(YEAR(AE5) + 1, MONTH(AE5), DAY(AE5)) -> 2032-03-31 | AG5: =DATE(YEAR(AF5) + 1, MONTH(AF5), DAY(AF5)) -> 2033-03-31 | AH5: =DATE(YEAR(AG5) + 1, MONTH(AG5), DAY(AG5)) -> 2034-03-31 | AI5: =DATE(YEAR(AH5) + 1, MONTH(AH5), DAY(AH5)) -> 2035-03-31 | AJ5: =DATE(YEAR(AI5) + 1, MONTH(AI5), DAY(AI5)) -> 2036-03-31 | AK5: =DATE(YEAR(AJ5) + 1, MONTH(AJ5), DAY(AJ5)) -> 2037-03-31 | AL5: =DATE(YEAR(AK5) + 1, MONTH(AK5), DAY(AK5)) -> 2038-03-31 | AM5: =DATE(YEAR(AL5) + 1, MONTH(AL5), DAY(AL5)) -> 2039-03-31 | AN5: =DATE(YEAR(AM5) + 1, MONTH(AM5), DAY(AM5)) -> 2040-03-31 | AO5: =DATE(YEAR(AN5) + 1, MONTH(AN5), DAY(AN5)) -> 2041-03-31 | AP5: =DATE(YEAR(AO5) + 1, MONTH(AO5), DAY(AO5)) -> 2042-03-31 | AQ5: =DATE(YEAR(AP5) + 1, MONTH(AP5), DAY(AP5)) -> 2043-03-31 | AR5: =DATE(YEAR(AQ5) + 1, MONTH(AQ5), DAY(AQ5)) -> 2044-03-31 | AS5: =DATE(YEAR(AR5) + 1, MONTH(AR5), DAY(AR5)) -> 2045-03-31 | AT5: =DATE(YEAR(AS5) + 1, MONTH(AS5), DAY(AS5)) -> 2046-03-31 | AU5: =DATE(YEAR(AT5) + 1, MONTH(AT5), DAY(AT5)) -> 2047-03-31 | AV5: =DATE(YEAR(AU5) + 1, MONTH(AU5), DAY(AU5)) -> 2048-03-31 | AW5: =DATE(YEAR(AV5) + 1, MONTH(AV5), DAY(AV5)) -> 2049-03-31 | AX5: =DATE(YEAR(AW5) + 1, MONTH(AW5), DAY(AW5)) -> 2050-03-31
B7: Model outputs
C9: Cap and floor levels
E11: Cap | G11: £m nominal | K11: =Availability!K17*Assessment!K13/Assessment!$I13 -> 0 | L11: =Availability!L17*Assessment!L13/Assessment!$I13 -> 0 | M11: =Availability!M17*Assessment!M13/Assessment!$I13 -> 0 | N11: =Availability!N17*Assessment!N13/Assessment!$I13 -> 0 | O11: =Availability!O17*Assessment!O13/Assessment!$I13 -> 0 | P11: =Availability!P17*Assessment!P13/Assessment!$I13 -> 0 | Q11: =Availability!Q17*Assessment!Q13/Assessment!$I13 -> 0 | R11: =Availability!R17*Assessment!R13/Assessment!$I13 -> 0 | S11: =Availability!S17*Assessment!S13/Assessment!$I13 -> 0 | T11: =Availability!T17*Assessment!T13/Assessment!$I13 -> 0 | U11: =Availability!U17*Assessment!U13/Assessment!$I13 -> 0 | V11: =Availability!V17*Assessment!V13/Assessment!$I13 -> 107.5936064 | W11: =Availability!W17*Assessment!W13/Assessment!$I13 -> 110.5093932 | X11: =Availability!X17*Assessment!X13/Assessment!$I13 -> 113.5041977 | Y11: =Availability!Y17*Assessment!Y13/Assessment!$I13 -> 116.5801615 | Z11: =Availability!Z17*Assessment!Z13/Assessment!$I13 -> 119.7394839 | AA11: =Availability!AA17*Assessment!AA13/Assessment!$I13 -> 122.9844239 | AB11: =Availability!AB17*Assessment!AB13/Assessment!$I13 -> 126.3173018 | AC11: =Availability!AC17*Assessment!AC13/Assessment!$I13 -> 129.7405007 | AD11: =Availability!AD17*Assessment!AD13/Assessment!$I13 -> 133.2564682 | AE11: =Availability!AE17*Assessment!AE13/Assessment!$I13 -> 136.8677185 | AF11: =Availability!AF17*Assessment!AF13/Assessment!$I13 -> 140.5768337 | AG11: =Availability!AG17*Assessment!AG13/Assessment!$I13 -> 144.3864659 | AH11: =Availability!AH17*Assessment!AH13/Assessment!$I13 -> 148.2993391 | AI11: =Availability!AI17*Assessment!AI13/Assessment!$I13 -> 152.3182512 | AJ11: =Availability!AJ17*Assessment!AJ13/Assessment!$I13 -> 156.4460758 | AK11: =Availability!AK17*Assessment!AK13/Assessment!$I13 -> 160.6857644 | AL11: =Availability!AL17*Assessment!AL13/Assessment!$I13 -> 165.0403487 | AM11: =Availability!AM17*Assessment!AM13/Assessment!$I13 -> 169.5129421 | AN11: =Availability!AN17*Assessment!AN13/Assessment!$I13 -> 174.1067428 | AO11: =Availability!AO17*Assessment!AO13/Assessment!$I13 -> 178.8250356 | AP11: =Availability!AP17*Assessment!AP13/Assessment!$I13 -> 183.671194 | AQ11: =Availability!AQ17*Assessment!AQ13/Assessment!$I13 -> 188.6486834 | AR11: =Availability!AR17*Assessment!AR13/Assessment!$I13 -> 193.7610627 | AS11: =Availability!AS17*Assessment!AS13/Assessment!$I13 -> 199.0119875 | AT11: =Availability!AT17*Assessment!AT13/Assessment!$I13 -> 204.4052124 | AU11: =Availability!AU17*Assessment!AU13/Assessment!$I13 -> 0 | AV11: =Availability!AV17*Assessment!AV13/Assessment!$I13 -> 0 | AW11: =Availability!AW17*Assessment!AW13/Assessment!$I13 -> 0 | AX11: =Availability!AX17*Assessment!AX13/Assessment!$I13 -> 0
E12: Floor | G12: £m nominal | K12: =Availability!K18*Assessment!K13/Assessment!$I13 -> 0 | L12: =Availability!L18*Assessment!L13/Assessment!$I13 -> 0 | M12: =Availability!M18*Assessment!M13/Assessment!$I13 -> 0 | N12: =Availability!N18*Assessment!N13/Assessment!$I13 -> 0 | O12: =Availability!O18*Assessment!O13/Assessment!$I13 -> 0 | P12: =Availability!P18*Assessment!P13/Assessment!$I13 -> 0 | Q12: =Availability!Q18*Assessment!Q13/Assessment!$I13 -> 0 | R12: =Availability!R18*Assessment!R13/Assessment!$I13 -> 0 | S12: =Availability!S18*Assessment!S13/Assessment!$I13 -> 0 | T12: =Availability!T18*Assessment!T13/Assessment!$I13 -> 0 | U12: =Availability!U18*Assessment!U13/Assessment!$I13 -> 0 | V12: =Availability!V18*Assessment!V13/Assessment!$I13 -> 59.754004 | W12: =Availability!W18*Assessment!W13/Assessment!$I13 -> 61.37333751 | X12: =Availability!X18*Assessment!X13/Assessment!$I13 -> 63.03655495 | Y12: =Availability!Y18*Assessment!Y13/Assessment!$I13 -> 64.74484559 | Z12: =Availability!Z18*Assessment!Z13/Assessment!$I13 -> 66.49943091 | AA12: =Availability!AA18*Assessment!AA13/Assessment!$I13 -> 68.30156548 | AB12: =Availability!AB18*Assessment!AB13/Assessment!$I13 -> 70.15253791 | AC12: =Availability!AC18*Assessment!AC13/Assessment!$I13 -> 72.05367169 | AD12: =Availability!AD18*Assessment!AD13/Assessment!$I13 -> 74.00632619 | AE12: =Availability!AE18*Assessment!AE13/Assessment!$I13 -> 76.01189763 | AF12: =Availability!AF18*Assessment!AF13/Assessment!$I13 -> 78.07182005 | AG12: =Availability!AG18*Assessment!AG13/Assessment!$I13 -> 80.18756638 | AH12: =Availability!AH18*Assessment!AH13/Assessment!$I13 -> 82.36064943 | AI12: =Availability!AI18*Assessment!AI13/Assessment!$I13 -> 84.59262303 | AJ12: =Availability!AJ18*Assessment!AJ13/Assessment!$I13 -> 86.88508311 | AK12: =Availability!AK18*Assessment!AK13/Assessment!$I13 -> 89.23966886 | AL12: =Availability!AL18*Assessment!AL13/Assessment!$I13 -> 91.65806389 | AM12: =Availability!AM18*Assessment!AM13/Assessment!$I13 -> 94.14199742 | AN12: =Availability!AN18*Assessment!AN13/Assessment!$I13 -> 96.69324555 | AO12: =Availability!AO18*Assessment!AO13/Assessment!$I13 -> 99.3136325 | AP12: =Availability!AP18*Assessment!AP13/Assessment!$I13 -> 102.0050319 | AQ12: =Availability!AQ18*Assessment!AQ13/Assessment!$I13 -> 104.7693683 | AR12: =Availability!AR18*Assessment!AR13/Assessment!$I13 -> 107.6086182 | AS12: =Availability!AS18*Assessment!AS13/Assessment!$I13 -> 110.5248117 | AT12: =Availability!AT18*Assessment!AT13/Assessment!$I13 -> 113.5200341 | AU12: =Availability!AU18*Assessment!AU13/Assessment!$I13 -> 0 | AV12: =Availability!AV18*Assessment!AV13/Assessment!$I13 -> 0 | AW12: =Availability!AW18*Assessment!AW13/Assessment!$I13 -> 0 | AX12: =Availability!AX18*Assessment!AX13/Assessment!$I13 -> 0
C14: Amounts due to or from Consumers - £m nominal
E18: Interconnector Cap and Floor Revenue Adjustment for Assessment Periods | G18: £m nominal | H18: ICFap | K18: =Assessment!K64+Assessment!K80 -> 0 | L18: =Assessment!L64+Assessment!L80 -> 0 | M18: =Assessment!M64+Assessment!M80 -> 0 | N18: =Assessment!N64+Assessment!N80 -> 0 | O18: =Assessment!O64+Assessment!O80 -> 0 | P18: =Assessment!P64+Assessment!P80 -> 0 | Q18: =Assessment!Q64+Assessment!Q80 -> 0 | R18: =Assessment!R64+Assessment!R80 -> 0 | S18: =Assessment!S64+Assessment!S80 -> 0 | T18: =Assessment!T64+Assessment!T80 -> 0 | U18: =Assessment!U64+Assessment!U80 -> 0 | V18: =Assessment!V64+Assessment!V80 -> 0 | W18: =Assessment!W64+Assessment!W80 -> 0 | X18: =Assessment!X64+Assessment!X80 -> 0 | Y18: =Assessment!Y64+Assessment!Y80 -> 0 | Z18: =Assessment!Z64+Assessment!Z80 -> 0 | AA18: =Assessment!AA64+Assessment!AA80 -> 0 | AB18: =Assessment!AB64+Assessment!AB80 -> 0 | AC18: =Assessment!AC64+Assessment!AC80 -> 0 | AD18: =Assessment!AD64+Assessment!AD80 -> 0 | AE18: =Assessment!AE64+Assessment!AE80 -> 0 | AF18: =Assessment!AF64+Assessment!AF80 -> 0 | AG18: =Assessment!AG64+Assessment!AG80 -> 0 | AH18: =Assessment!AH64+Assessment!AH80 -> 0 | AI18: =Assessment!AI64+Assessment!AI80 -> 0 | AJ18: =Assessment!AJ64+Assessment!AJ80 -> 0 | AK18: =Assessment!AK64+Assessment!AK80 -> 0 | AL18: =Assessment!AL64+Assessment!AL80 -> 0 | AM18: =Assessment!AM64+Assessment!AM80 -> 0 | AN18: =Assessment!AN64+Assessment!AN80 -> 0 | AO18: =Assessment!AO64+Assessment!AO80 -> 0 | AP18: =Assessment!AP64+Assessment!AP80 -> 0 | AQ18: =Assessment!AQ64+Assessment!AQ80 -> 0 | AR18: =Assessment!AR64+Assessment!AR80 -> 0 | AS18: =Assessment!AS64+Assessment!AS80 -> 0 | AT18: =Assessment!AT64+Assessment!AT80 -> 0 | AU18: =Assessment!AU64+Assessment!AU80 -> 0 | AV18: =Assessment!AV64+Assessment!AV80 -> 0 | AW18: =Assessment!AW64+Assessment!AW80 -> 0 | AX18: =Assessment!AX64+Assessment!AX80 -> 0
E20: Interconnector Cap and Floor Revenue Adjustment for Partial Assessment Periods | G20: £m nominal | H20: ICFpap | K20: =Assessment!K37 -> 0 | L20: =Assessment!L37 -> 0 | M20: =Assessment!M37 -> 0 | N20: =Assessment!N37 -> 0 | O20: =Assessment!O37 -> 0 | P20: =Assessment!P37 -> 0 | Q20: =Assessment!Q37 -> 0 | R20: =Assessment!R37 -> 0 | S20: =Assessment!S37 -> 0 | T20: =Assessment!T37 -> 0 | U20: =Assessment!U37 -> 0 | V20: =Assessment!V37 -> 0 | W20: =Assessment!W37 -> 0 | X20: =Assessment!X37 -> 0 | Y20: =Assessment!Y37 -> 0 | Z20: =Assessment!Z37 -> 0 | AA20: =Assessment!AA37 -> 0 | AB20: =Assessment!AB37 -> 0 | AC20: =Assessment!AC37 -> 0 | AD20: =Assessment!AD37 -> 0 | AE20: =Assessment!AE37 -> 0 | AF20: =Assessment!AF37 -> 0 | AG20: =Assessment!AG37 -> 0 | AH20: =Assessment!AH37 -> 0 | AI20: =Assessment!AI37 -> 0 | AJ20: =Assessment!AJ37 -> 0 | AK20: =Assessment!AK37 -> 0 | AL20: =Assessment!AL37 -> 0 | AM20: =Assessment!AM37 -> 0 | AN20: =Assessment!AN37 -> 0 | AO20: =Assessment!AO37 -> 0 | AP20: =Assessment!AP37 -> 0 | AQ20: =Assessment!AQ37 -> 0 | AR20: =Assessment!AR37 -> 0 | AS20: =Assessment!AS37 -> 0 | AT20: =Assessment!AT37 -> 0 | AU20: =Assessment!AU37 -> 0 | AV20: =Assessment!AV37 -> 0 | AW20: =Assessment!AW37 -> 0 | AX20: =Assessment!AX37 -> 0
B22: End of sheet

Sheet download from BoE
A1: SERIES | B1: DESCRIPTION
A2: IUDMIZC | B2: Yield from British Government Securities - 10 year Inflation Zero Coupon
A4: DATE | B4: IUDMIZC
A5: 2015-02-26 | B5: 2.7347
A6: 2015-02-27 | B6: 2.7756
A7: 2015-03-02 | B7: 2.7719
A8: 2015-03-03 | B8: 2.766
A9: 2015-03-04 | B9: 2.7438
A10: 2015-03-05 | B10: 2.7187
A11: 2015-03-06 | B11: 2.779
A12: 2015-03-09 | B12: 2.7612
A13: 2015-03-10 | B13: 2.7175
A14: 2015-03-11 | B14: 2.7122
A15: 2015-03-12 | B15: 2.6773
A16: 2015-03-13 | B16: 2.6344
A17: 2015-03-16 | B17: 2.6067
A18: 2015-03-17 | B18: 2.624
A19: 2015-03-18 | B19: 2.6597
A20: 2015-03-19 | B20: 2.6851
A21: 2015-03-20 | B21: 2.735
A22: 2015-03-23 | B22: 2.7113
A23: 2015-03-24 | B23: 2.6979
A24: 2015-03-25 | B24: 2.6952
A26: SERIES | B26: DESCRIPTION
A27: IUMAMRZC | B27: Monthly average yield from British Government Securities - 10 year Real Zero Coupon
A29: DATE | B29: IUMAMRZC
A30: 2005-04-30 | B30: 1.7638
A31: 2005-05-31 | B31: 1.6959
A32: 2005-06-30 | B32: 1.6498
A33: 2005-07-31 | B33: 1.6469
A34: 2005-08-31 | B34: 1.6095
A35: 2005-09-30 | B35: 1.5097
A36: 2005-10-31 | B36: 1.5665
A37: 2005-11-30 | B37: 1.541
A38: 2005-12-31 | B38: 1.4668
A39: 2006-01-31 | B39: 1.2921
A40: 2006-02-28 | B40: 1.3237
A41: 2006-03-31 | B41: 1.4135
A42: 2006-04-30 | B42: 1.542
A43: 2006-05-31 | B43: 1.6291
A44: 2006-06-30 | B44: 1.6832
A45: 2006-07-31 | B45: 1.6457
A46: 2006-08-31 | B46: 1.5515
A47: 2006-09-30 | B47: 1.4912
A48: 2006-10-31 | B48: 1.5738
A49: 2006-11-30 | B49: 1.4736
A50: 2006-12-31 | B50: 1.5561
A51: 2007-01-31 | B51: 1.7849
A52: 2007-02-28 | B52: 1.7983
A53: 2007-03-31 | B53: 1.7002
A54: 2007-04-30 | B54: 1.9068
A55: 2007-05-31 | B55: 2.0466
A56: 2007-06-30 | B56: 2.2101
A57: 2007-07-31 | B57: 2.1934
A58: 2007-08-31 | B58: 1.9666
A59: 2007-09-30 | B59: 1.7894
A60: 2007-10-31 | B60: 1.7455
A61: 2007-11-30 | B61: 1.4823
A62: 2007-12-31 | B62: 1.4983
A63: 2008-01-31 | B63: 1.3032
A64: 2008-02-29 | B64: 1.3276
A65: 2008-03-31 | B65: 1.0236
A66: 2008-04-30 | B66: 1.2032
A67: 2008-05-31 | B67: 1.3612
A68: 2008-06-30 | B68: 1.3581
A69: 2008-07-31 | B69: 1.2887
A70: 2008-08-31 | B70: 1.1652
A71: 2008-09-30 | B71: 1.2511
A72: 2008-10-31 | B72: 2.0565
A73: 2008-11-30 | B73: 2.58
A74: 2008-12-31 | B74: 2.1901
A75: 2009-01-31 | B75: 1.5257
A76: 2009-02-28 | B76: 1.2501
A77: 2009-03-31 | B77: 1.1902
A78: 2009-04-30 | B78: 1.0832
A79: 2009-05-31 | B79: 1.0904
A80: 2009-06-30 | B80: 1.0821
A81: 2009-07-31 | B81: 1.2285
A82: 2009-08-31 | B82: 1.1562
A83: 2009-09-30 | B83: 1.0559
A84: 2009-10-31 | B84: 0.703
A85: 2009-11-30 | B85: 0.774
A86: 2009-12-31 | B86: 0.8046
A87: 2010-01-31 | B87: 0.8237
A88: 2010-02-28 | B88: 0.9608
A89: 2010-03-31 | B89: 0.8276
A90: 2010-04-30 | B90: 0.7118
A91: 2010-05-31 | B91: 0.7264
A92: 2010-06-30 | B92: 0.7631
A93: 2010-07-31 | B93: 0.8433
A94: 2010-08-31 | B94: 0.6535
A95: 2010-09-30 | B95: 0.4628
A96: 2010-10-31 | B96: 0.3775
A97: 2010-11-30 | B97: 0.4815
A98: 2010-12-31 | B98: 0.6754
A99: 2011-01-31 | B99: 0.6353
A100: 2011-02-28 | B100: 0.7203
A101: 2011-03-31 | B101: 0.5424
A102: 2011-04-30 | B102: 0.5699
A103: 2011-05-31 | B103: 0.4104
A104: 2011-06-30 | B104: 0.2576
A105: 2011-07-31 | B105: 0.1927
A106: 2011-08-31 | B106: -0.1442
A107: 2011-09-30 | B107: -0.2071
A108: 2011-10-31 | B108: -0.1245
A109: 2011-11-30 | B109: -0.3177
A110: 2011-12-31 | B110: -0.475
A111: 2012-01-31 | B111: -0.5915
A112: 2012-02-29 | B112: -0.5785
A113: 2012-03-31 | B113: -0.5281
A114: 2012-04-30 | B114: -0.5759
A115: 2012-05-31 | B115: -0.6844
A116: 2012-06-30 | B116: -0.5935
A117: 2012-07-31 | B117: -0.6427
A118: 2012-08-31 | B118: -0.6944
A119: 2012-09-30 | B119: -0.6639
A120: 2012-10-31 | B120: -0.5872
A121: 2012-11-30 | B121: -0.6283
A122: 2012-12-31 | B122: -0.7274
A123: 2013-01-31 | B123: -0.825
A124: 2013-02-28 | B124: -1.01
A125: 2013-03-31 | B125: -1.2531
A126: 2013-04-30 | B126: -1.3223
A127: 2013-05-31 | B127: -1.0738
A128: 2013-06-30 | B128: -0.6377
A129: 2013-07-31 | B129: -0.5794
A130: 2013-08-31 | B130: -0.3798
A131: 2013-09-30 | B131: -0.2206
A132: 2013-10-31 | B132: -0.3819
A133: 2013-11-30 | B133: -0.2983
A134: 2013-12-31 | B134: -0.1979
A135: 2014-01-31 | B135: -0.1654
A136: 2014-02-28 | B136: -0.1897
A137: 2014-03-31 | B137: -0.3044
A138: 2014-04-30 | B138: -0.353
A139: 2014-05-31 | B139: -0.389
A140: 2014-06-30 | B140: -0.296
A141: 2014-07-31 | B141: -0.3139
A142: 2014-08-31 | B142: -0.4716
A143: 2014-09-30 | B143: -0.5363
A144: 2014-10-31 | B144: -0.6198
A145: 2014-11-30 | B145: -0.7384
A146: 2014-12-31 | B146: -0.9321
A147: 2015-01-31 | B147: -1.0627
A148: 2015-02-28 | B148: -0.889
A149: 2015-03-31 | B149: -0.9312

Sheet download from iBoxx
A59: Fixing | B59: EU_EOD | C59: 2015-04-20
A60: Index | B60: iBoxx £ Non-Financials BBB 10+
A61: ISIN TRi | B61: DE000A0JZAH1
A62: Total Return Index Level | B62: 385.67
A63: Price Index Level | B63: 132.7
A65: DATE | B65: FIXINGFLAG | C65: Years to Maturity / Expected Remaining Life | D65: Price Return Index Level | E65: Total Return Index Level | F65: Gross Price Index Level | G65: Coupon Income Index Level | H65: Redemption Income Index Level | I65: Income Index Level | J65: Market Value | K65: Nominal Value | L65: Base Market Value | M65: Annual Yield in % | N65: Annual Modified Duration | O65: Index Asset Swap Margin
A66: 2015-03-25 | B66: EOD | C66: 17.78 | D66: 134.58 | E66: 389.7943 | F66: 121 | G66: 1.23 | H66: 0 | I66: 1.23 | J66: 4.641253171e+10 | K66: 36031274000 | L66: 4.54822168e+10 | M66: 3.5 | N66: 11.47 | O66: 193.37
A67: 2015-03-24 | B67: EOD | C67: 17.79 | D67: 134.18 | E67: 388.6417 | F67: 120.79 | G67: 1.09 | H67: 0 | I67: 1.09 | J67: 4.632943761e+10 | K67: 36031274000 | L67: 4.54822168e+10 | M67: 3.52 | N67: 11.44 | O67: 192.41
A68: 2015-03-23 | B68: EOD | C68: 17.79 | D68: 134.3 | E68: 388.9382 | F68: 120.88 | G68: 1.09 | H68: 0 | I68: 1.09 | J68: 4.636486824e+10 | K68: 36031274000 | L68: 4.54822168e+10 | M68: 3.52 | N68: 11.45 | O68: 191.97
A69: 2015-03-20 | B69: EOD | C69: 17.8 | D69: 134.23 | E69: 388.5897 | F69: 120.86 | G69: 1 | H69: 0 | I69: 1 | J69: 4.635747983e+10 | K69: 36031274000 | L69: 4.54822168e+10 | M69: 3.52 | N69: 11.45 | O69: 193.44
A70: 2015-03-19 | B70: EOD | C70: 17.8 | D70: 134.04 | E70: 388.0022 | F70: 120.68 | G70: 1 | H70: 0 | I70: 1 | J70: 4.628728894e+10 | K70: 36031274000 | L70: 4.54822168e+10 | M70: 3.53 | N70: 11.44 | O70: 192.66
A71: 2015-03-18 | B71: EOD | C71: 17.8 | D71: 132.82 | E71: 384.5276 | F71: 119.6 | G71: 1 | H71: 0 | I71: 1 | J71: 4.587214055e+10 | K71: 36031274000 | L71: 4.54822168e+10 | M71: 3.61 | N71: 11.4 | O71: 191.16
A72: 2015-03-17 | B72: EOD | C72: 17.81 | D72: 132.07 | E72: 382.3587 | F72: 118.92 | G72: 1 | H72: 0 | I72: 1 | J72: 4.561300286e+10 | K72: 36031274000 | L72: 4.54822168e+10 | M72: 3.66 | N72: 11.37 | O72: 187.61
A73: 2015-03-16 | B73: EOD | C73: 17.81 | D73: 132 | E73: 382.1174 | F73: 118.85 | G73: 1 | H73: 0 | I73: 1 | J73: 4.558417456e+10 | K73: 36031274000 | L73: 4.54822168e+10 | M73: 3.66 | N73: 11.37 | O73: 189.51
A74: 2015-03-13 | B74: EOD | C74: 17.82 | D74: 131.57 | E74: 380.7553 | F74: 118.51 | G74: 0.91 | H74: 0 | I74: 0.91 | J74: 4.545442806e+10 | K74: 36031274000 | L74: 4.54822168e+10 | M74: 3.69 | N74: 11.35 | O74: 189.24
A75: 2015-03-12 | B75: EOD | C75: 17.82 | D75: 131.38 | E75: 380.1858 | F75: 118.33 | G75: 0.91 | H75: 0 | I75: 0.91 | J75: 4.538638519e+10 | K75: 36031274000 | L75: 4.54822168e+10 | M75: 3.71 | N75: 11.35 | O75: 184.07
A76: 2015-03-11 | B76: EOD | C76: 17.82 | D76: 130.5 | E76: 377.6391 | F76: 117.54 | G76: 0.91 | H76: 0 | I76: 0.91 | J76: 4.508211323e+10 | K76: 36031274000 | L76: 4.54822168e+10 | M76: 3.76 | N76: 11.32 | O76: 179.36
A77: 2015-03-10 | B77: EOD | C77: 17.83 | D77: 130.51 | E77: 377.6355 | F77: 117.53 | G77: 0.91 | H77: 0 | I77: 0.91 | J77: 4.508167371e+10 | K77: 36031274000 | L77: 4.54822168e+10 | M77: 3.76 | N77: 11.32 | O77: 177.52
A78: 2015-03-09 | B78: EOD | C78: 17.83 | D78: 129.09 | E78: 373.5839 | F78: 116.27 | G78: 0.91 | H78: 0 | I78: 0.91 | J78: 4.459760128e+10 | K78: 36031274000 | L78: 4.54822168e+10 | M78: 3.86 | N78: 11.28 | O78: 174.74
A79: 2015-03-06 | B79: EOD | C79: 17.84 | D79: 128.98 | E79: 373.132 | F79: 116.13 | G79: 0.91 | H79: 0 | I79: 0.91 | J79: 4.454360941e+10 | K79: 36031274000 | L79: 4.54822168e+10 | M79: 3.86 | N79: 11.28 | O79: 174.73
A80: 2015-03-05 | B80: EOD | C80: 17.84 | D80: 130.12 | E80: 376.3118 | F80: 117.12 | G80: 0.91 | H80: 0 | I80: 0.91 | J80: 4.492352685e+10 | K80: 36031274000 | L80: 4.54822168e+10 | M80: 3.79 | N80: 11.33 | O80: 176.7
A81: 2015-03-04 | B81: EOD | C81: 17.84 | D81: 129.88 | E81: 375.5673 | F81: 116.89 | G81: 0.91 | H81: 0 | I81: 0.91 | J81: 4.483457253e+10 | K81: 36031274000 | L81: 4.54822168e+10 | M81: 3.81 | N81: 11.32 | O81: 176.21
A82: 2015-03-03 | B82: EOD | C82: 17.85 | D82: 130.4 | E82: 377.0091 | F82: 117.34 | G82: 0.91 | H82: 0 | I82: 0.91 | J82: 4.500683798e+10 | K82: 36031274000 | L82: 4.54822168e+10 | M82: 3.77 | N82: 11.34 | O82: 176.04
A83: 2015-03-02 | B83: EOD | C83: 17.85 | D83: 131.5 | E83: 380.0478 | F83: 118.29 | G83: 0.91 | H83: 0 | I83: 0.91 | J83: 4.536989631e+10 | K83: 36031274000 | L83: 4.54822168e+10 | M83: 3.7 | N83: 11.39 | O83: 178.22
A84: 2015-02-28 | B84: EOD | C84: 16.84 | D84: 131.75 | E84: 380.6709 | F84: 118.58 | G84: 0.81 | H84: 0 | I84: 0.81 | J84: 4.19919363e+10 | K84: 33831274000 | L84: 4.389738897e+10 | M84: 3.77 | N84: 11 | O84: 187.21
A85: 2015-02-27 | B85: EOD | C85: 16.84 | D85: 131.75 | E85: 380.6239 | F85: 118.56 | G85: 0.81 | H85: 0 | I85: 0.81 | J85: 4.198674202e+10 | K85: 33831274000 | L85: 4.389738897e+10 | M85: 3.77 | N85: 11.01 | O85: 187.24
A86: 2015-02-26 | B86: EOD | C86: 16.85 | D86: 132.55 | E86: 382.8155 | F86: 119.25 | G86: 0.81 | H86: 0 | I86: 0.81 | J86: 4.22288953e+10 | K86: 33831274000 | L86: 4.389738897e+10 | M86: 3.72 | N86: 11.04 | O86: 186.36
A88: Fixing | B88: EU_EOD | C88: 2015-04-20
A89: Index | B89: iBoxx £ Non-Financials A 10+
A90: ISIN TRi | B90: DE000A0JY837
A91: Total Return Index Level | B91: 378.72
A92: Price Index Level | B92: 140.31
A94: DATE | B94: FIXINGFLAG | C94: Years to Maturity / Expected Remaining Life | D94: Price Return Index Level | E94: Total Return Index Level | F94: Gross Price Index Level | G94: Coupon Income Index Level | H94: Redemption Income Index Level | I94: Income Index Level | J94: Market Value | K94: Nominal Value | L94: Base Market Value | M94: Annual Yield in % | N94: Annual Modified Duration | O94: Index Asset Swap Margin
A95: 2015-03-25 | B95: EOD | C95: 22.76 | D95: 142.47 | E95: 383.2726 | F95: 144.17 | G95: 0.81 | H95: 0 | I95: 0.81 | J95: 6.213904227e+10 | K95: 46881056000 | L95: 6.07573573e+10 | M95: 3.37 | N95: 13.04 | O95: 180.12
A96: 2015-03-24 | B96: EOD | C96: 22.77 | D96: 142.04 | E96: 382.1136 | F96: 143.73 | G96: 0.81 | H96: 0 | I96: 0.81 | J96: 6.195084065e+10 | K96: 46881056000 | L96: 6.07573573e+10 | M96: 3.39 | N96: 13.02 | O96: 178.74
A97: 2015-03-23 | B97: EOD | C97: 22.77 | D97: 142.04 | E97: 382.0616 | F97: 143.71 | G97: 0.81 | H97: 0 | I97: 0.81 | J97: 6.194239911e+10 | K97: 46881056000 | L97: 6.07573573e+10 | M97: 3.39 | N97: 13.02 | O97: 178.98
A98: 2015-03-20 | B98: EOD | C98: 22.78 | D98: 142 | E98: 381.839 | F98: 143.63 | G98: 0.81 | H98: 0 | I98: 0.81 | J98: 6.190625957e+10 | K98: 46881056000 | L98: 6.07573573e+10 | M98: 3.39 | N98: 13.03 | O98: 180.53
A99: 2015-03-19 | B99: EOD | C99: 22.78 | D99: 141.82 | E99: 381.3121 | F99: 143.43 | G99: 0.81 | H99: 0 | I99: 0.81 | J99: 6.182069526e+10 | K99: 46881056000 | L99: 6.07573573e+10 | M99: 3.4 | N99: 13.03 | O99: 179.35
A100: 2015-03-18 | B100: EOD | C100: 22.78 | D100: 140.36 | E100: 377.4235 | F100: 141.97 | G100: 0.81 | H100: 0 | I100: 0.81 | J100: 6.118928139e+10 | K100: 46881056000 | L100: 6.07573573e+10 | M100: 3.48 | N100: 12.95 | O100: 177.48
A101: 2015-03-17 | B101: EOD | C101: 22.78 | D101: 139.46 | E101: 375.0107 | F101: 141.06 | G101: 0.81 | H101: 0 | I101: 0.81 | J101: 6.079748105e+10 | K101: 46881056000 | L101: 6.07573573e+10 | M101: 3.53 | N101: 12.91 | O101: 173.81
A102: 2015-03-16 | B102: EOD | C102: 22.79 | D102: 139.4 | E102: 374.8056 | F102: 140.98 | G102: 0.81 | H102: 0 | I102: 0.81 | J102: 6.076417805e+10 | K102: 46881056000 | L102: 6.07573573e+10 | M102: 3.53 | N102: 12.91 | O102: 175.82
A103: 2015-03-13 | B103: EOD | C103: 22.8 | D103: 138.92 | E103: 373.4244 | F103: 140.46 | G103: 0.81 | H103: 0 | I103: 0.81 | J103: 6.053991126e+10 | K103: 46881056000 | L103: 6.07573573e+10 | M103: 3.56 | N103: 12.89 | O103: 175.09
A104: 2015-03-12 | B104: EOD | C104: 22.8 | D104: 138.79 | E104: 373.0371 | F104: 140.39 | G104: 0.74 | H104: 0 | I104: 0.74 | J104: 6.050983301e+10 | K104: 46881056000 | L104: 6.07573573e+10 | M104: 3.57 | N104: 12.89 | O104: 169.57
A105: 2015-03-11 | B105: EOD | C105: 22.8 | D105: 137.66 | E105: 370.0119 | F105: 139.25 | G105: 0.74 | H105: 0 | I105: 0.74 | J105: 6.001860773e+10 | K105: 46881056000 | L105: 6.07573573e+10 | M105: 3.63 | N105: 12.83 | O105: 164.62
A106: 2015-03-10 | B106: EOD | C106: 22.8 | D106: 137.61 | E106: 369.8422 | F106: 139.19 | G106: 0.74 | H106: 0 | I106: 0.74 | J106: 5.999105302e+10 | K106: 46881056000 | L106: 6.07573573e+10 | M106: 3.63 | N106: 12.83 | O106: 163.24
A107: 2015-03-09 | B107: EOD | C107: 22.81 | D107: 136.08 | E107: 365.766 | F107: 137.68 | G107: 0.71 | H107: 0 | I107: 0.71 | J107: 5.933990424e+10 | K107: 46881056000 | L107: 6.07573573e+10 | M107: 3.72 | N107: 12.76 | O107: 159.65
A108: 2015-03-06 | B108: EOD | C108: 22.81 | D108: 136.02 | E108: 365.484 | F108: 137.67 | G108: 0.61 | H108: 0 | I108: 0.61 | J108: 5.933875032e+10 | K108: 46881056000 | L108: 6.07573573e+10 | M108: 3.72 | N108: 12.75 | O108: 159.23
A109: 2015-03-05 | B109: EOD | C109: 22.82 | D109: 137.33 | E109: 368.8815 | F109: 138.95 | G109: 0.61 | H109: 0 | I109: 0.61 | J109: 5.989042114e+10 | K109: 46881056000 | L109: 6.07573573e+10 | M109: 3.65 | N109: 12.82 | O109: 161.7
A110: 2015-03-04 | B110: EOD | C110: 22.82 | D110: 137.17 | E110: 368.4287 | F110: 138.78 | G110: 0.61 | H110: 0 | I110: 0.61 | J110: 5.981689188e+10 | K110: 46881056000 | L110: 6.07573573e+10 | M110: 3.66 | N110: 12.82 | O110: 160.44
A111: 2015-03-03 | B111: EOD | C111: 22.82 | D111: 137.8 | E111: 370.0369 | F111: 139.39 | G111: 0.61 | H111: 0 | I111: 0.61 | J111: 6.007803939e+10 | K111: 46881056000 | L111: 6.07573573e+10 | M111: 3.62 | N111: 12.85 | O111: 160.23
A112: 2015-03-02 | B112: EOD | C112: 22.83 | D112: 139.06 | E112: 373.3078 | F112: 140.62 | G112: 0.61 | H112: 0 | I112: 0.61 | J112: 6.060916595e+10 | K112: 46881056000 | L112: 6.07573573e+10 | M112: 3.55 | N112: 12.93 | O112: 162.98
A113: 2015-02-28 | B113: EOD | C113: 23.01 | D113: 139.42 | E113: 374.1708 | F113: 140.96 | G113: 0.59 | H113: 0 | I113: 0.59 | J113: 6.581565992e+10 | K113: 50899279000 | L113: 6.949802736e+10 | M113: 3.57 | N113: 13.02 | O113: 169.06
A114: 2015-02-27 | B114: EOD | C114: 23.01 | D114: 139.42 | E114: 374.1276 | F114: 140.96 | G114: 0.57 | H114: 0 | I114: 0.57 | J114: 6.581554415e+10 | K114: 50899279000 | L114: 6.949802736e+10 | M114: 3.57 | N114: 13.03 | O114: 169.08
A115: 2015-02-26 | B115: EOD | C115: 23.02 | D115: 140.5 | E115: 376.9328 | F115: 142.02 | G115: 0.57 | H115: 0 | I115: 0.57 | J115: 6.630963282e+10 | K115: 50899279000 | L115: 6.949802736e+10 | M115: 3.51 | N115: 13.09 | O115: 168.04

Sheet Market data
A1: TEMPORARY 1
E2: Parameter | G2: Units | I2: Constant | K2: Annual values
E3: Project year | K3: =Input!K8 -> -10 | L3: =K3 + 1 -> -9 | M3: -8 | N3: -7 | O3: -6 | P3: -5 | Q3: -4 | R3: -3 | S3: -2 | T3: -1 | U3: 0 | V3: 1 | W3: 2 | X3: 3 | Y3: 4 | Z3: 5 | AA3: 6 | AB3: 7 | AC3: 8 | AD3: 9 | AE3: 10 | AF3: 11 | AG3: 12 | AH3: 13 | AI3: 14 | AJ3: 15 | AK3: 16 | AL3: 17 | AM3: 18 | AN3: 19 | AO3: 20 | AP3: 21 | AQ3: 22 | AR3: 23 | AS3: 24 | AT3: 25 | AU3: 26 | AV3: 27 | AW3: 28 | AX3: 29
E4: Year commencing | K4: =Input!K9 -> 2010-04-01 | L4: =+K5+1 -> 2011-04-01 | M4: =+L5+1 -> 2012-04-01 | N4: =+M5+1 -> 2013-04-01 | O4: 2014-04-01 | P4: 2015-04-01 | Q4: 2016-04-01 | R4: 2017-04-01 | S4: 2018-04-01 | T4: 2019-04-01 | U4: 2020-04-01 | V4: 2021-04-01 | W4: 2022-04-01 | X4: 2023-04-01 | Y4: 2024-04-01 | Z4: 2025-04-01 | AA4: 2026-04-01 | AB4: 2027-04-01 | AC4: 2028-04-01 | AD4: 2029-04-01 | AE4: 2030-04-01 | AF4: 2031-04-01 | AG4: 2032-04-01 | AH4: 2033-04-01 | AI4: 2034-04-01 | AJ4: 2035-04-01 | AK4: 2036-04-01 | AL4: 2037-04-01 | AM4: 2038-04-01 | AN4: 2039-04-01 | AO4: 2040-04-01 | AP4: 2041-04-01 | AQ4: 2042-04-01 | AR4: 2043-04-01 | AS4: 2044-04-01 | AT4: 2045-04-01 | AU4: 2046-04-01 | AV4: 2047-04-01 | AW4: 2048-04-01 | AX4: 2049-04-01
E5: Year ending | K5: =Input!K10 -> 2011-03-31 | L5: =DATE(YEAR(K5) + 1, MONTH(K5), DAY(K5)) -> 2012-03-31 | M5: 2013-03-31 | N5: 2014-03-31 | O5: 2015-03-31 | P5: 2016-03-31 | Q5: 2017-03-31 | R5: 2018-03-31 | S5: 2019-03-31 | T5: 2020-03-31 | U5: 2021-03-31 | V5: 2022-03-31 | W5: 2023-03-31 | X5: 2024-03-31 | Y5: 2025-03-31 | Z5: 2026-03-31 | AA5: 2027-03-31 | AB5: 2028-03-31 | AC5: 2029-03-31 | AD5: 2030-03-31 | AE5: 2031-03-31 | AF5: 2032-03-31 | AG5: 2033-03-31 | AH5: 2034-03-31 | AI5: 2035-03-31 | AJ5: 2036-03-31 | AK5: 2037-03-31 | AL5: 2038-03-31 | AM5: 2039-03-31 | AN5: 2040-03-31 | AO5: 2041-03-31 | AP5: 2042-03-31 | AQ5: 2043-03-31 | AR5: 2044-03-31 | AS5: 2045-03-31 | AT5: 2046-03-31 | AU5: 2047-03-31 | AV5: 2048-03-31 | AW5: 2049-03-31 | AX5: 2050-03-31
B7: Calculations - Cap and Floor returns
C9: Cap
D11: Beta
E13: Drax asset beta (2yr daily returns delevered with net debt & market cap) | G13: scalar | I13: =I15 / 2 -> 0.625
E14: Notional gearing | G14: % | I14: 0.5
E15: Relevered equity beta | G15: scalar | I15: 1.25
D17: CAPM
E19: GB risk-free rate | G19: real annual % | I19: 0.016
E22: UK total market returns (latest DMS aritmentic mean of equity market returns since 1900) | G22: real annual % | I22: 0.071
E23: UK RPI adjusment | G23: annual % | I23: 0.004
E25: GB market risk premium | G25: real annual % | I25: =I22 - I19 - I23 -> 0.051
E28: UK cap returns | G28: real annual % | I28: =I19 + I25 * I$15 -> 0.07975
E31: Cap returns (rounded to 2dp) | G31: real annual % | I31: =I28 -> 0.07975
C33: Floor
D35: GB
E37: Date | K37: =TRANSPOSE('Market data'!K280:K299) -> 2015-02-26 | L37: 2015-02-27 | M37: 2015-03-02 | N37: 2015-03-03 | O37: 2015-03-04 | P37: 2015-03-05 | Q37: 2015-03-06 | R37: 2015-03-09 | S37: 2015-03-10 | T37: 2015-03-11 | U37: 2015-03-12 | V37: 2015-03-13 | W37: 2015-03-16 | X37: 2015-03-17 | Y37: 2015-03-18 | Z37: 2015-03-19 | AA37: 2015-03-20 | AB37: 2015-03-23 | AC37: 2015-03-24 | AD37: 2015-03-25
E38: UK iBoxx non-financials 10+ broad A rating | G38: ppts | K38: =INDEX('Market data'!$L$120:$L$140, MATCH('Market data'!K$37, 'Market data'!$K$120:$K$140, 0), 0) -> 3.51 | L38: =INDEX('Market data'!$L$120:$L$140, MATCH('Market data'!L$37, 'Market data'!$K$120:$K$140, 0), 0) -> 3.57 | M38: =INDEX('Market data'!$L$120:$L$140, MATCH('Market data'!M$37, 'Market data'!$K$120:$K$140, 0), 0) -> 3.55 | N38: =INDEX('Market data'!$L$120:$L$140, MATCH('Market data'!N$37, 'Market data'!$K$120:$K$140, 0), 0) -> 3.62 | O38: =INDEX('Market data'!$L$120:$L$140, MATCH('Market data'!O$37, 'Market data'!$K$120:$K$140, 0), 0) -> 3.66 | P38: =INDEX('Market data'!$L$120:$L$140, MATCH('Market data'!P$37, 'Market data'!$K$120:$K$140, 0), 0) -> 3.65 | Q38: =INDEX('Market data'!$L$120:$L$140, MATCH('Market data'!Q$37, 'Market data'!$K$120:$K$140, 0), 0) -> 3.72 | R38: =INDEX('Market data'!$L$120:$L$140, MATCH('Market data'!R$37, 'Market data'!$K$120:$K$140, 0), 0) -> 3.72 | S38: =INDEX('Market data'!$L$120:$L$140, MATCH('Market data'!S$37, 'Market data'!$K$120:$K$140, 0), 0) -> 3.63 | T38: =INDEX('Market data'!$L$120:$L$140, MATCH('Market data'!T$37, 'Market data'!$K$120:$K$140, 0), 0) -> 3.63 | U38: =INDEX('Market data'!$L$120:$L$140, MATCH('Market data'!U$37, 'Market data'!$K$120:$K$140, 0), 0) -> 3.57 | V38: =INDEX('Market data'!$L$120:$L$140, MATCH('Market data'!V$37, 'Market data'!$K$120:$K$140, 0), 0) -> 3.56 | W38: =INDEX('Market data'!$L$120:$L$140, MATCH('Market data'!W$37, 'Market data'!$K$120:$K$140, 0), 0) -> 3.53 | X38: =INDEX('Market data'!$L$120:$L$140, MATCH('Market data'!X$37, 'Market data'!$K$120:$K$140, 0), 0) -> 3.53 | Y38: =INDEX('Market data'!$L$120:$L$140, MATCH('Market data'!Y$37, 'Market data'!$K$120:$K$140, 0), 0) -> 3.48 | Z38: =INDEX('Market data'!$L$120:$L$140, MATCH('Market data'!Z$37, 'Market data'!$K$120:$K$140, 0), 0) -> 3.4 | AA38: =INDEX('Market data'!$L$120:$L$140, MATCH('Market data'!AA$37, 'Market data'!$K$120:$K$140, 0), 0) -> 3.39 | AB38: =INDEX('Market data'!$L$120:$L$140, MATCH('Market data'!AB$37, 'Market data'!$K$120:$K$140, 0), 0) -> 3.39 | AC38: =INDEX('Market data'!$L$120:$L$140, MATCH('Market data'!AC$37, 'Market data'!$K$120:$K$140, 0), 0) -> 3.39 | AD38: =INDEX('Market data'!$L$120:$L$140, MATCH('Market data'!AD$37, 'Market data'!$K$120:$K$140, 0), 0) -> 3.37
E39: UK iBoxx non-financials 10+ broad BBB rating | G39: ppts | K39: =INDEX('Market data'!$L$90:$L$110, MATCH('Market data'!K$37, 'Market data'!$K$90:$K$110, 0), 0) -> 3.72 | L39: =INDEX('Market data'!$L$90:$L$110, MATCH('Market data'!L$37, 'Market data'!$K$90:$K$110, 0), 0) -> 3.77 | M39: =INDEX('Market data'!$L$90:$L$110, MATCH('Market data'!M$37, 'Market data'!$K$90:$K$110, 0), 0) -> 3.7 | N39: =INDEX('Market data'!$L$90:$L$110, MATCH('Market data'!N$37, 'Market data'!$K$90:$K$110, 0), 0) -> 3.77 | O39: =INDEX('Market data'!$L$90:$L$110, MATCH('Market data'!O$37, 'Market data'!$K$90:$K$110, 0), 0) -> 3.81 | P39: =INDEX('Market data'!$L$90:$L$110, MATCH('Market data'!P$37, 'Market data'!$K$90:$K$110, 0), 0) -> 3.79 | Q39: =INDEX('Market data'!$L$90:$L$110, MATCH('Market data'!Q$37, 'Market data'!$K$90:$K$110, 0), 0) -> 3.86 | R39: =INDEX('Market data'!$L$90:$L$110, MATCH('Market data'!R$37, 'Market data'!$K$90:$K$110, 0), 0) -> 3.86 | S39: =INDEX('Market data'!$L$90:$L$110, MATCH('Market data'!S$37, 'Market data'!$K$90:$K$110, 0), 0) -> 3.76 | T39: =INDEX('Market data'!$L$90:$L$110, MATCH('Market data'!T$37, 'Market data'!$K$90:$K$110, 0), 0) -> 3.76 | U39: =INDEX('Market data'!$L$90:$L$110, MATCH('Market data'!U$37, 'Market data'!$K$90:$K$110, 0), 0) -> 3.71 | V39: =INDEX('Market data'!$L$90:$L$110, MATCH('Market data'!V$37, 'Market data'!$K$90:$K$110, 0), 0) -> 3.69 | W39: =INDEX('Market data'!$L$90:$L$110, MATCH('Market data'!W$37, 'Market data'!$K$90:$K$110, 0), 0) -> 3.66 | X39: =INDEX('Market data'!$L$90:$L$110, MATCH('Market data'!X$37, 'Market data'!$K$90:$K$110, 0), 0) -> 3.66 | Y39: =INDEX('Market data'!$L$90:$L$110, MATCH('Market data'!Y$37, 'Market data'!$K$90:$K$110, 0), 0) -> 3.61 | Z39: =INDEX('Market data'!$L$90:$L$110, MATCH('Market data'!Z$37, 'Market data'!$K$90:$K$110, 0), 0) -> 3.53 | AA39: =INDEX('Market data'!$L$90:$L$110, MATCH('Market data'!AA$37, 'Market data'!$K$90:$K$110, 0), 0) -> 3.52 | AB39: =INDEX('Market data'!$L$90:$L$110, MATCH('Market data'!AB$37, 'Market data'!$K$90:$K$110, 0), 0) -> 3.52 | AC39: =INDEX('Market data'!$L$90:$L$110, MATCH('Market data'!AC$37, 'Market data'!$K$90:$K$110, 0), 0) -> 3.52 | AD39: =INDEX('Market data'!$L$90:$L$110, MATCH('Market data'!AD$37, 'Market data'!$K$90:$K$110, 0), 0) -> 3.5
E40: Yield from British Government Securities, 10 year Inflation Zero Coupon (IUDMIZC) | G40: ppts | K40: =INDEX('Market data'!$L$280:$L$299, MATCH(K37, 'Market data'!$K$280:$K$299, 0), 0) -> 2.7347 | L40: =INDEX('Market data'!$L$280:$L$299, MATCH(L37, 'Market data'!$K$280:$K$299, 0), 0) -> 2.7756 | M40: =INDEX('Market data'!$L$280:$L$299, MATCH(M37, 'Market data'!$K$280:$K$299, 0), 0) -> 2.7719 | N40: =INDEX('Market data'!$L$280:$L$299, MATCH(N37, 'Market data'!$K$280:$K$299, 0), 0) -> 2.766 | O40: =INDEX('Market data'!$L$280:$L$299, MATCH(O37, 'Market data'!$K$280:$K$299, 0), 0) -> 2.7438 | P40: =INDEX('Market data'!$L$280:$L$299, MATCH(P37, 'Market data'!$K$280:$K$299, 0), 0) -> 2.7187 | Q40: =INDEX('Market data'!$L$280:$L$299, MATCH(Q37, 'Market data'!$K$280:$K$299, 0), 0) -> 2.779 | R40: =INDEX('Market data'!$L$280:$L$299, MATCH(R37, 'Market data'!$K$280:$K$299, 0), 0) -> 2.7612 | S40: =INDEX('Market data'!$L$280:$L$299, MATCH(S37, 'Market data'!$K$280:$K$299, 0), 0) -> 2.7175 | T40: =INDEX('Market data'!$L$280:$L$299, MATCH(T37, 'Market data'!$K$280:$K$299, 0), 0) -> 2.7122 | U40: =INDEX('Market data'!$L$280:$L$299, MATCH(U37, 'Market data'!$K$280:$K$299, 0), 0) -> 2.6773 | V40: =INDEX('Market data'!$L$280:$L$299, MATCH(V37, 'Market data'!$K$280:$K$299, 0), 0) -> 2.6344 | W40: =INDEX('Market data'!$L$280:$L$299, MATCH(W37, 'Market data'!$K$280:$K$299, 0), 0) -> 2.6067 | X40: =INDEX('Market data'!$L$280:$L$299, MATCH(X37, 'Market data'!$K$280:$K$299, 0), 0) -> 2.624 | Y40: =INDEX('Market data'!$L$280:$L$299, MATCH(Y37, 'Market data'!$K$280:$K$299, 0), 0) -> 2.6597 | Z40: =INDEX('Market data'!$L$280:$L$299, MATCH(Z37, 'Market data'!$K$280:$K$299, 0), 0) -> 2.6851 | AA40: =INDEX('Market data'!$L$280:$L$299, MATCH(AA37, 'Market data'!$K$280:$K$299, 0), 0) -> 2.735 | AB40: =INDEX('Market data'!$L$280:$L$299, MATCH(AB37, 'Market data'!$K$280:$K$299, 0), 0) -> 2.7113 | AC40: =INDEX('Market data'!$L$280:$L$299, MATCH(AC37, 'Market data'!$K$280:$K$299, 0), 0) -> 2.6979 | AD40: =INDEX('Market data'!$L$280:$L$299, MATCH(AD37, 'Market data'!$K$280:$K$299, 0), 0) -> 2.6952
E42: Nominal cost of debt (UK) | G42: ppts | K42: =(K38 + K39) / 2 -> 3.615 | L42: 3.67 | M42: 3.625 | N42: 3.695 | O42: 3.735 | P42: 3.72 | Q42: 3.79 | R42: 3.79 | S42: 3.695 | T42: 3.695 | U42: 3.64 | V42: 3.625 | W42: 3.595 | X42: 3.595 | Y42: 3.545 | Z42: 3.465 | AA42: 3.455 | AB42: 3.455 | AC42: 3.455 | AD42: 3.435
E43: Real cost of debt (UK) | G43: real annual % | K43: =((1+K42/100)/(1+K40/100)-1) -> 0.008568672513 | L43: 0.008702454668 | M43: 0.008300907155 | N43: 0.009039954849 | O43: 0.009647297452 | P43: 0.009747981624 | Q43: 0.00983663978 | R43: 0.01001156078 | S43: 0.009516392046 | T43: 0.009568483588 | U43: 0.009375976969 | V43: 0.009651734701 | W43: 0.009631924621 | X43: 0.009461724353 | Y43: 0.008623637123 | Z43: 0.007595064912 | AA43: 0.007008322383 | AB43: 0.007240683352 | AC43: 0.007372107901 | AD43: 0.007203842049
E44: GB deflated floor (20 day average) | G44: real annual % | I44: =AVERAGE(K43:AD43) -> 0.008805268141
D46: This interconnector
E48: Floor returns | G48: real annual % | I48: =I44 -> 0.008805268141
E49: Floor returns (rounded to 2dp) | G49: real annual % | I49: =ROUND(I48,4) -> 0.0088
E51: GB inflation forecast | G51: % | I51: =AVERAGE(K40:AD40) / 100 -> 0.0271036
E54: GB inflation forecast (rounded to 2dp) | G54: % | I54: =ROUND(AVERAGE(K40:AD40) / 100, 4) -> 0.0271
C57: IDC
D59: GB
E61: Cost of debt (real) | G61: real annual % | I61: =I44 -> 0.008805268141
E62: Risk-free rate (real) | G62: real annual % | I62: =AVERAGE('Market data'!L153:L272) / 100 -> 0.006024966667
E63: Market risk premium | G63: real annual % | I63: =I22-I23-I62 -> 0.06097503333
E64: Equity beta | G64: scalar | I64: 1.04
E65: Cost of equity (real) | G65: real annual % | I65: =I62 + I63 * I64 -> 0.06943900133
E66: Gearing | G66: % | I66: 0.3341
E67: Vanilla WACC (national basis) | G67: real annual % | I67: =I61 * I66 + I65 * (1 - I66) -> 0.04918127107
D69: This interconnector
E71: Average vanilla WACC | G71: real annual % | I71: =I67 -> 0.04918127107
E72: Development risk premium uplift % | G72: real annual % | I72: 0.0054
E73: Construction risk premium uplift % | G73: real annual % | I73: 0.0091
E74: IDC | G74: real annual % | I74: =I71 + I72 + I73 -> 0.06368127107
E75: IDC (rounded 2dp) | G75: real annual % | I75: =ROUND(I74, 4) -> 0.0637
E77: Pre-operational gearing (rounded to 2dp) | G77: % | I77: =ROUND(I66, 4) -> 0.3341
B81: Input - Bond Yields
D83: iBoxx £ Non-Financials BBB 10+
E85: Fixing | G85: EU_EOD | I85: =K90 -> 2015-03-25
E86: Index | I86: iBoxx £ Non-Financials BBB 10+
E87: ISIN TRi | I87: DE000A0JZAH1
I88: DE000A0JZAH1
I89: iBoxx € Non-Financials BBB 10+ | K89: DATE | L89: Annual Yield in %
K90: ='download from iBoxx'!A66 -> 2015-03-25 | L90: ='download from iBoxx'!M66 -> 3.5
K91: ='download from iBoxx'!A67 -> 2015-03-24 | L91: ='download from iBoxx'!M67 -> 3.52
K92: ='download from iBoxx'!A68 -> 2015-03-23 | L92: ='download from iBoxx'!M68 -> 3.52
K93: ='download from iBoxx'!A69 -> 2015-03-20 | L93: ='download from iBoxx'!M69 -> 3.52
K94: ='download from iBoxx'!A70 -> 2015-03-19 | L94: ='download from iBoxx'!M70 -> 3.53
K95: ='download from iBoxx'!A71 -> 2015-03-18 | L95: ='download from iBoxx'!M71 -> 3.61
K96: ='download from iBoxx'!A72 -> 2015-03-17 | L96: ='download from iBoxx'!M72 -> 3.66
K97: ='download from iBoxx'!A73 -> 2015-03-16 | L97: ='download from iBoxx'!M73 -> 3.66
K98: ='download from iBoxx'!A74 -> 2015-03-13 | L98: ='download from iBoxx'!M74 -> 3.69
K99: ='download from iBoxx'!A75 -> 2015-03-12 | L99: ='download from iBoxx'!M75 -> 3.71
K100: ='download from iBoxx'!A76 -> 2015-03-11 | L100: ='download from iBoxx'!M76 -> 3.76
K101: ='download from iBoxx'!A77 -> 2015-03-10 | L101: ='download from iBoxx'!M77 -> 3.76
K102: ='download from iBoxx'!A78 -> 2015-03-09 | L102: ='download from iBoxx'!M78 -> 3.86
K103: ='download from iBoxx'!A79 -> 2015-03-06 | L103: ='download from iBoxx'!M79 -> 3.86
K104: ='download from iBoxx'!A80 -> 2015-03-05 | L104: ='download from iBoxx'!M80 -> 3.79
K105: ='download from iBoxx'!A81 -> 2015-03-04 | L105: ='download from iBoxx'!M81 -> 3.81
K106: ='download from iBoxx'!A82 -> 2015-03-03 | L106: ='download from iBoxx'!M82 -> 3.77
K107: ='download from iBoxx'!A83 -> 2015-03-02 | L107: ='download from iBoxx'!M83 -> 3.7
K108: ='download from iBoxx'!A84 -> 2015-02-28 | L108: ='download from iBoxx'!M84 -> 3.77
K109: ='download from iBoxx'!A85 -> 2015-02-27 | L109: ='download from iBoxx'!M85 -> 3.77
K110: ='download from iBoxx'!A86 -> 2015-02-26 | L110: ='download from iBoxx'!M86 -> 3.72
D113: iBoxx £ Non-Financials A 10+
E115: Fixing | G115: EU_EOD | I115: =K120 -> 2015-03-25
E116: Index | I116: iBoxx £ Non-Financials A 10+
E117: ISIN TRi | I117: DE000A0JY837
I118: DE000A0JY837
K119: DATE | L119: Annual Yield in %
K120: ='download from iBoxx'!A95 -> 2015-03-25 | L120: ='download from iBoxx'!M95 -> 3.37
K121: ='download from iBoxx'!A96 -> 2015-03-24 | L121: ='download from iBoxx'!M96 -> 3.39
K122: ='download from iBoxx'!A97 -> 2015-03-23 | L122: ='download from iBoxx'!M97 -> 3.39
K123: ='download from iBoxx'!A98 -> 2015-03-20 | L123: ='download from iBoxx'!M98 -> 3.39
K124: ='download from iBoxx'!A99 -> 2015-03-19 | L124: ='download from iBoxx'!M99 -> 3.4
K125: ='download from iBoxx'!A100 -> 2015-03-18 | L125: ='download from iBoxx'!M100 -> 3.48
K126: ='download from iBoxx'!A101 -> 2015-03-17 | L126: ='download from iBoxx'!M101 -> 3.53
K127: ='download from iBoxx'!A102 -> 2015-03-16 | L127: ='download from iBoxx'!M102 -> 3.53
K128: ='download from iBoxx'!A103 -> 2015-03-13 | L128: ='download from iBoxx'!M103 -> 3.56
K129: ='download from iBoxx'!A104 -> 2015-03-12 | L129: ='download from iBoxx'!M104 -> 3.57
K130: ='download from iBoxx'!A105 -> 2015-03-11 | L130: ='download from iBoxx'!M105 -> 3.63
K131: ='download from iBoxx'!A106 -> 2015-03-10 | L131: ='download from iBoxx'!M106 -> 3.63
K132: ='download from iBoxx'!A107 -> 2015-03-09 | L132: ='download from iBoxx'!M107 -> 3.72
K133: ='download from iBoxx'!A108 -> 2015-03-06 | L133: ='download from iBoxx'!M108 -> 3.72
K134: ='download from iBoxx'!A109 -> 2015-03-05 | L134: ='download from iBoxx'!M109 -> 3.65
K135: ='download from iBoxx'!A110 -> 2015-03-04 | L135: ='download from iBoxx'!M110 -> 3.66
K136: ='download from iBoxx'!A111 -> 2015-03-03 | L136: ='download from iBoxx'!M111 -> 3.62
K137: ='download from iBoxx'!A112 -> 2015-03-02 | L137: ='download from iBoxx'!M112 -> 3.55
K138: ='download from iBoxx'!A113 -> 2015-02-28 | L138: ='download from iBoxx'!M113 -> 3.57
K139: ='download from iBoxx'!A114 -> 2015-02-27 | L139: ='download from iBoxx'!M114 -> 3.57
K140: ='download from iBoxx'!A115 -> 2015-02-26 | L140: ='download from iBoxx'!M115 -> 3.51
C145: Bank of England
D147: Monthly UK Govt yields
E149: SERIES | G149: DESCRIPTION | I149: =K272 -> 2015-03-31
E150: IUMAMRZC | G150: Monthly average yield from British Government Securities - 10 year Real Zero Coupon
K152: DATE | L152: IUMAMRZC
K153: ='download from BoE'!A30 -> 2005-04-30 | L153: ='download from BoE'!B30 -> 1.7638
K154: ='download from BoE'!A31 -> 2005-05-31 | L154: ='download from BoE'!B31 -> 1.6959
K155: ='download from BoE'!A32 -> 2005-06-30 | L155: ='download from BoE'!B32 -> 1.6498
K156: ='download from BoE'!A33 -> 2005-07-31 | L156: ='download from BoE'!B33 -> 1.6469
K157: ='download from BoE'!A34 -> 2005-08-31 | L157: ='download from BoE'!B34 -> 1.6095
K158: ='download from BoE'!A35 -> 2005-09-30 | L158: ='download from BoE'!B35 -> 1.5097
K159: ='download from BoE'!A36 -> 2005-10-31 | L159: ='download from BoE'!B36 -> 1.5665
K160: ='download from BoE'!A37 -> 2005-11-30 | L160: ='download from BoE'!B37 -> 1.541
K161: ='download from BoE'!A38 -> 2005-12-31 | L161: ='download from BoE'!B38 -> 1.4668
K162: ='download from BoE'!A39 -> 2006-01-31 | L162: ='download from BoE'!B39 -> 1.2921
K163: ='download from BoE'!A40 -> 2006-02-28 | L163: ='download from BoE'!B40 -> 1.3237
K164: ='download from BoE'!A41 -> 2006-03-31 | L164: ='download from BoE'!B41 -> 1.4135
K165: ='download from BoE'!A42 -> 2006-04-30 | L165: ='download from BoE'!B42 -> 1.542
K166: ='download from BoE'!A43 -> 2006-05-31 | L166: ='download from BoE'!B43 -> 1.6291
K167: ='download from BoE'!A44 -> 2006-06-30 | L167: ='download from BoE'!B44 -> 1.6832
K168: ='download from BoE'!A45 -> 2006-07-31 | L168: ='download from BoE'!B45 -> 1.6457
K169: ='download from BoE'!A46 -> 2006-08-31 | L169: ='download from BoE'!B46 -> 1.5515
K170: ='download from BoE'!A47 -> 2006-09-30 | L170: ='download from BoE'!B47 -> 1.4912
K171: ='download from BoE'!A48 -> 2006-10-31 | L171: ='download from BoE'!B48 -> 1.5738
K172: ='download from BoE'!A49 -> 2006-11-30 | L172: ='download from BoE'!B49 -> 1.4736
K173: ='download from BoE'!A50 -> 2006-12-31 | L173: ='download from BoE'!B50 -> 1.5561
K174: ='download from BoE'!A51 -> 2007-01-31 | L174: ='download from BoE'!B51 -> 1.7849
K175: ='download from BoE'!A52 -> 2007-02-28 | L175: ='download from BoE'!B52 -> 1.7983
K176: ='download from BoE'!A53 -> 2007-03-31 | L176: ='download from BoE'!B53 -> 1.7002
K177: ='download from BoE'!A54 -> 2007-04-30 | L177: ='download from BoE'!B54 -> 1.9068
K178: ='download from BoE'!A55 -> 2007-05-31 | L178: ='download from BoE'!B55 -> 2.0466
K179: ='download from BoE'!A56 -> 2007-06-30 | L179: ='download from BoE'!B56 -> 2.2101
K180: ='download from BoE'!A57 -> 2007-07-31 | L180: ='download from BoE'!B57 -> 2.1934
K181: ='download from BoE'!A58 -> 2007-08-31 | L181: ='download from BoE'!B58 -> 1.9666
K182: ='download from BoE'!A59 -> 2007-09-30 | L182: ='download from BoE'!B59 -> 1.7894
K183: ='download from BoE'!A60 -> 2007-10-31 | L183: ='download from BoE'!B60 -> 1.7455
K184: ='download from BoE'!A61 -> 2007-11-30 | L184: ='download from BoE'!B61 -> 1.4823
K185: ='download from BoE'!A62 -> 2007-12-31 | L185: ='download from BoE'!B62 -> 1.4983
K186: ='download from BoE'!A63 -> 2008-01-31 | L186: ='download from BoE'!B63 -> 1.3032
K187: ='download from BoE'!A64 -> 2008-02-29 | L187: ='download from BoE'!B64 -> 1.3276
K188: ='download from BoE'!A65 -> 2008-03-31 | L188: ='download from BoE'!B65 -> 1.0236
K189: ='download from BoE'!A66 -> 2008-04-30 | L189: ='download from BoE'!B66 -> 1.2032
K190: ='download from BoE'!A67 -> 2008-05-31 | L190: ='download from BoE'!B67 -> 1.3612
K191: ='download from BoE'!A68 -> 2008-06-30 | L191: ='download from BoE'!B68 -> 1.3581
K192: ='download from BoE'!A69 -> 2008-07-31 | L192: ='download from BoE'!B69 -> 1.2887
K193: ='download from BoE'!A70 -> 2008-08-31 | L193: ='download from BoE'!B70 -> 1.1652
K194: ='download from BoE'!A71 -> 2008-09-30 | L194: ='download from BoE'!B71 -> 1.2511
K195: ='download from BoE'!A72 -> 2008-10-31 | L195: ='download from BoE'!B72 -> 2.0565
K196: ='download from BoE'!A73 -> 2008-11-30 | L196: ='download from BoE'!B73 -> 2.58
K197: ='download from BoE'!A74 -> 2008-12-31 | L197: ='download from BoE'!B74 -> 2.1901
K198: ='download from BoE'!A75 -> 2009-01-31 | L198: ='download from BoE'!B75 -> 1.5257
K199: ='download from BoE'!A76 -> 2009-02-28 | L199: ='download from BoE'!B76 -> 1.2501
K200: ='download from BoE'!A77 -> 2009-03-31 | L200: ='download from BoE'!B77 -> 1.1902
K201: ='download from BoE'!A78 -> 2009-04-30 | L201: ='download from BoE'!B78 -> 1.0832
K202: ='download from BoE'!A79 -> 2009-05-31 | L202: ='download from BoE'!B79 -> 1.0904
K203: ='download from BoE'!A80 -> 2009-06-30 | L203: ='download from BoE'!B80 -> 1.0821
K204: ='download from BoE'!A81 -> 2009-07-31 | L204: ='download from BoE'!B81 -> 1.2285
K205: ='download from BoE'!A82 -> 2009-08-31 | L205: ='download from BoE'!B82 -> 1.1562
K206: ='download from BoE'!A83 -> 2009-09-30 | L206: ='download from BoE'!B83 -> 1.0559
K207: ='download from BoE'!A84 -> 2009-10-31 | L207: ='download from BoE'!B84 -> 0.703
K208: ='download from BoE'!A85 -> 2009-11-30 | L208: ='download from BoE'!B85 -> 0.774
K209: ='download from BoE'!A86 -> 2009-12-31 | L209: ='download from BoE'!B86 -> 0.8046
K210: ='download from BoE'!A87 -> 2010-01-31 | L210: ='download from BoE'!B87 -> 0.8237
K211: ='download from BoE'!A88 -> 2010-02-28 | L211: ='download from BoE'!B88 -> 0.9608
K212: ='download from BoE'!A89 -> 2010-03-31 | L212: ='download from BoE'!B89 -> 0.8276
K213: ='download from BoE'!A90 -> 2010-04-30 | L213: ='download from BoE'!B90 -> 0.7118
K214: ='download from BoE'!A91 -> 2010-05-31 | L214: ='download from BoE'!B91 -> 0.7264
K215: ='download from BoE'!A92 -> 2010-06-30 | L215: ='download from BoE'!B92 -> 0.7631
K216: ='download from BoE'!A93 -> 2010-07-31 | L216: ='download from BoE'!B93 -> 0.8433
K217: ='download from BoE'!A94 -> 2010-08-31 | L217: ='download from BoE'!B94 -> 0.6535
K218: ='download from BoE'!A95 -> 2010-09-30 | L218: ='download from BoE'!B95 -> 0.4628
K219: ='download from BoE'!A96 -> 2010-10-31 | L219: ='download from BoE'!B96 -> 0.3775
K220: ='download from BoE'!A97 -> 2010-11-30 | L220: ='download from BoE'!B97 -> 0.4815
K221: ='download from BoE'!A98 -> 2010-12-31 | L221: ='download from BoE'!B98 -> 0.6754
K222: ='download from BoE'!A99 -> 2011-01-31 | L222: ='download from BoE'!B99 -> 0.6353
K223: ='download from BoE'!A100 -> 2011-02-28 | L223: ='download from BoE'!B100 -> 0.7203
K224: ='download from BoE'!A101 -> 2011-03-31 | L224: ='download from BoE'!B101 -> 0.5424
K225: ='download from BoE'!A102 -> 2011-04-30 | L225: ='download from BoE'!B102 -> 0.5699
K226: ='download from BoE'!A103 -> 2011-05-31 | L226: ='download from BoE'!B103 -> 0.4104
K227: ='download from BoE'!A104 -> 2011-06-30 | L227: ='download from BoE'!B104 -> 0.2576
K228: ='download from BoE'!A105 -> 2011-07-31 | L228: ='download from BoE'!B105 -> 0.1927
K229: ='download from BoE'!A106 -> 2011-08-31 | L229: ='download from BoE'!B106 -> -0.1442
K230: ='download from BoE'!A107 -> 2011-09-30 | L230: ='download from BoE'!B107 -> -0.2071
K231: ='download from BoE'!A108 -> 2011-10-31 | L231: ='download from BoE'!B108 -> -0.1245
K232: ='download from BoE'!A109 -> 2011-11-30 | L232: ='download from BoE'!B109 -> -0.3177
K233: ='download from BoE'!A110 -> 2011-12-31 | L233: ='download from BoE'!B110 -> -0.475
K234: ='download from BoE'!A111 -> 2012-01-31 | L234: ='download from BoE'!B111 -> -0.5915
K235: ='download from BoE'!A112 -> 2012-02-29 | L235: ='download from BoE'!B112 -> -0.5785
K236: ='download from BoE'!A113 -> 2012-03-31 | L236: ='download from BoE'!B113 -> -0.5281
K237: ='download from BoE'!A114 -> 2012-04-30 | L237: ='download from BoE'!B114 -> -0.5759
K238: ='download from BoE'!A115 -> 2012-05-31 | L238: ='download from BoE'!B115 -> -0.6844
K239: ='download from BoE'!A116 -> 2012-06-30 | L239: ='download from BoE'!B116 -> -0.5935
K240: ='download from BoE'!A117 -> 2012-07-31 | L240: ='download from BoE'!B117 -> -0.6427
K241: ='download from BoE'!A118 -> 2012-08-31 | L241: ='download from BoE'!B118 -> -0.6944
K242: ='download from BoE'!A119 -> 2012-09-30 | L242: ='download from BoE'!B119 -> -0.6639
K243: ='download from BoE'!A120 -> 2012-10-31 | L243: ='download from BoE'!B120 -> -0.5872
K244: ='download from BoE'!A121 -> 2012-11-30 | L244: ='download from BoE'!B121 -> -0.6283
... 53 more rows

Sheet RPI and currency
A1: TEMPORARY 3
E2: Parameter | G2: Units | I2: Constant | K2: Annual values
E3: Project year | K3: =Input!K8 -> -10 | L3: =K3 + 1 -> -9 | M3: -8 | N3: -7 | O3: -6 | P3: -5 | Q3: -4 | R3: -3 | S3: -2 | T3: -1 | U3: 0 | V3: 1 | W3: 2 | X3: 3 | Y3: 4 | Z3: 5 | AA3: 6 | AB3: 7 | AC3: 8 | AD3: 9 | AE3: 10 | AF3: 11 | AG3: 12 | AH3: 13 | AI3: 14 | AJ3: 15 | AK3: 16 | AL3: 17 | AM3: 18 | AN3: 19 | AO3: 20 | AP3: 21 | AQ3: 22 | AR3: 23 | AS3: 24 | AT3: 25 | AU3: 26 | AV3: 27 | AW3: 28 | AX3: 29
E4: Year commencing | K4: =Input!K9 -> 2010-04-01 | L4: =+K5+1 -> 2011-04-01 | M4: =+L5+1 -> 2012-04-01 | N4: =+M5+1 -> 2013-04-01 | O4: 2014-04-01 | P4: 2015-04-01 | Q4: 2016-04-01 | R4: 2017-04-01 | S4: 2018-04-01 | T4: 2019-04-01 | U4: 2020-04-01 | V4: 2021-04-01 | W4: 2022-04-01 | X4: 2023-04-01 | Y4: 2024-04-01 | Z4: 2025-04-01 | AA4: 2026-04-01 | AB4: 2027-04-01 | AC4: 2028-04-01 | AD4: 2029-04-01 | AE4: 2030-04-01 | AF4: 2031-04-01 | AG4: 2032-04-01 | AH4: 2033-04-01 | AI4: 2034-04-01 | AJ4: 2035-04-01 | AK4: 2036-04-01 | AL4: 2037-04-01 | AM4: 2038-04-01 | AN4: 2039-04-01 | AO4: 2040-04-01 | AP4: 2041-04-01 | AQ4: 2042-04-01 | AR4: 2043-04-01 | AS4: 2044-04-01 | AT4: 2045-04-01 | AU4: 2046-04-01 | AV4: 2047-04-01 | AW4: 2048-04-01 | AX4: 2049-04-01
E5: Year ending | K5: =Input!K10 -> 2011-03-31 | L5: =DATE(YEAR(K5) + 1, MONTH(K5), DAY(K5)) -> 2012-03-31 | M5: 2013-03-31 | N5: 2014-03-31 | O5: 2015-03-31 | P5: 2016-03-31 | Q5: 2017-03-31 | R5: 2018-03-31 | S5: 2019-03-31 | T5: 2020-03-31 | U5: 2021-03-31 | V5: 2022-03-31 | W5: 2023-03-31 | X5: 2024-03-31 | Y5: 2025-03-31 | Z5: 2026-03-31 | AA5: 2027-03-31 | AB5: 2028-03-31 | AC5: 2029-03-31 | AD5: 2030-03-31 | AE5: 2031-03-31 | AF5: 2032-03-31 | AG5: 2033-03-31 | AH5: 2034-03-31 | AI5: 2035-03-31 | AJ5: 2036-03-31 | AK5: 2037-03-31 | AL5: 2038-03-31 | AM5: 2039-03-31 | AN5: 2040-03-31 | AO5: 2041-03-31 | AP5: 2042-03-31 | AQ5: 2043-03-31 | AR5: 2044-03-31 | AS5: 2045-03-31 | AT5: 2046-03-31 | AU5: 2047-03-31 | AV5: 2048-03-31 | AW5: 2049-03-31 | AX5: 2050-03-31
B7: Inflation
C9: Key index values
E11: =E140 -> 2015/16 RPI inflation index value (CHAW) | G11: =G140 -> Jan 1987 = 100 | I11: =I140 -> 259.433
C13: UK Inflation
E14: http://www.ons.gov.uk/ons/datasets-and-tables/data-selector.html?cdid=CHAW&dataset=mm23&table-id=2.1
E16: 2006 JAN | G16: Jan 1987 = 100 | I16: 193.4 | K16: =IF(L28=1,1,0) -> 0 | L16: =IF(M28=1,1,0) -> 0 | M16: =IF(N28=1,1,0) -> 0 | N16: =IF(O28=1,1,0) -> 0 | O16: =IF(P28=1,1,0) -> 0 | P16: =IF(Q28=1,1,0) -> 0
E17: 2006 FEB | G17: Jan 1987 = 100 | I17: 194.2 | K17: 0 | L17: 0 | M17: 0 | N17: 0 | O17: 0 | P17: 0
E18: 2006 MAR | G18: Jan 1987 = 100 | I18: 195 | K18: 0 | L18: 0 | M18: 0 | N18: 0 | O18: 0 | P18: 0
E19: 2006 APR | G19: Jan 1987 = 100 | I19: 196.5 | K19: 0 | L19: 0 | M19: 0 | N19: 0 | O19: 0 | P19: 0
E20: 2006 MAY | G20: Jan 1987 = 100 | I20: 197.7 | K20: 0 | L20: 0 | M20: 0 | N20: 0 | O20: 0 | P20: 0
E21: 2006 JUN | G21: Jan 1987 = 100 | I21: 198.5 | K21: 0 | L21: 0 | M21: 0 | N21: 0 | O21: 0 | P21: 0
E22: 2006 JUL | G22: Jan 1987 = 100 | I22: 198.5 | K22: 0 | L22: 0 | M22: 0 | N22: 0 | O22: 0 | P22: 0
E23: 2006 AUG | G23: Jan 1987 = 100 | I23: 199.2 | K23: 0 | L23: 0 | M23: 0 | N23: 0 | O23: 0 | P23: 0
E24: 2006 SEP | G24: Jan 1987 = 100 | I24: 200.1 | K24: 0 | L24: 0 | M24: 0 | N24: 0 | O24: 0 | P24: 0
E25: 2006 OCT | G25: Jan 1987 = 100 | I25: 200.4 | K25: 0 | L25: 0 | M25: 0 | N25: 0 | O25: 0 | P25: 0
E26: 2006 NOV | G26: Jan 1987 = 100 | I26: 201.1 | K26: 0 | L26: 0 | M26: 0 | N26: 0 | O26: 0 | P26: 0
E27: 2006 DEC | G27: Jan 1987 = 100 | I27: 202.7 | K27: 0 | L27: 0 | M27: 0 | N27: 0 | O27: 0 | P27: 0
E28: 2007 JAN | G28: Jan 1987 = 100 | I28: 201.6 | K28: 0 | L28: 0 | M28: 0 | N28: 0 | O28: 0 | P28: 0
E29: 2007 FEB | G29: Jan 1987 = 100 | I29: 203.1 | K29: 0 | L29: 0 | M29: 0 | N29: 0 | O29: 0 | P29: 0
E30: 2007 MAR | G30: Jan 1987 = 100 | I30: 204.4 | K30: 0 | L30: 0 | M30: 0 | N30: 0 | O30: 0 | P30: 0
E31: 2007 APR | G31: Jan 1987 = 100 | I31: 205.4 | K31: 0 | L31: 0 | M31: 0 | N31: 0 | O31: 0 | P31: 0
E32: 2007 MAY | G32: Jan 1987 = 100 | I32: 206.2 | K32: 0 | L32: 0 | M32: 0 | N32: 0 | O32: 0 | P32: 0
E33: 2007 JUN | G33: Jan 1987 = 100 | I33: 207.3 | K33: 0 | L33: 0 | M33: 0 | N33: 0 | O33: 0 | P33: 0
E34: 2007 JUL | G34: Jan 1987 = 100 | I34: 206.1 | K34: 0 | L34: 0 | M34: 0 | N34: 0 | O34: 0 | P34: 0
E35: 2007 AUG | G35: Jan 1987 = 100 | I35: 207.3 | K35: 0 | L35: 0 | M35: 0 | N35: 0 | O35: 0 | P35: 0
E36: 2007 SEP | G36: Jan 1987 = 100 | I36: 208 | K36: 0 | L36: 0 | M36: 0 | N36: 0 | O36: 0 | P36: 0
E37: 2007 OCT | G37: Jan 1987 = 100 | I37: 208.9 | K37: 0 | L37: 0 | M37: 0 | N37: 0 | O37: 0 | P37: 0
E38: 2007 NOV | G38: Jan 1987 = 100 | I38: 209.7 | K38: 0 | L38: 0 | M38: 0 | N38: 0 | O38: 0 | P38: 0
E39: 2007 DEC | G39: Jan 1987 = 100 | I39: 210.9 | K39: 0 | L39: 0 | M39: 0 | N39: 0 | O39: 0 | P39: 0
E40: 2008 JAN | G40: Jan 1987 = 100 | I40: 209.8 | K40: 0 | L40: 0 | M40: 0 | N40: 0 | O40: 0 | P40: 0
E41: 2008 FEB | G41: Jan 1987 = 100 | I41: 211.4 | K41: 0 | L41: 0 | M41: 0 | N41: 0 | O41: 0 | P41: 0
E42: 2008 MAR | G42: Jan 1987 = 100 | I42: 212.1 | K42: 0 | L42: 0 | M42: 0 | N42: 0 | O42: 0 | P42: 0
E43: 2008 APR | G43: Jan 1987 = 100 | I43: 214 | K43: 0 | L43: 0 | M43: 0 | N43: 0 | O43: 0 | P43: 0
E44: 2008 MAY | G44: Jan 1987 = 100 | I44: 215.1 | K44: 0 | L44: 0 | M44: 0 | N44: 0 | O44: 0 | P44: 0
E45: 2008 JUN | G45: Jan 1987 = 100 | I45: 216.8 | K45: 0 | L45: 0 | M45: 0 | N45: 0 | O45: 0 | P45: 0
E46: 2008 JUL | G46: Jan 1987 = 100 | I46: 216.5 | K46: 0 | L46: 0 | M46: 0 | N46: 0 | O46: 0 | P46: 0
E47: 2008 AUG | G47: Jan 1987 = 100 | I47: 217.2 | K47: 0 | L47: 0 | M47: 0 | N47: 0 | O47: 0 | P47: 0
E48: 2008 SEP | G48: Jan 1987 = 100 | I48: 218.4 | K48: 0 | L48: 0 | M48: 0 | N48: 0 | O48: 0 | P48: 0
E49: 2008 OCT | G49: Jan 1987 = 100 | I49: 217.7 | K49: 0 | L49: 0 | M49: 0 | N49: 0 | O49: 0 | P49: 0
E50: 2008 NOV | G50: Jan 1987 = 100 | I50: 216 | K50: 0 | L50: 0 | M50: 0 | N50: 0 | O50: 0 | P50: 0
E51: 2008 DEC | G51: Jan 1987 = 100 | I51: 212.9 | K51: 0 | L51: 0 | M51: 0 | N51: 0 | O51: 0 | P51: 0
E52: 2009 JAN | G52: Jan 1987 = 100 | I52: 210.1 | K52: 0 | L52: 0 | M52: 0 | N52: 0 | O52: 0 | P52: 0
E53: 2009 FEB | G53: Jan 1987 = 100 | I53: 211.4 | K53: 0 | L53: 0 | M53: 0 | N53: 0 | O53: 0 | P53: 0
E54: 2009 MAR | G54: Jan 1987 = 100 | I54: 211.3 | K54: 0 | L54: 0 | M54: 0 | N54: 0 | O54: 0 | P54: 0
E55: 2009 APR | G55: Jan 1987 = 100 | I55: 211.5 | K55: 0 | L55: 0 | M55: 0 | N55: 0 | O55: 0 | P55: 0
E56: 2009 MAY | G56: Jan 1987 = 100 | I56: 212.8 | K56: 0 | L56: 0 | M56: 0 | N56: 0 | O56: 0 | P56: 0
E57: 2009 JUN | G57: Jan 1987 = 100 | I57: 213.4 | K57: 0 | L57: 0 | M57: 0 | N57: 0 | O57: 0 | P57: 0
E58: 2009 JUL | G58: Jan 1987 = 100 | I58: 213.4 | K58: 0 | L58: 0 | M58: 0 | N58: 0 | O58: 0 | P58: 0
E59: 2009 AUG | G59: Jan 1987 = 100 | I59: 214.4 | K59: 0 | L59: 0 | M59: 0 | N59: 0 | O59: 0 | P59: 0
E60: 2009 SEP | G60: Jan 1987 = 100 | I60: 215.3 | K60: 0 | L60: 0 | M60: 0 | N60: 0 | O60: 0 | P60: 0
E61: 2009 OCT | G61: Jan 1987 = 100 | I61: 216 | K61: 0 | L61: 0 | M61: 0 | N61: 0 | O61: 0 | P61: 0
E62: 2009 NOV | G62: Jan 1987 = 100 | I62: 216.6 | K62: 0 | L62: 0 | M62: 0 | N62: 0 | O62: 0 | P62: 0
E63: 2009 DEC | G63: Jan 1987 = 100 | I63: 218 | K63: 0 | L63: 0 | M63: 0 | N63: 0 | O63: 0 | P63: 0
E64: 2010 JAN | G64: Jan 1987 = 100 | I64: 217.9 | K64: 0 | L64: 0 | M64: 0 | N64: 0 | O64: 0 | P64: 0
E65: 2010 FEB | G65: Jan 1987 = 100 | I65: 219.2 | K65: 0 | L65: 0 | M65: 0 | N65: 0 | O65: 0 | P65: 0
E66: 2010 MAR | G66: Jan 1987 = 100 | I66: 220.7 | K66: 0 | L66: 0 | M66: 0 | N66: 0 | O66: 0 | P66: 0
E67: 2010 APR | G67: Jan 1987 = 100 | I67: 222.8 | K67: =IF(L79=1,1,0) -> 1 | L67: 0 | M67: 0 | N67: 0 | O67: 0 | P67: 0
E68: 2010 MAY | G68: Jan 1987 = 100 | I68: 223.6 | K68: =IF(L80=1,1,0) -> 1 | L68: 0 | M68: 0 | N68: 0 | O68: 0 | P68: 0
E69: 2010 JUN | G69: Jan 1987 = 100 | I69: 224.1 | K69: =IF(L81=1,1,0) -> 1 | L69: 0 | M69: 0 | N69: 0 | O69: 0 | P69: 0
E70: 2010 JUL | G70: Jan 1987 = 100 | I70: 223.6 | K70: =IF(L82=1,1,0) -> 1 | L70: 0 | M70: 0 | N70: 0 | O70: 0 | P70: 0
E71: 2010 AUG | G71: Jan 1987 = 100 | I71: 224.5 | K71: =IF(L83=1,1,0) -> 1 | L71: 0 | M71: 0 | N71: 0 | O71: 0 | P71: 0
E72: 2010 SEP | G72: Jan 1987 = 100 | I72: 225.3 | K72: =IF(L84=1,1,0) -> 1 | L72: 0 | M72: 0 | N72: 0 | O72: 0 | P72: 0
E73: 2010 OCT | G73: Jan 1987 = 100 | I73: 225.8 | K73: =IF(L85=1,1,0) -> 1 | L73: 0 | M73: 0 | N73: 0 | O73: 0 | P73: 0
E74: 2010 NOV | G74: Jan 1987 = 100 | I74: 226.8 | K74: =IF(L86=1,1,0) -> 1 | L74: 0 | M74: 0 | N74: 0 | O74: 0 | P74: 0
E75: 2010 DEC | G75: Jan 1987 = 100 | I75: 228.4 | K75: =IF(L87=1,1,0) -> 1 | L75: 0 | M75: 0 | N75: 0 | O75: 0 | P75: 0
E76: 2011 JAN | G76: Jan 1987 = 100 | I76: 229 | K76: =IF(L88=1,1,0) -> 1 | L76: 0 | M76: 0 | N76: 0 | O76: 0 | P76: 0
E77: 2011 FEB | G77: Jan 1987 = 100 | I77: 231.3 | K77: =IF(L89=1,1,0) -> 1 | L77: 0 | M77: 0 | N77: 0 | O77: 0 | P77: 0
E78: 2011 MAR | G78: Jan 1987 = 100 | I78: 232.5 | K78: =IF(L90=1,1,0) -> 1 | L78: 0 | M78: 0 | N78: 0 | O78: 0 | P78: 0
E79: 2011 APR | G79: Jan 1987 = 100 | I79: 234.4 | K79: =IF(L91=1,1,0) -> 0 | L79: 1 | M79: 0 | N79: 0 | O79: 0 | P79: 0
E80: 2011 MAY | G80: Jan 1987 = 100 | I80: 235.2 | K80: =IF(L92=1,1,0) -> 0 | L80: 1 | M80: 0 | N80: 0 | O80: 0 | P80: 0
E81: 2011 JUN | G81: Jan 1987 = 100 | I81: 235.2 | K81: =IF(L93=1,1,0) -> 0 | L81: 1 | M81: 0 | N81: 0 | O81: 0 | P81: 0
E82: 2011 JUL | G82: Jan 1987 = 100 | I82: 234.7 | K82: =IF(L94=1,1,0) -> 0 | L82: 1 | M82: 0 | N82: 0 | O82: 0 | P82: 0
E83: 2011 AUG | G83: Jan 1987 = 100 | I83: 236.1 | K83: =IF(L95=1,1,0) -> 0 | L83: 1 | M83: 0 | N83: 0 | O83: 0 | P83: 0
E84: 2011 SEP | G84: Jan 1987 = 100 | I84: 237.9 | K84: =IF(L96=1,1,0) -> 0 | L84: 1 | M84: 0 | N84: 0 | O84: 0 | P84: 0
E85: 2011 OCT | G85: Jan 1987 = 100 | I85: 238 | K85: =IF(L97=1,1,0) -> 0 | L85: 1 | M85: 0 | N85: 0 | O85: 0 | P85: 0
E86: 2011 NOV | G86: Jan 1987 = 100 | I86: 238.5 | K86: =IF(L98=1,1,0) -> 0 | L86: 1 | M86: 0 | N86: 0 | O86: 0 | P86: 0
E87: 2011 DEC | G87: Jan 1987 = 100 | I87: 239.4 | K87: =IF(L99=1,1,0) -> 0 | L87: 1 | M87: 0 | N87: 0 | O87: 0 | P87: 0
E88: 2012 JAN | G88: Jan 1987 = 100 | I88: 238 | K88: =IF(L100=1,1,0) -> 0 | L88: 1 | M88: 0 | N88: 0 | O88: 0 | P88: 0
E89: 2012 FEB | G89: Jan 1987 = 100 | I89: 239.9 | K89: =IF(L101=1,1,0) -> 0 | L89: 1 | M89: 0 | N89: 0 | O89: 0 | P89: 0
E90: 2012 MAR | G90: Jan 1987 = 100 | I90: 240.8 | K90: =IF(L102=1,1,0) -> 0 | L90: 1 | M90: 0 | N90: 0 | O90: 0 | P90: 0
E91: 2012 APR | G91: Jan 1987 = 100 | I91: 242.5 | K91: =IF(L103=1,1,0) -> 0 | L91: 0 | M91: 1 | N91: 0 | O91: 0 | P91: 0
E92: 2012 MAY | G92: Jan 1987 = 100 | I92: 242.4 | K92: =IF(L104=1,1,0) -> 0 | L92: 0 | M92: 1 | N92: 0 | O92: 0 | P92: 0
E93: 2012 JUN | G93: Jan 1987 = 100 | I93: 241.8 | K93: =IF(L105=1,1,0) -> 0 | L93: 0 | M93: 1 | N93: 0 | O93: 0 | P93: 0
E94: 2012 JUL | G94: Jan 1987 = 100 | I94: 242.1 | K94: =IF(L106=1,1,0) -> 0 | L94: 0 | M94: 1 | N94: 0 | O94: 0 | P94: 0
E95: 2012 AUG | G95: Jan 1987 = 100 | I95: 243 | K95: =IF(L107=1,1,0) -> 0 | L95: 0 | M95: 1 | N95: 0 | O95: 0 | P95: 0
E96: 2012 SEP | G96: Jan 1987 = 100 | I96: 244.2 | K96: =IF(L108=1,1,0) -> 0 | L96: 0 | M96: 1 | N96: 0 | O96: 0 | P96: 0
E97: 2012 OCT | G97: Jan 1987 = 100 | I97: 245.6 | K97: =IF(L109=1,1,0) -> 0 | L97: 0 | M97: 1 | N97: 0 | O97: 0 | P97: 0
E98: 2012 NOV | G98: Jan 1987 = 100 | I98: 245.6 | K98: =IF(L110=1,1,0) -> 0 | L98: 0 | M98: 1 | N98: 0 | O98: 0 | P98: 0
E99: 2012 DEC | G99: Jan 1987 = 100 | I99: 246.8 | K99: =IF(L111=1,1,0) -> 0 | L99: 0 | M99: 1 | N99: 0 | O99: 0 | P99: 0
E100: 2013 JAN | G100: Jan 1987 = 100 | I100: 245.8 | K100: =IF(L112=1,1,0) -> 0 | L100: 0 | M100: 1 | N100: 0 | O100: 0 | P100: 0
E101: 2013 FEB | G101: Jan 1987 = 100 | I101: 247.6 | K101: =IF(L113=1,1,0) -> 0 | L101: 0 | M101: 1 | N101: 0 | O101: 0 | P101: 0
E102: 2013 MAR | G102: Jan 1987 = 100 | I102: 248.7 | K102: =IF(L114=1,1,0) -> 0 | L102: 0 | M102: 1 | N102: 0 | O102: 0 | P102: 0
E103: 2013 APR | G103: Jan 1987 = 100 | I103: 249.5 | K103: =IF(L115=1,1,0) -> 0 | L103: 0 | M103: 0 | N103: 1 | O103: 0 | P103: 0
E104: 2013 MAY | G104: Jan 1987 = 100 | I104: 250 | K104: =IF(L116=1,1,0) -> 0 | L104: 0 | M104: 0 | N104: 1 | O104: 0 | P104: 0
E105: 2013 JUN | G105: Jan 1987 = 100 | I105: 249.7 | K105: =IF(L117=1,1,0) -> 0 | L105: 0 | M105: 0 | N105: 1 | O105: 0 | P105: 0
E106: 2013 JUL | G106: Jan 1987 = 100 | I106: 249.7 | K106: =IF(L118=1,1,0) -> 0 | L106: 0 | M106: 0 | N106: 1 | O106: 0 | P106: 0
E107: 2013 AUG | G107: Jan 1987 = 100 | I107: 251 | K107: =IF(L119=1,1,0) -> 0 | L107: 0 | M107: 0 | N107: 1 | O107: 0 | P107: 0
E108: 2013 SEP | G108: Jan 1987 = 100 | I108: 251.9 | K108: =IF(L120=1,1,0) -> 0 | L108: 0 | M108: 0 | N108: 1 | O108: 0 | P108: 0
E109: 2013 OCT | G109: Jan 1987 = 100 | I109: 251.9 | K109: =IF(L121=1,1,0) -> 0 | L109: 0 | M109: 0 | N109: 1 | O109: 0 | P109: 0
E110: 2013 NOV | G110: Jan 1987 = 100 | I110: 252.1 | K110: =IF(L122=1,1,0) -> 0 | L110: 0 | M110: 0 | N110: 1 | O110: 0 | P110: 0
E111: 2013 DEC | G111: Jan 1987 = 100 | I111: 253.4 | K111: =IF(L123=1,1,0) -> 0 | L111: 0 | M111: 0 | N111: 1 | O111: 0 | P111: 0
E112: 2014 JAN | G112: Jan 1987 = 100 | I112: 252.6 | K112: =IF(L124=1,1,0) -> 0 | L112: 0 | M112: 0 | N112: 1 | O112: 0 | P112: 0
E113: 2014 FEB | G113: Jan 1987 = 100 | I113: 254.2 | K113: =IF(L125=1,1,0) -> 0 | L113: 0 | M113: 0 | N113: 1 | O113: 0 | P113: 0
E114: 2014 MAR | G114: Jan 1987 = 100 | I114: 254.8 | K114: =IF(L126=1,1,0) -> 0 | L114: 0 | M114: 0 | N114: 1 | O114: 0 | P114: 0
E115: 2014 APR | G115: Jan 1987 = 100 | I115: 255.7 | K115: =IF(L127=1,1,0) -> 0 | L115: 0 | M115: 0 | N115: 0 | O115: 1 | P115: 0
E116: 2014 MAY | G116: Jan 1987 = 100 | I116: 255.9 | K116: =IF(L128=1,1,0) -> 0 | L116: 0 | M116: 0 | N116: 0 | O116: 1 | P116: 0
E117: 2014 JUN | G117: Jan 1987 = 100 | I117: 256.3 | K117: =IF(L129=1,1,0) -> 0 | L117: 0 | M117: 0 | N117: 0 | O117: 1 | P117: 0
E118: 2014 JUL | G118: Jan 1987 = 100 | I118: 256 | K118: =IF(L130=1,1,0) -> 0 | L118: 0 | M118: 0 | N118: 0 | O118: 1 | P118: 0
E119: 2014 AUG | G119: Jan 1987 = 100 | I119: 257 | K119: =IF(L131=1,1,0) -> 0 | L119: 0 | M119: 0 | N119: 0 | O119: 1 | P119: 0
E120: 2014 SEP | G120: Jan 1987 = 100 | I120: 257.6 | K120: =IF(L132=1,1,0) -> 0 | L120: 0 | M120: 0 | N120: 0 | O120: 1 | P120: 0
E121: 2014 OCT | G121: Jan 1987 = 100 | I121: 257.7 | K121: =IF(L133=1,1,0) -> 0 | L121: 0 | M121: 0 | N121: 0 | O121: 1 | P121: 0
E122: 2014 NOV | G122: Jan 1987 = 100 | I122: 257.1 | K122: =IF(L134=1,1,0) -> 0 | L122: 0 | M122: 0 | N122: 0 | O122: 1 | P122: 0
E123: 2014 DEC | G123: Jan 1987 = 100 | I123: 257.5 | K123: =IF(L135=1,1,0) -> 0 | L123: 0 | M123: 0 | N123: 0 | O123: 1 | P123: 0
E124: 2015 JAN | G124: Jan 1987 = 100 | I124: 255.4 | K124: =IF(L136=1,1,0) -> 0 | L124: 0 | M124: 0 | N124: 0 | O124: 1 | P124: 0
E125: 2015 FEB | G125: Jan 1987 = 100 | I125: 256.7 | K125: =IF(L137=1,1,0) -> 0 | L125: 0 | M125: 0 | N125: 0 | O125: 1 | P125: 0
E126: 2015 MAR | G126: Jan 1987 = 100 | I126: 257.1 | K126: =IF(L138=1,1,0) -> 0 | L126: 0 | M126: 0 | N126: 0 | O126: =IF(P138=1,1,0) -> 1 | P126: =IF(Q138=1,1,0) -> 0
E127: 2015 APL | G127: Jan 1987 = 100 | I127: 258 | K127: 0 | L127: 0 | M127: 0 | N127: 0 | O127: =IF(P139=1,1,0) -> 0 | P127: 1
E128: 2015 MAY | G128: Jan 1987 = 100 | I128: 258.5 | K128: 0 | L128: 0 | M128: 0 | N128: 0 | O128: 0 | P128: 1
E129: 2015 JUN | G129: Jan 1987 = 100 | I129: 258.9 | K129: 0 | L129: 0 | M129: 0 | N129: 0 | O129: 0 | P129: 1
E130: 2015 JUL | G130: Jan 1987 = 100 | I130: 258.6 | K130: 0 | L130: 0 | M130: 0 | N130: 0 | O130: 0 | P130: 1
E131: 2015 AUG | G131: Jan 1987 = 100 | I131: 259.8 | K131: 0 | L131: 0 | M131: 0 | N131: 0 | O131: 0 | P131: 1
E132: 2015 OCT | G132: Jan 1987 = 100 | I132: 259.6 | K132: 0 | L132: 0 | M132: 0 | N132: 0 | O132: 0 | P132: 1
E133: 2015 NOV | G133: Jan 1987 = 100 | I133: 259.5 | K133: 0 | L133: 0 | M133: 0 | N133: 0 | O133: 0 | P133: 1
E134: 2015 NOV | G134: Jan 1987 = 100 | I134: 259.8 | K134: 0 | L134: 0 | M134: 0 | N134: 0 | O134: 0 | P134: 1
E135: 2015 DEC | G135: Jan 1987 = 100 | I135: 260.6 | K135: 0 | L135: 0 | M135: 0 | N135: 0 | O135: 0 | P135: 1
E136: 2016 JAN | G136: Jan 1987 = 100 | I136: 258.8 | K136: 0 | L136: 0 | M136: 0 | N136: 0 | O136: 0 | P136: 1
E137: 2016 FEB | G137: Jan 1987 = 100 | I137: 260 | K137: 0 | L137: 0 | M137: 0 | N137: 0 | O137: 0 | P137: 1
E138: 2016 MAR | G138: Jan 1987 = 100 | I138: 261.1 | K138: 0 | L138: 0 | M138: 0 | N138: 0 | O138: 0 | P138: 1
E140: 2015/16 RPI inflation index value (CHAW) | G140: Jan 1987 = 100 | I140: =P141 -> 259.433
E141: 12 month average UK RPI inflation index value (CHAW) | G141: Jan 1987 = 100 | K141: =ROUND(SUMPRODUCT($I16:$I138, K16:K138) / SUM(K16:K138), 3) -> 226.475 | L141: 237.342 | M141: 244.675 | N141: 251.733 | O141: 256.667 | P141: 259.433
C144: Exchange rate
E145: Monthly average spot exchange rate, Euro into Sterling (XUMAERS)
E146: http://www.bankofengland.co.uk/boeapps/iadb/fromshowcolumns.asp?excel97.x=yes&Datefrom=01/Jan/1992&Dateto=Now&SeriesCodes=XUMABK67,XUMAUSS,XUMAJYS,XUMAERS&UsingCodes=Y&VPD=Y
E148: 2010-04-30 | G148: 1.1436 | K148: =ROUND(AVERAGE(G148:G159), 3) -> 1.177 | L148: =ROUND(AVERAGE(G160:G171), 3) -> 1.16 | M148: =ROUND(AVERAGE(G172:G183), 3) -> 1.227 | N148: =ROUND(AVERAGE(G184:G195), 3) -> 1.186 | O148: =ROUND(AVERAGE(G196:G207), 3) -> 1.275 | P148: =ROUND(AVERAGE(G208:G219), 3) -> 1.367
E149: 2010-05-31 | G149: 1.1685
E150: 2010-06-30 | G150: 1.2082
E151: 2010-07-31 | G151: 1.1959
E152: 2010-08-31 | G152: 1.2132
E153: 2010-09-30 | G153: 1.1901
E154: 2010-10-31 | G154: 1.1412
E155: 2010-11-30 | G155: 1.1701
E156: 2010-12-31 | G156: 1.1802
E157: 2011-01-31 | G157: 1.1817
E158: 2011-02-28 | G158: 1.1815
E159: 2011-03-31 | G159: 1.1527
E160: 2011-04-30 | G160: 1.1331
E161: 2011-05-31 | G161: 1.1403
E162: 2011-06-30 | G162: 1.1261
E163: 2011-07-31 | G163: 1.1308
E164: 2011-08-31 | G164: 1.1422
E165: 2011-09-30 | G165: 1.147
E166: 2011-10-31 | G166: 1.1487
E167: 2011-11-30 | G167: 1.1659
E168: 2011-12-31 | G168: 1.1843
E169: 2012-01-31 | G169: 1.2034
E170: 2012-02-29 | G170: 1.1941
E171: 2012-03-31 | G171: 1.1981
E172: 2012-04-30 | G172: 1.2161
E173: 2012-05-31 | G173: 1.244
E174: 2012-06-30 | G174: 1.2416
E175: 2012-07-31 | G175: 1.2688
E176: 2012-08-31 | G176: 1.2676
E177: 2012-09-30 | G177: 1.2524
E178: 2012-10-31 | G178: 1.2393
E179: 2012-11-30 | G179: 1.244
E180: 2012-12-31 | G180: 1.231
E181: 2013-01-31 | G181: 1.2
E182: 2013-02-28 | G182: 1.1594
E183: 2013-03-31 | G183: 1.1634
E184: 2013-04-30 | G184: 1.175
E185: 2013-05-31 | G185: 1.1777
E186: 2013-06-30 | G186: 1.174
E187: 2013-07-31 | G187: 1.16
E188: 2013-08-31 | G188: 1.1649
E189: 2013-09-30 | G189: 1.1883
E190: 2013-10-31 | G190: 1.1797
E191: 2013-11-30 | G191: 1.1938
E192: 2013-12-31 | G192: 1.1947
E193: 2014-01-31 | G193: 1.2097
E194: 2014-02-28 | G194: 1.2122
E195: 2014-03-31 | G195: 1.2021
E196: 2014-04-30 | G196: 1.2125
E197: 2014-05-31 | G197: 1.2267
E198: 2014-06-30 | G198: 1.2436
E199: 2014-07-31 | G199: 1.2611
E200: 2014-08-31 | G200: 1.2542
E201: 2014-09-30 | G201: 1.2639
E202: 2014-10-31 | G202: 1.2678
E203: 2014-11-30 | G203: 1.2646
E204: 2014-12-31 | G204: 1.2686
E205: 2015-01-31 | G205: 1.3045
E206: 2015-02-28 | G206: 1.3503
E207: 2015-03-31 | G207: 1.3825
E208: 2015-04-30 | G208: 1.3856
E209: 2015-05-31 | G209: 1.3852
... 11 more rows
